Workbook

Sheet sim1 (hidden)
B1: sim1 - baseline | O1: Remediation time (>90% mass removal or flux reduction)
B2: mass (g/m2) | F2: flux (g/y/m2) | J2: Conc output (mg/L) | O2: Mass | P2: =VLOOKUP(90,V4:Z59,5,FALSE) -> 26 | AA2: acc flux (g/m2)
A3: Time | B3: TCE | C3: DCE | D3: VC | E3: Total | F3: TCE | G3: DCE | H3: VC | I3: Total | J3: TCE | K3: DCE | L3: VC | M3: Total | O3: Flux | P3: =VLOOKUP(90,Y4:Z59,2,FALSE) -> 24 | U3: mass removal (%) | V3: to find 90% | W3: flux reduction (%) | Y3: to find 90% | Z3: Time | AA3: TCE | AB3: DCE | AC3: VC
A4: 0 | B4: 162.6082 | C4: 0 | D4: 0 | E4: =SUM(B4:D4) -> 162.6082 | F4: 2.178 | G4: 0 | H4: 0 | I4: =SUM(F4:H4) -> 2.178 | J4: 22 | K4: 0 | L4: 0 | M4: =SUM(J4:L4) -> 22 | U4: =(E$4-E4)/E$4*100 -> 0 | V4: =IF(U4>90,90,0) -> 0 | W4: =(I$4-I4)/I$4*100 -> 0 | X4: =IF(W4>0,W4,0) -> 0 | Y4: =IF(X4>90,90,0) -> 0 | Z4: 0 | AA4: =F4 -> 2.178 | AB4: =G4 -> 0 | AC4: 0
A5: 1 | B5: 119.8864 | C5: 24.6332 | D5: 2.1773 | E5: =SUM(B5:D5) -> 146.6969 | F5: 1.5941 | G5: 0.5912 | H5: 0.0676 | I5: =SUM(F5:H5) -> 2.2529 | J5: 16.1020202 | K5: 5.971717172 | L5: 0.6828282828 | M5: =SUM(J5:L5) -> 22.75656566 | O5: Accumulated flux to the aquifer (g/m2) | U5: =(E$4-E5)/E$4*100 -> 9.78505389 | V5: =IF(U5>90,90,0) -> 0 | W5: =(I$4-I5)/I$4*100 -> -3.438934803 | X5: =IF(W5>0,W5,0) -> 0 | Y5: =IF(X5>90,90,0) -> 0 | Z5: 1 | AA5: =AA4+F5*($A5-$A4) -> 3.7721 | AB5: =AB4+G5*($A5-$A4) -> 0.5912 | AC5: 0.0676
A6: 2 | B6: 98.0529 | C6: 33.1047 | D6: 4.8891 | E6: 136.0467 | F6: 1.2893 | G6: 0.8011 | H6: 0.1606 | I6: 2.251 | J6: 13.02323232 | K6: 8.091919192 | L6: 1.622222222 | M6: 22.73737374 | O6: TCE | P6: =AA59 -> 10.27763793 | U6: 16.33466209 | V6: 0 | W6: -3.351698806 | X6: 0 | Y6: 0 | Z6: 2 | AA6: =AA5+F6*($A6-$A5) -> 5.0614 | AB6: 1.3923 | AC6: 0.2282
A7: 3 | B7: 81.6741 | C7: 37.6584 | D7: 7.3159 | E7: 126.6484 | F7: 1.0517 | G7: 0.8973 | H7: 0.2453 | I7: 2.1943 | J7: 10.62323232 | K7: 9.063636364 | L7: 2.477777778 | M7: 22.16464646 | O7: DCE | P7: =AB59 -> 11.41098498 | U7: 22.11438292 | V7: 0 | W7: -0.7483930211 | X7: 0 | Y7: 0 | Z7: 3 | AA7: 6.1131 | AB7: 2.2896 | AC7: 0.4735
A8: 4 | B8: 68.832 | C8: 39.8437 | D8: 9.4314 | E8: 118.1071 | F8: 0.8604 | G8: 0.9235 | H8: 0.3166 | I8: 2.1005 | J8: 8.690909091 | K8: 9.328282828 | L8: 3.197979798 | M8: 21.21717172 | O8: VC | P8: =AC59 -> 8.152123637 | U8: 27.36707005 | V8: 0 | W8: 3.558310376 | X8: 3.558310376 | Y8: 0 | Z8: 4 | AA8: 6.9735 | AB8: 3.2131 | AC8: 0.7901
A9: 5 | B9: 58.1489 | C9: 40.7652 | D9: 11.2304 | E9: 110.1445 | F9: 0.6993 | G9: 0.9127 | H9: 0.3729 | I9: 1.9849 | J9: 7.063636364 | K9: 9.219191919 | L9: 3.766666667 | M9: 20.04949495 | O9: Total | P9: =SUM(P6:P8) -> 29.84074655 | U9: 32.26387107 | V9: 0 | W9: 8.865932048 | X9: 8.865932048 | Y9: 0 | Z9: 5 | AA9: 7.6728 | AB9: 4.1258 | AC9: 1.163
A10: 6 | B10: 49.2015 | C10: 40.7399 | D10: 12.752 | E10: 102.6934 | F10: 0.5653 | G10: 0.8779 | H10: 0.4162 | I10: 1.8594 | J10: 5.71010101 | K10: 8.867676768 | L10: 4.204040404 | M10: 18.78181818 | U10: 36.84611231 | V10: 0 | W10: 14.62809917 | X10: 14.62809917 | Y10: 0 | Z10: 6 | AA10: 8.2381 | AB10: 5.0037 | AC10: 1.5792
A11: 7 | B11: 41.6694 | C11: 40.0106 | D11: 14.0142 | E11: 95.6942 | F11: 0.4546 | G11: 0.8276 | H11: 0.4479 | I11: 1.7301 | J11: 4.591919192 | K11: 8.35959596 | L11: 4.524242424 | M11: 17.47575758 | U11: 41.15044629 | V11: 0 | W11: 20.56473829 | X11: 20.56473829 | Y11: 0 | Z11: 7 | AA11: 8.6927 | AB11: 5.8313 | AC11: 2.0271
A12: 8 | B12: 35.2861 | C12: 38.7769 | D12: 15.0327 | E12: 89.0957 | F12: 0.3638 | G12: 0.7682 | H12: 0.4694 | I12: 1.6014 | J12: 3.674747475 | K12: 7.75959596 | L12: 4.741414141 | M12: 16.17575758 | U12: 45.20835973 | V12: 0 | W12: 26.4738292 | X12: 26.4738292 | Y12: 0 | Z12: 8 | AA12: 9.0565 | AB12: 6.5995 | AC12: 2.4965
A13: 9 | B13: 29.8589 | C13: 37.1774 | D13: 15.8235 | E13: 82.8598 | F13: 0.2896 | G13: 0.704 | H13: 0.4818 | I13: 1.4754 | J13: 2.925252525 | K13: 7.111111111 | L13: 4.866666667 | M13: 14.9030303 | U13: 49.04328318 | V13: 0 | W13: 32.25895317 | X13: 32.25895317 | Y13: 0 | Z13: 9 | AA13: 9.3461 | AB13: 7.3035 | AC13: 2.9783
A14: 10 | B14: 25.31 | C14: 35.3027 | D14: 16.3741 | E14: 76.9868 | F14: 0.2308 | G14: 0.6382 | H14: 0.4852 | I14: 1.3542 | J14: 2.331313131 | K14: 6.446464646 | L14: 4.901010101 | M14: 13.67878788 | U14: 52.65503216 | V14: 0 | W14: 37.82369146 | X14: 37.82369146 | Y14: 0 | Z14: 10 | AA14: 9.5769 | AB14: 7.9417 | AC14: 3.4635
A15: 12 | B15: 18.1911 | C15: 31.1155 | D15: 16.8855 | E15: 66.1921 | F15: 0.1456 | G15: 0.5112 | H15: 0.4718 | I15: 1.1286 | J15: 1.470707071 | K15: 5.163636364 | L15: 4.765656566 | M15: 11.4 | U15: 59.29350426 | V15: 0 | W15: 48.18181818 | X15: 48.18181818 | Y15: 0 | Z15: 12 | AA15: 9.8681 | AB15: 8.9641 | AC15: 4.4071
A16: 14 | B16: 12.9159 | C16: 26.724 | D16: 16.7744 | E16: 56.4143 | F16: 0.0896 | G16: 0.3961 | H16: 0.4396 | I16: 0.9253 | J16: 0.9050505051 | K16: 4.001010101 | L16: 4.44040404 | M16: 9.346464646 | U16: 65.30660815 | V16: 0 | W16: 57.51606979 | X16: 57.51606979 | Y16: 0 | Z16: 14 | AA16: 10.0473 | AB16: 9.7563 | AC16: 5.2863
A17: 16 | B17: 9.0111 | C17: 22.3593 | D17: 16.1255 | E17: 47.4959 | F17: 0.0533 | G17: 0.2958 | H17: 0.3932 | I17: 0.7423 | J17: 0.5383838384 | K17: 2.987878788 | L17: 3.971717172 | M17: 7.497979798 | U17: 70.79120241 | V17: 0 | W17: 65.91827365 | X17: 65.91827365 | Y17: 0 | Z17: 16 | AA17: 10.1539 | AB17: 10.3479 | AC17: 6.0727
A18: 18 | B18: 6.1536 | C18: 18.1849 | D18: 14.9989 | E18: 39.3374 | F18: 0.0304 | G18: 0.2111 | H18: 0.3359 | I18: 0.5774 | J18: 0.3070707071 | K18: 2.132323232 | L18: 3.392929293 | M18: 5.832323232 | U18: 75.80847706 | V18: 0 | W18: 73.48943985 | X18: 73.48943985 | Y18: 0 | Z18: 18 | AA18: 10.2147 | AB18: 10.7701 | AC18: 6.7445
A19: 20 | B19: 4.0566 | C19: 14.2986 | D19: 13.4857 | E19: 31.8409 | F19: 0.0162 | G19: 0.1414 | H19: 0.2708 | I19: 0.4284 | J19: 0.1636363636 | K19: 1.428282828 | L19: 2.735353535 | M19: 4.327272727 | U19: 80.41863817 | V19: 0 | W19: 80.33057851 | X19: 80.33057851 | Y19: 0 | Z19: 20 | AA19: 10.2471 | AB19: 11.0529 | AC19: 7.2861
A20: 22 | B20: 2.5985 | C20: 10.8078 | D20: 11.6191 | E20: 25.0254 | F20: 0.0082 | G20: 0.0877 | H20: 0.2004 | I20: 0.2963 | J20: 0.08282828283 | K20: 0.8858585859 | L20: 2.024242424 | M20: 2.992929293 | U20: 84.61000122 | V20: 0 | W20: 86.39577594 | X20: 86.39577594 | Y20: 0 | Z20: 22 | AA20: 10.2635 | AB20: 11.2283 | AC20: 7.6869
A21: 24 | B21: 1.6158 | C21: 7.7666 | D21: 9.463 | E21: 18.8454 | F21: 0.0039 | G21: 0.0489 | H21: 0.1293 | I21: 0.1821 | J21: 0.03939393939 | K21: 0.4939393939 | L21: 1.306060606 | M21: 1.839393939 | U21: 88.41054756 | V21: 0 | W21: 91.63911846 | X21: 91.63911846 | Y21: 90 | Z21: 24 | AA21: 10.2713 | AB21: 11.3261 | AC21: 7.9455
A22: 26 | B22: 0.9611 | C22: 5.2249 | D22: 7.1408 | E22: 13.3268 | F22: 0.0017 | G22: 0.0236 | H22: 0.0664 | I22: 0.0917 | J22: 0.01717171717 | K22: 0.2383838384 | L22: 0.6707070707 | M22: 0.9262626263 | U22: 91.80434935 | V22: 90 | W22: 95.78971534 | X22: 95.78971534 | Y22: 90 | Z22: 26 | AA22: =AA21+F22*($A22-$A21) -> 10.2747 | AB22: 11.3733 | AC22: 8.0783
A23: 28 | B23: 0.5494 | C23: 3.2079 | D23: 4.8037 | E23: 8.561 | F23: 0.00075159 | G23: 0.0102 | H23: 0.0241 | I23: 0.03505159 | J23: 0.007591818182 | K23: 0.103030303 | L23: 0.2434343434 | M23: 0.3540564646 | U23: 94.73519786 | V23: 90 | W23: 98.39065243 | X23: 98.39065243 | Y23: 90 | Z23: 28 | AA23: 10.27620318 | AB23: 11.3937 | AC23: 8.1265
A24: 30 | B24: 0.2978 | C24: 1.7257 | D24: 2.6687 | E24: 4.6922 | F24: 0.0003465 | G24: 0.0045 | H24: 0.008 | I24: 0.0128465 | J24: 0.0035 | K24: 0.04545454545 | L24: 0.08080808081 | M24: 0.1297626263 | U24: 97.11441366 | V24: 90 | W24: 99.41016988 | X24: 99.41016988 | Y24: 90 | Z24: 30 | AA24: 10.27689618 | AB24: 11.4027 | AC24: 8.1425
A25: 32 | B25: 0.1579 | C25: 0.8021 | D25: 1.0646 | E25: 2.0246 | F25: 0.00017849 | G25: 0.0022 | H25: 0.0031 | I25: 0.00547849 | J25: 0.001802929293 | K25: 0.02222222222 | L25: 0.03131313131 | M25: 0.05533828283 | U25: 98.75492134 | V25: 90 | W25: 99.74846235 | X25: 99.74846235 | Y25: 90 | Z25: 32 | AA25: 10.27725316 | AB25: 11.4071 | AC25: 8.1487
A26: 34 | B26: 0.0787 | C26: 0.3254 | D26: 0.2643 | E26: 0.6684 | F26: 9.2232e-05 | G26: 0.001 | H26: 0.0011 | I26: 0.002192232 | J26: 0.0009316363636 | K26: 0.0101010101 | L26: 0.01111111111 | M26: 0.02214375758 | U26: 99.58895062 | V26: 90 | W26: 99.89934656 | X26: 99.89934656 | Y26: 90 | Z26: 34 | AA26: 10.27743762 | AB26: 11.4091 | AC26: 8.1509
A27: 36 | B27: 0.0388 | C27: 0.129 | D27: 0.0592 | E27: 0.227 | F27: 4.7381e-05 | G27: 0.00047292 | H27: 0.00036253 | I27: 0.000882831 | J27: 0.0004785959596 | K27: 0.004776969697 | L27: 0.003661919192 | M27: 0.008917484848 | U27: 99.86040064 | V27: 90 | W27: 99.95946598 | X27: 99.95946598 | Y27: 90 | Z27: 36 | AA27: 10.27753239 | AB27: 11.41004584 | AC27: 8.15162506
A28: 38 | B28: 0.0205 | C28: 0.0567 | D28: 0.0174 | E28: 0.0946 | F28: 2.5636e-05 | G28: 0.00022873 | H28: 0.00014024 | I28: 0.000394606 | J28: 0.0002589494949 | K28: 0.00231040404 | L28: 0.001416565657 | M28: 0.003985919192 | U28: 99.94182335 | V28: 90 | W28: 99.98188219 | X28: 99.98188219 | Y28: 90 | Z28: 38 | AA28: 10.27758366 | AB28: 11.4105033 | AC28: 8.15190554
A29: 40 | B29: 0.0105 | C29: 0.0252 | D29: 0.0054 | E29: 0.0411 | F29: 1.3834e-05 | G29: 0.00010989 | H29: 5.6772e-05 | I29: 0.000180496 | J29: 0.0001397373737 | K29: 0.00111 | L29: 0.0005734545455 | M29: 0.001823191919 | U29: 99.97472452 | V29: 90 | W29: 99.99171276 | X29: 99.99171276 | Y29: 90 | Z29: 40 | AA29: 10.27761133 | AB29: 11.41072308 | AC29: 8.152019084
A30: 42 | B30: 0.0057 | C30: 0.0127 | D30: 0.0021 | E30: 0.0205 | F30: 7.9203e-06 | G30: 5.7967e-05 | H30: 2.7359e-05 | I30: 9.32463e-05 | J30: 8.00030303e-05 | K30: 0.0005855252525 | L30: 0.0002763535354 | M30: 0.0009418818182 | U30: 99.98739301 | V30: 90 | W30: 99.99571872 | X30: 99.99571872 | Y30: 90 | Z30: 42 | AA30: 10.27762717 | AB30: 11.41083901 | AC30: 8.152073802
A31: 44 | B31: 0.0027 | C31: 0.0058 | D31: 0.00067905 | E31: 0.00917905 | F31: 4.015e-06 | G31: 2.7452e-05 | H31: 1.1878e-05 | I31: 4.3345e-05 | J31: 4.055555556e-05 | K31: 0.0002772929293 | L31: 0.000119979798 | M31: 0.0004378282828 | U31: 99.99435511 | V31: 90 | W31: 99.99800987 | X31: 99.99800987 | Y31: 90 | Z31: 44 | AA31: 10.2776352 | AB31: 11.41089392 | AC31: 8.152097558
A32: 46 | B32: 0.0011 | C32: 0.0026 | D32: 0.00027915 | E32: 0.00397915 | F32: 1.3663e-06 | G32: 1.2296e-05 | H32: 5.0651e-06 | I32: 1.87274e-05 | J32: 1.38010101e-05 | K32: 0.0001242020202 | L32: 5.116262626e-05 | M32: 0.0001891656566 | U32: 99.99755292 | V32: 90 | W32: 99.99914016 | X32: 99.99914016 | Y32: 90 | Z32: 46 | AA32: 10.27763793 | AB32: 11.41091851 | AC32: 8.152107688
A33: 48 | B33: 0.00037319 | C33: 0.0013 | D33: 0.00012865 | E33: 0.00180184 | F33: 0 | G33: 6.0722e-06 | H33: 2.4422e-06 | I33: 8.5144e-06 | J33: 0 | K33: 6.133535354e-05 | L33: 2.466868687e-05 | M33: 8.60040404e-05 | U33: 99.99889191 | V33: 90 | W33: 99.99960907 | X33: 99.99960907 | Y33: 90 | Z33: 48 | AA33: 10.27763793 | AB33: 11.41093065 | AC33: 8.152112573
A34: 50 | B34: 0.00012002 | C34: 0.00091134 | D34: 7.4791e-05 | E34: 0.001106151 | F34: 0 | G34: 5.0945e-06 | H34: 1.5113e-06 | I34: 6.6058e-06 | J34: 0 | K34: 5.145959596e-05 | L34: 1.526565657e-05 | M34: 6.672525253e-05 | U34: 99.99931974 | V34: 90 | W34: 99.9996967 | X34: 99.9996967 | Y34: 90 | Z34: 50 | AA34: 10.27763793 | AB34: 11.41094084 | AC34: 8.152115595
A35: 52 | B35: 0.00012903 | C35: 0.000894 | D35: 6.8886e-05 | E35: 0.001091916 | F35: 0 | G35: 6.905e-06 | H35: 1.2004e-06 | I35: 8.1054e-06 | J35: 0 | K35: 6.974747475e-05 | L35: 1.212525253e-05 | M35: 8.187272727e-05 | U35: 99.9993285 | V35: 90 | W35: 99.99962785 | X35: 99.99962785 | Y35: 90 | Z35: 52 | AA35: 10.27763793 | AB35: 11.41095465 | AC35: 8.152117996
A36: 54 | B36: 0 | C36: 0.0005129 | D36: 4.9531e-05 | E36: 0.000562431 | F36: 0 | G36: 3.6561e-06 | H36: 8.8459e-07 | I36: 4.54069e-06 | J36: 0 | K36: 3.693030303e-05 | L36: 8.935252525e-06 | M36: 4.586555556e-05 | U36: 99.99965412 | V36: 90 | W36: 99.99979152 | X36: 99.99979152 | Y36: 90 | Z36: 54 | AA36: 10.27763793 | AB36: 11.41096197 | AC36: 8.152119765
A37: 56 | B37: 0 | C37: 0.00037896 | D37: 3.332e-05 | E37: 0.00041228 | F37: 0 | G37: 2.7654e-06 | H37: 6.1686e-07 | I37: 3.38226e-06 | J37: 0 | K37: 2.793333333e-05 | L37: 6.230909091e-06 | M37: 3.416424242e-05 | U37: 99.99974646 | V37: 90 | W37: 99.99984471 | X37: 99.99984471 | Y37: 90 | Z37: 56 | AA37: 10.27763793 | AB37: 11.4109675 | AC37: 8.152120999
A38: 58 | B38: 0 | C38: 0.00037196 | D38: 1.9989e-05 | E38: 0.000391949 | F38: 0 | G38: 3.3136e-06 | H38: 3.6438e-07 | I38: 3.67798e-06 | J38: 0 | K38: 3.347070707e-05 | L38: 3.680606061e-06 | M38: 3.715131313e-05 | U38: 99.99975896 | V38: 90 | W38: 99.99983113 | X38: 99.99983113 | Y38: 90 | Z38: 58 | AA38: =AA37+F38*($A38-$A37) -> 10.27763793 | AB38: 11.41097412 | AC38: 8.152121728
A39: 60 | B39: 0 | C39: 0.00028979 | D39: 1.9003e-05 | E39: 0.000308793 | F39: 0 | G39: 2.573e-06 | H39: 3.1524e-07 | I39: 2.88824e-06 | J39: 0 | K39: 2.598989899e-05 | L39: 3.184242424e-06 | M39: 2.917414141e-05 | U39: 99.9998101 | V39: 90 | W39: 99.99986739 | X39: 99.99986739 | Y39: 90 | Z39: 60 | AA39: 10.27763793 | AB39: 11.41097927 | AC39: 8.152122358
A40: 62 | B40: 0 | C40: 0.00020335 | D40: 1.8718e-05 | E40: 0.000222068 | F40: 0 | G40: 1.7592e-06 | H40: 2.7765e-07 | I40: 2.03685e-06 | J40: 0 | K40: 1.776969697e-05 | L40: 2.804545455e-06 | M40: 2.057424242e-05 | U40: 99.99986343 | V40: 90 | W40: 99.99990648 | X40: 99.99990648 | Y40: 90 | Z40: 62 | AA40: 10.27763793 | AB40: 11.41098279 | AC40: 8.152122913
A41: 64 | B41: 0 | C41: 0.00011692 | D41: 1.8432e-05 | E41: 0.000135352 | F41: 0 | G41: 9.4543e-07 | H41: 2.4006e-07 | I41: 1.18549e-06 | J41: 0 | K41: 9.54979798e-06 | L41: 2.424848485e-06 | M41: 1.197464646e-05 | U41: 99.99991676 | V41: 90 | W41: 99.99994557 | X41: 99.99994557 | Y41: 90 | Z41: 64 | AA41: 10.27763793 | AB41: 11.41098468 | AC41: 8.152123394
A42: 66 | B42: 0 | C42: 3.4756e-05 | D42: 1.1341e-05 | E42: 4.6097e-05 | F42: 0 | G42: 1.5284e-07 | H42: 1.2149e-07 | I42: 2.7433e-07 | J42: 0 | K42: 1.543838384e-06 | L42: 1.227171717e-06 | M42: 2.771010101e-06 | U42: 99.99997165 | V42: 90 | W42: 99.9999874 | X42: 99.9999874 | Y42: 90 | Z42: 66 | AA42: 10.27763793 | AB42: 11.41098498 | AC42: 8.152123637
A43: 68 | B43: 0 | C43: 0 | D43: 0 | E43: 0 | F43: 0 | G43: 0 | H43: 0 | I43: 0 | J43: 0 | K43: 0 | L43: 0 | M43: 0 | U43: 100 | V43: 90 | W43: 100 | X43: 100 | Y43: 90 | Z43: 68 | AA43: 10.27763793 | AB43: 11.41098498 | AC43: 8.152123637
A44: 70 | B44: 0 | C44: 0 | D44: 0 | E44: 0 | F44: 0 | G44: 0 | H44: 0 | I44: 0 | J44: 0 | K44: 0 | L44: 0 | M44: 0 | U44: 100 | V44: 90 | W44: 100 | X44: 100 | Y44: 90 | Z44: 70 | AA44: 10.27763793 | AB44: 11.41098498 | AC44: 8.152123637
A45: 72 | B45: 0 | C45: 0 | D45: 0 | E45: 0 | F45: 0 | G45: 0 | H45: 0 | I45: 0 | J45: 0 | K45: 0 | L45: 0 | M45: 0 | U45: 100 | V45: 90 | W45: 100 | X45: 100 | Y45: 90 | Z45: 72 | AA45: 10.27763793 | AB45: 11.41098498 | AC45: 8.152123637
A46: 74 | B46: 0 | C46: 0 | D46: 0 | E46: 0 | F46: 0 | G46: 0 | H46: 0 | I46: 0 | J46: 0 | K46: 0 | L46: 0 | M46: 0 | U46: 100 | V46: 90 | W46: 100 | X46: 100 | Y46: 90 | Z46: 74 | AA46: 10.27763793 | AB46: 11.41098498 | AC46: 8.152123637
A47: 76 | B47: 0 | C47: 0 | D47: 0 | E47: 0 | F47: 0 | G47: 0 | H47: 0 | I47: 0 | J47: 0 | K47: 0 | L47: 0 | M47: 0 | U47: 100 | V47: 90 | W47: 100 | X47: 100 | Y47: 90 | Z47: 76 | AA47: 10.27763793 | AB47: 11.41098498 | AC47: 8.152123637
A48: 78 | B48: 0 | C48: 0 | D48: 0 | E48: 0 | F48: 0 | G48: 0 | H48: 0 | I48: 0 | J48: 0 | K48: 0 | L48: 0 | M48: 0 | U48: 100 | V48: 90 | W48: 100 | X48: 100 | Y48: 90 | Z48: 78 | AA48: 10.27763793 | AB48: 11.41098498 | AC48: 8.152123637
A49: 80 | B49: 0 | C49: 0 | D49: 0 | E49: 0 | F49: 0 | G49: 0 | H49: 0 | I49: 0 | J49: 0 | K49: 0 | L49: 0 | M49: 0 | U49: 100 | V49: 90 | W49: 100 | X49: 100 | Y49: 90 | Z49: 80 | AA49: 10.27763793 | AB49: 11.41098498 | AC49: 8.152123637
A50: 82 | B50: 0 | C50: 0 | D50: 0 | E50: 0 | F50: 0 | G50: 0 | H50: 0 | I50: 0 | J50: 0 | K50: 0 | L50: 0 | M50: 0 | U50: 100 | V50: 90 | W50: 100 | X50: 100 | Y50: 90 | Z50: 82 | AA50: 10.27763793 | AB50: 11.41098498 | AC50: 8.152123637
A51: 84 | B51: 0 | C51: 0 | D51: 0 | E51: 0 | F51: 0 | G51: 0 | H51: 0 | I51: 0 | J51: 0 | K51: 0 | L51: 0 | M51: 0 | U51: 100 | V51: 90 | W51: 100 | X51: 100 | Y51: 90 | Z51: 84 | AA51: 10.27763793 | AB51: 11.41098498 | AC51: 8.152123637
A52: 86 | B52: 0 | C52: 0 | D52: 0 | E52: 0 | F52: 0 | G52: 0 | H52: 0 | I52: 0 | J52: 0 | K52: 0 | L52: 0 | M52: 0 | U52: 100 | V52: 90 | W52: 100 | X52: 100 | Y52: 90 | Z52: 86 | AA52: 10.27763793 | AB52: 11.41098498 | AC52: 8.152123637
A53: 88 | B53: 0 | C53: 0 | D53: 0 | E53: 0 | F53: 0 | G53: 0 | H53: 0 | I53: 0 | J53: 0 | K53: 0 | L53: 0 | M53: 0 | U53: 100 | V53: 90 | W53: 100 | X53: 100 | Y53: 90 | Z53: 88 | AA53: 10.27763793 | AB53: 11.41098498 | AC53: 8.152123637
A54: 90 | B54: 0 | C54: 0 | D54: 0 | E54: 0 | F54: 0 | G54: 0 | H54: 0 | I54: 0 | J54: 0 | K54: 0 | L54: 0 | M54: 0 | U54: 100 | V54: 90 | W54: 100 | X54: 100 | Y54: 90 | Z54: 90 | AA54: =AA53+F54*($A54-$A53) -> 10.27763793 | AB54: 11.41098498 | AC54: 8.152123637
A55: 92 | B55: 0 | C55: 0 | D55: 0 | E55: 0 | F55: 0 | G55: 0 | H55: 0 | I55: 0 | J55: 0 | K55: 0 | L55: 0 | M55: 0 | U55: 100 | V55: 90 | W55: 100 | X55: 100 | Y55: 90 | Z55: 92 | AA55: 10.27763793 | AB55: 11.41098498 | AC55: 8.152123637
A56: 94 | B56: 0 | C56: 0 | D56: 0 | E56: 0 | F56: 0 | G56: 0 | H56: 0 | I56: 0 | J56: 0 | K56: 0 | L56: 0 | M56: 0 | U56: 100 | V56: 90 | W56: 100 | X56: 100 | Y56: 90 | Z56: 94 | AA56: 10.27763793 | AB56: 11.41098498 | AC56: 8.152123637
A57: 96 | B57: 0 | C57: 0 | D57: 0 | E57: 0 | F57: 0 | G57: 0 | H57: 0 | I57: 0 | J57: 0 | K57: 0 | L57: 0 | M57: 0 | U57: 100 | V57: 90 | W57: 100 | X57: 100 | Y57: 90 | Z57: 96 | AA57: 10.27763793 | AB57: 11.41098498 | AC57: 8.152123637
A58: 98 | B58: 0 | C58: 0 | D58: 0 | E58: 0 | F58: 0 | G58: 0 | H58: 0 | I58: 0 | J58: 0 | K58: 0 | L58: 0 | M58: 0 | U58: 100 | V58: 90 | W58: 100 | X58: 100 | Y58: 90 | Z58: 98 | AA58: 10.27763793 | AB58: 11.41098498 | AC58: 8.152123637
A59: 100 | B59: 0 | C59: 0 | D59: 0 | E59: 0 | F59: 0 | G59: 0 | H59: 0 | I59: 0 | J59: 0 | K59: 0 | L59: 0 | M59: 0 | U59: 100 | V59: 90 | W59: 100 | X59: 100 | Y59: 90 | Z59: 100 | AA59: 10.27763793 | AB59: 11.41098498 | AC59: 8.152123637

Sheet sim2 (hidden)
B1: sim2 | O1: Remediation time (>90% mass removal or flux reduction)
B2: mass (g/m2) | F2: flux (g/y/m2) | J2: Conc output (mg/L) | O2: Mass | P2: =VLOOKUP(90,V4:Z59,5,FALSE) -> 12 | AA2: acc flux (g/m2)
A3: Time | B3: TCE | C3: DCE | D3: VC | E3: Total | F3: TCE | G3: DCE | H3: VC | I3: Total | J3: TCE | K3: DCE | L3: VC | M3: Total | O3: Flux | P3: =VLOOKUP(90,Y4:Z59,2,FALSE) -> 12 | U3: mass removal (%) | V3: to find 90% | W3: flux reduction (%) | Y3: to find 90% | Z3: Time | AA3: TCE | AB3: DCE | AC3: VC
A4: 0 | B4: 162.6073 | C4: 0 | D4: 0 | E4: =SUM(B4:D4) -> 162.6073 | F4: 2.178 | G4: 0 | H4: 0 | I4: =SUM(F4:H4) -> 2.178 | J4: 22 | K4: 0 | L4: 0 | M4: =SUM(J4:L4) -> 22 | U4: =(E$4-E4)/E$4*100 -> 0 | V4: =IF(U4>90,90,0) -> 0 | W4: =(I$4-I4)/I$4*100 -> 0 | X4: =IF(W4>0,W4,0) -> 0 | Y4: =IF(X4>90,90,0) -> 0 | Z4: 0 | AA4: =F4 -> 2.178 | AB4: =G4 -> 0 | AC4: 0
A5: 1 | B5: 75.8917 | C5: 49.7556 | D5: 6.0962 | E5: =SUM(B5:D5) -> 131.7435 | F5: 1.0468 | G5: 1.0786 | H5: 0.2039 | I5: =SUM(F5:H5) -> 2.3293 | J5: 10.57373737 | K5: 10.89494949 | L5: 2.05959596 | M5: =SUM(J5:L5) -> 23.52828283 | O5: Accumulated flux to the aquifer (g/m2) | U5: =(E$4-E5)/E$4*100 -> 18.98057467 | V5: =IF(U5>90,90,0) -> 0 | W5: =(I$4-I5)/I$4*100 -> -6.946740129 | X5: =IF(W5>0,W5,0) -> 0 | Y5: =IF(X5>90,90,0) -> 0 | Z5: 1 | AA5: =AA4+F5*($A5-$A4) -> 3.2248 | AB5: =AB4+G5*($A5-$A4) -> 1.0786 | AC5: 0.2039
A6: 2 | B6: 44.575 | C6: 55.5743 | D6: 12.9847 | E6: 113.134 | F6: 0.6229 | G6: 1.2194 | H6: 0.4399 | I6: 2.2822 | J6: 6.291919192 | K6: 12.31717172 | L6: 4.443434343 | M6: 23.05252525 | O6: TCE | P6: =AA59 -> 4.64209665 | U6: 30.42501782 | V6: 0 | W6: -4.784205693 | X6: 0 | Y6: 0 | Z6: 2 | AA6: =AA5+F6*($A6-$A5) -> 3.8477 | AB6: 2.298 | AC6: 0.6438
A7: 3 | B7: 27.025 | C7: 52.5733 | D7: 18.0649 | E7: 97.6632 | F7: 0.3719 | G7: 1.1436 | H7: 0.611 | I7: 2.1265 | J7: 3.756565657 | K7: 11.55151515 | L7: 6.171717172 | M7: 21.47979798 | O7: DCE | P7: =AB59 -> 6.8072 | U7: 39.93922782 | V7: 0 | W7: 2.364554637 | X7: 2.364554637 | Y7: 0 | Z7: 3 | AA7: 4.2196 | AB7: 3.4416 | AC7: 1.2548
A8: 4 | B8: 16.2006 | C8: 46.5074 | D8: 21.3494 | E8: 84.0574 | F8: 0.2121 | G8: 0.9825 | H8: 0.7111 | I8: 1.9057 | J8: 2.142424242 | K8: 9.924242424 | L8: 7.182828283 | M8: 19.24949495 | O8: VC | P8: =AC59 -> 5.5568 | U8: 48.30650284 | V8: 0 | W8: 12.50229568 | X8: 12.50229568 | Y8: 0 | Z8: 4 | AA8: 4.4317 | AB8: 4.4241 | AC8: 1.9659
A9: 5 | B9: 9.4892 | C9: 39.2836 | D9: 23.0741 | E9: 71.8469 | F9: 0.1136 | G9: 0.79 | H9: 0.7479 | I9: 1.6515 | J9: 1.147474747 | K9: 7.97979798 | L9: 7.554545455 | M9: 16.68181818 | O9: Total | P9: =SUM(P6:P8) -> 17.00609665 | U9: 55.81569831 | V9: 0 | W9: 24.17355372 | X9: 24.17355372 | Y9: 0 | Z9: 5 | AA9: 4.5453 | AB9: 5.2141 | AC9: 2.7138
A10: 6 | B10: 5.4129 | C10: 31.997 | D10: 23.3908 | E10: 60.8007 | F10: 0.0569 | G10: 0.6004 | H10: 0.7282 | I10: 1.3855 | J10: 0.5747474747 | K10: 6.064646465 | L10: 7.355555556 | M10: 13.99494949 | U10: 62.60887426 | V10: 0 | W10: 36.3865932 | X10: 36.3865932 | Y10: 0 | Z10: 6 | AA10: 4.6022 | AB10: 5.8145 | AC10: 3.442
A11: 7 | B11: 2.9377 | C11: 25.1456 | D11: 22.5983 | E11: 50.6816 | F11: 0.0259 | G11: 0.4303 | H11: 0.6665 | I11: 1.1227 | J11: 0.2616161616 | K11: 4.346464646 | L11: 6.732323232 | M11: 11.34040404 | U11: 68.83190361 | V11: 0 | W11: 48.45270891 | X11: 48.45270891 | Y11: 0 | Z11: 7 | AA11: 4.6281 | AB11: 6.2448 | AC11: 4.1085
A12: 8 | B12: 1.4798 | C12: 18.976 | D12: 20.8803 | E12: 41.3361 | F12: 0.0102 | G12: 0.2875 | H12: 0.5726 | I12: 0.8703 | J12: 0.103030303 | K12: 2.904040404 | L12: 5.783838384 | M12: 8.790909091 | U12: 74.57918556 | V12: 0 | W12: 60.04132231 | X12: 60.04132231 | Y12: 0 | Z12: 8 | AA12: 4.6383 | AB12: 6.5323 | AC12: 4.6811
A13: 9 | B13: 0.6726 | C13: 13.6221 | D13: 18.381 | E13: 32.6757 | F13: 0.0032 | G13: 0.1745 | H13: 0.4544 | I13: 0.6321 | J13: 0.03232323232 | K13: 1.762626263 | L13: 4.58989899 | M13: 6.384848485 | U13: 79.90514571 | V13: 0 | W13: 70.97796143 | X13: 70.97796143 | Y13: 0 | Z13: 9 | AA13: 4.6415 | AB13: 6.7068 | AC13: 5.1355
A14: 10 | B14: 0.2519 | C14: 9.1061 | D14: 15.2692 | E14: 24.6272 | F14: 0.00059665 | G14: 0.0896 | H14: 0.3199 | I14: 0.41009665 | J14: 0.006026767677 | K14: 0.9050505051 | L14: 3.231313131 | M14: 4.142390404 | U14: 84.85480049 | V14: 0 | W14: 81.17095271 | X14: 81.17095271 | Y14: 0 | Z14: 10 | AA14: 4.64209665 | AB14: 6.7964 | AC14: 5.4554
A15: 12 | B15: 0.0049 | C15: 2.815 | D15: 7.7594 | E15: 10.5793 | F15: 0 | G15: 0.0054 | H15: 0.0507 | I15: 0.0561 | J15: 0 | K15: 0.05454545455 | L15: 0.5121212121 | M15: 0.5666666667 | U15: 93.49395753 | V15: 90 | W15: 97.42424242 | X15: 97.42424242 | Y15: 90 | Z15: 12 | AA15: 4.64209665 | AB15: 6.8072 | AC15: 5.5568
A16: 14 | B16: 0 | C16: 0.1857 | D16: 1.0058 | E16: 1.1915 | F16: 0 | G16: 0 | H16: 0 | I16: 0 | J16: 0 | K16: 0 | L16: 0 | M16: 0 | U16: 99.26725307 | V16: 90 | W16: 100 | X16: 100 | Y16: 90 | Z16: 14 | AA16: 4.64209665 | AB16: 6.8072 | AC16: 5.5568
A17: 16 | B17: 0 | C17: 0 | D17: 0 | E17: 0 | F17: 0 | G17: 0 | H17: 0 | I17: 0 | J17: 0 | K17: 0 | L17: 0 | M17: 0 | U17: 100 | V17: 90 | W17: 100 | X17: 100 | Y17: 90 | Z17: 16 | AA17: 4.64209665 | AB17: 6.8072 | AC17: 5.5568
A18: 18 | B18: 0 | C18: 0 | D18: 0 | E18: 0 | F18: 0 | G18: 0 | H18: 0 | I18: 0 | J18: 0 | K18: 0 | L18: 0 | M18: 0 | U18: 100 | V18: 90 | W18: 100 | X18: 100 | Y18: 90 | Z18: 18 | AA18: 4.64209665 | AB18: 6.8072 | AC18: 5.5568
A19: 20 | B19: 0 | C19: 0 | D19: 0 | E19: 0 | F19: 0 | G19: 0 | H19: 0 | I19: 0 | J19: 0 | K19: 0 | L19: 0 | M19: 0 | U19: 100 | V19: 90 | W19: 100 | X19: 100 | Y19: 90 | Z19: 20 | AA19: 4.64209665 | AB19: 6.8072 | AC19: 5.5568
A20: 22 | B20: 0 | C20: 0 | D20: 0 | E20: 0 | F20: 0 | G20: 0 | H20: 0 | I20: 0 | J20: 0 | K20: 0 | L20: 0 | M20: 0 | U20: 100 | V20: 90 | W20: 100 | X20: 100 | Y20: 90 | Z20: 22 | AA20: 4.64209665 | AB20: 6.8072 | AC20: 5.5568
A21: 24 | B21: 0 | C21: 0 | D21: 0 | E21: 0 | F21: 0 | G21: 0 | H21: 0 | I21: 0 | J21: 0 | K21: 0 | L21: 0 | M21: 0 | U21: 100 | V21: 90 | W21: 100 | X21: 100 | Y21: 90 | Z21: 24 | AA21: 4.64209665 | AB21: 6.8072 | AC21: 5.5568
A22: 26 | B22: 0 | C22: 0 | D22: 0 | E22: 0 | F22: 0 | G22: 0 | H22: 0 | I22: 0 | J22: 0 | K22: 0 | L22: 0 | M22: 0 | U22: 100 | V22: 90 | W22: 100 | X22: 100 | Y22: 90 | Z22: 26 | AA22: =AA21+F22*($A22-$A21) -> 4.64209665 | AB22: 6.8072 | AC22: 5.5568
A23: 28 | B23: 0 | C23: 0 | D23: 0 | E23: 0 | F23: 0 | G23: 0 | H23: 0 | I23: 0 | J23: 0 | K23: 0 | L23: 0 | M23: 0 | U23: 100 | V23: 90 | W23: 100 | X23: 100 | Y23: 90 | Z23: 28 | AA23: 4.64209665 | AB23: 6.8072 | AC23: 5.5568
A24: 30 | B24: 0 | C24: 0 | D24: 0 | E24: 0 | F24: 0 | G24: 0 | H24: 0 | I24: 0 | J24: 0 | K24: 0 | L24: 0 | M24: 0 | U24: 100 | V24: 90 | W24: 100 | X24: 100 | Y24: 90 | Z24: 30 | AA24: 4.64209665 | AB24: 6.8072 | AC24: 5.5568
A25: 32 | B25: 0 | C25: 0 | D25: 0 | E25: 0 | F25: 0 | G25: 0 | H25: 0 | I25: 0 | J25: 0 | K25: 0 | L25: 0 | M25: 0 | U25: 100 | V25: 90 | W25: 100 | X25: 100 | Y25: 90 | Z25: 32 | AA25: 4.64209665 | AB25: 6.8072 | AC25: 5.5568
A26: 34 | B26: 0 | C26: 0 | D26: 0 | E26: 0 | F26: 0 | G26: 0 | H26: 0 | I26: 0 | J26: 0 | K26: 0 | L26: 0 | M26: 0 | U26: 100 | V26: 90 | W26: 100 | X26: 100 | Y26: 90 | Z26: 34 | AA26: 4.64209665 | AB26: 6.8072 | AC26: 5.5568
A27: 36 | B27: 0 | C27: 0 | D27: 0 | E27: 0 | F27: 0 | G27: 0 | H27: 0 | I27: 0 | J27: 0 | K27: 0 | L27: 0 | M27: 0 | U27: 100 | V27: 90 | W27: 100 | X27: 100 | Y27: 90 | Z27: 36 | AA27: 4.64209665 | AB27: 6.8072 | AC27: 5.5568
A28: 38 | B28: 0 | C28: 0 | D28: 0 | E28: 0 | F28: 0 | G28: 0 | H28: 0 | I28: 0 | J28: 0 | K28: 0 | L28: 0 | M28: 0 | U28: 100 | V28: 90 | W28: 100 | X28: 100 | Y28: 90 | Z28: 38 | AA28: 4.64209665 | AB28: 6.8072 | AC28: 5.5568
A29: 40 | B29: 0 | C29: 0 | D29: 0 | E29: 0 | F29: 0 | G29: 0 | H29: 0 | I29: 0 | J29: 0 | K29: 0 | L29: 0 | M29: 0 | U29: 100 | V29: 90 | W29: 100 | X29: 100 | Y29: 90 | Z29: 40 | AA29: 4.64209665 | AB29: 6.8072 | AC29: 5.5568
A30: 42 | B30: 0 | C30: 0 | D30: 0 | E30: 0 | F30: 0 | G30: 0 | H30: 0 | I30: 0 | J30: 0 | K30: 0 | L30: 0 | M30: 0 | U30: 100 | V30: 90 | W30: 100 | X30: 100 | Y30: 90 | Z30: 42 | AA30: 4.64209665 | AB30: 6.8072 | AC30: 5.5568
A31: 44 | B31: 0 | C31: 0 | D31: 0 | E31: 0 | F31: 0 | G31: 0 | H31: 0 | I31: 0 | J31: 0 | K31: 0 | L31: 0 | M31: 0 | U31: 100 | V31: 90 | W31: 100 | X31: 100 | Y31: 90 | Z31: 44 | AA31: 4.64209665 | AB31: 6.8072 | AC31: 5.5568
A32: 46 | B32: 0 | C32: 0 | D32: 0 | E32: 0 | F32: 0 | G32: 0 | H32: 0 | I32: 0 | J32: 0 | K32: 0 | L32: 0 | M32: 0 | U32: 100 | V32: 90 | W32: 100 | X32: 100 | Y32: 90 | Z32: 46 | AA32: 4.64209665 | AB32: 6.8072 | AC32: 5.5568
A33: 48 | B33: 0 | C33: 0 | D33: 0 | E33: 0 | F33: 0 | G33: 0 | H33: 0 | I33: 0 | J33: 0 | K33: 0 | L33: 0 | M33: 0 | U33: 100 | V33: 90 | W33: 100 | X33: 100 | Y33: 90 | Z33: 48 | AA33: 4.64209665 | AB33: 6.8072 | AC33: 5.5568
A34: 50 | B34: 0 | C34: 0 | D34: 0 | E34: 0 | F34: 0 | G34: 0 | H34: 0 | I34: 0 | J34: 0 | K34: 0 | L34: 0 | M34: 0 | U34: 100 | V34: 90 | W34: 100 | X34: 100 | Y34: 90 | Z34: 50 | AA34: 4.64209665 | AB34: 6.8072 | AC34: 5.5568
A35: 52 | B35: 0 | C35: 0 | D35: 0 | E35: 0 | F35: 0 | G35: 0 | H35: 0 | I35: 0 | J35: 0 | K35: 0 | L35: 0 | M35: 0 | U35: 100 | V35: 90 | W35: 100 | X35: 100 | Y35: 90 | Z35: 52 | AA35: 4.64209665 | AB35: 6.8072 | AC35: 5.5568
A36: 54 | B36: 0 | C36: 0 | D36: 0 | E36: 0 | F36: 0 | G36: 0 | H36: 0 | I36: 0 | J36: 0 | K36: 0 | L36: 0 | M36: 0 | U36: 100 | V36: 90 | W36: 100 | X36: 100 | Y36: 90 | Z36: 54 | AA36: 4.64209665 | AB36: 6.8072 | AC36: 5.5568
A37: 56 | B37: 0 | C37: 0 | D37: 0 | E37: 0 | F37: 0 | G37: 0 | H37: 0 | I37: 0 | J37: 0 | K37: 0 | L37: 0 | M37: 0 | U37: 100 | V37: 90 | W37: 100 | X37: 100 | Y37: 90 | Z37: 56 | AA37: 4.64209665 | AB37: 6.8072 | AC37: 5.5568
A38: 58 | B38: 0 | C38: 0 | D38: 0 | E38: 0 | F38: 0 | G38: 0 | H38: 0 | I38: 0 | J38: 0 | K38: 0 | L38: 0 | M38: 0 | U38: 100 | V38: 90 | W38: 100 | X38: 100 | Y38: 90 | Z38: 58 | AA38: =AA37+F38*($A38-$A37) -> 4.64209665 | AB38: 6.8072 | AC38: 5.5568
A39: 60 | B39: 0 | C39: 0 | D39: 0 | E39: 0 | F39: 0 | G39: 0 | H39: 0 | I39: 0 | J39: 0 | K39: 0 | L39: 0 | M39: 0 | U39: 100 | V39: 90 | W39: 100 | X39: 100 | Y39: 90 | Z39: 60 | AA39: 4.64209665 | AB39: 6.8072 | AC39: 5.5568
A40: 62 | B40: 0 | C40: 0 | D40: 0 | E40: 0 | F40: 0 | G40: 0 | H40: 0 | I40: 0 | J40: 0 | K40: 0 | L40: 0 | M40: 0 | U40: 100 | V40: 90 | W40: 100 | X40: 100 | Y40: 90 | Z40: 62 | AA40: 4.64209665 | AB40: 6.8072 | AC40: 5.5568
A41: 64 | B41: 0 | C41: 0 | D41: 0 | E41: 0 | F41: 0 | G41: 0 | H41: 0 | I41: 0 | J41: 0 | K41: 0 | L41: 0 | M41: 0 | U41: 100 | V41: 90 | W41: 100 | X41: 100 | Y41: 90 | Z41: 64 | AA41: 4.64209665 | AB41: 6.8072 | AC41: 5.5568
A42: 66 | B42: 0 | C42: 0 | D42: 0 | E42: 0 | F42: 0 | G42: 0 | H42: 0 | I42: 0 | J42: 0 | K42: 0 | L42: 0 | M42: 0 | U42: 100 | V42: 90 | W42: 100 | X42: 100 | Y42: 90 | Z42: 66 | AA42: 4.64209665 | AB42: 6.8072 | AC42: 5.5568
A43: 68 | B43: 0 | C43: 0 | D43: 0 | E43: 0 | F43: 0 | G43: 0 | H43: 0 | I43: 0 | J43: 0 | K43: 0 | L43: 0 | M43: 0 | U43: 100 | V43: 90 | W43: 100 | X43: 100 | Y43: 90 | Z43: 68 | AA43: 4.64209665 | AB43: 6.8072 | AC43: 5.5568
A44: 70 | B44: 0 | C44: 0 | D44: 0 | E44: 0 | F44: 0 | G44: 0 | H44: 0 | I44: 0 | J44: 0 | K44: 0 | L44: 0 | M44: 0 | U44: 100 | V44: 90 | W44: 100 | X44: 100 | Y44: 90 | Z44: 70 | AA44: 4.64209665 | AB44: 6.8072 | AC44: 5.5568
A45: 72 | B45: 0 | C45: 0 | D45: 0 | E45: 0 | F45: 0 | G45: 0 | H45: 0 | I45: 0 | J45: 0 | K45: 0 | L45: 0 | M45: 0 | U45: 100 | V45: 90 | W45: 100 | X45: 100 | Y45: 90 | Z45: 72 | AA45: 4.64209665 | AB45: 6.8072 | AC45: 5.5568
A46: 74 | B46: 0 | C46: 0 | D46: 0 | E46: 0 | F46: 0 | G46: 0 | H46: 0 | I46: 0 | J46: 0 | K46: 0 | L46: 0 | M46: 0 | U46: 100 | V46: 90 | W46: 100 | X46: 100 | Y46: 90 | Z46: 74 | AA46: 4.64209665 | AB46: 6.8072 | AC46: 5.5568
A47: 76 | B47: 0 | C47: 0 | D47: 0 | E47: 0 | F47: 0 | G47: 0 | H47: 0 | I47: 0 | J47: 0 | K47: 0 | L47: 0 | M47: 0 | U47: 100 | V47: 90 | W47: 100 | X47: 100 | Y47: 90 | Z47: 76 | AA47: 4.64209665 | AB47: 6.8072 | AC47: 5.5568
A48: 78 | B48: 0 | C48: 0 | D48: 0 | E48: 0 | F48: 0 | G48: 0 | H48: 0 | I48: 0 | J48: 0 | K48: 0 | L48: 0 | M48: 0 | U48: 100 | V48: 90 | W48: 100 | X48: 100 | Y48: 90 | Z48: 78 | AA48: 4.64209665 | AB48: 6.8072 | AC48: 5.5568
A49: 80 | B49: 0 | C49: 0 | D49: 0 | E49: 0 | F49: 0 | G49: 0 | H49: 0 | I49: 0 | J49: 0 | K49: 0 | L49: 0 | M49: 0 | U49: 100 | V49: 90 | W49: 100 | X49: 100 | Y49: 90 | Z49: 80 | AA49: 4.64209665 | AB49: 6.8072 | AC49: 5.5568
A50: 82 | B50: 0 | C50: 0 | D50: 0 | E50: 0 | F50: 0 | G50: 0 | H50: 0 | I50: 0 | J50: 0 | K50: 0 | L50: 0 | M50: 0 | U50: 100 | V50: 90 | W50: 100 | X50: 100 | Y50: 90 | Z50: 82 | AA50: 4.64209665 | AB50: 6.8072 | AC50: 5.5568
A51: 84 | B51: 0 | C51: 0 | D51: 0 | E51: 0 | F51: 0 | G51: 0 | H51: 0 | I51: 0 | J51: 0 | K51: 0 | L51: 0 | M51: 0 | U51: 100 | V51: 90 | W51: 100 | X51: 100 | Y51: 90 | Z51: 84 | AA51: 4.64209665 | AB51: 6.8072 | AC51: 5.5568
A52: 86 | B52: 0 | C52: 0 | D52: 0 | E52: 0 | F52: 0 | G52: 0 | H52: 0 | I52: 0 | J52: 0 | K52: 0 | L52: 0 | M52: 0 | U52: 100 | V52: 90 | W52: 100 | X52: 100 | Y52: 90 | Z52: 86 | AA52: 4.64209665 | AB52: 6.8072 | AC52: 5.5568
A53: 88 | B53: 0 | C53: 0 | D53: 0 | E53: 0 | F53: 0 | G53: 0 | H53: 0 | I53: 0 | J53: 0 | K53: 0 | L53: 0 | M53: 0 | U53: 100 | V53: 90 | W53: 100 | X53: 100 | Y53: 90 | Z53: 88 | AA53: 4.64209665 | AB53: 6.8072 | AC53: 5.5568
A54: 90 | B54: 0 | C54: 0 | D54: 0 | E54: 0 | F54: 0 | G54: 0 | H54: 0 | I54: 0 | J54: 0 | K54: 0 | L54: 0 | M54: 0 | U54: 100 | V54: 90 | W54: 100 | X54: 100 | Y54: 90 | Z54: 90 | AA54: =AA53+F54*($A54-$A53) -> 4.64209665 | AB54: 6.8072 | AC54: 5.5568
A55: 92 | B55: 0 | C55: 0 | D55: 0 | E55: 0 | F55: 0 | G55: 0 | H55: 0 | I55: 0 | J55: 0 | K55: 0 | L55: 0 | M55: 0 | U55: 100 | V55: 90 | W55: 100 | X55: 100 | Y55: 90 | Z55: 92 | AA55: 4.64209665 | AB55: 6.8072 | AC55: 5.5568
A56: 94 | B56: 0 | C56: 0 | D56: 0 | E56: 0 | F56: 0 | G56: 0 | H56: 0 | I56: 0 | J56: 0 | K56: 0 | L56: 0 | M56: 0 | U56: 100 | V56: 90 | W56: 100 | X56: 100 | Y56: 90 | Z56: 94 | AA56: 4.64209665 | AB56: 6.8072 | AC56: 5.5568
A57: 96 | B57: 0 | C57: 0 | D57: 0 | E57: 0 | F57: 0 | G57: 0 | H57: 0 | I57: 0 | J57: 0 | K57: 0 | L57: 0 | M57: 0 | U57: 100 | V57: 90 | W57: 100 | X57: 100 | Y57: 90 | Z57: 96 | AA57: 4.64209665 | AB57: 6.8072 | AC57: 5.5568
A58: 98 | B58: 0 | C58: 0 | D58: 0 | E58: 0 | F58: 0 | G58: 0 | H58: 0 | I58: 0 | J58: 0 | K58: 0 | L58: 0 | M58: 0 | U58: 100 | V58: 90 | W58: 100 | X58: 100 | Y58: 90 | Z58: 98 | AA58: 4.64209665 | AB58: 6.8072 | AC58: 5.5568
A59: 100 | B59: 0 | C59: 0 | D59: 0 | E59: 0 | F59: 0 | G59: 0 | H59: 0 | I59: 0 | J59: 0 | K59: 0 | L59: 0 | M59: 0 | U59: 100 | V59: 90 | W59: 100 | X59: 100 | Y59: 90 | Z59: 100 | AA59: 4.64209665 | AB59: 6.8072 | AC59: 5.5568

Sheet sim3 (hidden)
B1: sim3 | O1: Remediation time (>90% mass removal or flux reduction)
B2: mass (g/m2) | F2: flux (g/y/m2) | J2: Conc output (mg/L) | O2: Mass | P2: =VLOOKUP(90,V:Z,5,FALSE) ->  | AA2: acc flux (g/m2)
A3: Time | B3: TCE | C3: DCE | D3: VC | E3: Total | F3: TCE | G3: DCE | H3: VC | I3: Total | J3: TCE | K3: DCE | L3: VC | M3: Total | O3: Flux | P3: =VLOOKUP(90,Y:Z,2,FALSE) ->  | U3: mass removal (%) | V3: to find 90% | W3: flux reduction (%) | Y3: to find 90% | Z3: Time | AA3: TCE | AB3: DCE | AC3: VC
A4: 0 | B4: 162.4315 | C4: 0 | D4: 0 | E4: =SUM(B4:D4) -> 162.4315 | F4: 2.178 | G4: 0 | H4: 0 | I4: =SUM(F4:H4) -> 2.178 | J4: 22 | K4: 0 | L4: 0 | M4: =SUM(J4:L4) -> 22 | U4: =(E$4-E4)/E$4*100 -> 0 | V4: =IF(U4>90,90,0) -> 0 | W4: =(I$4-I4)/I$4*100 -> 0 | X4: =IF(W4>0,W4,0) -> 0 | Y4: =IF(X4>90,90,0) -> 0 | Z4: =A4 -> 0 | AA4: =F4 -> 2.178 | AB4: =G4 -> 0 | AC4: 0
A5: 1 | B5: 151.2848 | C5: 5.3341 | D5: 0.0517 | E5: =SUM(B5:D5) -> 156.6706 | F5: 2.0738 | G5: 0.1177 | H5: 0.0015 | I5: =SUM(F5:H5) -> 2.193 | J5: 20.94747475 | K5: 1.188888889 | L5: 0.01515151515 | M5: =SUM(J5:L5) -> 22.15151515 | O5: Accumulated flux to the aquifer (g/m2) | U5: =(E$4-E5)/E$4*100 -> 3.546664286 | V5: =IF(U5>90,90,0) -> 0 | W5: =(I$4-I5)/I$4*100 -> -0.6887052342 | X5: =IF(W5>0,W5,0) -> 0 | Y5: =IF(X5>90,90,0) -> 0 | Z5: =A5 -> 1 | AA5: =AA4+F5*($A5-$A4) -> 4.2518 | AB5: =AB4+G5*($A5-$A4) -> 0.1177 | AC5: 0.0015
A6: 2 | B6: 142.8031 | C6: 9.3984 | D6: 0.1601 | E6: 152.3616 | F6: 1.975 | G6: 0.2104 | H6: 0.0049 | I6: 2.1903 | J6: 19.94949495 | K6: 2.125252525 | L6: 0.04949494949 | M6: 22.12424242 | O6: TCE | P6: =MAX(AA:AA) -> 37.5673 | U6: 6.199474856 | V6: 0 | W6: -0.564738292 | X6: 0 | Y6: 0 | Z6: 2 | AA6: =AA5+F6*($A6-$A5) -> 6.2268 | AB6: 0.3281 | AC6: 0.0064
A7: 3 | B7: 135.4006 | C7: 12.7515 | D7: 0.2992 | E7: 148.4513 | F7: 1.8677 | G7: 0.2853 | H7: 0.0095 | I7: 2.1625 | J7: 18.86565657 | K7: 2.881818182 | L7: 0.09595959596 | M7: 21.84343434 | O7: DCE | P7: =MAX(AB:AB) -> 32.9332 | U7: 8.606828109 | V7: 0 | W7: 0.7116620753 | X7: 0.7116620753 | Y7: 0 | Z7: 3 | AA7: 8.0945 | AB7: 0.6134 | AC7: 0.0159
A8: 4 | B8: 128.7144 | C8: 15.6082 | D8: 0.4579 | E8: 144.7805 | F8: 1.7545 | G8: 0.3458 | H8: 0.0148 | I8: 2.1151 | J8: 17.72222222 | K8: 3.492929293 | L8: 0.1494949495 | M8: 21.36464646 | O8: VC | P8: =MAX(AC:AC) -> 12.5212 | U8: 10.86673459 | V8: 0 | W8: 2.887970615 | X8: 2.887970615 | Y8: 0 | Z8: 4 | AA8: 9.849 | AB8: 0.9592 | AC8: 0.0307
A9: 5 | B9: 122.5884 | C9: 18.0786 | D9: 0.6302 | E9: 141.2972 | F9: 1.642 | G9: 0.3945 | H9: 0.0205 | I9: 2.057 | J9: 16.58585859 | K9: 3.984848485 | L9: 0.2070707071 | M9: 20.77777778 | O9: Total | P9: =SUM(P6:P8) -> 83.0217 | U9: 13.0112078 | V9: 0 | W9: 5.555555556 | X9: 5.555555556 | Y9: 0 | Z9: 5 | AA9: 11.491 | AB9: 1.3537 | AC9: 0.0512
A10: 6 | B10: 116.9485 | C10: 20.2245 | D10: 0.8124 | E10: 137.9854 | F10: 1.5343 | G10: 0.4337 | H10: 0.0264 | I10: 1.9944 | J10: 15.4979798 | K10: 4.380808081 | L10: 0.2666666667 | M10: 20.14545455 | U10: 15.05009804 | V10: 0 | W10: 8.429752066 | X10: 8.429752066 | Y10: 0 | Z10: 6 | AA10: 13.0253 | AB10: 1.7874 | AC10: 0.0776
A11: 7 | B11: 111.7121 | C11: 22.1039 | D11: 1.0018 | E11: 134.8178 | F11: 1.4318 | G11: 0.4651 | H11: 0.0323 | I11: 1.9292 | J11: 14.46262626 | K11: 4.697979798 | L11: 0.3262626263 | M11: 19.48686869 | U11: 17.0002124 | V11: 0 | W11: 11.42332415 | X11: 11.42332415 | Y11: 0 | Z11: 7 | AA11: 14.4571 | AB11: 2.2525 | AC11: 0.1099
A12: 8 | B12: 106.841 | C12: 23.746 | D12: 1.1965 | E12: 131.7835 | F12: 1.3357 | G12: 0.4899 | H12: 0.0383 | I12: 1.8639 | J12: 13.49191919 | K12: 4.948484848 | L12: 0.3868686869 | M12: 18.82727273 | U12: 18.86826139 | V12: 0 | W12: 14.4214876 | X12: 14.4214876 | Y12: 0 | Z12: 8 | AA12: 15.7928 | AB12: 2.7424 | AC12: 0.1482
A13: 9 | B13: 102.2821 | C13: 25.1908 | D13: 1.3946 | E13: 128.8675 | F13: 1.2465 | G13: 0.5094 | H13: 0.0443 | I13: 1.8002 | J13: 12.59090909 | K13: 5.145454545 | L13: 0.4474747475 | M13: 18.18383838 | U13: 20.66347968 | V13: 0 | W13: 17.34618916 | X13: 17.34618916 | Y13: 0 | Z13: 9 | AA13: 17.0393 | AB13: 3.2518 | AC13: 0.1925
A14: 10 | B14: 98.0114 | C14: 26.4565 | D14: 1.5949 | E14: 126.0628 | F14: 1.164 | G14: 0.5244 | H14: 0.0501 | I14: 1.7385 | J14: 11.75757576 | K14: 5.296969697 | L14: 0.5060606061 | M14: 17.56060606 | U14: 22.39017678 | V14: 0 | W14: 20.17906336 | X14: 20.17906336 | Y14: 0 | Z14: 10 | AA14: 18.2033 | AB14: 3.7762 | AC14: 0.2426
A15: 12 | B15: 90.2215 | C15: 28.5347 | D15: 1.9972 | E15: 120.7534 | F15: 1.0179 | G15: 0.5438 | H15: 0.0614 | I15: 1.6231 | J15: 10.28181818 | K15: 5.492929293 | L15: 0.6202020202 | M15: 16.39494949 | U15: 25.65887774 | V15: 0 | W15: 25.4775023 | X15: 25.4775023 | Y15: 0 | Z15: 12 | AA15: 20.2391 | AB15: 4.8638 | AC15: 0.3654
A16: 14 | B16: 83.2933 | C16: 30.1093 | D16: 2.3966 | E16: 115.7992 | F16: 0.8942 | G16: 0.5526 | H16: 0.072 | I16: 1.5188 | J16: 9.032323232 | K16: 5.581818182 | L16: 0.7272727273 | M16: 15.34141414 | U16: 28.70890191 | V16: 0 | W16: 30.26629936 | X16: 30.26629936 | Y16: 0 | Z16: 14 | AA16: 22.0275 | AB16: 5.969 | AC16: 0.5094
A17: 16 | B17: 77.0729 | C17: 31.2899 | D17: 2.787 | E17: 111.1498 | F17: 0.7893 | G17: 0.5542 | H17: 0.082 | I17: 1.4255 | J17: 7.972727273 | K17: 5.597979798 | L17: 0.8282828283 | M17: 14.3989899 | U17: 31.57127774 | V17: 0 | W17: 34.55004591 | X17: 34.55004591 | Y17: 0 | Z17: 16 | AA17: 23.6061 | AB17: 7.0774 | AC17: 0.6734
A18: 18 | B18: 71.4385 | C18: 32.1609 | D18: 3.1638 | E18: 106.7632 | F18: 0.6995 | G18: 0.5512 | H18: 0.0912 | I18: 1.3419 | J18: 7.065656566 | K18: 5.567676768 | L18: 0.9212121212 | M18: 13.55454545 | U18: 34.27186229 | V18: 0 | W18: 38.38842975 | X18: 38.38842975 | Y18: 0 | Z18: 18 | AA18: 25.0051 | AB18: 8.1798 | AC18: 0.8558
A19: 20 | B19: 66.3047 | C19: 32.7791 | D19: 3.5244 | E19: 102.6082 | F19: 0.6219 | G19: 0.5449 | H19: 0.0996 | I19: 1.2664 | J19: 6.281818182 | K19: 5.504040404 | L19: 1.006060606 | M19: 12.79191919 | U19: 36.82986367 | V19: 0 | W19: 41.85491276 | X19: 41.85491276 | Y19: 0 | Z19: 20 | AA19: 26.2489 | AB19: 9.2696 | AC19: 1.055
A20: 22 | B20: 61.6111 | C20: 33.183 | D20: 3.8671 | E20: 98.6612 | F20: 0.5544 | G20: 0.536 | H20: 0.1074 | I20: 1.1978 | J20: 5.6 | K20: 5.414141414 | L20: 1.084848485 | M20: 12.0989899 | U20: 39.25981106 | V20: 0 | W20: 45.00459137 | X20: 45.00459137 | Y20: 0 | Z20: 22 | AA20: 27.3577 | AB20: 10.3416 | AC20: 1.2698
A21: 24 | B21: 57.309 | C21: 33.4026 | D21: 4.1917 | E21: 94.9033 | F21: 0.4958 | G21: 0.525 | H21: 0.1144 | I21: 1.1352 | J21: 5.008080808 | K21: 5.303030303 | L21: 1.155555556 | M21: 11.46666667 | U21: 41.57334015 | V21: 0 | W21: 47.87878788 | X21: 47.87878788 | Y21: 0 | Z21: 24 | AA21: 28.3493 | AB21: 11.3916 | AC21: 1.4986
A22: 26 | B22: 53.3539 | C22: 33.4648 | D22: 4.4982 | E22: 91.3169 | F22: 0.4449 | G22: 0.5126 | H22: 0.1208 | I22: 1.0783 | J22: 4.493939394 | K22: 5.177777778 | L22: 1.22020202 | M22: 10.89191919 | U22: 43.78128627 | V22: 0 | W22: 50.4912764 | X22: 50.4912764 | Y22: 0 | Z22: 26 | AA22: =AA21+F22*($A22-$A21) -> 29.2391 | AB22: 12.4168 | AC22: 1.7402
A23: 28 | B23: 49.7055 | C23: 33.394 | D23: 4.7864 | E23: 87.8859 | F23: 0.4003 | G23: 0.4994 | H23: 0.1266 | I23: 1.0263 | J23: 4.043434343 | K23: 5.044444444 | L23: 1.278787879 | M23: 10.36666667 | U23: 45.89356129 | V23: 0 | W23: 52.87878788 | X23: 52.87878788 | Y23: 0 | Z23: 28 | AA23: 30.0397 | AB23: 13.4156 | AC23: 1.9934
A24: 30 | B24: 46.3292 | C24: 33.2118 | D24: 5.0552 | E24: 84.5962 | F24: 0.361 | G24: 0.486 | H24: 0.1319 | I24: 0.9789 | J24: 3.646464646 | K24: 4.909090909 | L24: 1.332323232 | M24: 9.887878788 | U24: 47.91884579 | V24: 0 | W24: 55.05509642 | X24: 55.05509642 | Y24: 0 | Z24: 30 | AA24: 30.7617 | AB24: 14.3876 | AC24: 2.2572
A25: 32 | B25: 43.1967 | C25: 32.9356 | D25: 5.3041 | E25: 81.4364 | F25: 0.3261 | G25: 0.4723 | H25: 0.1367 | I25: 0.9351 | J25: 3.293939394 | K25: 4.770707071 | L25: 1.380808081 | M25: 9.445454545 | U25: 49.86415812 | V25: 0 | W25: 57.0661157 | X25: 57.0661157 | Y25: 0 | Z25: 32 | AA25: 31.4139 | AB25: 15.3322 | AC25: 2.5306
A26: 34 | B26: 40.268 | C26: 32.5875 | D26: 5.5343 | E26: 78.3898 | F26: 0.2946 | G26: 0.4583 | H26: 0.141 | I26: 0.8939 | J26: 2.975757576 | K26: 4.629292929 | L26: 1.424242424 | M26: 9.029292929 | U26: 51.73977954 | V26: 0 | W26: 58.95775941 | X26: 58.95775941 | Y26: 0 | Z26: 34 | AA26: 32.0031 | AB26: 16.2488 | AC26: 2.8126
A27: 36 | B27: 37.5426 | C27: 32.1676 | D27: 5.7459 | E27: 75.4561 | F27: 0.2666 | G27: 0.4442 | H27: 0.1447 | I27: 0.8555 | J27: 2.692929293 | K27: 4.486868687 | L27: 1.461616162 | M27: 8.641414141 | U27: 53.54589473 | V27: 0 | W27: 60.72084481 | X27: 60.72084481 | Y27: 0 | Z27: 36 | AA27: 32.5363 | AB27: 17.1372 | AC27: 3.102
A28: 38 | B28: 34.9915 | C28: 31.6919 | D28: 5.9395 | E28: 72.6229 | F28: 0.2414 | G28: 0.4302 | H28: 0.1481 | I28: 0.8197 | J28: 2.438383838 | K28: 4.345454545 | L28: 1.495959596 | M28: 8.27979798 | U28: 55.29013769 | V28: 0 | W28: 62.36455464 | X28: 62.36455464 | Y28: 0 | Z28: 38 | AA28: 33.0191 | AB28: 17.9976 | AC28: 3.3982
A29: 40 | B29: 32.6188 | C29: 31.158 | D29: 6.1151 | E29: 69.8919 | F29: 0.219 | G29: 0.4161 | H29: 0.151 | I29: 0.7861 | J29: 2.212121212 | K29: 4.203030303 | L29: 1.525252525 | M29: 7.94040404 | U29: 56.97146182 | V29: 0 | W29: 63.90725436 | X29: 63.90725436 | Y29: 0 | Z29: 40 | AA29: 33.4571 | AB29: 18.8298 | AC29: 3.7002
A30: 42 | B30: 30.3956 | C30: 30.5815 | D30: 6.2736 | E30: 67.2507 | F30: 0.1987 | G30: 0.4023 | H30: 0.1535 | I30: 0.7545 | J30: 2.007070707 | K30: 4.063636364 | L30: 1.550505051 | M30: 7.621212121 | U30: 58.5975011 | V30: 0 | W30: 65.35812672 | X30: 65.35812672 | Y30: 0 | Z30: 42 | AA30: 33.8545 | AB30: 19.6344 | AC30: 4.0072
A31: 44 | B31: 28.3195 | C31: 29.9637 | D31: 6.4152 | E31: 64.6984 | F31: 0.1806 | G31: 0.3887 | H31: 0.1556 | I31: 0.7249 | J31: 1.824242424 | K31: 3.926262626 | L31: 1.571717172 | M31: 7.322222222 | U31: 60.16880962 | V31: 0 | W31: 66.71717172 | X31: 66.71717172 | Y31: 0 | Z31: 44 | AA31: 34.2157 | AB31: 20.4118 | AC31: 4.3184
A32: 46 | B32: 26.3744 | C32: 29.3129 | D32: 6.5405 | E32: 62.2278 | F32: 0.1642 | G32: 0.3752 | H32: 0.1574 | I32: 0.6968 | J32: 1.658585859 | K32: 3.78989899 | L32: 1.58989899 | M32: 7.038383838 | U32: 61.68982002 | V32: 0 | W32: 68.00734619 | X32: 68.00734619 | Y32: 0 | Z32: 46 | AA32: 34.5441 | AB32: 21.1622 | AC32: 4.6332
A33: 48 | B33: 24.5529 | C33: 28.6329 | D33: 6.6496 | E33: 59.8354 | F33: 0.1494 | G33: 0.3619 | H33: 0.1588 | I33: 0.6701 | J33: 1.509090909 | K33: 3.655555556 | L33: 1.604040404 | M33: 6.768686869 | U33: 63.16268704 | V33: 0 | W33: 69.23324151 | X33: 69.23324151 | Y33: 0 | Z33: 48 | AA33: 34.8429 | AB33: 21.886 | AC33: 4.9508
A34: 50 | B34: 22.8522 | C34: 27.9254 | D34: 6.7427 | E34: 57.5203 | F34: 0.1362 | G34: 0.3489 | H34: 0.1599 | I34: 0.645 | J34: 1.375757576 | K34: 3.524242424 | L34: 1.615151515 | M34: 6.515151515 | U34: 64.58796477 | V34: 0 | W34: 70.38567493 | X34: 70.38567493 | Y34: 0 | Z34: 50 | AA34: 35.1153 | AB34: 22.5838 | AC34: 5.2706
A35: 52 | B35: 21.2585 | C35: 27.1976 | D35: 6.8207 | E35: 55.2768 | F35: 0.1241 | G35: 0.3361 | H35: 0.1606 | I35: 0.6208 | J35: 1.253535354 | K35: 3.394949495 | L35: 1.622222222 | M35: 6.270707071 | U35: 65.96916239 | V35: 0 | W35: 71.49678604 | X35: 71.49678604 | Y35: 0 | Z35: 52 | AA35: 35.3635 | AB35: 23.256 | AC35: 5.5918
A36: 54 | B36: 19.7657 | C36: 26.4525 | D36: 6.8839 | E36: 53.1021 | F36: 0.1133 | G36: 0.3235 | H36: 0.1611 | I36: 0.5979 | J36: 1.144444444 | K36: 3.267676768 | L36: 1.627272727 | M36: 6.039393939 | U36: 67.30800368 | V36: 0 | W36: 72.54820937 | X36: 72.54820937 | Y36: 0 | Z36: 54 | AA36: 35.5901 | AB36: 23.903 | AC36: 5.914
A37: 56 | B37: 18.3623 | C37: 25.6955 | D37: 6.9335 | E37: 50.9913 | F37: 0.1034 | G37: 0.3111 | H37: 0.1612 | I37: 0.5757 | J37: 1.044444444 | K37: 3.142424242 | L37: 1.628282828 | M37: 5.815151515 | U37: 68.60750532 | V37: 0 | W37: 73.56749311 | X37: 73.56749311 | Y37: 0 | Z37: 56 | AA37: 35.7969 | AB37: 24.5252 | AC37: 6.2364
A38: 58 | B38: 17.0426 | C38: 24.9293 | D38: 6.9696 | E38: 48.9415 | F38: 0.0943 | G38: 0.299 | H38: 0.1611 | I38: 0.5544 | J38: 0.9525252525 | K38: 3.02020202 | L38: 1.627272727 | M38: 5.6 | U38: 69.86945266 | V38: 0 | W38: 74.54545455 | X38: 74.54545455 | Y38: 0 | Z38: 58 | AA38: =AA37+F38*($A38-$A37) -> 35.9855 | AB38: 25.1232 | AC38: 6.5586
A39: 60 | B39: 15.8061 | C39: 24.154 | D39: 6.9921 | E39: 46.9522 | F39: 0.086 | G39: 0.2872 | H39: 0.1608 | I39: 0.534 | J39: 0.8686868687 | K39: 2.901010101 | L39: 1.624242424 | M39: 5.393939394 | U39: 71.09415354 | V39: 0 | W39: 75.48209366 | X39: 75.48209366 | Y39: 0 | Z39: 60 | AA39: 36.1575 | AB39: 25.6976 | AC39: 6.8802
A40: 62 | B40: 14.6447 | C40: 23.3736 | D40: 7.0017 | E40: 45.02 | F40: 0.0784 | G40: 0.2756 | H40: 0.1601 | I40: 0.5141 | J40: 0.7919191919 | K40: 2.783838384 | L40: 1.617171717 | M40: 5.192929293 | U40: 72.28370113 | V40: 0 | W40: 76.39577594 | X40: 76.39577594 | Y40: 0 | Z40: 62 | AA40: 36.3143 | AB40: 26.2488 | AC40: 7.2004
A41: 64 | B41: 13.5515 | C41: 22.5923 | D41: 7 | E41: 43.1438 | F41: 0.0714 | G41: 0.2642 | H41: 0.1593 | I41: 0.4949 | J41: 0.7212121212 | K41: 2.668686869 | L41: 1.609090909 | M41: 4.998989899 | U41: 73.43877265 | V41: 0 | W41: 77.27731864 | X41: 77.27731864 | Y41: 0 | Z41: 64 | AA41: 36.4571 | AB41: 26.7772 | AC41: 7.519
A42: 66 | B42: 12.5218 | C42: 21.8123 | D42: 6.9872 | E42: 41.3213 | F42: 0.0649 | G42: 0.2532 | H42: 0.1582 | I42: 0.4763 | J42: 0.6555555556 | K42: 2.557575758 | L42: 1.597979798 | M42: 4.811111111 | U42: 74.56078408 | V42: 0 | W42: 78.13131313 | X42: 78.13131313 | Y42: 0 | Z42: 66 | AA42: 36.5869 | AB42: 27.2836 | AC42: 7.8354
A43: 68 | B43: 11.5563 | C43: 21.0325 | D43: 6.9633 | E43: 39.5521 | F43: 0.059 | G43: 0.2423 | H43: 0.1569 | I43: 0.4582 | J43: 0.595959596 | K43: 2.447474747 | L43: 1.584848485 | M43: 4.628282828 | U43: 75.64998168 | V43: 0 | W43: 78.96235078 | X43: 78.96235078 | Y43: 0 | Z43: 68 | AA43: 36.7049 | AB43: 27.7682 | AC43: 8.1492
A44: 70 | B44: 10.65 | C44: 20.2555 | D44: 6.9288 | E44: 37.8343 | F44: 0.0534 | G44: 0.2317 | H44: 0.1555 | I44: 0.4406 | J44: 0.5393939394 | K44: 2.34040404 | L44: 1.570707071 | M44: 4.450505051 | U44: 76.70753518 | V44: 0 | W44: 79.77043159 | X44: 79.77043159 | Y44: 0 | Z44: 70 | AA44: 36.8117 | AB44: 28.2316 | AC44: 8.4602
A45: 72 | B45: 9.7983 | C45: 19.4821 | D45: 6.8839 | E45: 36.1643 | F45: 0.0484 | G45: 0.2212 | H45: 0.1538 | I45: 0.4234 | J45: 0.4888888889 | K45: 2.234343434 | L45: 1.553535354 | M45: 4.276767677 | U45: 77.73566088 | V45: 0 | W45: 80.56014692 | X45: 80.56014692 | Y45: 0 | Z45: 72 | AA45: 36.9085 | AB45: 28.674 | AC45: 8.7678
A46: 74 | B46: 9.0029 | C46: 18.7119 | D46: 6.8286 | E46: 34.5434 | F46: 0.0438 | G46: 0.211 | H46: 0.1519 | I46: 0.4067 | J46: 0.4424242424 | K46: 2.131313131 | L46: 1.534343434 | M46: 4.108080808 | U46: 78.73355845 | V46: 0 | W46: 81.32690542 | X46: 81.32690542 | Y46: 0 | Z46: 74 | AA46: 36.9961 | AB46: 29.096 | AC46: 9.0716
A47: 76 | B47: 8.2526 | C47: 17.9513 | D47: 6.7641 | E47: 32.968 | F47: 0.0395 | G47: 0.201 | H47: 0.1498 | I47: 0.3903 | J47: 0.398989899 | K47: 2.03030303 | L47: 1.513131313 | M47: 3.942424242 | U47: 79.70344422 | V47: 0 | W47: 82.07988981 | X47: 82.07988981 | Y47: 0 | Z47: 76 | AA47: 37.0751 | AB47: 29.498 | AC47: 9.3712
A48: 78 | B48: 7.5514 | C48: 17.198 | D48: 6.6898 | E48: 31.4392 | F48: 0.0356 | G48: 0.1913 | H48: 0.1475 | I48: 0.3744 | J48: 0.3595959596 | K48: 1.932323232 | L48: 1.48989899 | M48: 3.781818182 | U48: 80.64464097 | V48: 0 | W48: 82.80991736 | X48: 82.80991736 | Y48: 0 | Z48: 78 | AA48: 37.1463 | AB48: 29.8806 | AC48: 9.6662
A49: 80 | B49: 6.8959 | C49: 16.4508 | D49: 6.6078 | E49: 29.9545 | F49: 0.032 | G49: 0.1818 | H49: 0.1451 | I49: 0.3589 | J49: 0.3232323232 | K49: 1.836363636 | L49: 1.465656566 | M49: 3.625252525 | U49: 81.55868782 | V49: 0 | W49: 83.52157943 | X49: 83.52157943 | Y49: 0 | Z49: 80 | AA49: 37.2103 | AB49: 30.2442 | AC49: 9.9564
A50: 82 | B50: 6.287 | C50: 15.7098 | D50: 6.5176 | E50: 28.5144 | F50: 0.0287 | G50: 0.1725 | H50: 0.1425 | I50: 0.3437 | J50: 0.2898989899 | K50: 1.742424242 | L50: 1.439393939 | M50: 3.471717172 | U50: 82.44527693 | V50: 0 | W50: 84.2194674 | X50: 84.2194674 | Y50: 0 | Z50: 82 | AA50: 37.2677 | AB50: 30.5892 | AC50: 10.2414
A51: 84 | B51: 5.719 | C51: 14.9807 | D51: 6.418 | E51: 27.1177 | F51: 0.0257 | G51: 0.1634 | H51: 0.1397 | I51: 0.3288 | J51: 0.2595959596 | K51: 1.650505051 | L51: 1.411111111 | M51: 3.321212121 | U51: 83.30514709 | V51: 0 | W51: 84.90358127 | X51: 84.90358127 | Y51: 0 | Z51: 84 | AA51: 37.3191 | AB51: 30.916 | AC51: 10.5208
A52: 86 | B52: 5.1921 | C52: 14.2632 | D52: 6.3091 | E52: 25.7644 | F52: 0.023 | G52: 0.1545 | H52: 0.1367 | I52: 0.3142 | J52: 0.2323232323 | K52: 1.560606061 | L52: 1.380808081 | M52: 3.173737374 | U52: 84.1382983 | V52: 0 | W52: 85.57392103 | X52: 85.57392103 | Y52: 0 | Z52: 86 | AA52: 37.3651 | AB52: 31.225 | AC52: 10.7942
A53: 88 | B53: 4.6999 | C53: 13.559 | D53: 6.1929 | E53: 24.4518 | F53: 0.0205 | G53: 0.1459 | H53: 0.1336 | I53: 0.3 | J53: 0.2070707071 | K53: 1.473737374 | L53: 1.349494949 | M53: 3.03030303 | U53: 84.94639279 | V53: 0 | W53: 86.22589532 | X53: 86.22589532 | Y53: 0 | Z53: 88 | AA53: 37.4061 | AB53: 31.5168 | AC53: 11.0614
A54: 90 | B54: 4.2409 | C54: 12.8686 | D54: 6.0698 | E54: 23.1793 | F54: 0.0181 | G54: 0.1375 | H54: 0.1304 | I54: 0.286 | J54: 0.1828282828 | K54: 1.388888889 | L54: 1.317171717 | M54: 2.888888889 | U54: 85.72979995 | V54: 0 | W54: 86.86868687 | X54: 86.86868687 | Y54: 0 | Z54: 90 | AA54: =AA53+F54*($A54-$A53) -> 37.4423 | AB54: 31.7918 | AC54: 11.3222
A55: 92 | B55: 3.8166 | C55: 12.1913 | D55: 5.9393 | E55: 21.9472 | F55: 0.016 | G55: 0.1294 | H55: 0.1271 | I55: 0.2725 | J55: 0.1616161616 | K55: 1.307070707 | L55: 1.283838384 | M55: 2.752525253 | U55: 86.48833508 | V55: 0 | W55: 87.48852158 | X55: 87.48852158 | Y55: 0 | Z55: 92 | AA55: 37.4743 | AB55: 32.0506 | AC55: 11.5764
A56: 94 | B56: 3.4266 | C56: 11.5268 | D56: 5.801 | E56: 20.7544 | F56: 0.0141 | G56: 0.1215 | H56: 0.1236 | I56: 0.2592 | J56: 0.1424242424 | K56: 1.227272727 | L56: 1.248484848 | M56: 2.618181818 | U56: 87.2226754 | V56: 0 | W56: 88.09917355 | X56: 88.09917355 | Y56: 0 | Z56: 94 | AA56: 37.5025 | AB56: 32.2936 | AC56: 11.8236
A57: 96 | B57: 3.065 | C57: 10.8778 | D57: 5.6568 | E57: 19.5996 | F57: 0.0124 | G57: 0.1139 | H57: 0.12 | I57: 0.2463 | J57: 0.1252525253 | K57: 1.150505051 | L57: 1.212121212 | M57: 2.487878788 | U57: 87.93362125 | V57: 0 | W57: 88.69146006 | X57: 88.69146006 | Y57: 0 | Z57: 96 | AA57: 37.5273 | AB57: 32.5214 | AC57: 12.0636
A58: 98 | B58: 2.726 | C58: 10.2469 | D58: 5.508 | E58: 18.4809 | F58: 0.0107 | G58: 0.1065 | H58: 0.1163 | I58: 0.2335 | J58: 0.1080808081 | K58: 1.075757576 | L58: 1.174747475 | M58: 2.358585859 | U58: 88.62234234 | V58: 0 | W58: 89.27915519 | X58: 89.27915519 | Y58: 0 | Z58: 98 | AA58: 37.5487 | AB58: 32.7344 | AC58: 12.2962
A59: 100 | B59: 2.4153 | C59: 9.6313 | D59: 5.3526 | E59: 17.3992 | F59: 0.0093 | G59: 0.0994 | H59: 0.1125 | I59: 0.2212 | J59: 0.09393939394 | K59: 1.004040404 | L59: 1.136363636 | M59: 2.234343434 | U59: 89.2882846 | V59: 0 | W59: 89.84389348 | X59: 89.84389348 | Y59: 0 | Z59: 100 | AA59: 37.5673 | AB59: 32.9332 | AC59: 12.5212

Sheet sim4 (hidden)
B1: sim4 | O1: Remediation time (>90% mass removal or flux reduction)
B2: mass (g/m2) | F2: flux (g/y/m2) | J2: Conc output (mg/L) | O2: Mass | P2: =VLOOKUP(90,V4:Z59,5,FALSE) -> 64 | AA2: acc flux (g/m2)
A3: Time | B3: TCE | C3: DCE | D3: VC | E3: Total | F3: TCE | G3: DCE | H3: VC | I3: Total | J3: TCE | K3: DCE | L3: VC | M3: Total | O3: Flux | P3: =VLOOKUP(90,Y4:Z59,2,FALSE) -> 64 | U3: mass removal (%) | V3: to find 90% | W3: flux reduction (%) | Y3: to find 90% | Z3: Time | AA3: TCE | AB3: DCE | AC3: VC
A4: 0 | B4: 162.6073 | C4: 0 | D4: 0 | E4: =SUM(B4:D4) -> 162.6073 | F4: 2.178 | G4: 0 | H4: 0 | I4: =SUM(F4:H4) -> 2.178 | J4: 22 | K4: 0 | L4: 0 | M4: =SUM(J4:L4) -> 22 | U4: =(E$4-E4)/E$4*100 -> 0 | V4: =IF(U4>90,90,0) -> 0 | W4: =(I$4-I4)/I$4*100 -> 0 | X4: =IF(W4>0,W4,0) -> 0 | Y4: =IF(X4>90,90,0) -> 0 | Z4: 0 | AA4: =F4 -> 2.178 | AB4: =G4 -> 0 | AC4: 0
A5: 1 | B5: 141.2473 | C5: 12.5579 | D5: 0.1678 | E5: =SUM(B5:D5) -> 153.973 | F5: 1.9391 | G5: 0.2709 | H5: 0.0056 | I5: =SUM(F5:H5) -> 2.2156 | J5: 19.58686869 | K5: 2.736363636 | L5: 0.05656565657 | M5: =SUM(J5:L5) -> 22.37979798 | O5: Accumulated flux to the aquifer (g/m2) | U5: =(E$4-E5)/E$4*100 -> 5.309909211 | V5: =IF(U5>90,90,0) -> 0 | W5: =(I$4-I5)/I$4*100 -> -1.726354454 | X5: =IF(W5>0,W5,0) -> 0 | Y5: =IF(X5>90,90,0) -> 0 | Z5: 1 | AA5: =AA4+F5*($A5-$A4) -> 4.1171 | AB5: =AB4+G5*($A5-$A4) -> 0.2709 | AC5: 0.0056
A6: 2 | B6: 126.354 | C6: 20.7974 | D6: 0.5541 | E6: 147.7055 | F6: 1.7537 | G6: 0.4534 | H6: 0.0186 | I6: 2.2257 | J6: 17.71414141 | K6: 4.57979798 | L6: 0.1878787879 | M6: 22.48181818 | O6: TCE | P6: =AA59 -> 21.29929296 | U6: 9.164287212 | V6: 0 | W6: -2.190082645 | X6: 0 | Y6: 0 | Z6: 2 | AA6: =AA5+F6*($A6-$A5) -> 5.8708 | AB6: 0.7243 | AC6: 0.0242
A7: 3 | B7: 114.4078 | C7: 26.7572 | D7: 1.0583 | E7: 142.2233 | F7: 1.585 | G7: 0.5829 | H7: 0.0357 | I7: 2.2036 | J7: 16.01010101 | K7: 5.887878788 | L7: 0.3606060606 | M7: 22.25858586 | O7: DCE | P7: =AB59 -> 26.27240811 | U7: 12.53572257 | V7: 0 | W7: -1.175390266 | X7: 0 | Y7: 0 | Z7: 3 | AA7: 7.4558 | AB7: 1.3072 | AC7: 0.0599
A8: 4 | B8: 104.3746 | C8: 31.2166 | D8: 1.6303 | E8: 137.2215 | F8: 1.4282 | G8: 0.6741 | H8: 0.0547 | I8: 2.157 | J8: 14.42626263 | K8: 6.809090909 | L8: 0.5525252525 | M8: 21.78787879 | O8: VC | P8: =AC59 -> 15.21551356 | U8: 15.61172223 | V8: 0 | W8: 0.9641873278 | X8: 0.9641873278 | Y8: 0 | Z8: 4 | AA8: 8.884 | AB8: 1.9813 | AC8: 0.1146
A9: 5 | B9: 95.6944 | C9: 34.6322 | D9: 2.2373 | E9: 132.5639 | F9: 1.2836 | G9: 0.7375 | H9: 0.0745 | I9: 2.0956 | J9: 12.96565657 | K9: 7.449494949 | L9: 0.7525252525 | M9: 21.16767677 | O9: Total | P9: =SUM(P6:P8) -> 62.78721463 | U9: 18.47604628 | V9: 0 | W9: 3.78328742 | X9: 3.78328742 | Y9: 0 | Z9: 5 | AA9: 10.1676 | AB9: 2.7188 | AC9: 0.1891
A10: 6 | B10: 88.091 | C10: 37.2374 | D10: 2.8612 | E10: 128.1896 | F10: 1.152 | G10: 0.7789 | H10: 0.0943 | I10: 2.0252 | J10: 11.63636364 | K10: 7.867676768 | L10: 0.9525252525 | M10: 20.45656566 | U10: 21.16614691 | V10: 0 | W10: 7.015610652 | X10: 7.015610652 | Y10: 0 | Z10: 6 | AA10: 11.3196 | AB10: 3.4977 | AC10: 0.2834
A11: 7 | B11: 81.3373 | C11: 39.2258 | D11: 3.4871 | E11: 124.0502 | F11: 1.0334 | G11: 0.804 | H11: 0.1136 | I11: 1.951 | J11: 10.43838384 | K11: 8.121212121 | L11: 1.147474747 | M11: 19.70707071 | U11: 23.71178908 | V11: 0 | W11: 10.42240588 | X11: 10.42240588 | Y11: 0 | Z11: 7 | AA11: 12.353 | AB11: 4.3017 | AC11: 0.397
A12: 8 | B12: 75.2835 | C12: 40.7261 | D12: 4.1052 | E12: 120.1148 | F12: 0.9271 | G12: 0.8168 | H12: 0.132 | I12: 1.8759 | J12: 9.364646465 | K12: 8.250505051 | L12: 1.333333333 | M12: 18.94848485 | U12: 26.13197562 | V12: 0 | W12: 13.87052342 | X12: 13.87052342 | Y12: 0 | Z12: 8 | AA12: 13.2801 | AB12: 5.1185 | AC12: 0.529
A13: 9 | B13: 69.8341 | C13: 41.8199 | D13: 4.7095 | E13: 116.3635 | F13: 0.8324 | G13: 0.8199 | H13: 0.1493 | I13: 1.8016 | J13: 8.408080808 | K13: 8.281818182 | L13: 1.508080808 | M13: 18.1979798 | U13: 28.43894462 | V13: 0 | W13: 17.28191001 | X13: 17.28191001 | Y13: 0 | Z13: 9 | AA13: 14.1125 | AB13: 5.9384 | AC13: 0.6783
A14: 10 | B14: 64.891 | C14: 42.5889 | D14: 5.2952 | E14: 112.7751 | F14: 0.748 | G14: 0.8158 | H14: 0.1654 | I14: 1.7292 | J14: 7.555555556 | K14: 8.24040404 | L14: 1.670707071 | M14: 17.46666667 | U14: 30.64573362 | V14: 0 | W14: 20.60606061 | X14: 20.60606061 | Y14: 0 | Z14: 10 | AA14: 14.8605 | AB14: 6.7542 | AC14: 0.8437
A15: 12 | B15: 56.2295 | C15: 43.3981 | D15: 6.3953 | E15: 106.0229 | F15: 0.6059 | G15: 0.7937 | H15: 0.1939 | I15: 1.5935 | J15: 6.12020202 | K15: 8.017171717 | L15: 1.958585859 | M15: 16.0959596 | U15: 34.79819172 | V15: 0 | W15: 26.83654729 | X15: 26.83654729 | Y15: 0 | Z15: 12 | AA15: 16.0723 | AB15: 8.3416 | AC15: 1.2315
A16: 14 | B16: 48.8466 | C16: 43.5187 | D16: 7.3887 | E16: 99.754 | F16: 0.4921 | G16: 0.7614 | H16: 0.2175 | I16: 1.471 | J16: 4.970707071 | K16: 7.690909091 | L16: 2.196969697 | M16: 14.85858586 | U16: 38.65343069 | V16: 0 | W16: 32.46097337 | X16: 32.46097337 | Y16: 0 | Z16: 14 | AA16: 17.0565 | AB16: 9.8644 | AC16: 1.6665
A17: 16 | B17: 42.5096 | C17: 43.1256 | D17: 8.2735 | E17: 93.9087 | F17: 0.4 | G17: 0.7231 | H17: 0.2369 | I17: 1.36 | J17: 4.04040404 | K17: 7.304040404 | L17: 2.392929293 | M17: 13.73737374 | U17: 42.24816475 | V17: 0 | W17: 37.5573921 | X17: 37.5573921 | Y17: 0 | Z17: 16 | AA17: 17.8565 | AB17: 11.3106 | AC17: 2.1403
A18: 18 | B18: 37.0641 | C18: 42.3223 | D18: 9.0557 | E18: 88.4421 | F18: 0.3256 | G18: 0.6802 | H18: 0.2525 | I18: 1.2583 | J18: 3.288888889 | K18: 6.870707071 | L18: 2.550505051 | M18: 12.71010101 | U18: 45.61000644 | V18: 0 | W18: 42.22681359 | X18: 42.22681359 | Y18: 0 | Z18: 18 | AA18: 18.5077 | AB18: 12.671 | AC18: 2.6453
A19: 20 | B19: 32.3594 | C19: 41.2077 | D19: 9.7404 | E19: 83.3075 | F19: 0.2661 | G19: 0.6353 | H19: 0.2647 | I19: 1.1661 | J19: 2.687878788 | K19: 6.417171717 | L19: 2.673737374 | M19: 11.77878788 | U19: 48.76767525 | V19: 0 | W19: 46.4600551 | X19: 46.4600551 | Y19: 0 | Z19: 20 | AA19: 19.0399 | AB19: 13.9416 | AC19: 3.1747
A20: 22 | B20: 28.2548 | C20: 39.8832 | D20: 10.3256 | E20: 78.4636 | F20: 0.2179 | G20: 0.5916 | H20: 0.2739 | I20: 1.0834 | J20: 2.201010101 | K20: 5.975757576 | L20: 2.766666667 | M20: 10.94343434 | U20: 51.7465698 | V20: 0 | W20: 50.25711662 | X20: 50.25711662 | Y20: 0 | Z20: 22 | AA20: 19.4757 | AB20: 15.1248 | AC20: 3.7225
A21: 24 | B21: 24.6501 | C21: 38.4184 | D21: 10.8165 | E21: 73.885 | F21: 0.1779 | G21: 0.5492 | H21: 0.2806 | I21: 1.0077 | J21: 1.796969697 | K21: 5.547474747 | L21: 2.834343434 | M21: 10.17878788 | U21: 54.56231055 | V21: 0 | W21: 53.73278237 | X21: 53.73278237 | Y21: 0 | Z21: 24 | AA21: 19.8315 | AB21: 16.2232 | AC21: 4.2837
A22: 26 | B22: 21.4833 | C22: 36.8454 | D22: 11.2193 | E22: 69.548 | F22: 0.1452 | G22: 0.5082 | H22: 0.285 | I22: 0.9384 | J22: 1.466666667 | K22: 5.133333333 | L22: 2.878787879 | M22: 9.478787879 | U22: 57.22947248 | V22: 0 | W22: 56.91460055 | X22: 56.91460055 | Y22: 0 | Z22: 26 | AA22: =AA21+F22*($A22-$A21) -> 20.1219 | AB22: 17.2396 | AC22: 4.8537
A23: 28 | B23: 18.6976 | C23: 35.1951 | D23: 11.5389 | E23: 65.4316 | F23: 0.1183 | G23: 0.469 | H23: 0.2873 | I23: 0.8746 | J23: 1.194949495 | K23: 4.737373737 | L23: 2.902020202 | M23: 8.834343434 | U23: 59.76097014 | V23: 0 | W23: 59.84389348 | X23: 59.84389348 | Y23: 0 | Z23: 28 | AA23: 20.3585 | AB23: 18.1776 | AC23: 5.4283
A24: 30 | B24: 16.2431 | C24: 33.4941 | D24: 11.7804 | E24: 61.5176 | F24: 0.0963 | G24: 0.4318 | H24: 0.2878 | I24: 0.8159 | J24: 0.9727272727 | K24: 4.361616162 | L24: 2.907070707 | M24: 8.241414141 | U24: 62.16799615 | V24: 0 | W24: 62.53902663 | X24: 62.53902663 | Y24: 0 | Z24: 30 | AA24: 20.5511 | AB24: 19.0412 | AC24: 6.0039
A25: 32 | B25: 14.0787 | C25: 31.7631 | D25: 11.9489 | E25: 57.7907 | F25: 0.0782 | G25: 0.3966 | H25: 0.2867 | I25: 0.7615 | J25: 0.7898989899 | K25: 4.006060606 | L25: 2.895959596 | M25: 7.691919192 | U25: 64.45995967 | V25: 0 | W25: 65.03673095 | X25: 65.03673095 | Y25: 0 | Z25: 32 | AA25: 20.7075 | AB25: 19.8344 | AC25: 6.5773
A26: 34 | B26: 12.1633 | C26: 30.0215 | D26: 12.0499 | E26: 54.2347 | F26: 0.0632 | G26: 0.3634 | H26: 0.2842 | I26: 0.7108 | J26: 0.6383838384 | K26: 3.670707071 | L26: 2.870707071 | M26: 7.17979798 | U26: 66.64682336 | V26: 0 | W26: 67.36455464 | X26: 67.36455464 | Y26: 0 | Z26: 34 | AA26: 20.8339 | AB26: 20.5612 | AC26: 7.1457
A27: 36 | B27: 10.4728 | C27: 28.2807 | D27: 12.0868 | E27: 50.8403 | F27: 0.0509 | G27: 0.3321 | H27: 0.2804 | I27: 0.6634 | J27: 0.5141414141 | K27: 3.354545455 | L27: 2.832323232 | M27: 6.701010101 | U27: 68.73430652 | V27: 0 | W27: 69.54086318 | X27: 69.54086318 | Y27: 0 | Z27: 36 | AA27: 20.9357 | AB27: 21.2254 | AC27: 7.7065
A28: 38 | B28: 8.9787 | C28: 26.5521 | D28: 12.0641 | E28: 47.5949 | F28: 0.0407 | G28: 0.3028 | H28: 0.2755 | I28: 0.619 | J28: 0.4111111111 | K28: 3.058585859 | L28: 2.782828283 | M28: 6.252525253 | U28: 70.73015787 | V28: 0 | W28: 71.57943067 | X28: 71.57943067 | Y28: 0 | Z28: 38 | AA28: 21.0171 | AB28: 21.831 | AC28: 8.2575
A29: 40 | B29: 7.666 | C29: 24.8422 | D29: 11.9845 | E29: 44.4927 | F29: 0.0324 | G29: 0.2752 | H29: 0.2695 | I29: 0.5771 | J29: 0.3272727273 | K29: 2.77979798 | L29: 2.722222222 | M29: 5.829292929 | U29: 72.6379443 | V29: 0 | W29: 73.50321396 | X29: 73.50321396 | Y29: 0 | Z29: 40 | AA29: 21.0819 | AB29: 22.3814 | AC29: 8.7965
A30: 42 | B30: 6.5167 | C30: 23.1585 | D30: 11.8515 | E30: 41.5267 | F30: 0.0256 | G30: 0.2495 | H30: 0.2625 | I30: 0.5376 | J30: 0.2585858586 | K30: 2.52020202 | L30: 2.651515152 | M30: 5.43030303 | U30: 74.46197065 | V30: 0 | W30: 75.31680441 | X30: 75.31680441 | Y30: 0 | Z30: 42 | AA30: 21.1331 | AB30: 22.8804 | AC30: 9.3215
A31: 44 | B31: 5.5045 | C31: 21.5107 | D31: 11.6698 | E31: 38.685 | F31: 0.0201 | G31: 0.2254 | H31: 0.2547 | I31: 0.5002 | J31: 0.203030303 | K31: 2.276767677 | L31: 2.572727273 | M31: 5.052525253 | U31: 76.20955517 | V31: 0 | W31: 77.03397612 | X31: 77.03397612 | Y31: 0 | Z31: 44 | AA31: 21.1733 | AB31: 23.3312 | AC31: 9.8309
A32: 46 | B32: 4.6288 | C32: 19.8994 | D32: 11.4395 | E32: 35.9677 | F32: 0.0157 | G32: 0.2029 | H32: 0.2461 | I32: 0.4647 | J32: 0.1585858586 | K32: 2.049494949 | L32: 2.485858586 | M32: 4.693939394 | U32: 77.88063636 | V32: 0 | W32: 78.66391185 | X32: 78.66391185 | Y32: 0 | Z32: 46 | AA32: 21.2047 | AB32: 23.737 | AC32: 10.3231
A33: 48 | B33: 3.8704 | C33: 18.3324 | D33: 11.1642 | E33: 33.367 | F33: 0.0122 | G33: 0.1819 | H33: 0.2367 | I33: 0.4308 | J33: 0.1232323232 | K33: 1.837373737 | L33: 2.390909091 | M33: 4.351515152 | U33: 79.48001105 | V33: 0 | W33: 80.22038567 | X33: 80.22038567 | Y33: 0 | Z33: 48 | AA33: 21.2291 | AB33: 24.1008 | AC33: 10.7965
A34: 50 | B34: 3.2134 | C34: 16.8147 | D34: 10.8494 | E34: 30.8775 | F34: 0.0095 | G34: 0.1623 | H34: 0.2266 | I34: 0.3984 | J34: 0.09595959596 | K34: 1.639393939 | L34: 2.288888889 | M34: 4.024242424 | U34: 81.01100012 | V34: 0 | W34: 81.70798898 | X34: 81.70798898 | Y34: 0 | Z34: 50 | AA34: 21.2481 | AB34: 24.4254 | AC34: 11.2497
A35: 52 | B35: 2.6458 | C35: 15.3509 | D35: 10.4974 | E35: 28.4941 | F35: 0.0072 | G35: 0.1442 | H35: 0.216 | I35: 0.3674 | J35: 0.07272727273 | K35: 1.456565657 | L35: 2.181818182 | M35: 3.711111111 | U35: 82.47673997 | V35: 0 | W35: 83.13131313 | X35: 83.13131313 | Y35: 0 | Z35: 52 | AA35: 21.2625 | AB35: 24.7138 | AC35: 11.6817
A36: 54 | B36: 2.1602 | C36: 13.9432 | D36: 10.1086 | E36: 26.212 | F36: 0.0055 | G36: 0.1274 | H36: 0.2047 | I36: 0.3376 | J36: 0.05555555556 | K36: 1.286868687 | L36: 2.067676768 | M36: 3.41010101 | U36: 83.8801825 | V36: 0 | W36: 84.49954086 | X36: 84.49954086 | Y36: 0 | Z36: 54 | AA36: 21.2735 | AB36: 24.9686 | AC36: 12.0911
A37: 56 | B37: 1.7453 | C37: 12.5939 | D37: 9.6865 | E37: 24.0257 | F37: 0.0041 | G37: 0.1118 | H37: 0.193 | I37: 0.3089 | J37: 0.04141414141 | K37: 1.129292929 | L37: 1.949494949 | M37: 3.12020202 | U37: 85.22471008 | V37: 0 | W37: 85.81726354 | X37: 85.81726354 | Y37: 0 | Z37: 56 | AA37: 21.2817 | AB37: 25.1922 | AC37: 12.4771
A38: 58 | B38: 1.3922 | C38: 11.306 | D38: 9.2334 | E38: 21.9316 | F38: 0.003 | G38: 0.0975 | H38: 0.1809 | I38: 0.2814 | J38: 0.0303030303 | K38: 0.9848484848 | L38: 1.827272727 | M38: 2.842424242 | U38: 86.51253665 | V38: 0 | W38: 87.07988981 | X38: 87.07988981 | Y38: 0 | Z38: 58 | AA38: =AA37+F38*($A38-$A37) -> 21.2877 | AB38: 25.3872 | AC38: 12.8389
A39: 60 | B39: 1.0959 | C39: 10.0826 | D39: 8.7518 | E39: 19.9303 | F39: 0.0021 | G39: 0.0843 | H39: 0.1683 | I39: 0.2547 | J39: 0.02121212121 | K39: 0.8515151515 | L39: 1.7 | M39: 2.572727273 | U39: 87.7432932 | V39: 0 | W39: 88.30578512 | X39: 88.30578512 | Y39: 0 | Z39: 60 | AA39: 21.2919 | AB39: 25.5558 | AC39: 13.1755
A40: 62 | B40: 0.8467 | C40: 8.9267 | D40: 8.2466 | E40: 18.02 | F40: 0.0015 | G40: 0.0722 | H40: 0.1554 | I40: 0.2291 | J40: 0.01515151515 | K40: 0.7292929293 | L40: 1.56969697 | M40: 2.314141414 | U40: 88.9180867 | V40: 0 | W40: 89.48117539 | X40: 89.48117539 | Y40: 0 | Z40: 62 | AA40: 21.2949 | AB40: 25.7002 | AC40: 13.4863
A41: 64 | B41: 0.6426 | C41: 7.8385 | D41: 7.7187 | E41: 16.1998 | F41: 0.00096345 | G41: 0.0611 | H41: 0.1422 | I41: 0.20426345 | J41: 0.009731818182 | K41: 0.6171717172 | L41: 1.436363636 | M41: 2.063267172 | U41: 90.03747064 | V41: 90 | W41: 90.62151286 | X41: 90.62151286 | Y41: 90 | Z41: 64 | AA41: 21.2968269 | AB41: 25.8224 | AC41: 13.7707
A42: 66 | B42: 0.4768 | C42: 6.8193 | D42: 7.1707 | E42: 14.4668 | F42: 0.0006016 | G42: 0.0512 | H42: 0.1288 | I42: 0.1806016 | J42: 0.006076767677 | K42: 0.5171717172 | L42: 1.301010101 | M42: 1.824258586 | U42: 91.10322845 | V42: 90 | W42: 91.70791552 | X42: 91.70791552 | Y42: 90 | Z42: 66 | AA42: 21.2980301 | AB42: 25.9248 | AC42: 14.0283
A43: 68 | B43: 0.3448 | C43: 5.8701 | D43: 6.6033 | E43: 12.8182 | F43: 0.00034985 | G43: 0.0422 | H43: 0.1153 | I43: 0.15784985 | J43: 0.003533838384 | K43: 0.4262626263 | L43: 1.164646465 | M43: 1.594442929 | U43: 92.11708207 | V43: 90 | W43: 92.75253214 | X43: 92.75253214 | Y43: 90 | Z43: 68 | AA43: 21.2987298 | AB43: 26.0092 | AC43: 14.2589
A44: 70 | B44: 0.2426 | C44: 4.9919 | D44: 6.0185 | E44: 11.253 | F44: 0.00018698 | G44: 0.0343 | H44: 0.1017 | I44: 0.13618698 | J44: 0.001888686869 | K44: 0.3464646465 | L44: 1.027272727 | M44: 1.375626061 | U44: 93.07964649 | V44: 90 | W44: 93.74715427 | X44: 93.74715427 | Y44: 90 | Z44: 70 | AA44: 21.29910376 | AB44: 26.0778 | AC44: 14.4623
A45: 72 | B45: 0.163 | C45: 4.187 | D45: 5.4253 | E45: 9.7753 | F45: 7.8132e-05 | G45: 0.0273 | H45: 0.0881 | I45: 0.115478132 | J45: 0.0007892121212 | K45: 0.2757575758 | L45: 0.8898989899 | M45: 1.166445778 | U45: 93.98840027 | V45: 90 | W45: 94.69797374 | X45: 94.69797374 | Y45: 90 | Z45: 72 | AA45: 21.29926002 | AB45: 26.1324 | AC45: 14.6385
A46: 74 | B46: 0.1044 | C46: 3.4543 | D46: 4.8238 | E46: 8.3825 | F46: 1.6467e-05 | G46: 0.0212 | H46: 0.0748 | I46: 0.096016467 | J46: 0.0001663333333 | K46: 0.2141414141 | L46: 0.7555555556 | M46: 0.969863303 | U46: 94.84494239 | V46: 90 | W46: 95.59153044 | X46: 95.59153044 | Y46: 90 | Z46: 74 | AA46: 21.29929296 | AB46: 26.1748 | AC46: 14.7881
A47: 76 | B47: 0.0635 | C47: 2.7936 | D47: 4.2163 | E47: 7.0734 | F47: 0 | G47: 0.016 | H47: 0.0617 | I47: 0.0777 | J47: 0 | K47: 0.1616161616 | L47: 0.6232323232 | M47: 0.7848484848 | U47: 95.65001079 | V47: 90 | W47: 96.43250689 | X47: 96.43250689 | Y47: 90 | Z47: 76 | AA47: 21.29929296 | AB47: 26.2068 | AC47: 14.9115
A48: 78 | B48: 0.0344 | C48: 2.2067 | D48: 3.6125 | E48: 5.8536 | F48: 0 | G48: 0.0117 | H48: 0.0492 | I48: 0.0609 | J48: 0 | K48: 0.1181818182 | L48: 0.496969697 | M48: 0.6151515152 | U48: 96.40016162 | V48: 90 | W48: 97.20385675 | X48: 97.20385675 | Y48: 90 | Z48: 78 | AA48: 21.29929296 | AB48: 26.2302 | AC48: 15.0099
A49: 80 | B49: 0.0159 | C49: 1.6935 | D49: 3.0163 | E49: 4.7257 | F49: 0 | G49: 0.0082 | H49: 0.0376 | I49: 0.0458 | J49: 0 | K49: 0.08282828283 | L49: 0.3797979798 | M49: 0.4626262626 | U49: 97.09379591 | V49: 90 | W49: 97.89715335 | X49: 97.89715335 | Y49: 90 | Z49: 80 | AA49: 21.29929296 | AB49: 26.2466 | AC49: 15.0851
A50: 82 | B50: 0.0048 | C50: 1.2542 | D50: 2.4351 | E50: 3.6941 | F50: 0 | G50: 0.0055 | H50: 0.027 | I50: 0.0325 | J50: 0 | K50: 0.05555555556 | L50: 0.2727272727 | M50: 0.3282828283 | U50: 97.72820777 | V50: 90 | W50: 98.50780533 | X50: 98.50780533 | Y50: 90 | Z50: 82 | AA50: 21.29929296 | AB50: 26.2576 | AC50: 15.1391
A51: 84 | B51: 0 | C51: 0.8878 | D51: 1.8823 | E51: 2.7701 | F51: 0 | G51: 0.0034 | H51: 0.018 | I51: 0.0214 | J51: 0 | K51: 0.03434343434 | L51: 0.1818181818 | M51: 0.2161616162 | U51: 98.29644795 | V51: 90 | W51: 99.0174472 | X51: 99.0174472 | Y51: 90 | Z51: 84 | AA51: 21.29929296 | AB51: 26.2644 | AC51: 15.1751
A52: 86 | B52: 0 | C52: 0.5932 | D52: 1.3707 | E52: 1.9639 | F52: 0 | G52: 0.002 | H52: 0.0108 | I52: 0.0128 | J52: 0 | K52: 0.0202020202 | L52: 0.1090909091 | M52: 0.1292929293 | U52: 98.79224364 | V52: 90 | W52: 99.41230487 | X52: 99.41230487 | Y52: 90 | Z52: 86 | AA52: 21.29929296 | AB52: 26.2684 | AC52: 15.1967
A53: 88 | B53: 0 | C53: 0.3677 | D53: 0.9248 | E53: 1.2925 | F53: 0 | G53: 0.0011 | H53: 0.0057 | I53: 0.0068 | J53: 0 | K53: 0.01111111111 | L53: 0.05757575758 | M53: 0.06868686869 | U53: 99.20514024 | V53: 90 | W53: 99.68778696 | X53: 99.68778696 | Y53: 90 | Z53: 88 | AA53: 21.29929296 | AB53: 26.2706 | AC53: 15.2081
A54: 90 | B54: 0 | C54: 0.2052 | D54: 0.5507 | E54: 0.7559 | F54: 0 | G54: 0.00052419 | H54: 0.0025 | I54: 0.00302419 | J54: 0 | K54: 0.005294848485 | L54: 0.02525252525 | M54: 0.03054737374 | U54: 99.53513772 | V54: 90 | W54: 99.8611483 | X54: 99.8611483 | Y54: 90 | Z54: 90 | AA54: =AA53+F54*($A54-$A53) -> 21.29929296 | AB54: 26.27164838 | AC54: 15.2131
A55: 92 | B55: 0 | C55: 0.1001 | D55: 0.2649 | E55: 0.365 | F55: 0 | G55: 0.00023552 | H55: 0.00095828 | I55: 0.0011938 | J55: 0 | K55: 0.002378989899 | L55: 0.00967959596 | M55: 0.01205858586 | U55: 99.77553283 | V55: 90 | W55: 99.94518825 | X55: 99.94518825 | Y55: 90 | Z55: 92 | AA55: 21.29929296 | AB55: 26.27211942 | AC55: 15.21501656
A56: 94 | B56: 0 | C56: 0.0398 | D56: 0.0912 | E56: 0.131 | F56: 0 | G56: 9.7926e-05 | H56: 0.0002485 | I56: 0.000346426 | J56: 0 | K56: 0.0009891515152 | L56: 0.00251010101 | M56: 0.003499252525 | U56: 99.91943781 | V56: 90 | W56: 99.98409431 | X56: 99.98409431 | Y56: 90 | Z56: 94 | AA56: 21.29929296 | AB56: 26.27231527 | AC56: 15.21551356
A57: 96 | B57: 0 | C57: 0.0106 | D57: 0.008 | E57: 0.0186 | F57: 0 | G57: 3.5793e-05 | H57: 0 | I57: 3.5793e-05 | J57: 0 | K57: 0.0003615454545 | L57: 0 | M57: 0.0003615454545 | U57: 99.9885614 | V57: 90 | W57: 99.99835661 | X57: 99.99835661 | Y57: 90 | Z57: 96 | AA57: 21.29929296 | AB57: 26.27238686 | AC57: 15.21551356
A58: 98 | B58: 0 | C58: 3.8641e-05 | D58: 0 | E58: 3.8641e-05 | F58: 0 | G58: 1.0625e-05 | H58: 0 | I58: 1.0625e-05 | J58: 0 | K58: 0.0001073232323 | L58: 0 | M58: 0.0001073232323 | U58: 99.99997624 | V58: 90 | W58: 99.99951217 | X58: 99.99951217 | Y58: 90 | Z58: 98 | AA58: 21.29929296 | AB58: 26.27240811 | AC58: 15.21551356
A59: 100 | B59: 0 | C59: 0 | D59: 0 | E59: 0 | F59: 0 | G59: 0 | H59: 0 | I59: 0 | J59: 0 | K59: 0 | L59: 0 | M59: 0 | U59: 100 | V59: 90 | W59: 100 | X59: 100 | Y59: 90 | Z59: 100 | AA59: 21.29929296 | AB59: 26.27240811 | AC59: 15.21551356

Sheet sim5 (hidden)
B1: sim5 | O1: Remediation time (>90% mass removal or flux reduction)
B2: mass (g/m2) | F2: flux (g/y/m2) | J2: Conc output (mg/L) | O2: Mass | P2: =VLOOKUP(90,V4:Z59,5,FALSE) -> 5 | AA2: acc flux (g/m2)
A3: Time | B3: TCE | C3: DCE | D3: VC | E3: Total | F3: TCE | G3: DCE | H3: VC | I3: Total | J3: TCE | K3: DCE | L3: VC | M3: Total | O3: Flux | P3: =VLOOKUP(90,Y4:Z59,2,FALSE) -> 4 | U3: mass removal (%) | V3: to find 90% | W3: flux reduction (%) | Y3: to find 90% | Z3: Time | AA3: TCE | AB3: DCE | AC3: VC
A4: 0 | B4: 162.6082 | C4: 0 | D4: 0 | E4: =SUM(B4:D4) -> 162.6082 | F4: 2.178 | G4: 0 | H4: 0 | I4: =SUM(F4:H4) -> 2.178 | J4: 22 | K4: 0 | L4: 0 | M4: =SUM(J4:L4) -> 22 | U4: =(E$4-E4)/E$4*100 -> 0 | V4: =IF(U4>90,90,0) -> 0 | W4: =(I$4-I4)/I$4*100 -> 0 | X4: =IF(W4>0,W4,0) -> 0 | Y4: =IF(X4>90,90,0) -> 0 | Z4: 0 | AA4: =F4 -> 2.178 | AB4: =G4 -> 0 | AC4: 0
A5: 1 | B5: 66.0874 | C5: 21.8112 | D5: 13.896 | E5: =SUM(B5:D5) -> 101.7946 | F5: 0.5756 | G5: 0.7373 | H5: 0.5467 | I5: =SUM(F5:H5) -> 1.8596 | J5: 5.814141414 | K5: 7.447474747 | L5: 5.522222222 | M5: =SUM(J5:L5) -> 18.78383838 | O5: Accumulated flux to the aquifer (g/m2) | U5: =(E$4-E5)/E$4*100 -> 37.39885196 | V5: =IF(U5>90,90,0) -> 0 | W5: =(I$4-I5)/I$4*100 -> 14.61891644 | X5: =IF(W5>0,W5,0) -> 14.61891644 | Y5: =IF(X5>90,90,0) -> 0 | Z5: 1 | AA5: =AA4+F5*($A5-$A4) -> 2.7536 | AB5: =AB4+G5*($A5-$A4) -> 0.7373 | AC5: 0.5467
A6: 2 | B6: 42.4461 | C6: 12.3887 | D6: 8.016 | E6: 62.8508 | F6: 0.244 | G6: 0.4063 | H6: 0.4211 | I6: 1.0714 | J6: 2.464646465 | K6: 4.104040404 | L6: 4.253535354 | M6: 10.82222222 | O6: TCE | P6: =AA59 -> 3.147048828 | U6: 61.34832069 | V6: 0 | W6: 50.80808081 | X6: 50.80808081 | Y6: 0 | Z6: 2 | AA6: =AA5+F6*($A6-$A5) -> 2.9976 | AB6: 1.1436 | AC6: 0.9678
A7: 3 | B7: 27.704 | C7: 7.1824 | D7: 3.5429 | E7: 38.4293 | F7: 0.0848 | G7: 0.1433 | H7: 0.1333 | I7: 0.3614 | J7: 0.8565656566 | K7: 1.447474747 | L7: 1.346464646 | M7: 3.650505051 | O7: DCE | P7: =AB59 -> 1.392962289 | U7: 76.36693598 | V7: 0 | W7: 83.40679522 | X7: 83.40679522 | Y7: 0 | Z7: 3 | AA7: 3.0824 | AB7: 1.2869 | AC7: 1.1011
A8: 4 | B8: 18.4258 | C8: 4.3314 | D8: 1.6481 | E8: 24.4053 | F8: 0.0307 | G8: 0.0504 | H8: 0.0348 | I8: 0.1159 | J8: 0.3101010101 | K8: 0.5090909091 | L8: 0.3515151515 | M8: 1.170707071 | O8: VC | P8: =AC59 -> 1.16140387 | U8: 84.9913473 | V8: 0 | W8: 94.67860422 | X8: 94.67860422 | Y8: 90 | Z8: 4 | AA8: 3.1131 | AB8: 1.3373 | AC8: 1.1359
A9: 5 | B9: 12.3422 | C9: 2.647 | D9: 0.8003 | E9: 15.7895 | F9: 0.0142 | G9: 0.0234 | H9: 0.0126 | I9: 0.0502 | J9: 0.1434343434 | K9: 0.2363636364 | L9: 0.1272727273 | M9: 0.5070707071 | O9: Total | P9: =SUM(P6:P8) -> 5.701414988 | U9: 90.28985008 | V9: 90 | W9: 97.69513315 | X9: 97.69513315 | Y9: 90 | Z9: 5 | AA9: 3.1273 | AB9: 1.3607 | AC9: 1.1485
A10: 6 | B10: 8.2759 | C10: 1.6284 | D10: 0.4019 | E10: 10.3062 | F10: 0.0076 | G10: 0.0126 | H10: 0.0057 | I10: 0.0259 | J10: 0.07676767677 | K10: 0.1272727273 | L10: 0.05757575758 | M10: 0.2616161616 | U10: 93.66194325 | V10: 90 | W10: 98.81083563 | X10: 98.81083563 | Y10: 90 | Z10: 6 | AA10: 3.1349 | AB10: 1.3733 | AC10: 1.1542
A11: 7 | B11: 5.5615 | C11: 1.0104 | D11: 0.21 | E11: 6.7819 | F11: 0.0045 | G11: 0.0073 | H11: 0.0029 | I11: 0.0147 | J11: 0.04545454545 | K11: 0.07373737374 | L11: 0.02929292929 | M11: 0.1484848485 | U11: 95.82930012 | V11: 90 | W11: 99.32506887 | X11: 99.32506887 | Y11: 90 | Z11: 7 | AA11: 3.1394 | AB11: 1.3806 | AC11: 1.1571
A12: 8 | B12: 3.7444 | C12: 0.6325 | D12: 0.1129 | E12: 4.4898 | F12: 0.0027 | G12: 0.0045 | H12: 0.0017 | I12: 0.0089 | J12: 0.02727272727 | K12: 0.04545454545 | L12: 0.01717171717 | M12: 0.0898989899 | U12: 97.23888463 | V12: 90 | W12: 99.59136823 | X12: 99.59136823 | Y12: 90 | Z12: 8 | AA12: 3.1421 | AB12: 1.3851 | AC12: 1.1588
A13: 9 | B13: 2.5922 | C13: 0.4133 | D13: 0.0677 | E13: 3.0732 | F13: 0.0018 | G13: 0.0029 | H13: 0.001 | I13: 0.0057 | J13: 0.01818181818 | K13: 0.02929292929 | L13: 0.0101010101 | M13: 0.05757575758 | U13: 98.11005841 | V13: 90 | W13: 99.73829201 | X13: 99.73829201 | Y13: 90 | Z13: 9 | AA13: 3.1439 | AB13: 1.388 | AC13: 1.1598
A14: 10 | B14: 1.7954 | C14: 0.2715 | D14: 0.0403 | E14: 2.1072 | F14: 0.0012 | G14: 0.0019 | H14: 0.00065534 | I14: 0.00375534 | J14: 0.01212121212 | K14: 0.01919191919 | L14: 0.00661959596 | M14: 0.03793272727 | U14: 98.70412439 | V14: 90 | W14: 99.82757851 | X14: 99.82757851 | Y14: 90 | Z14: 10 | AA14: 3.1451 | AB14: 1.3899 | AC14: 1.16045534
A15: 12 | B15: 0.8628 | C15: 0.1195 | D15: 0.0098 | E15: 0.9921 | F15: 0.00052453 | G15: 0.0008304 | H15: 0.00028066 | I15: 0.00163559 | J15: 0.005298282828 | K15: 0.008387878788 | L15: 0.002834949495 | M15: 0.01652111111 | U15: 99.38988317 | V15: 90 | W15: 99.92490404 | X15: 99.92490404 | Y15: 90 | Z15: 12 | AA15: 3.14614906 | AB15: 1.3915608 | AC15: 1.16101666
A16: 14 | B16: 0.4145 | C16: 0.0536 | D16: 0 | E16: 0.4681 | F16: 0.00023919 | G16: 0.00037493 | H16: 0.00012287 | I16: 0.00073699 | J16: 0.002416060606 | K16: 0.003787171717 | L16: 0.001241111111 | M16: 0.007444343434 | U16: 99.71213014 | V16: 90 | W16: 99.96616208 | X16: 99.96616208 | Y16: 90 | Z16: 14 | AA16: 3.14662744 | AB16: 1.39231066 | AC16: 1.1612624
A17: 16 | B17: 0.2004 | C17: 0.0247 | D17: 0 | E17: 0.2251 | F17: 0.00011155 | G17: 0.00017362 | H17: 4.6879e-05 | I17: 0.000332049 | J17: 0.001126767677 | K17: 0.001753737374 | L17: 0.0004735252525 | M17: 0.003354030303 | U17: 99.8615691 | V17: 90 | W17: 99.98475441 | X17: 99.98475441 | Y17: 90 | Z17: 16 | AA17: 3.14685054 | AB17: 1.3926579 | AC17: 1.161356158
A18: 18 | B18: 0.096 | C18: 0.0112 | D18: 0 | E18: 0.1072 | F18: 5.2033e-05 | G18: 8.0713e-05 | H18: 1.7963e-05 | I18: 0.000150709 | J18: 0.0005255858586 | K18: 0.0008152828283 | L18: 0.0001814444444 | M18: 0.001522313131 | U18: 99.93407467 | V18: 90 | W18: 99.99308039 | X18: 99.99308039 | Y18: 90 | Z18: 18 | AA18: 3.146954606 | AB18: 1.392819326 | AC18: 1.161392084
A19: 20 | B19: 0.0446 | C19: 0.005 | D19: 0 | E19: 0.0496 | F19: 2.3858e-05 | G19: 3.6903e-05 | H19: 4.471e-06 | I19: 6.5232e-05 | J19: 0.000240989899 | K19: 0.0003727575758 | L19: 4.516161616e-05 | M19: 0.0006589090909 | U19: 99.96949723 | V19: 90 | W19: 99.99700496 | X19: 99.99700496 | Y19: 90 | Z19: 20 | AA19: 3.147002322 | AB19: 1.392893132 | AC19: 1.161401026
A20: 22 | B20: 0.0214 | C20: 0.0023 | D20: 0 | E20: 0.0237 | F20: 1.1542e-05 | G20: 1.7831e-05 | H20: 1.4222e-06 | I20: 3.07952e-05 | J20: 0.0001165858586 | K20: 0.0001801111111 | L20: 1.436565657e-05 | M20: 0.0003110626263 | U20: 99.98542509 | V20: 90 | W20: 99.99858608 | X20: 99.99858608 | Y20: 90 | Z20: 22 | AA20: 3.147025406 | AB20: 1.392928794 | AC20: 1.16140387
A21: 24 | B21: 0.0108 | C21: 0.0011 | D21: 0 | E21: 0.0119 | F21: 6.0189e-06 | G21: 9.281e-06 | H21: 0 | I21: 1.52999e-05 | J21: 6.07969697e-05 | K21: 9.374747475e-05 | L21: 0 | M21: 0.0001545444444 | U21: 99.9926818 | V21: 90 | W21: 99.99929753 | X21: 99.99929753 | Y21: 90 | Z21: 24 | AA21: 3.147037444 | AB21: 1.392947356 | AC21: 1.16140387
A22: 26 | B22: 0.0053 | C22: 0.00046617 | D22: 0 | E22: 0.00576617 | F22: 3.2026e-06 | G22: 4.888e-06 | H22: 0 | I22: 8.0906e-06 | J22: 3.234949495e-05 | K22: 4.937373737e-05 | L22: 0 | M22: 8.172323232e-05 | U22: 99.99645395 | V22: 90 | W22: 99.99962853 | X22: 99.99962853 | Y22: 90 | Z22: 26 | AA22: =AA21+F22*($A22-$A21) -> 3.147043849 | AB22: 1.392957132 | AC22: 1.16140387
A23: 28 | B23: 0.0023 | C23: 0.00014295 | D23: 0 | E23: 0.00244295 | F23: 1.6676e-06 | G23: 2.3462e-06 | H23: 0 | I23: 4.0138e-06 | J23: 1.684444444e-05 | K23: 2.36989899e-05 | L23: 0 | M23: 4.054343434e-05 | U23: 99.99849765 | V23: 90 | W23: 99.99981571 | X23: 99.99981571 | Y23: 90 | Z23: 28 | AA23: 3.147047184 | AB23: 1.392961824 | AC23: 1.16140387
A24: 30 | B24: 0.00073845 | C24: 0 | D24: 0 | E24: 0.00073845 | F24: 8.1318e-07 | G24: 2.3255e-07 | H24: 0 | I24: 1.04573e-06 | J24: 8.213939394e-06 | K24: 2.348989899e-06 | L24: 0 | M24: 1.056292929e-05 | U24: 99.99954587 | V24: 90 | W24: 99.99995199 | X24: 99.99995199 | Y24: 90 | Z24: 30 | AA24: 3.147048811 | AB24: 1.392962289 | AC24: 1.16140387
A25: 32 | B25: 6.7825e-05 | C25: 0 | D25: 0 | E25: 6.7825e-05 | F25: 8.8234e-09 | G25: 0 | H25: 0 | I25: 8.8234e-09 | J25: 8.912525253e-08 | K25: 0 | L25: 0 | M25: 8.912525253e-08 | U25: 99.99995829 | V25: 90 | W25: 99.99999959 | X25: 99.99999959 | Y25: 90 | Z25: 32 | AA25: 3.147048828 | AB25: 1.392962289 | AC25: 1.16140387
A26: 34 | B26: 0 | C26: 0 | D26: 0 | E26: 0 | F26: 0 | G26: 0 | H26: 0 | I26: 0 | J26: 0 | K26: 0 | L26: 0 | M26: 0 | U26: 100 | V26: 90 | W26: 100 | X26: 100 | Y26: 90 | Z26: 34 | AA26: 3.147048828 | AB26: 1.392962289 | AC26: 1.16140387
A27: 36 | B27: 0 | C27: 0 | D27: 0 | E27: 0 | F27: 0 | G27: 0 | H27: 0 | I27: 0 | J27: 0 | K27: 0 | L27: 0 | M27: 0 | U27: 100 | V27: 90 | W27: 100 | X27: 100 | Y27: 90 | Z27: 36 | AA27: 3.147048828 | AB27: 1.392962289 | AC27: 1.16140387
A28: 38 | B28: 0 | C28: 0 | D28: 0 | E28: 0 | F28: 0 | G28: 0 | H28: 0 | I28: 0 | J28: 0 | K28: 0 | L28: 0 | M28: 0 | U28: 100 | V28: 90 | W28: 100 | X28: 100 | Y28: 90 | Z28: 38 | AA28: 3.147048828 | AB28: 1.392962289 | AC28: 1.16140387
A29: 40 | B29: 0 | C29: 0 | D29: 0 | E29: 0 | F29: 0 | G29: 0 | H29: 0 | I29: 0 | J29: 0 | K29: 0 | L29: 0 | M29: 0 | U29: 100 | V29: 90 | W29: 100 | X29: 100 | Y29: 90 | Z29: 40 | AA29: 3.147048828 | AB29: 1.392962289 | AC29: 1.16140387
A30: 42 | B30: 0 | C30: 0 | D30: 0 | E30: 0 | F30: 0 | G30: 0 | H30: 0 | I30: 0 | J30: 0 | K30: 0 | L30: 0 | M30: 0 | U30: 100 | V30: 90 | W30: 100 | X30: 100 | Y30: 90 | Z30: 42 | AA30: 3.147048828 | AB30: 1.392962289 | AC30: 1.16140387
A31: 44 | B31: 0 | C31: 0 | D31: 0 | E31: 0 | F31: 0 | G31: 0 | H31: 0 | I31: 0 | J31: 0 | K31: 0 | L31: 0 | M31: 0 | U31: 100 | V31: 90 | W31: 100 | X31: 100 | Y31: 90 | Z31: 44 | AA31: 3.147048828 | AB31: 1.392962289 | AC31: 1.16140387
A32: 46 | B32: 0 | C32: 0 | D32: 0 | E32: 0 | F32: 0 | G32: 0 | H32: 0 | I32: 0 | J32: 0 | K32: 0 | L32: 0 | M32: 0 | U32: 100 | V32: 90 | W32: 100 | X32: 100 | Y32: 90 | Z32: 46 | AA32: 3.147048828 | AB32: 1.392962289 | AC32: 1.16140387
A33: 48 | B33: 0 | C33: 0 | D33: 0 | E33: 0 | F33: 0 | G33: 0 | H33: 0 | I33: 0 | J33: 0 | K33: 0 | L33: 0 | M33: 0 | U33: 100 | V33: 90 | W33: 100 | X33: 100 | Y33: 90 | Z33: 48 | AA33: 3.147048828 | AB33: 1.392962289 | AC33: 1.16140387
A34: 50 | B34: 0 | C34: 0 | D34: 0 | E34: 0 | F34: 0 | G34: 0 | H34: 0 | I34: 0 | J34: 0 | K34: 0 | L34: 0 | M34: 0 | U34: 100 | V34: 90 | W34: 100 | X34: 100 | Y34: 90 | Z34: 50 | AA34: 3.147048828 | AB34: 1.392962289 | AC34: 1.16140387
A35: 52 | B35: 0 | C35: 0 | D35: 0 | E35: 0 | F35: 0 | G35: 0 | H35: 0 | I35: 0 | J35: 0 | K35: 0 | L35: 0 | M35: 0 | U35: 100 | V35: 90 | W35: 100 | X35: 100 | Y35: 90 | Z35: 52 | AA35: 3.147048828 | AB35: 1.392962289 | AC35: 1.16140387
A36: 54 | B36: 0 | C36: 0 | D36: 0 | E36: 0 | F36: 0 | G36: 0 | H36: 0 | I36: 0 | J36: 0 | K36: 0 | L36: 0 | M36: 0 | U36: 100 | V36: 90 | W36: 100 | X36: 100 | Y36: 90 | Z36: 54 | AA36: 3.147048828 | AB36: 1.392962289 | AC36: 1.16140387
A37: 56 | B37: 0 | C37: 0 | D37: 0 | E37: 0 | F37: 0 | G37: 0 | H37: 0 | I37: 0 | J37: 0 | K37: 0 | L37: 0 | M37: 0 | U37: 100 | V37: 90 | W37: 100 | X37: 100 | Y37: 90 | Z37: 56 | AA37: 3.147048828 | AB37: 1.392962289 | AC37: 1.16140387
A38: 58 | B38: 0 | C38: 0 | D38: 0 | E38: 0 | F38: 0 | G38: 0 | H38: 0 | I38: 0 | J38: 0 | K38: 0 | L38: 0 | M38: 0 | U38: 100 | V38: 90 | W38: 100 | X38: 100 | Y38: 90 | Z38: 58 | AA38: =AA37+F38*($A38-$A37) -> 3.147048828 | AB38: 1.392962289 | AC38: 1.16140387
A39: 60 | B39: 0 | C39: 0 | D39: 0 | E39: 0 | F39: 0 | G39: 0 | H39: 0 | I39: 0 | J39: 0 | K39: 0 | L39: 0 | M39: 0 | U39: 100 | V39: 90 | W39: 100 | X39: 100 | Y39: 90 | Z39: 60 | AA39: 3.147048828 | AB39: 1.392962289 | AC39: 1.16140387
A40: 62 | B40: 0 | C40: 0 | D40: 0 | E40: 0 | F40: 0 | G40: 0 | H40: 0 | I40: 0 | J40: 0 | K40: 0 | L40: 0 | M40: 0 | U40: 100 | V40: 90 | W40: 100 | X40: 100 | Y40: 90 | Z40: 62 | AA40: 3.147048828 | AB40: 1.392962289 | AC40: 1.16140387
A41: 64 | B41: 0 | C41: 0 | D41: 0 | E41: 0 | F41: 0 | G41: 0 | H41: 0 | I41: 0 | J41: 0 | K41: 0 | L41: 0 | M41: 0 | U41: 100 | V41: 90 | W41: 100 | X41: 100 | Y41: 90 | Z41: 64 | AA41: 3.147048828 | AB41: 1.392962289 | AC41: 1.16140387
A42: 66 | B42: 0 | C42: 0 | D42: 0 | E42: 0 | F42: 0 | G42: 0 | H42: 0 | I42: 0 | J42: 0 | K42: 0 | L42: 0 | M42: 0 | U42: 100 | V42: 90 | W42: 100 | X42: 100 | Y42: 90 | Z42: 66 | AA42: 3.147048828 | AB42: 1.392962289 | AC42: 1.16140387
A43: 68 | B43: 0 | C43: 0 | D43: 0 | E43: 0 | F43: 0 | G43: 0 | H43: 0 | I43: 0 | J43: 0 | K43: 0 | L43: 0 | M43: 0 | U43: 100 | V43: 90 | W43: 100 | X43: 100 | Y43: 90 | Z43: 68 | AA43: 3.147048828 | AB43: 1.392962289 | AC43: 1.16140387
A44: 70 | B44: 0 | C44: 0 | D44: 0 | E44: 0 | F44: 0 | G44: 0 | H44: 0 | I44: 0 | J44: 0 | K44: 0 | L44: 0 | M44: 0 | U44: 100 | V44: 90 | W44: 100 | X44: 100 | Y44: 90 | Z44: 70 | AA44: 3.147048828 | AB44: 1.392962289 | AC44: 1.16140387
A45: 72 | B45: 0 | C45: 0 | D45: 0 | E45: 0 | F45: 0 | G45: 0 | H45: 0 | I45: 0 | J45: 0 | K45: 0 | L45: 0 | M45: 0 | U45: 100 | V45: 90 | W45: 100 | X45: 100 | Y45: 90 | Z45: 72 | AA45: 3.147048828 | AB45: 1.392962289 | AC45: 1.16140387
A46: 74 | B46: 0 | C46: 0 | D46: 0 | E46: 0 | F46: 0 | G46: 0 | H46: 0 | I46: 0 | J46: 0 | K46: 0 | L46: 0 | M46: 0 | U46: 100 | V46: 90 | W46: 100 | X46: 100 | Y46: 90 | Z46: 74 | AA46: 3.147048828 | AB46: 1.392962289 | AC46: 1.16140387
A47: 76 | B47: 0 | C47: 0 | D47: 0 | E47: 0 | F47: 0 | G47: 0 | H47: 0 | I47: 0 | J47: 0 | K47: 0 | L47: 0 | M47: 0 | U47: 100 | V47: 90 | W47: 100 | X47: 100 | Y47: 90 | Z47: 76 | AA47: 3.147048828 | AB47: 1.392962289 | AC47: 1.16140387
A48: 78 | B48: 0 | C48: 0 | D48: 0 | E48: 0 | F48: 0 | G48: 0 | H48: 0 | I48: 0 | J48: 0 | K48: 0 | L48: 0 | M48: 0 | U48: 100 | V48: 90 | W48: 100 | X48: 100 | Y48: 90 | Z48: 78 | AA48: 3.147048828 | AB48: 1.392962289 | AC48: 1.16140387
A49: 80 | B49: 0 | C49: 0 | D49: 0 | E49: 0 | F49: 0 | G49: 0 | H49: 0 | I49: 0 | J49: 0 | K49: 0 | L49: 0 | M49: 0 | U49: 100 | V49: 90 | W49: 100 | X49: 100 | Y49: 90 | Z49: 80 | AA49: 3.147048828 | AB49: 1.392962289 | AC49: 1.16140387
A50: 82 | B50: 0 | C50: 0 | D50: 0 | E50: 0 | F50: 0 | G50: 0 | H50: 0 | I50: 0 | J50: 0 | K50: 0 | L50: 0 | M50: 0 | U50: 100 | V50: 90 | W50: 100 | X50: 100 | Y50: 90 | Z50: 82 | AA50: 3.147048828 | AB50: 1.392962289 | AC50: 1.16140387
A51: 84 | B51: 0 | C51: 0 | D51: 0 | E51: 0 | F51: 0 | G51: 0 | H51: 0 | I51: 0 | J51: 0 | K51: 0 | L51: 0 | M51: 0 | U51: 100 | V51: 90 | W51: 100 | X51: 100 | Y51: 90 | Z51: 84 | AA51: 3.147048828 | AB51: 1.392962289 | AC51: 1.16140387
A52: 86 | B52: 0 | C52: 0 | D52: 0 | E52: 0 | F52: 0 | G52: 0 | H52: 0 | I52: 0 | J52: 0 | K52: 0 | L52: 0 | M52: 0 | U52: 100 | V52: 90 | W52: 100 | X52: 100 | Y52: 90 | Z52: 86 | AA52: 3.147048828 | AB52: 1.392962289 | AC52: 1.16140387
A53: 88 | B53: 0 | C53: 0 | D53: 0 | E53: 0 | F53: 0 | G53: 0 | H53: 0 | I53: 0 | J53: 0 | K53: 0 | L53: 0 | M53: 0 | U53: 100 | V53: 90 | W53: 100 | X53: 100 | Y53: 90 | Z53: 88 | AA53: 3.147048828 | AB53: 1.392962289 | AC53: 1.16140387
A54: 90 | B54: 0 | C54: 0 | D54: 0 | E54: 0 | F54: 0 | G54: 0 | H54: 0 | I54: 0 | J54: 0 | K54: 0 | L54: 0 | M54: 0 | U54: 100 | V54: 90 | W54: 100 | X54: 100 | Y54: 90 | Z54: 90 | AA54: =AA53+F54*($A54-$A53) -> 3.147048828 | AB54: 1.392962289 | AC54: 1.16140387
A55: 92 | B55: 0 | C55: 0 | D55: 0 | E55: 0 | F55: 0 | G55: 0 | H55: 0 | I55: 0 | J55: 0 | K55: 0 | L55: 0 | M55: 0 | U55: 100 | V55: 90 | W55: 100 | X55: 100 | Y55: 90 | Z55: 92 | AA55: 3.147048828 | AB55: 1.392962289 | AC55: 1.16140387
A56: 94 | B56: 0 | C56: 0 | D56: 0 | E56: 0 | F56: 0 | G56: 0 | H56: 0 | I56: 0 | J56: 0 | K56: 0 | L56: 0 | M56: 0 | U56: 100 | V56: 90 | W56: 100 | X56: 100 | Y56: 90 | Z56: 94 | AA56: 3.147048828 | AB56: 1.392962289 | AC56: 1.16140387
A57: 96 | B57: 0 | C57: 0 | D57: 0 | E57: 0 | F57: 0 | G57: 0 | H57: 0 | I57: 0 | J57: 0 | K57: 0 | L57: 0 | M57: 0 | U57: 100 | V57: 90 | W57: 100 | X57: 100 | Y57: 90 | Z57: 96 | AA57: 3.147048828 | AB57: 1.392962289 | AC57: 1.16140387
A58: 98 | B58: 0 | C58: 0 | D58: 0 | E58: 0 | F58: 0 | G58: 0 | H58: 0 | I58: 0 | J58: 0 | K58: 0 | L58: 0 | M58: 0 | U58: 100 | V58: 90 | W58: 100 | X58: 100 | Y58: 90 | Z58: 98 | AA58: 3.147048828 | AB58: 1.392962289 | AC58: 1.16140387
A59: 100 | B59: 0 | C59: 0 | D59: 0 | E59: 0 | F59: 0 | G59: 0 | H59: 0 | I59: 0 | J59: 0 | K59: 0 | L59: 0 | M59: 0 | U59: 100 | V59: 90 | W59: 100 | X59: 100 | Y59: 90 | Z59: 100 | AA59: 3.147048828 | AB59: 1.392962289 | AC59: 1.16140387

Sheet sim6 (hidden)
B1: sim6 | O1: Remediation time (>90% mass removal or flux reduction)
B2: mass (g/m2) | F2: flux (g/y/m2) | J2: Conc output (mg/L) | O2: Mass | P2: =VLOOKUP(90,V4:Z59,5,FALSE) -> 2 | AA2: acc flux (g/m2)
A3: Time | B3: TCE | C3: DCE | D3: VC | E3: Total | F3: TCE | G3: DCE | H3: VC | I3: Total | J3: TCE | K3: DCE | L3: VC | M3: Total | O3: Flux | P3: =VLOOKUP(90,Y4:Z59,2,FALSE) -> 2 | U3: mass removal (%) | V3: to find 90% | W3: flux reduction (%) | Y3: to find 90% | Z3: Time | AA3: TCE | AB3: DCE | AC3: VC
A4: 0 | B4: 162.6073 | C4: 0 | D4: 0 | E4: =SUM(B4:D4) -> 162.6073 | F4: 2.178 | G4: 0 | H4: 0 | I4: =SUM(F4:H4) -> 2.178 | J4: 22 | K4: 0 | L4: 0 | M4: =SUM(J4:L4) -> 22 | U4: =(E$4-E4)/E$4*100 -> 0 | V4: =IF(U4>90,90,0) -> 0 | W4: =(I$4-I4)/I$4*100 -> 0 | X4: =IF(W4>0,W4,0) -> 0 | Y4: =IF(X4>90,90,0) -> 0 | Z4: 0 | AA4: =F4 -> 2.178 | AB4: =G4 -> 0 | AC4: 0
A5: 1 | B5: 0.3059 | C5: 13.1026 | D5: 21.7179 | E5: =SUM(B5:D5) -> 35.1264 | F5: 0.0044 | G5: 0.2928 | H5: 0.7485 | I5: =SUM(F5:H5) -> 1.0457 | J5: 0.04444444444 | K5: 2.957575758 | L5: 7.560606061 | M5: =SUM(J5:L5) -> 10.56262626 | O5: Accumulated flux to the aquifer (g/m2) | U5: =(E$4-E5)/E$4*100 -> 78.3980178 | V5: =IF(U5>90,90,0) -> 0 | W5: =(I$4-I5)/I$4*100 -> 51.98806244 | X5: =IF(W5>0,W5,0) -> 51.98806244 | Y5: =IF(X5>90,90,0) -> 0 | Z5: 1 | AA5: =AA4+F5*($A5-$A4) -> 2.1824 | AB5: =AB4+G5*($A5-$A4) -> 0.2928 | AC5: 0.7485
A6: 2 | B6: 0 | C6: 0 | D6: 0 | E6: 0 | F6: 0 | G6: 0 | H6: 0 | I6: 0 | J6: 0 | K6: 0 | L6: 0 | M6: 0 | O6: TCE | P6: =AA59 -> 2.1824 | U6: 100 | V6: 90 | W6: 100 | X6: 100 | Y6: 90 | Z6: 2 | AA6: =AA5+F6*($A6-$A5) -> 2.1824 | AB6: 0.2928 | AC6: 0.7485
A7: 3 | B7: 0 | C7: 0 | D7: 0 | E7: 0 | F7: 0 | G7: 0 | H7: 0 | I7: 0 | J7: 0 | K7: 0 | L7: 0 | M7: 0 | O7: DCE | P7: =AB59 -> 0.2928 | U7: 100 | V7: 90 | W7: 100 | X7: 100 | Y7: 90 | Z7: 3 | AA7: 2.1824 | AB7: 0.2928 | AC7: 0.7485
A8: 4 | B8: 0 | C8: 0 | D8: 0 | E8: 0 | F8: 0 | G8: 0 | H8: 0 | I8: 0 | J8: 0 | K8: 0 | L8: 0 | M8: 0 | O8: VC | P8: =AC59 -> 0.7485 | U8: 100 | V8: 90 | W8: 100 | X8: 100 | Y8: 90 | Z8: 4 | AA8: 2.1824 | AB8: 0.2928 | AC8: 0.7485
A9: 5 | B9: 0 | C9: 0 | D9: 0 | E9: 0 | F9: 0 | G9: 0 | H9: 0 | I9: 0 | J9: 0 | K9: 0 | L9: 0 | M9: 0 | O9: Total | P9: =SUM(P6:P8) -> 3.2237 | U9: 100 | V9: 90 | W9: 100 | X9: 100 | Y9: 90 | Z9: 5 | AA9: 2.1824 | AB9: 0.2928 | AC9: 0.7485
A10: 6 | B10: 0 | C10: 0 | D10: 0 | E10: 0 | F10: 0 | G10: 0 | H10: 0 | I10: 0 | J10: 0 | K10: 0 | L10: 0 | M10: 0 | U10: 100 | V10: 90 | W10: 100 | X10: 100 | Y10: 90 | Z10: 6 | AA10: 2.1824 | AB10: 0.2928 | AC10: 0.7485
A11: 7 | B11: 0 | C11: 0 | D11: 0 | E11: 0 | F11: 0 | G11: 0 | H11: 0 | I11: 0 | J11: 0 | K11: 0 | L11: 0 | M11: 0 | U11: 100 | V11: 90 | W11: 100 | X11: 100 | Y11: 90 | Z11: 7 | AA11: 2.1824 | AB11: 0.2928 | AC11: 0.7485
A12: 8 | B12: 0 | C12: 0 | D12: 0 | E12: 0 | F12: 0 | G12: 0 | H12: 0 | I12: 0 | J12: 0 | K12: 0 | L12: 0 | M12: 0 | U12: 100 | V12: 90 | W12: 100 | X12: 100 | Y12: 90 | Z12: 8 | AA12: 2.1824 | AB12: 0.2928 | AC12: 0.7485
A13: 9 | B13: 0 | C13: 0 | D13: 0 | E13: 0 | F13: 0 | G13: 0 | H13: 0 | I13: 0 | J13: 0 | K13: 0 | L13: 0 | M13: 0 | U13: 100 | V13: 90 | W13: 100 | X13: 100 | Y13: 90 | Z13: 9 | AA13: 2.1824 | AB13: 0.2928 | AC13: 0.7485
A14: 10 | B14: 0 | C14: 0 | D14: 0 | E14: 0 | F14: 0 | G14: 0 | H14: 0 | I14: 0 | J14: 0 | K14: 0 | L14: 0 | M14: 0 | U14: 100 | V14: 90 | W14: 100 | X14: 100 | Y14: 90 | Z14: 10 | AA14: 2.1824 | AB14: 0.2928 | AC14: 0.7485
A15: 12 | B15: 0 | C15: 0 | D15: 0 | E15: 0 | F15: 0 | G15: 0 | H15: 0 | I15: 0 | J15: 0 | K15: 0 | L15: 0 | M15: 0 | U15: 100 | V15: 90 | W15: 100 | X15: 100 | Y15: 90 | Z15: 12 | AA15: 2.1824 | AB15: 0.2928 | AC15: 0.7485
A16: 14 | B16: 0 | C16: 0 | D16: 0 | E16: 0 | F16: 0 | G16: 0 | H16: 0 | I16: 0 | J16: 0 | K16: 0 | L16: 0 | M16: 0 | U16: 100 | V16: 90 | W16: 100 | X16: 100 | Y16: 90 | Z16: 14 | AA16: 2.1824 | AB16: 0.2928 | AC16: 0.7485
A17: 16 | B17: 0 | C17: 0 | D17: 0 | E17: 0 | F17: 0 | G17: 0 | H17: 0 | I17: 0 | J17: 0 | K17: 0 | L17: 0 | M17: 0 | U17: 100 | V17: 90 | W17: 100 | X17: 100 | Y17: 90 | Z17: 16 | AA17: 2.1824 | AB17: 0.2928 | AC17: 0.7485
A18: 18 | B18: 0 | C18: 0 | D18: 0 | E18: 0 | F18: 0 | G18: 0 | H18: 0 | I18: 0 | J18: 0 | K18: 0 | L18: 0 | M18: 0 | U18: 100 | V18: 90 | W18: 100 | X18: 100 | Y18: 90 | Z18: 18 | AA18: 2.1824 | AB18: 0.2928 | AC18: 0.7485
A19: 20 | B19: 0 | C19: 0 | D19: 0 | E19: 0 | F19: 0 | G19: 0 | H19: 0 | I19: 0 | J19: 0 | K19: 0 | L19: 0 | M19: 0 | U19: 100 | V19: 90 | W19: 100 | X19: 100 | Y19: 90 | Z19: 20 | AA19: 2.1824 | AB19: 0.2928 | AC19: 0.7485
A20: 22 | B20: 0 | C20: 0 | D20: 0 | E20: 0 | F20: 0 | G20: 0 | H20: 0 | I20: 0 | J20: 0 | K20: 0 | L20: 0 | M20: 0 | U20: 100 | V20: 90 | W20: 100 | X20: 100 | Y20: 90 | Z20: 22 | AA20: 2.1824 | AB20: 0.2928 | AC20: 0.7485
A21: 24 | B21: 0 | C21: 0 | D21: 0 | E21: 0 | F21: 0 | G21: 0 | H21: 0 | I21: 0 | J21: 0 | K21: 0 | L21: 0 | M21: 0 | U21: 100 | V21: 90 | W21: 100 | X21: 100 | Y21: 90 | Z21: 24 | AA21: 2.1824 | AB21: 0.2928 | AC21: 0.7485
A22: 26 | B22: 0 | C22: 0 | D22: 0 | E22: 0 | F22: 0 | G22: 0 | H22: 0 | I22: 0 | J22: 0 | K22: 0 | L22: 0 | M22: 0 | U22: 100 | V22: 90 | W22: 100 | X22: 100 | Y22: 90 | Z22: 26 | AA22: =AA21+F22*($A22-$A21) -> 2.1824 | AB22: 0.2928 | AC22: 0.7485
A23: 28 | B23: 0 | C23: 0 | D23: 0 | E23: 0 | F23: 0 | G23: 0 | H23: 0 | I23: 0 | J23: 0 | K23: 0 | L23: 0 | M23: 0 | U23: 100 | V23: 90 | W23: 100 | X23: 100 | Y23: 90 | Z23: 28 | AA23: 2.1824 | AB23: 0.2928 | AC23: 0.7485
A24: 30 | B24: 0 | C24: 0 | D24: 0 | E24: 0 | F24: 0 | G24: 0 | H24: 0 | I24: 0 | J24: 0 | K24: 0 | L24: 0 | M24: 0 | U24: 100 | V24: 90 | W24: 100 | X24: 100 | Y24: 90 | Z24: 30 | AA24: 2.1824 | AB24: 0.2928 | AC24: 0.7485
A25: 32 | B25: 0 | C25: 0 | D25: 0 | E25: 0 | F25: 0 | G25: 0 | H25: 0 | I25: 0 | J25: 0 | K25: 0 | L25: 0 | M25: 0 | U25: 100 | V25: 90 | W25: 100 | X25: 100 | Y25: 90 | Z25: 32 | AA25: 2.1824 | AB25: 0.2928 | AC25: 0.7485
A26: 34 | B26: 0 | C26: 0 | D26: 0 | E26: 0 | F26: 0 | G26: 0 | H26: 0 | I26: 0 | J26: 0 | K26: 0 | L26: 0 | M26: 0 | U26: 100 | V26: 90 | W26: 100 | X26: 100 | Y26: 90 | Z26: 34 | AA26: 2.1824 | AB26: 0.2928 | AC26: 0.7485
A27: 36 | B27: 0 | C27: 0 | D27: 0 | E27: 0 | F27: 0 | G27: 0 | H27: 0 | I27: 0 | J27: 0 | K27: 0 | L27: 0 | M27: 0 | U27: 100 | V27: 90 | W27: 100 | X27: 100 | Y27: 90 | Z27: 36 | AA27: 2.1824 | AB27: 0.2928 | AC27: 0.7485
A28: 38 | B28: 0 | C28: 0 | D28: 0 | E28: 0 | F28: 0 | G28: 0 | H28: 0 | I28: 0 | J28: 0 | K28: 0 | L28: 0 | M28: 0 | U28: 100 | V28: 90 | W28: 100 | X28: 100 | Y28: 90 | Z28: 38 | AA28: 2.1824 | AB28: 0.2928 | AC28: 0.7485
A29: 40 | B29: 0 | C29: 0 | D29: 0 | E29: 0 | F29: 0 | G29: 0 | H29: 0 | I29: 0 | J29: 0 | K29: 0 | L29: 0 | M29: 0 | U29: 100 | V29: 90 | W29: 100 | X29: 100 | Y29: 90 | Z29: 40 | AA29: 2.1824 | AB29: 0.2928 | AC29: 0.7485
A30: 42 | B30: 0 | C30: 0 | D30: 0 | E30: 0 | F30: 0 | G30: 0 | H30: 0 | I30: 0 | J30: 0 | K30: 0 | L30: 0 | M30: 0 | U30: 100 | V30: 90 | W30: 100 | X30: 100 | Y30: 90 | Z30: 42 | AA30: 2.1824 | AB30: 0.2928 | AC30: 0.7485
A31: 44 | B31: 0 | C31: 0 | D31: 0 | E31: 0 | F31: 0 | G31: 0 | H31: 0 | I31: 0 | J31: 0 | K31: 0 | L31: 0 | M31: 0 | U31: 100 | V31: 90 | W31: 100 | X31: 100 | Y31: 90 | Z31: 44 | AA31: 2.1824 | AB31: 0.2928 | AC31: 0.7485
A32: 46 | B32: 0 | C32: 0 | D32: 0 | E32: 0 | F32: 0 | G32: 0 | H32: 0 | I32: 0 | J32: 0 | K32: 0 | L32: 0 | M32: 0 | U32: 100 | V32: 90 | W32: 100 | X32: 100 | Y32: 90 | Z32: 46 | AA32: 2.1824 | AB32: 0.2928 | AC32: 0.7485
A33: 48 | B33: 0 | C33: 0 | D33: 0 | E33: 0 | F33: 0 | G33: 0 | H33: 0 | I33: 0 | J33: 0 | K33: 0 | L33: 0 | M33: 0 | U33: 100 | V33: 90 | W33: 100 | X33: 100 | Y33: 90 | Z33: 48 | AA33: 2.1824 | AB33: 0.2928 | AC33: 0.7485
A34: 50 | B34: 0 | C34: 0 | D34: 0 | E34: 0 | F34: 0 | G34: 0 | H34: 0 | I34: 0 | J34: 0 | K34: 0 | L34: 0 | M34: 0 | U34: 100 | V34: 90 | W34: 100 | X34: 100 | Y34: 90 | Z34: 50 | AA34: 2.1824 | AB34: 0.2928 | AC34: 0.7485
A35: 52 | B35: 0 | C35: 0 | D35: 0 | E35: 0 | F35: 0 | G35: 0 | H35: 0 | I35: 0 | J35: 0 | K35: 0 | L35: 0 | M35: 0 | U35: 100 | V35: 90 | W35: 100 | X35: 100 | Y35: 90 | Z35: 52 | AA35: 2.1824 | AB35: 0.2928 | AC35: 0.7485
A36: 54 | B36: 0 | C36: 0 | D36: 0 | E36: 0 | F36: 0 | G36: 0 | H36: 0 | I36: 0 | J36: 0 | K36: 0 | L36: 0 | M36: 0 | U36: 100 | V36: 90 | W36: 100 | X36: 100 | Y36: 90 | Z36: 54 | AA36: 2.1824 | AB36: 0.2928 | AC36: 0.7485
A37: 56 | B37: 0 | C37: 0 | D37: 0 | E37: 0 | F37: 0 | G37: 0 | H37: 0 | I37: 0 | J37: 0 | K37: 0 | L37: 0 | M37: 0 | U37: 100 | V37: 90 | W37: 100 | X37: 100 | Y37: 90 | Z37: 56 | AA37: 2.1824 | AB37: 0.2928 | AC37: 0.7485
A38: 58 | B38: 0 | C38: 0 | D38: 0 | E38: 0 | F38: 0 | G38: 0 | H38: 0 | I38: 0 | J38: 0 | K38: 0 | L38: 0 | M38: 0 | U38: 100 | V38: 90 | W38: 100 | X38: 100 | Y38: 90 | Z38: 58 | AA38: =AA37+F38*($A38-$A37) -> 2.1824 | AB38: 0.2928 | AC38: 0.7485
A39: 60 | B39: 0 | C39: 0 | D39: 0 | E39: 0 | F39: 0 | G39: 0 | H39: 0 | I39: 0 | J39: 0 | K39: 0 | L39: 0 | M39: 0 | U39: 100 | V39: 90 | W39: 100 | X39: 100 | Y39: 90 | Z39: 60 | AA39: 2.1824 | AB39: 0.2928 | AC39: 0.7485
A40: 62 | B40: 0 | C40: 0 | D40: 0 | E40: 0 | F40: 0 | G40: 0 | H40: 0 | I40: 0 | J40: 0 | K40: 0 | L40: 0 | M40: 0 | U40: 100 | V40: 90 | W40: 100 | X40: 100 | Y40: 90 | Z40: 62 | AA40: 2.1824 | AB40: 0.2928 | AC40: 0.7485
A41: 64 | B41: 0 | C41: 0 | D41: 0 | E41: 0 | F41: 0 | G41: 0 | H41: 0 | I41: 0 | J41: 0 | K41: 0 | L41: 0 | M41: 0 | U41: 100 | V41: 90 | W41: 100 | X41: 100 | Y41: 90 | Z41: 64 | AA41: 2.1824 | AB41: 0.2928 | AC41: 0.7485
A42: 66 | B42: 0 | C42: 0 | D42: 0 | E42: 0 | F42: 0 | G42: 0 | H42: 0 | I42: 0 | J42: 0 | K42: 0 | L42: 0 | M42: 0 | U42: 100 | V42: 90 | W42: 100 | X42: 100 | Y42: 90 | Z42: 66 | AA42: 2.1824 | AB42: 0.2928 | AC42: 0.7485
A43: 68 | B43: 0 | C43: 0 | D43: 0 | E43: 0 | F43: 0 | G43: 0 | H43: 0 | I43: 0 | J43: 0 | K43: 0 | L43: 0 | M43: 0 | U43: 100 | V43: 90 | W43: 100 | X43: 100 | Y43: 90 | Z43: 68 | AA43: 2.1824 | AB43: 0.2928 | AC43: 0.7485
A44: 70 | B44: 0 | C44: 0 | D44: 0 | E44: 0 | F44: 0 | G44: 0 | H44: 0 | I44: 0 | J44: 0 | K44: 0 | L44: 0 | M44: 0 | U44: 100 | V44: 90 | W44: 100 | X44: 100 | Y44: 90 | Z44: 70 | AA44: 2.1824 | AB44: 0.2928 | AC44: 0.7485
A45: 72 | B45: 0 | C45: 0 | D45: 0 | E45: 0 | F45: 0 | G45: 0 | H45: 0 | I45: 0 | J45: 0 | K45: 0 | L45: 0 | M45: 0 | U45: 100 | V45: 90 | W45: 100 | X45: 100 | Y45: 90 | Z45: 72 | AA45: 2.1824 | AB45: 0.2928 | AC45: 0.7485
A46: 74 | B46: 0 | C46: 0 | D46: 0 | E46: 0 | F46: 0 | G46: 0 | H46: 0 | I46: 0 | J46: 0 | K46: 0 | L46: 0 | M46: 0 | U46: 100 | V46: 90 | W46: 100 | X46: 100 | Y46: 90 | Z46: 74 | AA46: 2.1824 | AB46: 0.2928 | AC46: 0.7485
A47: 76 | B47: 0 | C47: 0 | D47: 0 | E47: 0 | F47: 0 | G47: 0 | H47: 0 | I47: 0 | J47: 0 | K47: 0 | L47: 0 | M47: 0 | U47: 100 | V47: 90 | W47: 100 | X47: 100 | Y47: 90 | Z47: 76 | AA47: 2.1824 | AB47: 0.2928 | AC47: 0.7485
A48: 78 | B48: 0 | C48: 0 | D48: 0 | E48: 0 | F48: 0 | G48: 0 | H48: 0 | I48: 0 | J48: 0 | K48: 0 | L48: 0 | M48: 0 | U48: 100 | V48: 90 | W48: 100 | X48: 100 | Y48: 90 | Z48: 78 | AA48: 2.1824 | AB48: 0.2928 | AC48: 0.7485
A49: 80 | B49: 0 | C49: 0 | D49: 0 | E49: 0 | F49: 0 | G49: 0 | H49: 0 | I49: 0 | J49: 0 | K49: 0 | L49: 0 | M49: 0 | U49: 100 | V49: 90 | W49: 100 | X49: 100 | Y49: 90 | Z49: 80 | AA49: 2.1824 | AB49: 0.2928 | AC49: 0.7485
A50: 82 | B50: 0 | C50: 0 | D50: 0 | E50: 0 | F50: 0 | G50: 0 | H50: 0 | I50: 0 | J50: 0 | K50: 0 | L50: 0 | M50: 0 | U50: 100 | V50: 90 | W50: 100 | X50: 100 | Y50: 90 | Z50: 82 | AA50: 2.1824 | AB50: 0.2928 | AC50: 0.7485
A51: 84 | B51: 0 | C51: 0 | D51: 0 | E51: 0 | F51: 0 | G51: 0 | H51: 0 | I51: 0 | J51: 0 | K51: 0 | L51: 0 | M51: 0 | U51: 100 | V51: 90 | W51: 100 | X51: 100 | Y51: 90 | Z51: 84 | AA51: 2.1824 | AB51: 0.2928 | AC51: 0.7485
A52: 86 | B52: 0 | C52: 0 | D52: 0 | E52: 0 | F52: 0 | G52: 0 | H52: 0 | I52: 0 | J52: 0 | K52: 0 | L52: 0 | M52: 0 | U52: 100 | V52: 90 | W52: 100 | X52: 100 | Y52: 90 | Z52: 86 | AA52: 2.1824 | AB52: 0.2928 | AC52: 0.7485
A53: 88 | B53: 0 | C53: 0 | D53: 0 | E53: 0 | F53: 0 | G53: 0 | H53: 0 | I53: 0 | J53: 0 | K53: 0 | L53: 0 | M53: 0 | U53: 100 | V53: 90 | W53: 100 | X53: 100 | Y53: 90 | Z53: 88 | AA53: 2.1824 | AB53: 0.2928 | AC53: 0.7485
A54: 90 | B54: 0 | C54: 0 | D54: 0 | E54: 0 | F54: 0 | G54: 0 | H54: 0 | I54: 0 | J54: 0 | K54: 0 | L54: 0 | M54: 0 | U54: 100 | V54: 90 | W54: 100 | X54: 100 | Y54: 90 | Z54: 90 | AA54: =AA53+F54*($A54-$A53) -> 2.1824 | AB54: 0.2928 | AC54: 0.7485
A55: 92 | B55: 0 | C55: 0 | D55: 0 | E55: 0 | F55: 0 | G55: 0 | H55: 0 | I55: 0 | J55: 0 | K55: 0 | L55: 0 | M55: 0 | U55: 100 | V55: 90 | W55: 100 | X55: 100 | Y55: 90 | Z55: 92 | AA55: 2.1824 | AB55: 0.2928 | AC55: 0.7485
A56: 94 | B56: 0 | C56: 0 | D56: 0 | E56: 0 | F56: 0 | G56: 0 | H56: 0 | I56: 0 | J56: 0 | K56: 0 | L56: 0 | M56: 0 | U56: 100 | V56: 90 | W56: 100 | X56: 100 | Y56: 90 | Z56: 94 | AA56: 2.1824 | AB56: 0.2928 | AC56: 0.7485
A57: 96 | B57: 0 | C57: 0 | D57: 0 | E57: 0 | F57: 0 | G57: 0 | H57: 0 | I57: 0 | J57: 0 | K57: 0 | L57: 0 | M57: 0 | U57: 100 | V57: 90 | W57: 100 | X57: 100 | Y57: 90 | Z57: 96 | AA57: 2.1824 | AB57: 0.2928 | AC57: 0.7485
A58: 98 | B58: 0 | C58: 0 | D58: 0 | E58: 0 | F58: 0 | G58: 0 | H58: 0 | I58: 0 | J58: 0 | K58: 0 | L58: 0 | M58: 0 | U58: 100 | V58: 90 | W58: 100 | X58: 100 | Y58: 90 | Z58: 98 | AA58: 2.1824 | AB58: 0.2928 | AC58: 0.7485
A59: 100 | B59: 0 | C59: 0 | D59: 0 | E59: 0 | F59: 0 | G59: 0 | H59: 0 | I59: 0 | J59: 0 | K59: 0 | L59: 0 | M59: 0 | U59: 100 | V59: 90 | W59: 100 | X59: 100 | Y59: 90 | Z59: 100 | AA59: 2.1824 | AB59: 0.2928 | AC59: 0.7485

Sheet sim7 (hidden)
B1: sim7 | O1: Remediation time (>90% mass removal or flux reduction)
B2: mass (g/m2) | F2: flux (g/y/m2) | J2: Conc output (mg/L) | O2: Mass | P2: =VLOOKUP(90,V4:Z59,5,FALSE) -> 48 | AA2: acc flux (g/m2)
A3: Time | B3: TCE | C3: DCE | D3: VC | E3: Total | F3: TCE | G3: DCE | H3: VC | I3: Total | J3: TCE | K3: DCE | L3: VC | M3: Total | O3: Flux | P3: =VLOOKUP(90,Y4:Z59,2,FALSE) -> 42 | U3: mass removal (%) | V3: to find 90% | W3: flux reduction (%) | Y3: to find 90% | Z3: Time | AA3: TCE | AB3: DCE | AC3: VC
A4: 0 | B4: 162.5902 | C4: 0 | D4: 0 | E4: =SUM(B4:D4) -> 162.5902 | F4: 2.178 | G4: 0 | H4: 0 | I4: =SUM(F4:H4) -> 2.178 | J4: 22 | K4: 0 | L4: 0 | M4: =SUM(J4:L4) -> 22 | U4: =(E$4-E4)/E$4*100 -> 0 | V4: =IF(U4>90,90,0) -> 0 | W4: =(I$4-I4)/I$4*100 -> 0 | X4: =IF(W4>0,W4,0) -> 0 | Y4: =IF(X4>90,90,0) -> 0 | Z4: 0 | AA4: =F4 -> 2.178 | AB4: =G4 -> 0 | AC4: 0
A5: 1 | B5: 139.0212 | C5: 12.5725 | D5: 1.0782 | E5: =SUM(B5:D5) -> 152.6719 | F5: 1.8563 | G5: 0.3289 | H5: 0.0311 | I5: =SUM(F5:H5) -> 2.2163 | J5: 18.75050505 | K5: 3.322222222 | L5: 0.3141414141 | M5: =SUM(J5:L5) -> 22.38686869 | O5: Accumulated flux to the aquifer (g/m2) | U5: =(E$4-E5)/E$4*100 -> 6.10018316 | V5: =IF(U5>90,90,0) -> 0 | W5: =(I$4-I5)/I$4*100 -> -1.758494031 | X5: =IF(W5>0,W5,0) -> 0 | Y5: =IF(X5>90,90,0) -> 0 | Z5: 1 | AA5: =AA4+F5*($A5-$A4) -> 4.0343 | AB5: =AB4+G5*($A5-$A4) -> 0.3289 | AC5: 0.0311
A6: 2 | B6: 126.1345 | C6: 17.2941 | D6: 2.4336 | E6: 145.8622 | F6: 1.6619 | G6: 0.4719 | H6: 0.0758 | I6: 2.2096 | J6: 16.78686869 | K6: 4.766666667 | L6: 0.7656565657 | M6: 22.31919192 | O6: TCE | P6: =AA59 -> 21.45632108 | U6: 10.28844297 | V6: 0 | W6: -1.45087236 | X6: 0 | Y6: 0 | Z6: 2 | AA6: =AA5+F6*($A6-$A5) -> 5.6962 | AB6: 0.8008 | AC6: 0.1069
A7: 3 | B7: 115.9849 | C7: 20.085 | D7: 3.6762 | E7: 139.7461 | F7: 1.4935 | G7: 0.5535 | H7: 0.1185 | I7: 2.1655 | J7: 15.08585859 | K7: 5.590909091 | L7: 1.196969697 | M7: 21.87373737 | O7: DCE | P7: =AB59 -> 13.9502 | U7: 14.0501088 | V7: 0 | W7: 0.5739210285 | X7: 0.5739210285 | Y7: 0 | Z7: 3 | AA7: 7.1897 | AB7: 1.3543 | AC7: 0.2254
A8: 4 | B8: 107.5556 | C8: 21.7594 | D8: 4.7801 | E8: 134.0951 | F8: 1.3429 | G8: 0.5969 | H8: 0.1567 | I8: 2.0965 | J8: 13.56464646 | K8: 6.029292929 | L8: 1.582828283 | M8: 21.17676768 | O8: VC | P8: =AC59 -> 8.71269216 | U8: 17.52571803 | V8: 0 | W8: 3.741965106 | X8: 3.741965106 | Y8: 0 | Z8: 4 | AA8: 8.5326 | AB8: 1.9512 | AC8: 0.3821
A9: 5 | B9: 100.2415 | C9: 22.7996 | D9: 5.7352 | E9: 128.7763 | F9: 1.2065 | G9: 0.6153 | H9: 0.189 | I9: 2.0108 | J9: 12.18686869 | K9: 6.215151515 | L9: 1.909090909 | M9: 20.31111111 | O9: Total | P9: =SUM(P6:P8) -> 44.11921324 | U9: 20.79700991 | V9: 0 | W9: 7.676767677 | X9: 7.676767677 | Y9: 0 | Z9: 5 | AA9: 9.7391 | AB9: 2.5665 | AC9: 0.5711
A10: 6 | B10: 93.7635 | C10: 23.423 | D10: 6.5494 | E10: 123.7359 | F10: 1.0838 | G10: 0.6165 | H10: 0.2154 | I10: 1.9157 | J10: 10.94747475 | K10: 6.227272727 | L10: 2.175757576 | M10: 19.35050505 | U10: 23.89707375 | V10: 0 | W10: 12.04315886 | X10: 12.04315886 | Y10: 0 | Z10: 6 | AA10: 10.8229 | AB10: 3.183 | AC10: 0.7865
A11: 7 | B11: 87.9134 | C11: 23.783 | D11: 7.2384 | E11: 118.9348 | F11: 0.9746 | G11: 0.6068 | H11: 0.2359 | I11: 1.8173 | J11: 9.844444444 | K11: 6.129292929 | L11: 2.382828283 | M11: 18.35656566 | U11: 26.84995775 | V11: 0 | W11: 16.5610652 | X11: 16.5610652 | Y11: 0 | Z11: 7 | AA11: 11.7975 | AB11: 3.7898 | AC11: 1.0224
A12: 8 | B12: 82.5628 | C12: 23.9647 | D12: 7.8218 | E12: 114.3493 | F12: 0.8778 | G12: 0.5905 | H12: 0.2512 | I12: 1.7195 | J12: 8.866666667 | K12: 5.964646465 | L12: 2.537373737 | M12: 17.36868687 | U12: 29.67023843 | V12: 0 | W12: 21.05142332 | X12: 21.05142332 | Y12: 0 | Z12: 8 | AA12: 12.6753 | AB12: 4.3803 | AC12: 1.2736
A13: 9 | B13: 77.6338 | C13: 24.0077 | D13: 8.3217 | E13: 109.9632 | F13: 0.792 | G13: 0.5704 | H13: 0.2624 | I13: 1.6248 | J13: 8 | K13: 5.761616162 | L13: 2.650505051 | M13: 16.41212121 | U13: 32.36787949 | V13: 0 | W13: 25.39944904 | X13: 25.39944904 | Y13: 0 | Z13: 9 | AA13: 13.4673 | AB13: 4.9507 | AC13: 1.536
A14: 10 | B14: 73.0685 | C14: 23.9376 | D14: 8.7521 | E14: 105.7582 | F14: 0.7159 | G14: 0.5481 | H14: 0.2703 | I14: 1.5343 | J14: 7.231313131 | K14: 5.536363636 | L14: 2.73030303 | M14: 15.4979798 | U14: 34.95413623 | V14: 0 | W14: 29.55463728 | X14: 29.55463728 | Y14: 0 | Z14: 10 | AA14: 14.1832 | AB14: 5.4988 | AC14: 1.8063
A15: 12 | B15: 64.8597 | C15: 23.5352 | D15: 9.4366 | E15: 97.8315 | F15: 0.5879 | G15: 0.5014 | H15: 0.2796 | I15: 1.3689 | J15: 5.938383838 | K15: 5.064646465 | L15: 2.824242424 | M15: 13.82727273 | U15: 39.82939931 | V15: 0 | W15: 37.14876033 | X15: 37.14876033 | Y15: 0 | Z15: 12 | AA15: 15.359 | AB15: 6.5016 | AC15: 2.3655
A16: 14 | B16: 57.6837 | C16: 22.8618 | D16: 9.9175 | E16: 90.463 | F16: 0.4858 | G16: 0.4548 | H16: 0.2824 | I16: 1.223 | J16: 4.907070707 | K16: 4.593939394 | L16: 2.852525253 | M16: 12.35353535 | U16: 44.36134527 | V16: 0 | W16: 43.84756657 | X16: 43.84756657 | Y16: 0 | Z16: 14 | AA16: 16.3306 | AB16: 7.4112 | AC16: 2.9303
A17: 16 | B17: 51.3788 | C17: 21.9813 | D17: 10.2174 | E17: 83.5775 | F17: 0.4036 | G17: 0.4097 | H17: 0.28 | I17: 1.0933 | J17: 4.076767677 | K17: 4.138383838 | L17: 2.828282828 | M17: 11.04343434 | U17: 48.59622536 | V17: 0 | W17: 49.80257117 | X17: 49.80257117 | Y17: 0 | Z17: 16 | AA17: 17.1378 | AB17: 8.2306 | AC17: 3.4903
A18: 18 | B18: 45.8057 | C18: 20.9489 | D18: 10.3558 | E18: 77.1104 | F18: 0.3368 | G18: 0.367 | H18: 0.2733 | I18: 0.9771 | J18: 3.402020202 | K18: 3.707070707 | L18: 2.760606061 | M18: 9.86969697 | U18: 52.57377136 | V18: 0 | W18: 55.13774105 | X18: 55.13774105 | Y18: 0 | Z18: 18 | AA18: 17.8114 | AB18: 8.9646 | AC18: 4.0369
A19: 20 | B19: 40.8717 | C19: 19.806 | D19: 10.348 | E19: 71.0257 | F19: 0.2824 | G19: 0.3271 | H19: 0.2632 | I19: 0.8727 | J19: 2.852525253 | K19: 3.304040404 | L19: 2.658585859 | M19: 8.815151515 | U19: 56.31612483 | V19: 0 | W19: 59.93112948 | X19: 59.93112948 | Y19: 0 | Z19: 20 | AA19: 18.3762 | AB19: 9.6188 | AC19: 4.5633
A20: 22 | B20: 36.4806 | C20: 18.5916 | D20: 10.2098 | E20: 65.282 | F20: 0.2373 | G20: 0.2903 | H20: 0.2502 | I20: 0.7778 | J20: 2.396969697 | K20: 2.932323232 | L20: 2.527272727 | M20: 7.856565657 | U20: 59.84874857 | V20: 0 | W20: 64.28833792 | X20: 64.28833792 | Y20: 0 | Z20: 22 | AA20: 18.8508 | AB20: 10.1994 | AC20: 5.0637
A21: 24 | B21: 32.5626 | C21: 17.3355 | D21: 9.9549 | E21: 59.853 | F21: 0.1997 | G21: 0.2564 | H21: 0.235 | I21: 0.6911 | J21: 2.017171717 | K21: 2.58989899 | L21: 2.373737374 | M21: 6.980808081 | U21: 63.18781821 | V21: 0 | W21: 68.26905418 | X21: 68.26905418 | Y21: 0 | Z21: 24 | AA21: 19.2502 | AB21: 10.7122 | AC21: 5.5337
A22: 26 | B22: 29.0512 | C22: 16.0649 | D22: 9.6013 | E22: 54.7174 | F22: 0.1681 | G22: 0.2253 | H22: 0.2182 | I22: 0.6116 | J22: 1.697979798 | K22: 2.275757576 | L22: 2.204040404 | M22: 6.177777778 | U22: 66.34643416 | V22: 0 | W22: 71.91919192 | X22: 71.91919192 | Y22: 0 | Z22: 26 | AA22: =AA21+F22*($A22-$A21) -> 19.5864 | AB22: 11.1628 | AC22: 5.9701
A23: 28 | B23: 25.9052 | C23: 14.7967 | D23: 9.1647 | E23: 49.8666 | F23: 0.1416 | G23: 0.1971 | H23: 0.2003 | I23: 0.539 | J23: 1.43030303 | K23: 1.990909091 | L23: 2.023232323 | M23: 5.444444444 | U23: 69.32988581 | V23: 0 | W23: 75.25252525 | X23: 75.25252525 | Y23: 0 | Z23: 28 | AA23: 19.8696 | AB23: 11.557 | AC23: 6.3707
A24: 30 | B24: 23.0998 | C24: 13.5404 | D24: 8.654 | E24: 45.2942 | F24: 0.1195 | G24: 0.1717 | H24: 0.1815 | I24: 0.4727 | J24: 1.207070707 | K24: 1.734343434 | L24: 1.833333333 | M24: 4.774747475 | U24: 72.14210943 | V24: 0 | W24: 78.29660239 | X24: 78.29660239 | Y24: 0 | Z24: 30 | AA24: 20.1086 | AB24: 11.9004 | AC24: 6.7337
A25: 32 | B25: 20.5919 | C25: 12.3094 | D25: 8.0837 | E25: 40.985 | F25: 0.1011 | G25: 0.1488 | H25: 0.1623 | I25: 0.4122 | J25: 1.021212121 | K25: 1.503030303 | L25: 1.639393939 | M25: 4.163636364 | U25: 74.79245367 | V25: 0 | W25: 81.07438017 | X25: 81.07438017 | Y25: 0 | Z25: 32 | AA25: 20.3108 | AB25: 12.198 | AC25: 7.0583
A26: 34 | B26: 18.3375 | C26: 11.1162 | D26: 7.4731 | E26: 36.9268 | F26: 0.0854 | G26: 0.1284 | H26: 0.1431 | I26: 0.3569 | J26: 0.8626262626 | K26: 1.296969697 | L26: 1.445454545 | M26: 3.605050505 | U26: 77.28842206 | V26: 0 | W26: 83.6134068 | X26: 83.6134068 | Y26: 0 | Z26: 34 | AA26: 20.4816 | AB26: 12.4548 | AC26: 7.3445
A27: 36 | B27: 16.3107 | C27: 9.9655 | D27: 6.8268 | E27: 33.103 | F27: 0.0721 | G27: 0.1101 | H27: 0.1241 | I27: 0.3063 | J27: 0.7282828283 | K27: 1.112121212 | L27: 1.253535354 | M27: 3.093939394 | U27: 79.64022432 | V27: 0 | W27: 85.93663912 | X27: 85.93663912 | Y27: 0 | Z27: 36 | AA27: 20.6258 | AB27: 12.675 | AC27: 7.5927
A28: 38 | B28: 14.516 | C28: 8.869 | D28: 6.1471 | E28: 29.5321 | F28: 0.061 | G28: 0.0942 | H28: 0.1058 | I28: 0.261 | J28: 0.6161616162 | K28: 0.9515151515 | L28: 1.068686869 | M28: 2.636363636 | U28: 81.83648215 | V28: 0 | W28: 88.01652893 | X28: 88.01652893 | Y28: 0 | Z28: 38 | AA28: 20.7478 | AB28: 12.8634 | AC28: 7.8043
A29: 40 | B29: 12.901 | C29: 7.825 | D29: 5.4464 | E29: 26.1724 | F29: 0.0515 | G29: 0.0802 | H29: 0.0884 | I29: 0.2201 | J29: 0.5202020202 | K29: 0.8101010101 | L29: 0.8929292929 | M29: 2.223232323 | U29: 83.90284285 | V29: 0 | W29: 89.89439853 | X29: 89.89439853 | Y29: 0 | Z29: 40 | AA29: 20.8508 | AB29: 13.0238 | AC29: 7.9811
A30: 42 | B30: 11.4419 | C30: 6.8385 | D30: 4.7371 | E30: 23.0175 | F30: 0.0435 | G30: 0.0679 | H30: 0.0726 | I30: 0.184 | J30: 0.4393939394 | K30: 0.6858585859 | L30: 0.7333333333 | M30: 1.858585859 | U30: 85.8432427 | V30: 0 | W30: 91.55188246 | X30: 91.55188246 | Y30: 90 | Z30: 42 | AA30: 20.9378 | AB30: 13.1596 | AC30: 8.1263
A31: 44 | B31: 10.1319 | C31: 5.9256 | D31: 4.0316 | E31: 20.0891 | F31: 0.0366 | G31: 0.0575 | H31: 0.0587 | I31: 0.1528 | J31: 0.3696969697 | K31: 0.5808080808 | L31: 0.5929292929 | M31: 1.543434343 | U31: 87.64433527 | V31: 0 | W31: 92.98438935 | X31: 92.98438935 | Y31: 90 | Z31: 44 | AA31: 21.011 | AB31: 13.2746 | AC31: 8.2437
A32: 46 | B32: 8.9945 | C32: 5.0968 | D32: 3.3554 | E32: 17.4467 | F32: 0.0311 | G32: 0.0488 | H32: 0.0472 | I32: 0.1271 | J32: 0.3141414141 | K32: 0.4929292929 | L32: 0.4767676768 | M32: 1.283838384 | U32: 89.26952547 | V32: 0 | W32: 94.16437098 | X32: 94.16437098 | Y32: 90 | Z32: 46 | AA32: 21.0732 | AB32: 13.3722 | AC32: 8.3381
A33: 48 | B33: 7.9851 | C33: 4.3599 | D33: 2.7311 | E33: 15.0761 | F33: 0.0266 | G33: 0.0417 | H33: 0.038 | I33: 0.1063 | J33: 0.2686868687 | K33: 0.4212121212 | L33: 0.3838383838 | M33: 1.073737374 | U33: 90.72754692 | V33: 90 | W33: 95.11937557 | X33: 95.11937557 | Y33: 90 | Z33: 48 | AA33: 21.1264 | AB33: 13.4556 | AC33: 8.4141
A34: 50 | B34: 7.0628 | C34: 3.6909 | D34: 2.1572 | E34: 12.9109 | F34: 0.0226 | G34: 0.0355 | H34: 0.0302 | I34: 0.0883 | J34: 0.2282828283 | K34: 0.3585858586 | L34: 0.3050505051 | M34: 0.8919191919 | U34: 92.0592385 | V34: 90 | W34: 95.94582185 | X34: 95.94582185 | Y34: 90 | Z34: 50 | AA34: 21.1716 | AB34: 13.5266 | AC34: 8.4745
A35: 52 | B35: 6.2315 | C35: 3.1056 | D35: 1.6592 | E35: 10.9963 | F35: 0.0193 | G35: 0.0302 | H35: 0.0239 | I35: 0.0734 | J35: 0.1949494949 | K35: 0.3050505051 | L35: 0.2414141414 | M35: 0.7414141414 | U35: 93.23680025 | V35: 90 | W35: 96.62993572 | X35: 96.62993572 | Y35: 90 | Z35: 52 | AA35: 21.2102 | AB35: 13.587 | AC35: 8.5223
A36: 54 | B36: 5.5013 | C36: 2.609 | D36: 1.2558 | E36: 9.3661 | F36: 0.0165 | G36: 0.0258 | H36: 0.0189 | I36: 0.0612 | J36: 0.1666666667 | K36: 0.2606060606 | L36: 0.1909090909 | M36: 0.6181818182 | U36: 94.23944371 | V36: 90 | W36: 97.19008264 | X36: 97.19008264 | Y36: 90 | Z36: 54 | AA36: 21.2432 | AB36: 13.6386 | AC36: 8.5601
A37: 56 | B37: 4.8763 | C37: 2.2091 | D37: 0.9606 | E37: 8.046 | F37: 0.0142 | G37: 0.0221 | H37: 0.0151 | I37: 0.0514 | J37: 0.1434343434 | K37: 0.2232323232 | L37: 0.1525252525 | M37: 0.5191919192 | U37: 95.05136226 | V37: 90 | W37: 97.64003673 | X37: 97.64003673 | Y37: 90 | Z37: 56 | AA37: 21.2716 | AB37: 13.6828 | AC37: 8.5903
A38: 58 | B38: 4.3267 | C38: 1.8771 | D38: 0.7406 | E38: 6.9444 | F38: 0.0123 | G38: 0.0191 | H38: 0.012 | I38: 0.0434 | J38: 0.1242424242 | K38: 0.1929292929 | L38: 0.1212121212 | M38: 0.4383838384 | U38: 95.72889387 | V38: 90 | W38: 98.00734619 | X38: 98.00734619 | Y38: 90 | Z38: 58 | AA38: =AA37+F38*($A38-$A37) -> 21.2962 | AB38: 13.721 | AC38: 8.6143
A39: 60 | B39: 3.8355 | C39: 1.5933 | D39: 0.5693 | E39: 5.9981 | F39: 0.0107 | G39: 0.0164 | H39: 0.0096 | I39: 0.0367 | J39: 0.1080808081 | K39: 0.1656565657 | L39: 0.09696969697 | M39: 0.3707070707 | U39: 96.31090927 | V39: 90 | W39: 98.31496786 | X39: 98.31496786 | Y39: 90 | Z39: 60 | AA39: 21.3176 | AB39: 13.7538 | AC39: 8.6335
A40: 62 | B40: 3.393 | C40: 1.3476 | D40: 0.4339 | E40: 5.1745 | F40: 0.0093 | G40: 0.0141 | H40: 0.0076 | I40: 0.031 | J40: 0.09393939394 | K40: 0.1424242424 | L40: 0.07676767677 | M40: 0.3131313131 | U40: 96.81745886 | V40: 90 | W40: 98.57667585 | X40: 98.57667585 | Y40: 90 | Z40: 62 | AA40: 21.3362 | AB40: 13.782 | AC40: 8.6487
A41: 64 | B41: 2.9958 | C41: 1.1358 | D41: 0.3268 | E41: 4.4584 | F41: 0.008 | G41: 0.0121 | H41: 0.006 | I41: 0.0261 | J41: 0.08080808081 | K41: 0.1222222222 | L41: 0.06060606061 | M41: 0.2636363636 | U41: 97.25789131 | V41: 90 | W41: 98.80165289 | X41: 98.80165289 | Y41: 90 | Z41: 64 | AA41: 21.3522 | AB41: 13.8062 | AC41: 8.6607
A42: 66 | B42: 2.645 | C42: 0.9585 | D42: 0.2485 | E42: 3.852 | F42: 0.007 | G42: 0.0104 | H42: 0.0047 | I42: 0.0221 | J42: 0.07070707071 | K42: 0.1050505051 | L42: 0.04747474747 | M42: 0.2232323232 | U42: 97.63085352 | V42: 90 | W42: 98.98530762 | X42: 98.98530762 | Y42: 90 | Z42: 66 | AA42: 21.3662 | AB42: 13.827 | AC42: 8.6701
A43: 68 | B43: 2.3359 | C43: 0.8099 | D43: 0.1909 | E43: 3.3367 | F43: 0.0061 | G43: 0.0089 | H43: 0.0038 | I43: 0.0188 | J43: 0.06161616162 | K43: 0.0898989899 | L43: 0.03838383838 | M43: 0.1898989899 | U43: 97.94778529 | V43: 90 | W43: 99.13682277 | X43: 99.13682277 | Y43: 90 | Z43: 68 | AA43: 21.3784 | AB43: 13.8448 | AC43: 8.6777
A44: 70 | B44: 2.062 | C44: 0.6848 | D44: 0.147 | E44: 2.8938 | F44: 0.0053 | G44: 0.0077 | H44: 0.003 | I44: 0.016 | J44: 0.05353535354 | K44: 0.07777777778 | L44: 0.0303030303 | M44: 0.1616161616 | U44: 98.22018793 | V44: 90 | W44: 99.26538108 | X44: 99.26538108 | Y44: 90 | Z44: 70 | AA44: 21.389 | AB44: 13.8602 | AC44: 8.6837
A45: 72 | B45: 1.826 | C45: 0.5825 | D45: 0.1158 | E45: 2.5243 | F45: 0.0046 | G45: 0.0066 | H45: 0.0025 | I45: 0.0137 | J45: 0.04646464646 | K45: 0.06666666667 | L45: 0.02525252525 | M45: 0.1383838384 | U45: 98.4474464 | V45: 90 | W45: 99.37098255 | X45: 99.37098255 | Y45: 90 | Z45: 72 | AA45: 21.3982 | AB45: 13.8734 | AC45: 8.6887
A46: 74 | B46: 1.6126 | C46: 0.4936 | D46: 0.0908 | E46: 2.197 | F46: 0.0041 | G46: 0.0057 | H46: 0.002 | I46: 0.0118 | J46: 0.04141414141 | K46: 0.05757575758 | L46: 0.0202020202 | M46: 0.1191919192 | U46: 98.64875005 | V46: 90 | W46: 99.45821855 | X46: 99.45821855 | Y46: 90 | Z46: 74 | AA46: 21.4064 | AB46: 13.8848 | AC46: 8.6927
A47: 76 | B47: 1.4314 | C47: 0.4223 | D47: 0.073 | E47: 1.9267 | F47: 0.0036 | G47: 0.005 | H47: 0.0017 | I47: 0.0103 | J47: 0.03636363636 | K47: 0.05050505051 | L47: 0.01717171717 | M47: 0.104040404 | U47: 98.81499623 | V47: 90 | W47: 99.52708907 | X47: 99.52708907 | Y47: 90 | Z47: 76 | AA47: 21.4136 | AB47: 13.8948 | AC47: 8.6961
A48: 78 | B48: 1.2736 | C48: 0.3633 | D48: 0.0595 | E48: 1.6964 | F48: 0.0032 | G48: 0.0043 | H48: 0.0014 | I48: 0.0089 | J48: 0.03232323232 | K48: 0.04343434343 | L48: 0.01414141414 | M48: 0.0898989899 | U48: 98.95664068 | V48: 90 | W48: 99.59136823 | X48: 99.59136823 | Y48: 90 | Z48: 78 | AA48: 21.42 | AB48: 13.9034 | AC48: 8.6989
A49: 80 | B49: 1.1361 | C49: 0.3135 | D49: 0.0489 | E49: 1.4985 | F49: 0.0028 | G49: 0.0038 | H49: 0.0012 | I49: 0.0078 | J49: 0.02828282828 | K49: 0.03838383838 | L49: 0.01212121212 | M49: 0.07878787879 | U49: 99.07835774 | V49: 90 | W49: 99.64187328 | X49: 99.64187328 | Y49: 90 | Z49: 80 | AA49: 21.4256 | AB49: 13.911 | AC49: 8.7013
A50: 82 | B50: 1.0069 | C50: 0.2686 | D50: 0.0405 | E50: 1.316 | F50: 0.0025 | G50: 0.0033 | H50: 0.001 | I50: 0.0068 | J50: 0.02525252525 | K50: 0.03333333333 | L50: 0.0101010101 | M50: 0.06868686869 | U50: 99.19060312 | V50: 90 | W50: 99.68778696 | X50: 99.68778696 | Y50: 90 | Z50: 82 | AA50: 21.4306 | AB50: 13.9176 | AC50: 8.7033
A51: 84 | B51: 0.8932 | C51: 0.23 | D51: 0.0335 | E51: 1.1567 | F51: 0.0022 | G51: 0.0029 | H51: 0.00086633 | I51: 0.00596633 | J51: 0.02222222222 | K51: 0.02929292929 | L51: 0.008750808081 | M51: 0.0602659596 | U51: 99.28857951 | V51: 90 | W51: 99.72606382 | X51: 99.72606382 | Y51: 90 | Z51: 84 | AA51: 21.435 | AB51: 13.9234 | AC51: 8.70503266
A52: 86 | B52: 0.7908 | C52: 0.1971 | D52: 0.0277 | E52: 1.0156 | F52: 0.0019 | G52: 0.0025 | H52: 0.00073582 | I52: 0.00513582 | J52: 0.01919191919 | K52: 0.02525252525 | L52: 0.007432525253 | M52: 0.0518769697 | U52: 99.37536211 | V52: 90 | W52: 99.76419559 | X52: 99.76419559 | Y52: 90 | Z52: 86 | AA52: 21.4388 | AB52: 13.9284 | AC52: 8.7065043
A53: 88 | B53: 0.7036 | C53: 0.1703 | D53: 0.0234 | E53: 0.8973 | F53: 0.0017 | G53: 0.0022 | H53: 0.00063354 | I53: 0.00453354 | J53: 0.01717171717 | K53: 0.02222222222 | L53: 0.006399393939 | M53: 0.04579333333 | U53: 99.44812172 | V53: 90 | W53: 99.79184848 | X53: 99.79184848 | Y53: 90 | Z53: 88 | AA53: 21.4422 | AB53: 13.9328 | AC53: 8.70777138
A54: 90 | B54: 0.6266 | C54: 0.1475 | D54: 0.0199 | E54: 0.794 | F54: 0.0015 | G54: 0.0019 | H54: 0.00054788 | I54: 0.00394788 | J54: 0.01515151515 | K54: 0.01919191919 | L54: 0.005534141414 | M54: 0.03987757576 | U54: 99.51165568 | V54: 90 | W54: 99.81873829 | X54: 99.81873829 | Y54: 90 | Z54: 90 | AA54: =AA53+F54*($A54-$A53) -> 21.4452 | AB54: 13.9366 | AC54: 8.70886714
A55: 92 | B55: 0.567 | C55: 0.131 | D55: 0.0175 | E55: 0.7155 | F55: 0.0014 | G55: 0.0017 | H55: 0.00048702 | I55: 0.00358702 | J55: 0.01414141414 | K55: 0.01717171717 | L55: 0.004919393939 | M55: 0.03623252525 | U55: 99.55993658 | V55: 90 | W55: 99.8353067 | X55: 99.8353067 | Y55: 90 | Z55: 92 | AA55: 21.448 | AB55: 13.94 | AC55: 8.70984118
A56: 94 | B56: 0.5073 | C56: 0.1145 | D56: 0.0151 | E56: 0.6369 | F56: 0.0012 | G56: 0.0015 | H56: 0.00042616 | I56: 0.00312616 | J56: 0.01212121212 | K56: 0.01515151515 | L56: 0.004304646465 | M56: 0.03157737374 | U56: 99.60827897 | V56: 90 | W56: 99.85646648 | X56: 99.85646648 | Y56: 90 | Z56: 94 | AA56: 21.4504 | AB56: 13.943 | AC56: 8.7106935
A57: 96 | B57: 0.4558 | C57: 0.1006 | D57: 0.0131 | E57: 0.5695 | F57: 0.0011 | G57: 0.0013 | H57: 0.00037555 | I57: 0.00277555 | J57: 0.01111111111 | K57: 0.01313131313 | L57: 0.003793434343 | M57: 0.02803585859 | U57: 99.64973289 | V57: 90 | W57: 99.87256428 | X57: 99.87256428 | Y57: 90 | Z57: 96 | AA57: 21.4526 | AB57: 13.9456 | AC57: 8.7114446
A58: 98 | B58: 0.4101 | C58: 0.0888 | D58: 0.0115 | E58: 0.5104 | F58: 0.0009832 | G58: 0.0012 | H58: 0.00033239 | I58: 0.00251559 | J58: 0.009931313131 | K58: 0.01212121212 | L58: 0.003357474747 | M58: 0.02541 | U58: 99.68608194 | V58: 90 | W58: 99.8845 | X58: 99.8845 | Y58: 90 | Z58: 98 | AA58: 21.4545664 | AB58: 13.948 | AC58: 8.71210938
A59: 100 | B59: 0.3664 | C59: 0.0775 | D59: 0.01 | E59: 0.4539 | F59: 0.00087734 | G59: 0.0011 | H59: 0.00029139 | I59: 0.00226873 | J59: 0.008862020202 | K59: 0.01111111111 | L59: 0.002943333333 | M59: 0.02291646465 | U59: 99.72083188 | V59: 90 | W59: 99.89583425 | X59: 99.89583425 | Y59: 90 | Z59: 100 | AA59: 21.45632108 | AB59: 13.9502 | AC59: 8.71269216

Sheet sim8 (hidden)
B1: sim8 | O1: Remediation time (>90% mass removal or flux reduction)
B2: mass (g/m2) | F2: flux (g/y/m2) | J2: Conc output (mg/L) | O2: Mass | P2: =VLOOKUP(90,V4:Z59,5,FALSE) -> 20 | AA2: acc flux (g/m2)
A3: Time | B3: TCE | C3: DCE | D3: VC | E3: Total | F3: TCE | G3: DCE | H3: VC | I3: Total | J3: TCE | K3: DCE | L3: VC | M3: Total | O3: Flux | P3: =VLOOKUP(90,Y4:Z59,2,FALSE) -> 18 | U3: mass removal (%) | V3: to find 90% | W3: flux reduction (%) | Y3: to find 90% | Z3: Time | AA3: TCE | AB3: DCE | AC3: VC
A4: 0 | B4: 162.5768 | C4: 0 | D4: 0 | E4: =SUM(B4:D4) -> 162.5768 | F4: 2.178 | G4: 0 | H4: 0 | I4: =SUM(F4:H4) -> 2.178 | J4: 22 | K4: 0 | L4: 0 | M4: =SUM(J4:L4) -> 22 | U4: =(E$4-E4)/E$4*100 -> 0 | V4: =IF(U4>90,90,0) -> 0 | W4: =(I$4-I4)/I$4*100 -> 0 | X4: =IF(W4>0,W4,0) -> 0 | Y4: =IF(X4>90,90,0) -> 0 | Z4: 0 | AA4: =F4 -> 2.178 | AB4: =G4 -> 0 | AC4: 0
A5: 1 | B5: 105.6314 | C5: 32.6231 | D5: 3.5388 | E5: =SUM(B5:D5) -> 141.7933 | F5: 1.3995 | G5: 0.7666 | H5: 0.1122 | I5: =SUM(F5:H5) -> 2.2783 | J5: 14.13636364 | K5: 7.743434343 | L5: 1.133333333 | M5: =SUM(J5:L5) -> 23.01313131 | O5: Accumulated flux to the aquifer (g/m2) | U5: =(E$4-E5)/E$4*100 -> 12.78380433 | V5: =IF(U5>90,90,0) -> 0 | W5: =(I$4-I5)/I$4*100 -> -4.605142332 | X5: =IF(W5>0,W5,0) -> 0 | Y5: =IF(X5>90,90,0) -> 0 | Z5: 1 | AA5: =AA4+F5*($A5-$A4) -> 3.5775 | AB5: =AB4+G5*($A5-$A4) -> 0.7666 | AC5: 0.1122
A6: 2 | B6: 81.6089 | C6: 39.2909 | D6: 7.714 | E6: 128.6138 | F6: 1.05 | G6: 0.9537 | H6: 0.2559 | I6: 2.2596 | J6: 10.60606061 | K6: 9.633333333 | L6: 2.584848485 | M6: 22.82424242 | O6: TCE | P6: =AA59 -> 8.042042892 | U6: 20.89043455 | V6: 0 | W6: -3.746556474 | X6: 0 | Y6: 0 | Z6: 2 | AA6: =AA5+F6*($A6-$A5) -> 4.6275 | AB6: 1.7203 | AC6: 0.3681
A7: 3 | B7: 65.6768 | C7: 40.5862 | D7: 11.0258 | E7: 117.2888 | F7: 0.8031 | G7: 0.9912 | H7: 0.3737 | I7: 2.168 | J7: 8.112121212 | K7: 10.01212121 | L7: 3.774747475 | M7: 21.8989899 | O7: DCE | P7: =AB59 -> 8.723612864 | U7: 27.85637311 | V7: 0 | W7: 0.4591368228 | X7: 0.4591368228 | Y7: 0 | Z7: 3 | AA7: 5.4306 | AB7: 2.7115 | AC7: 0.7418
A8: 4 | B8: 54.4163 | C8: 39.297 | D8: 13.4765 | E8: 107.1898 | F8: 0.6209 | G8: 0.947 | H8: 0.4596 | I8: 2.0275 | J8: 6.271717172 | K8: 9.565656566 | L8: 4.642424242 | M8: 20.47979798 | O8: VC | P8: =AC59 -> 6.11028774 | U8: 34.06820653 | V8: 0 | W8: 6.910009183 | X8: 6.910009183 | Y8: 0 | Z8: 4 | AA8: 6.0515 | AB8: 3.6585 | AC8: 1.2014
A9: 5 | B9: 45.6839 | C9: 37.1045 | D9: 15.119 | E9: 97.9074 | F9: 0.4794 | G9: 0.8667 | H9: 0.5119 | I9: 1.858 | J9: 4.842424242 | K9: 8.754545455 | L9: 5.170707071 | M9: 18.76767677 | O9: Total | P9: =SUM(P6:P8) -> 22.8759435 | U9: 39.77775427 | V9: 0 | W9: 14.69237833 | X9: 14.69237833 | Y9: 0 | Z9: 5 | AA9: 6.5309 | AB9: 4.5252 | AC9: 1.7133
A10: 6 | B10: 38.6316 | C10: 34.5234 | D10: 16.1561 | E10: 89.3111 | F10: 0.3692 | G10: 0.7717 | H10: 0.5364 | I10: 1.6773 | J10: 3.729292929 | K10: 7.794949495 | L10: 5.418181818 | M10: 16.94242424 | U10: 45.06528607 | V10: 0 | W10: 22.98898072 | X10: 22.98898072 | Y10: 0 | Z10: 6 | AA10: 6.9001 | AB10: 5.2969 | AC10: 2.2497
A11: 7 | B11: 32.8298 | C11: 31.7562 | D11: 16.7147 | E11: 81.3007 | F11: 0.2838 | G11: 0.6733 | H11: 0.5395 | I11: 1.4966 | J11: 2.866666667 | K11: 6.801010101 | L11: 5.449494949 | M11: 15.11717172 | U11: 49.99243434 | V11: 0 | W11: 31.2855831 | X11: 31.2855831 | Y11: 0 | Z11: 7 | AA11: 7.1839 | AB11: 5.9702 | AC11: 2.7892
A12: 8 | B12: 28.0649 | C12: 28.936 | D12: 16.8355 | E12: 73.8364 | F12: 0.2195 | G12: 0.5788 | H12: 0.5253 | I12: 1.3236 | J12: 2.217171717 | K12: 5.846464646 | L12: 5.306060606 | M12: 13.36969697 | U12: 54.58367984 | V12: 0 | W12: 39.22865014 | X12: 39.22865014 | Y12: 0 | Z12: 8 | AA12: 7.4034 | AB12: 6.549 | AC12: 3.3145
A13: 9 | B13: 24.1026 | C13: 26.1579 | D13: 16.5837 | E13: 66.8442 | F13: 0.1708 | G13: 0.4923 | H13: 0.4987 | I13: 1.1618 | J13: 1.725252525 | K13: 4.972727273 | L13: 5.037373737 | M13: 11.73535354 | U13: 58.88453949 | V13: 0 | W13: 46.65748393 | X13: 46.65748393 | Y13: 0 | Z13: 9 | AA13: 7.5742 | AB13: 7.0413 | AC13: 3.8132
A14: 10 | B14: 20.7004 | C14: 23.4556 | D14: 16.0547 | E14: 60.2107 | F14: 0.1325 | G14: 0.4135 | H14: 0.4638 | I14: 1.0098 | J14: 1.338383838 | K14: 4.176767677 | L14: 4.684848485 | M14: 10.2 | U14: 62.96476496 | V14: 0 | W14: 53.63636364 | X14: 53.63636364 | Y14: 0 | Z14: 10 | AA14: 7.7067 | AB14: 7.4548 | AC14: 4.277
A15: 12 | B15: 15.2143 | C15: 18.3659 | D15: 14.3021 | E15: 47.8823 | F15: 0.0782 | G15: 0.2787 | H15: 0.3751 | I15: 0.732 | J15: 0.7898989899 | K15: 2.815151515 | L15: 3.788888889 | M15: 7.393939394 | U15: 70.54788875 | V15: 0 | W15: 66.39118457 | X15: 66.39118457 | Y15: 0 | Z15: 12 | AA15: 7.8631 | AB15: 8.0122 | AC15: 5.0272
A16: 14 | B16: 10.9751 | C16: 13.7555 | D16: 11.8485 | E16: 36.5791 | F16: 0.0428 | G16: 0.1704 | H16: 0.2701 | I16: 0.4833 | J16: 0.4323232323 | K16: 1.721212121 | L16: 2.728282828 | M16: 4.881818182 | U16: 77.50041826 | V16: 0 | W16: 77.80991736 | X16: 77.80991736 | Y16: 0 | Z16: 14 | AA16: 7.9487 | AB16: 8.353 | AC16: 5.5674
A17: 16 | B17: 7.8398 | C17: 9.8435 | D17: 8.8478 | E17: 26.5311 | F17: 0.0222 | G17: 0.0922 | H17: 0.1577 | I17: 0.2721 | J17: 0.2242424242 | K17: 0.9313131313 | L17: 1.592929293 | M17: 2.748484848 | U17: 83.6808819 | V17: 0 | W17: 87.50688705 | X17: 87.50688705 | Y17: 0 | Z17: 16 | AA17: 7.9931 | AB17: 8.5374 | AC17: 5.8828
A18: 18 | B18: 5.5305 | C18: 6.7076 | D18: 5.8416 | E18: 18.0797 | F18: 0.0109 | G18: 0.0437 | H18: 0.0663 | I18: 0.1209 | J18: 0.1101010101 | K18: 0.4414141414 | L18: 0.6696969697 | M18: 1.221212121 | U18: 88.87928659 | V18: 0 | W18: 94.44903581 | X18: 94.44903581 | Y18: 90 | Z18: 18 | AA18: 8.0149 | AB18: 8.6248 | AC18: 6.0154
A19: 20 | B19: 3.8181 | C19: 4.3284 | D19: 3.3034 | E19: 11.4499 | F19: 0.0056 | G19: 0.0215 | H19: 0.0255 | I19: 0.0526 | J19: 0.05656565657 | K19: 0.2171717172 | L19: 0.2575757576 | M19: 0.5313131313 | U19: 92.95723621 | V19: 90 | W19: 97.58494031 | X19: 97.58494031 | Y19: 90 | Z19: 20 | AA19: 8.0261 | AB19: 8.6678 | AC19: 6.0664
A20: 22 | B20: 2.5869 | C20: 2.7022 | D20: 1.7265 | E20: 7.0156 | F20: 0.0032 | G20: 0.0119 | H20: 0.0113 | I20: 0.0264 | J20: 0.03232323232 | K20: 0.1202020202 | L20: 0.1141414141 | M20: 0.2666666667 | U20: 95.68474715 | V20: 90 | W20: 98.78787879 | X20: 98.78787879 | Y20: 90 | Z20: 22 | AA20: 8.0325 | AB20: 8.6916 | AC20: 6.089
A21: 24 | B21: 1.7414 | C21: 1.6672 | D21: 0.886 | E21: 4.2946 | F21: 0.002 | G21: 0.007 | H21: 0.0055 | I21: 0.0145 | J21: 0.0202020202 | K21: 0.07070707071 | L21: 0.05555555556 | M21: 0.1464646465 | U21: 97.35841768 | V21: 90 | W21: 99.33425161 | X21: 99.33425161 | Y21: 90 | Z21: 24 | AA21: 8.0365 | AB21: 8.7056 | AC21: 6.1
A22: 26 | B22: 1.1631 | C22: 1.0121 | D22: 0.4354 | E22: 2.6106 | F22: 0.0012 | G22: 0.0043 | H22: 0.0028 | I22: 0.0083 | J22: 0.01212121212 | K22: 0.04343434343 | L22: 0.02828282828 | M22: 0.08383838384 | U22: 98.39423583 | V22: 90 | W22: 99.61891644 | X22: 99.61891644 | Y22: 90 | Z22: 26 | AA22: =AA21+F22*($A22-$A21) -> 8.0389 | AB22: 8.7142 | AC22: 6.1056
A23: 28 | B23: 0.7575 | C23: 0.5903 | D23: 0.1917 | E23: 1.5395 | F23: 0.00076578 | G23: 0.0025 | H23: 0.0014 | I23: 0.00466578 | J23: 0.007735151515 | K23: 0.02525252525 | L23: 0.01414141414 | M23: 0.04712909091 | U23: 99.05306292 | V23: 90 | W23: 99.78577686 | X23: 99.78577686 | Y23: 90 | Z23: 28 | AA23: 8.04043156 | AB23: 8.7192 | AC23: 6.1084
A24: 30 | B24: 0.4813 | C24: 0.3337 | D24: 0.0724 | E24: 0.8874 | F24: 0.00046951 | G24: 0.0014 | H24: 0.00065263 | I24: 0.00252214 | J24: 0.004742525253 | K24: 0.01414141414 | L24: 0.006592222222 | M24: 0.02547616162 | U24: 99.45416566 | V24: 90 | W24: 99.88419927 | X24: 99.88419927 | Y24: 90 | Z24: 30 | AA24: 8.04137058 | AB24: 8.722 | AC24: 6.10970526
A25: 32 | B25: 0.2997 | C25: 0.1844 | D25: 0.021 | E25: 0.5051 | F25: 0.00027116 | G25: 0.00077949 | H25: 0.00029124 | I25: 0.00134189 | J25: 0.002738989899 | K25: 0.007873636364 | L25: 0.002941818182 | M25: 0.01355444444 | U25: 99.68931606 | V25: 90 | W25: 99.93838889 | X25: 99.93838889 | Y25: 90 | Z25: 32 | AA25: 8.0419129 | AB25: 8.72355898 | AC25: 6.11028774
A26: 34 | B26: 0.1474 | C26: 0.0994 | D26: 0 | E26: 0.2468 | F26: 6.4996e-05 | G26: 2.6942e-05 | H26: 0 | I26: 9.1938e-05 | J26: 0.0006565252525 | K26: 0.0002721414141 | L26: 0 | M26: 0.0009286666667 | U26: 99.84819482 | V26: 90 | W26: 99.99577879 | X26: 99.99577879 | Y26: 90 | Z26: 34 | AA26: 8.042042892 | AB26: 8.723612864 | AC26: 6.11028774
A27: 36 | B27: 0.0801 | C27: 0.0568 | D27: 0 | E27: 0.1369 | F27: 0 | G27: 0 | H27: 0 | I27: 0 | J27: 0 | K27: 0 | L27: 0 | M27: 0 | U27: 99.91579364 | V27: 90 | W27: 100 | X27: 100 | Y27: 90 | Z27: 36 | AA27: 8.042042892 | AB27: 8.723612864 | AC27: 6.11028774
A28: 38 | B28: 0.0433 | C28: 0.035 | D28: 0 | E28: 0.0783 | F28: 0 | G28: 0 | H28: 0 | I28: 0 | J28: 0 | K28: 0 | L28: 0 | M28: 0 | U28: 99.95183815 | V28: 90 | W28: 100 | X28: 100 | Y28: 90 | Z28: 38 | AA28: 8.042042892 | AB28: 8.723612864 | AC28: 6.11028774
A29: 40 | B29: 0.0187 | C29: 0.0228 | D29: 0 | E29: 0.0415 | F29: 0 | G29: 0 | H29: 0 | I29: 0 | J29: 0 | K29: 0 | L29: 0 | M29: 0 | U29: 99.9744736 | V29: 90 | W29: 100 | X29: 100 | Y29: 90 | Z29: 40 | AA29: 8.042042892 | AB29: 8.723612864 | AC29: 6.11028774
A30: 42 | B30: 0.0084 | C30: 0.015 | D30: 0 | E30: 0.0234 | F30: 0 | G30: 0 | H30: 0 | I30: 0 | J30: 0 | K30: 0 | L30: 0 | M30: 0 | U30: 99.9856068 | V30: 90 | W30: 100 | X30: 100 | Y30: 90 | Z30: 42 | AA30: 8.042042892 | AB30: 8.723612864 | AC30: 6.11028774
A31: 44 | B31: 0.0016 | C31: 0.0098 | D31: 0 | E31: 0.0114 | F31: 0 | G31: 0 | H31: 0 | I31: 0 | J31: 0 | K31: 0 | L31: 0 | M31: 0 | U31: 99.99298793 | V31: 90 | W31: 100 | X31: 100 | Y31: 90 | Z31: 44 | AA31: 8.042042892 | AB31: 8.723612864 | AC31: 6.11028774
A32: 46 | B32: 0 | C32: 0.0066 | D32: 0 | E32: 0.0066 | F32: 0 | G32: 0 | H32: 0 | I32: 0 | J32: 0 | K32: 0 | L32: 0 | M32: 0 | U32: 99.99594038 | V32: 90 | W32: 100 | X32: 100 | Y32: 90 | Z32: 46 | AA32: 8.042042892 | AB32: 8.723612864 | AC32: 6.11028774
A33: 48 | B33: 0 | C33: 0.0041 | D33: 0 | E33: 0.0041 | F33: 0 | G33: 0 | H33: 0 | I33: 0 | J33: 0 | K33: 0 | L33: 0 | M33: 0 | U33: 99.99747811 | V33: 90 | W33: 100 | X33: 100 | Y33: 90 | Z33: 48 | AA33: 8.042042892 | AB33: 8.723612864 | AC33: 6.11028774
A34: 50 | B34: 0 | C34: 0.0026 | D34: 0 | E34: 0.0026 | F34: 0 | G34: 0 | H34: 0 | I34: 0 | J34: 0 | K34: 0 | L34: 0 | M34: 0 | U34: 99.99840076 | V34: 90 | W34: 100 | X34: 100 | Y34: 90 | Z34: 50 | AA34: 8.042042892 | AB34: 8.723612864 | AC34: 6.11028774
A35: 52 | B35: 0 | C35: 0.0016 | D35: 0 | E35: 0.0016 | F35: 0 | G35: 0 | H35: 0 | I35: 0 | J35: 0 | K35: 0 | L35: 0 | M35: 0 | U35: 99.99901585 | V35: 90 | W35: 100 | X35: 100 | Y35: 90 | Z35: 52 | AA35: 8.042042892 | AB35: 8.723612864 | AC35: 6.11028774
A36: 54 | B36: 0 | C36: 0.00089653 | D36: 0 | E36: 0.00089653 | F36: 0 | G36: 0 | H36: 0 | I36: 0 | J36: 0 | K36: 0 | L36: 0 | M36: 0 | U36: 99.99944855 | V36: 90 | W36: 100 | X36: 100 | Y36: 90 | Z36: 54 | AA36: 8.042042892 | AB36: 8.723612864 | AC36: 6.11028774
A37: 56 | B37: 0 | C37: 0.00047219 | D37: 0 | E37: 0.00047219 | F37: 0 | G37: 0 | H37: 0 | I37: 0 | J37: 0 | K37: 0 | L37: 0 | M37: 0 | U37: 99.99970956 | V37: 90 | W37: 100 | X37: 100 | Y37: 90 | Z37: 56 | AA37: 8.042042892 | AB37: 8.723612864 | AC37: 6.11028774
A38: 58 | B38: 0 | C38: 0.00032241 | D38: 0 | E38: 0.00032241 | F38: 0 | G38: 0 | H38: 0 | I38: 0 | J38: 0 | K38: 0 | L38: 0 | M38: 0 | U38: 99.99980169 | V38: 90 | W38: 100 | X38: 100 | Y38: 90 | Z38: 58 | AA38: =AA37+F38*($A38-$A37) -> 8.042042892 | AB38: 8.723612864 | AC38: 6.11028774
A39: 60 | B39: 0 | C39: 0.00029081 | D39: 0 | E39: 0.00029081 | F39: 0 | G39: 0 | H39: 0 | I39: 0 | J39: 0 | K39: 0 | L39: 0 | M39: 0 | U39: 99.99982112 | V39: 90 | W39: 100 | X39: 100 | Y39: 90 | Z39: 60 | AA39: 8.042042892 | AB39: 8.723612864 | AC39: 6.11028774
A40: 62 | B40: 0 | C40: 0.00023407 | D40: 0 | E40: 0.00023407 | F40: 0 | G40: 0 | H40: 0 | I40: 0 | J40: 0 | K40: 0 | L40: 0 | M40: 0 | U40: 99.99985602 | V40: 90 | W40: 100 | X40: 100 | Y40: 90 | Z40: 62 | AA40: 8.042042892 | AB40: 8.723612864 | AC40: 6.11028774
A41: 64 | B41: 0 | C41: 0.00014658 | D41: 0 | E41: 0.00014658 | F41: 0 | G41: 0 | H41: 0 | I41: 0 | J41: 0 | K41: 0 | L41: 0 | M41: 0 | U41: 99.99990984 | V41: 90 | W41: 100 | X41: 100 | Y41: 90 | Z41: 64 | AA41: 8.042042892 | AB41: 8.723612864 | AC41: 6.11028774
A42: 66 | B42: 0 | C42: 5.9087e-05 | D42: 0 | E42: 5.9087e-05 | F42: 0 | G42: 0 | H42: 0 | I42: 0 | J42: 0 | K42: 0 | L42: 0 | M42: 0 | U42: 99.99996366 | V42: 90 | W42: 100 | X42: 100 | Y42: 90 | Z42: 66 | AA42: 8.042042892 | AB42: 8.723612864 | AC42: 6.11028774
A43: 68 | B43: 0 | C43: 0 | D43: 0 | E43: 0 | F43: 0 | G43: 0 | H43: 0 | I43: 0 | J43: 0 | K43: 0 | L43: 0 | M43: 0 | U43: 100 | V43: 90 | W43: 100 | X43: 100 | Y43: 90 | Z43: 68 | AA43: 8.042042892 | AB43: 8.723612864 | AC43: 6.11028774
A44: 70 | B44: 0 | C44: 0 | D44: 0 | E44: 0 | F44: 0 | G44: 0 | H44: 0 | I44: 0 | J44: 0 | K44: 0 | L44: 0 | M44: 0 | U44: 100 | V44: 90 | W44: 100 | X44: 100 | Y44: 90 | Z44: 70 | AA44: 8.042042892 | AB44: 8.723612864 | AC44: 6.11028774
A45: 72 | B45: 0 | C45: 0 | D45: 0 | E45: 0 | F45: 0 | G45: 0 | H45: 0 | I45: 0 | J45: 0 | K45: 0 | L45: 0 | M45: 0 | U45: 100 | V45: 90 | W45: 100 | X45: 100 | Y45: 90 | Z45: 72 | AA45: 8.042042892 | AB45: 8.723612864 | AC45: 6.11028774
A46: 74 | B46: 0 | C46: 0 | D46: 0 | E46: 0 | F46: 0 | G46: 0 | H46: 0 | I46: 0 | J46: 0 | K46: 0 | L46: 0 | M46: 0 | U46: 100 | V46: 90 | W46: 100 | X46: 100 | Y46: 90 | Z46: 74 | AA46: 8.042042892 | AB46: 8.723612864 | AC46: 6.11028774
A47: 76 | B47: 0 | C47: 0 | D47: 0 | E47: 0 | F47: 0 | G47: 0 | H47: 0 | I47: 0 | J47: 0 | K47: 0 | L47: 0 | M47: 0 | U47: 100 | V47: 90 | W47: 100 | X47: 100 | Y47: 90 | Z47: 76 | AA47: 8.042042892 | AB47: 8.723612864 | AC47: 6.11028774
A48: 78 | B48: 0 | C48: 0 | D48: 0 | E48: 0 | F48: 0 | G48: 0 | H48: 0 | I48: 0 | J48: 0 | K48: 0 | L48: 0 | M48: 0 | U48: 100 | V48: 90 | W48: 100 | X48: 100 | Y48: 90 | Z48: 78 | AA48: 8.042042892 | AB48: 8.723612864 | AC48: 6.11028774
A49: 80 | B49: 0 | C49: 0 | D49: 0 | E49: 0 | F49: 0 | G49: 0 | H49: 0 | I49: 0 | J49: 0 | K49: 0 | L49: 0 | M49: 0 | U49: 100 | V49: 90 | W49: 100 | X49: 100 | Y49: 90 | Z49: 80 | AA49: 8.042042892 | AB49: 8.723612864 | AC49: 6.11028774
A50: 82 | B50: 0 | C50: 0 | D50: 0 | E50: 0 | F50: 0 | G50: 0 | H50: 0 | I50: 0 | J50: 0 | K50: 0 | L50: 0 | M50: 0 | U50: 100 | V50: 90 | W50: 100 | X50: 100 | Y50: 90 | Z50: 82 | AA50: 8.042042892 | AB50: 8.723612864 | AC50: 6.11028774
A51: 84 | B51: 0 | C51: 0 | D51: 0 | E51: 0 | F51: 0 | G51: 0 | H51: 0 | I51: 0 | J51: 0 | K51: 0 | L51: 0 | M51: 0 | U51: 100 | V51: 90 | W51: 100 | X51: 100 | Y51: 90 | Z51: 84 | AA51: 8.042042892 | AB51: 8.723612864 | AC51: 6.11028774
A52: 86 | B52: 0 | C52: 0 | D52: 0 | E52: 0 | F52: 0 | G52: 0 | H52: 0 | I52: 0 | J52: 0 | K52: 0 | L52: 0 | M52: 0 | U52: 100 | V52: 90 | W52: 100 | X52: 100 | Y52: 90 | Z52: 86 | AA52: 8.042042892 | AB52: 8.723612864 | AC52: 6.11028774
A53: 88 | B53: 0 | C53: 0 | D53: 0 | E53: 0 | F53: 0 | G53: 0 | H53: 0 | I53: 0 | J53: 0 | K53: 0 | L53: 0 | M53: 0 | U53: 100 | V53: 90 | W53: 100 | X53: 100 | Y53: 90 | Z53: 88 | AA53: 8.042042892 | AB53: 8.723612864 | AC53: 6.11028774
A54: 90 | B54: 0 | C54: 0 | D54: 0 | E54: 0 | F54: 0 | G54: 0 | H54: 0 | I54: 0 | J54: 0 | K54: 0 | L54: 0 | M54: 0 | U54: 100 | V54: 90 | W54: 100 | X54: 100 | Y54: 90 | Z54: 90 | AA54: =AA53+F54*($A54-$A53) -> 8.042042892 | AB54: 8.723612864 | AC54: 6.11028774
A55: 92 | B55: 0 | C55: 0 | D55: 0 | E55: 0 | F55: 0 | G55: 0 | H55: 0 | I55: 0 | J55: 0 | K55: 0 | L55: 0 | M55: 0 | U55: 100 | V55: 90 | W55: 100 | X55: 100 | Y55: 90 | Z55: 92 | AA55: 8.042042892 | AB55: 8.723612864 | AC55: 6.11028774
A56: 94 | B56: 0 | C56: 0 | D56: 0 | E56: 0 | F56: 0 | G56: 0 | H56: 0 | I56: 0 | J56: 0 | K56: 0 | L56: 0 | M56: 0 | U56: 100 | V56: 90 | W56: 100 | X56: 100 | Y56: 90 | Z56: 94 | AA56: 8.042042892 | AB56: 8.723612864 | AC56: 6.11028774
A57: 96 | B57: 0 | C57: 0 | D57: 0 | E57: 0 | F57: 0 | G57: 0 | H57: 0 | I57: 0 | J57: 0 | K57: 0 | L57: 0 | M57: 0 | U57: 100 | V57: 90 | W57: 100 | X57: 100 | Y57: 90 | Z57: 96 | AA57: 8.042042892 | AB57: 8.723612864 | AC57: 6.11028774
A58: 98 | B58: 0 | C58: 0 | D58: 0 | E58: 0 | F58: 0 | G58: 0 | H58: 0 | I58: 0 | J58: 0 | K58: 0 | L58: 0 | M58: 0 | U58: 100 | V58: 90 | W58: 100 | X58: 100 | Y58: 90 | Z58: 98 | AA58: 8.042042892 | AB58: 8.723612864 | AC58: 6.11028774
A59: 100 | B59: 0 | C59: 0 | D59: 0 | E59: 0 | F59: 0 | G59: 0 | H59: 0 | I59: 0 | J59: 0 | K59: 0 | L59: 0 | M59: 0 | U59: 100 | V59: 90 | W59: 100 | X59: 100 | Y59: 90 | Z59: 100 | AA59: 8.042042892 | AB59: 8.723612864 | AC59: 6.11028774

Sheet sim9 (hidden)
B1: sim9 | O1: Remediation time (>90% mass removal or flux reduction)
B2: mass (g/m2) | F2: flux (g/y/m2) | J2: Conc output (mg/L) | O2: Mass | P2: =VLOOKUP(90,V:Z,5,FALSE) ->  | AA2: acc flux (g/m2)
A3: Time | B3: TCE | C3: DCE | D3: VC | E3: Total | F3: TCE | G3: DCE | H3: VC | I3: Total | J3: TCE | K3: DCE | L3: VC | M3: Total | O3: Flux | P3: =VLOOKUP(90,Y:Z,2,FALSE) ->  | U3: mass removal (%) | V3: to find 90% | W3: flux reduction (%) | Y3: to find 90% | Z3: Time | AA3: TCE | AB3: DCE | AC3: VC
A4: 0 | B4: 162.4197 | C4: 0 | D4: 0 | E4: =SUM(B4:D4) -> 162.4197 | F4: 2.178 | G4: 0 | H4: 0 | I4: =SUM(F4:H4) -> 2.178 | J4: 22 | K4: 0 | L4: 0 | M4: =SUM(J4:L4) -> 22 | U4: =(E$4-E4)/E$4*100 -> 0 | V4: =IF(U4>90,90,0) -> 0 | W4: =(I$4-I4)/I$4*100 -> 0 | X4: =IF(W4>0,W4,0) -> 0 | Y4: =IF(X4>90,90,0) -> 0 | Z4: =A4 -> 0 | AA4: =F4 -> 2.178 | AB4: =G4 -> 0 | AC4: 0
A5: 1 | B5: 154.9635 | C5: 2.6849 | D5: 0.0254 | E5: =SUM(B5:D5) -> 157.6738 | F5: 2.1242 | G5: 0.0603 | H5: 0.00066052 | I5: =SUM(F5:H5) -> 2.18516052 | J5: 21.45656566 | K5: 0.6090909091 | L5: 0.006671919192 | M5: =SUM(J5:L5) -> 22.07232848 | O5: Accumulated flux to the aquifer (g/m2) | U5: =(E$4-E5)/E$4*100 -> 2.921997763 | V5: =IF(U5>90,90,0) -> 0 | W5: =(I$4-I5)/I$4*100 -> -0.3287658402 | X5: =IF(W5>0,W5,0) -> 0 | Y5: =IF(X5>90,90,0) -> 0 | Z5: =A5 -> 1 | AA5: =AA4+F5*($A5-$A4) -> 4.3022 | AB5: =AB4+G5*($A5-$A4) -> 0.0603 | AC5: 0.00066052
A6: 2 | B6: 149.3298 | C6: 4.7698 | D6: 0.0779 | E6: 154.1775 | F6: 2.0642 | G6: 0.1099 | H6: 0.0022 | I6: 2.1763 | J6: 20.85050505 | K6: 1.11010101 | L6: 0.02222222222 | M6: 21.98282828 | O6: TCE | P6: =MAX(AA:AA) -> 55.1213 | U6: 5.074630725 | V6: 0 | W6: 0.07805325987 | X6: 0.07805325987 | Y6: 0 | Z6: 2 | AA6: =AA5+F6*($A6-$A5) -> 6.3664 | AB6: 0.1702 | AC6: 0.00286052
A7: 3 | B7: 144.3119 | C7: 6.5287 | D7: 0.1442 | E7: 150.9848 | F7: 1.989 | G7: 0.1518 | H7: 0.0042 | I7: 2.145 | J7: 20.09090909 | K7: 1.533333333 | L7: 0.04242424242 | M7: 21.66666667 | O7: DCE | P7: =MAX(AB:AB) -> 27.7116 | U7: 7.04034055 | V7: 0 | W7: 1.515151515 | X7: 1.515151515 | Y7: 0 | Z7: 3 | AA7: 8.3554 | AB7: 0.322 | AC7: 0.00706052
A8: 4 | B8: 139.7019 | C8: 8.0539 | D8: 0.2192 | E8: 147.975 | F8: 1.9033 | G8: 0.187 | H8: 0.0065 | I8: 2.0968 | J8: 19.22525253 | K8: 1.888888889 | L8: 0.06565656566 | M8: 21.17979798 | O8: VC | P8: =MAX(AC:AC) -> 6.84896052 | U8: 8.893440882 | V8: 0 | W8: 3.728191001 | X8: 3.728191001 | Y8: 0 | Z8: 4 | AA8: 10.2587 | AB8: 0.509 | AC8: 0.01356052
A9: 5 | B9: 135.4075 | C9: 9.3996 | D9: 0.2999 | E9: 145.107 | F9: 1.8126 | G9: 0.2164 | H9: 0.009 | I9: 2.038 | J9: 18.30909091 | K9: 2.185858586 | L9: 0.09090909091 | M9: 20.58585859 | O9: Total | P9: =SUM(P6:P8) -> 89.68186052 | U9: 10.65923653 | V9: 0 | W9: 6.427915519 | X9: 6.427915519 | Y9: 0 | Z9: 5 | AA9: 12.0713 | AB9: 0.7254 | AC9: 0.02256052
A10: 6 | B10: 131.374 | C10: 10.6029 | D10: 0.3844 | E10: 142.3613 | F10: 1.7218 | G10: 0.241 | H10: 0.0117 | I10: 1.9745 | J10: 17.39191919 | K10: 2.434343434 | L10: 0.1181818182 | M10: 19.94444444 | U10: 12.34973344 | V10: 0 | W10: 9.343434343 | X10: 9.343434343 | Y10: 0 | Z10: 6 | AA10: 13.7931 | AB10: 0.9664 | AC10: 0.03426052
A11: 7 | B11: 127.5598 | C11: 11.6922 | D11: 0.4708 | E11: 139.7228 | F11: 1.6345 | G11: 0.2614 | H11: 0.0144 | I11: 1.9103 | J11: 16.51010101 | K11: 2.64040404 | L11: 0.1454545455 | M11: 19.2959596 | U11: 13.9742285 | V11: 0 | W11: 12.29109275 | X11: 12.29109275 | Y11: 0 | Z11: 7 | AA11: 15.4276 | AB11: 1.2278 | AC11: 0.04866052
A12: 8 | B12: 123.9394 | C12: 12.6851 | D12: 0.5584 | E12: 137.1829 | F12: 1.5522 | G12: 0.2784 | H12: 0.0171 | I12: 1.8477 | J12: 15.67878788 | K12: 2.812121212 | L12: 0.1727272727 | M12: 18.66363636 | U12: 15.53801663 | V12: 0 | W12: 15.16528926 | X12: 15.16528926 | Y12: 0 | Z12: 8 | AA12: 16.9798 | AB12: 1.5062 | AC12: 0.06576052
A13: 9 | B13: 120.4985 | C13: 13.5908 | D13: 0.6466 | E13: 134.7359 | F13: 1.4747 | G13: 0.2926 | H13: 0.0198 | I13: 1.7871 | J13: 14.8959596 | K13: 2.955555556 | L13: 0.2 | M13: 18.05151515 | U13: 17.04460727 | V13: 0 | W13: 17.9476584 | X13: 17.9476584 | Y13: 0 | Z13: 9 | AA13: 18.4545 | AB13: 1.7988 | AC13: 0.08556052
A14: 10 | B14: 117.2237 | C14: 14.4179 | D14: 0.7346 | E14: 132.3762 | F14: 1.4012 | G14: 0.3044 | H14: 0.0224 | I14: 1.728 | J14: 14.15353535 | K14: 3.074747475 | L14: 0.2262626263 | M14: 17.45454545 | U14: 18.49744828 | V14: 0 | W14: 20.66115702 | X14: 20.66115702 | Y14: 0 | Z14: 10 | AA14: 19.8557 | AB14: 2.1032 | AC14: 0.10796052
A15: 12 | B15: 111.0908 | C15: 15.8841 | D15: 0.9086 | E15: 127.8835 | F15: 1.2669 | G15: 0.3222 | H15: 0.0274 | I15: 1.6165 | J15: 12.7969697 | K15: 3.254545455 | L15: 0.2767676768 | M15: 16.32828283 | U15: 21.26355362 | V15: 0 | W15: 25.7805326 | X15: 25.7805326 | Y15: 0 | Z15: 12 | AA15: 22.3895 | AB15: 2.7476 | AC15: 0.16276052
A16: 14 | B16: 105.4416 | C16: 17.1407 | D16: 1.0783 | E16: 123.6606 | F16: 1.1499 | G16: 0.3344 | H16: 0.032 | I16: 1.5163 | J16: 11.61515152 | K16: 3.377777778 | L16: 0.3232323232 | M16: 15.31616162 | U16: 23.86354611 | V16: 0 | W16: 30.38108356 | X16: 30.38108356 | Y16: 0 | Z16: 14 | AA16: 24.6893 | AB16: 3.4164 | AC16: 0.22676052
A17: 16 | B17: 100.2185 | C17: 18.2179 | D17: 1.2435 | E17: 119.6799 | F17: 1.048 | G17: 0.3425 | H17: 0.0363 | I17: 1.4268 | J17: 10.58585859 | K17: 3.45959596 | L17: 0.3666666667 | M17: 14.41212121 | U17: 26.31441876 | V17: 0 | W17: 34.49035813 | X17: 34.49035813 | Y17: 0 | Z17: 16 | AA17: 26.7853 | AB17: 4.1014 | AC17: 0.29936052
A18: 18 | B18: 95.3603 | C18: 19.1466 | D18: 1.404 | E18: 115.9109 | F18: 0.9591 | G18: 0.3479 | H18: 0.0403 | I18: 1.3473 | J18: 9.687878788 | K18: 3.514141414 | L18: 0.4070707071 | M18: 13.60909091 | U18: 28.63495007 | V18: 0 | W18: 38.14049587 | X18: 38.14049587 | Y18: 0 | Z18: 18 | AA18: 28.7035 | AB18: 4.7972 | AC18: 0.37996052
A19: 20 | B19: 90.8278 | C19: 19.9432 | D19: 1.5601 | E19: 112.3311 | F19: 0.8811 | G19: 0.3511 | H19: 0.0441 | I19: 1.2763 | J19: 8.9 | K19: 3.546464646 | L19: 0.4454545455 | M19: 12.89191919 | U19: 30.83899305 | V19: 0 | W19: 41.40036731 | X19: 41.40036731 | Y19: 0 | Z19: 20 | AA19: 30.4657 | AB19: 5.4994 | AC19: 0.46816052
A20: 22 | B20: 86.5837 | C20: 20.6255 | D20: 1.7109 | E20: 108.9201 | F20: 0.8122 | G20: 0.3528 | H20: 0.0476 | I20: 1.2126 | J20: 8.204040404 | K20: 3.563636364 | L20: 0.4808080808 | M20: 12.24848485 | U20: 32.93910776 | V20: 0 | W20: 44.32506887 | X20: 44.32506887 | Y20: 0 | Z20: 22 | AA20: 32.0901 | AB20: 6.205 | AC20: 0.56336052
A21: 24 | B21: 82.5999 | C21: 21.2039 | D21: 1.8576 | E21: 105.6614 | F21: 0.751 | G21: 0.3532 | H21: 0.0509 | I21: 1.1551 | J21: 7.585858586 | K21: 3.567676768 | L21: 0.5141414141 | M21: 11.66767677 | U21: 34.94545305 | V21: 0 | W21: 46.9651056 | X21: 46.9651056 | Y21: 0 | Z21: 24 | AA21: 33.5921 | AB21: 6.9114 | AC21: 0.66516052
A22: 26 | B22: 78.8485 | C22: 21.6922 | D22: 1.9986 | E22: 102.5393 | F22: 0.6962 | G22: 0.3527 | H22: 0.054 | I22: 1.1029 | J22: 7.032323232 | K22: 3.562626263 | L22: 0.5454545455 | M22: 11.14040404 | U22: 36.86769524 | V22: 0 | W22: 49.36179982 | X22: 49.36179982 | Y22: 0 | Z22: 26 | AA22: =AA21+F22*($A22-$A21) -> 34.9845 | AB22: 7.6168 | AC22: 0.77316052
A23: 28 | B23: 75.3107 | C23: 22.096 | D23: 2.136 | E23: 99.5427 | F23: 0.6471 | G23: 0.3513 | H23: 0.057 | I23: 1.0554 | J23: 6.536363636 | K23: 3.548484848 | L23: 0.5757575758 | M23: 10.66060606 | U23: 38.71266848 | V23: 0 | W23: 51.54269972 | X23: 51.54269972 | Y23: 0 | Z23: 28 | AA23: 36.2787 | AB23: 8.3194 | AC23: 0.88716052
A24: 30 | B24: 71.9644 | C24: 22.4277 | D24: 2.267 | E24: 96.6591 | F24: 0.6028 | G24: 0.3493 | H24: 0.0599 | I24: 1.012 | J24: 6.088888889 | K24: 3.528282828 | L24: 0.6050505051 | M24: 10.22222222 | U24: 40.48806887 | V24: 0 | W24: 53.53535354 | X24: 53.53535354 | Y24: 0 | Z24: 30 | AA24: 37.4843 | AB24: 9.018 | AC24: 1.00696052
A25: 32 | B25: 68.8566 | C25: 22.6677 | D25: 2.3919 | E25: 93.9162 | F25: 0.564 | G25: 0.3465 | H25: 0.0625 | I25: 0.973 | J25: 5.696969697 | K25: 3.5 | L25: 0.6313131313 | M25: 9.828282828 | U25: 42.17684185 | V25: 0 | W25: 55.32598714 | X25: 55.32598714 | Y25: 0 | Z25: 32 | AA25: 38.6123 | AB25: 9.711 | AC25: 1.13196052
A26: 34 | B26: 65.8723 | C26: 22.8618 | D26: 2.5129 | E26: 91.247 | F26: 0.5279 | G26: 0.3434 | H26: 0.0651 | I26: 0.9364 | J26: 5.332323232 | K26: 3.468686869 | L26: 0.6575757576 | M26: 9.458585859 | U26: 43.82023855 | V26: 0 | W26: 57.00642792 | X26: 57.00642792 | Y26: 0 | Z26: 34 | AA26: 39.6681 | AB26: 10.3978 | AC26: 1.26216052
A27: 36 | B27: 63.1861 | C27: 22.9492 | D27: 2.6225 | E27: 88.7578 | F27: 0.4978 | G27: 0.3398 | H27: 0.0673 | I27: 0.9049 | J27: 5.028282828 | K27: 3.432323232 | L27: 0.6797979798 | M27: 9.14040404 | U27: 45.35281127 | V27: 0 | W27: 58.45270891 | X27: 58.45270891 | Y27: 0 | Z27: 36 | AA27: 40.6637 | AB27: 11.0774 | AC27: 1.39676052
A28: 38 | B28: 60.5267 | C28: 23.0271 | D28: 2.731 | E28: 86.2848 | F28: 0.4682 | G28: 0.336 | H28: 0.0695 | I28: 0.8737 | J28: 4.729292929 | K28: 3.393939394 | L28: 0.702020202 | M28: 8.825252525 | U28: 46.87540982 | V28: 0 | W28: 59.88521579 | X28: 59.88521579 | Y28: 0 | Z28: 38 | AA28: 41.6001 | AB28: 11.7494 | AC28: 1.53576052
A29: 40 | B29: 58.0343 | C29: 23.0468 | D29: 2.8321 | E29: 83.9132 | F29: 0.4417 | G29: 0.332 | H29: 0.0716 | I29: 0.8453 | J29: 4.461616162 | K29: 3.353535354 | L29: 0.7232323232 | M29: 8.538383838 | U29: 48.33557752 | V29: 0 | W29: 61.18916437 | X29: 61.18916437 | Y29: 0 | Z29: 40 | AA29: 42.4835 | AB29: 12.4134 | AC29: 1.67896052
A30: 42 | B30: 55.6176 | C30: 23.0411 | D30: 2.9296 | E30: 81.5883 | F30: 0.4164 | G30: 0.3278 | H30: 0.0735 | I30: 0.8177 | J30: 4.206060606 | K30: 3.311111111 | L30: 0.7424242424 | M30: 8.25959596 | U30: 49.76699255 | V30: 0 | W30: 62.456382 | X30: 62.456382 | Y30: 0 | Z30: 42 | AA30: 43.3163 | AB30: 13.069 | AC30: 1.82596052
A31: 44 | B31: 53.3575 | C31: 22.9833 | D31: 3.0193 | E31: 79.3601 | F31: 0.3939 | G31: 0.3233 | H31: 0.0753 | I31: 0.7925 | J31: 3.978787879 | K31: 3.265656566 | L31: 0.7606060606 | M31: 8.005050505 | U31: 51.13887047 | V31: 0 | W31: 63.6134068 | X31: 63.6134068 | Y31: 0 | Z31: 44 | AA31: 44.1041 | AB31: 13.7156 | AC31: 1.97656052
A32: 46 | B32: 51.1866 | C32: 22.8977 | D32: 3.1041 | E32: 77.1884 | F32: 0.3728 | G32: 0.3188 | H32: 0.077 | I32: 0.7686 | J32: 3.765656566 | K32: 3.22020202 | L32: 0.7777777778 | M32: 7.763636364 | U32: 52.47596197 | V32: 0 | W32: 64.7107438 | X32: 64.7107438 | Y32: 0 | Z32: 46 | AA32: 44.8497 | AB32: 14.3532 | AC32: 2.13056052
A33: 48 | B33: 49.0664 | C33: 22.7961 | D33: 3.1861 | E33: 75.0486 | F33: 0.3524 | G33: 0.3141 | H33: 0.0786 | I33: 0.7451 | J33: 3.55959596 | K33: 3.172727273 | L33: 0.7939393939 | M33: 7.526262626 | U33: 53.79341299 | V33: 0 | W33: 65.78971534 | X33: 65.78971534 | Y33: 0 | Z33: 48 | AA33: 45.5545 | AB33: 14.9814 | AC33: 2.28776052
A34: 50 | B34: 47.0869 | C34: 22.6516 | D34: 3.2599 | E34: 72.9984 | F34: 0.3342 | G34: 0.3093 | H34: 0.0799 | I34: 0.7234 | J34: 3.375757576 | K34: 3.124242424 | L34: 0.8070707071 | M34: 7.307070707 | U34: 55.05569829 | V34: 0 | W34: 66.78604224 | X34: 66.78604224 | Y34: 0 | Z34: 50 | AA34: 46.2229 | AB34: 15.6 | AC34: 2.44756052
A35: 52 | B35: 45.1273 | C35: 22.5014 | D35: 3.3326 | E35: 70.9613 | F35: 0.3163 | G35: 0.3045 | H35: 0.0813 | I35: 0.7021 | J35: 3.194949495 | K35: 3.075757576 | L35: 0.8212121212 | M35: 7.091919192 | U35: 56.30991807 | V35: 0 | W35: 67.76400367 | X35: 67.76400367 | Y35: 0 | Z35: 52 | AA35: 46.8555 | AB35: 16.209 | AC35: 2.61016052
A36: 54 | B36: 43.2388 | C36: 22.3306 | D36: 3.4007 | E36: 68.9701 | F36: 0.2994 | G36: 0.2996 | H36: 0.0826 | I36: 0.6816 | J36: 3.024242424 | K36: 3.026262626 | L36: 0.8343434343 | M36: 6.884848485 | U36: 57.53587773 | V36: 0 | W36: 68.70523416 | X36: 68.70523416 | Y36: 0 | Z36: 54 | AA36: 47.4543 | AB36: 16.8082 | AC36: 2.77536052
A37: 56 | B37: 41.4043 | C37: 22.1442 | D37: 3.4655 | E37: 67.014 | F37: 0.2832 | G37: 0.2946 | H37: 0.0838 | I37: 0.6616 | J37: 2.860606061 | K37: 2.975757576 | L37: 0.8464646465 | M37: 6.682828283 | U37: 58.74022671 | V37: 0 | W37: 69.62350781 | X37: 69.62350781 | Y37: 0 | Z37: 56 | AA37: 48.0207 | AB37: 17.3974 | AC37: 2.94296052
A38: 58 | B38: 39.6255 | C38: 21.9419 | D38: 3.5268 | E38: 65.0942 | F38: 0.2678 | G38: 0.2896 | H38: 0.0849 | I38: 0.6423 | J38: 2.705050505 | K38: 2.925252525 | L38: 0.8575757576 | M38: 6.487878788 | U38: 59.92222618 | V38: 0 | W38: 70.50964187 | X38: 70.50964187 | Y38: 0 | Z38: 58 | AA38: =AA37+F38*($A38-$A37) -> 48.5563 | AB38: 17.9766 | AC38: 3.11276052
A39: 60 | B39: 37.9242 | C39: 21.7191 | D39: 3.5826 | E39: 63.2259 | F39: 0.2534 | G39: 0.2845 | H39: 0.0858 | I39: 0.6237 | J39: 2.55959596 | K39: 2.873737374 | L39: 0.8666666667 | M39: 6.3 | U39: 61.07251768 | V39: 0 | W39: 71.36363636 | X39: 71.36363636 | Y39: 0 | Z39: 60 | AA39: 49.0631 | AB39: 18.5456 | AC39: 3.28436052
A40: 62 | B40: 36.2881 | C40: 21.4785 | D40: 3.6339 | E40: 61.4005 | F40: 0.2399 | G40: 0.2793 | H40: 0.0867 | I40: 0.6059 | J40: 2.423232323 | K40: 2.821212121 | L40: 0.8757575758 | M40: 6.12020202 | U40: 62.19639613 | V40: 0 | W40: 72.18089991 | X40: 72.18089991 | Y40: 0 | Z40: 62 | AA40: 49.5429 | AB40: 19.1042 | AC40: 3.45776052
A41: 64 | B41: 34.7174 | C41: 21.22 | D41: 3.6808 | E41: 59.6182 | F41: 0.2272 | G41: 0.2741 | H41: 0.0875 | I41: 0.5888 | J41: 2.294949495 | K41: 2.768686869 | L41: 0.8838383838 | M41: 5.947474747 | U41: 63.29373838 | V41: 0 | W41: 72.96602388 | X41: 72.96602388 | Y41: 0 | Z41: 64 | AA41: 49.9973 | AB41: 19.6524 | AC41: 3.63276052
A42: 66 | B42: 33.2042 | C42: 20.9495 | D42: 3.7234 | E42: 57.8771 | F42: 0.2152 | G42: 0.2689 | H42: 0.0882 | I42: 0.5723 | J42: 2.173737374 | K42: 2.716161616 | L42: 0.8909090909 | M42: 5.780808081 | U42: 64.36571426 | V42: 0 | W42: 73.72359963 | X42: 73.72359963 | Y42: 0 | Z42: 66 | AA42: 50.4277 | AB42: 20.1902 | AC42: 3.80916052
A43: 68 | B43: 31.7506 | C43: 20.6655 | D43: 3.7616 | E43: 56.1777 | F43: 0.2039 | G43: 0.2636 | H43: 0.0887 | I43: 0.5562 | J43: 2.05959596 | K43: 2.662626263 | L43: 0.895959596 | M43: 5.618181818 | U43: 65.41201591 | V43: 0 | W43: 74.46280992 | X43: 74.46280992 | Y43: 0 | Z43: 68 | AA43: 50.8355 | AB43: 20.7174 | AC43: 3.98656052
A44: 70 | B44: 30.3576 | C44: 20.3671 | D44: 3.7954 | E44: 54.5201 | F44: 0.1933 | G44: 0.2583 | H44: 0.0892 | I44: 0.5408 | J44: 1.952525253 | K44: 2.609090909 | L44: 0.901010101 | M44: 5.462626263 | U44: 66.43258176 | V44: 0 | W44: 75.16988062 | X44: 75.16988062 | Y44: 0 | Z44: 70 | AA44: 51.2221 | AB44: 21.234 | AC44: 4.16496052
A45: 72 | B45: 29.0195 | C45: 20.0565 | D45: 3.8253 | E45: 52.9013 | F45: 0.1833 | G45: 0.253 | H45: 0.0896 | I45: 0.5259 | J45: 1.851515152 | K45: 2.555555556 | L45: 0.9050505051 | M45: 5.312121212 | U45: 67.42925889 | V45: 0 | W45: 75.85399449 | X45: 75.85399449 | Y45: 0 | Z45: 72 | AA45: 51.5887 | AB45: 21.74 | AC45: 4.34416052
A46: 74 | B46: 27.7327 | C46: 19.7352 | D46: 3.8515 | E46: 51.3194 | F46: 0.1738 | G46: 0.2477 | H46: 0.0899 | I46: 0.5114 | J46: 1.755555556 | K46: 2.502020202 | L46: 0.9080808081 | M46: 5.165656566 | U46: 68.4032171 | V46: 0 | W46: 76.51974288 | X46: 76.51974288 | Y46: 0 | Z46: 74 | AA46: 51.9363 | AB46: 22.2354 | AC46: 4.52396052
A47: 76 | B47: 26.5009 | C47: 19.4017 | D47: 3.8737 | E47: 49.7763 | F47: 0.1649 | G47: 0.2424 | H47: 0.0902 | I47: 0.4975 | J47: 1.665656566 | K47: 2.448484848 | L47: 0.9111111111 | M47: 5.025252525 | U47: 69.35328658 | V47: 0 | W47: 77.15794307 | X47: 77.15794307 | Y47: 0 | Z47: 76 | AA47: 52.2661 | AB47: 22.7202 | AC47: 4.70436052
A48: 78 | B48: 25.3198 | C48: 19.0585 | D48: 3.892 | E48: 48.2703 | F48: 0.1565 | G48: 0.237 | H48: 0.0903 | I48: 0.4838 | J48: 1.580808081 | K48: 2.393939394 | L48: 0.9121212121 | M48: 4.886868687 | U48: 70.280514 | V48: 0 | W48: 77.78696051 | X48: 77.78696051 | Y48: 0 | Z48: 78 | AA48: 52.5791 | AB48: 23.1942 | AC48: 4.88496052
A49: 80 | B49: 24.1765 | C49: 18.7134 | D49: 3.9061 | E49: 46.796 | F49: 0.1485 | G49: 0.2317 | H49: 0.0904 | I49: 0.4706 | J49: 1.5 | K49: 2.34040404 | L49: 0.9131313131 | M49: 4.753535354 | U49: 71.18822409 | V49: 0 | W49: 78.39302112 | X49: 78.39302112 | Y49: 0 | Z49: 80 | AA49: 52.8761 | AB49: 23.6576 | AC49: 5.06576052
A50: 82 | B50: 23.0791 | C50: 18.3614 | D50: 3.9161 | E50: 45.3566 | F50: 0.1409 | G50: 0.2264 | H50: 0.0904 | I50: 0.4577 | J50: 1.423232323 | K50: 2.286868687 | L50: 0.9131313131 | M50: 4.623232323 | U50: 72.07444663 | V50: 0 | W50: 78.98530762 | X50: 78.98530762 | Y50: 0 | Z50: 82 | AA50: 53.1579 | AB50: 24.1104 | AC50: 5.24656052
A51: 84 | B51: 22.0278 | C51: 18.0025 | D51: 3.9221 | E51: 43.9524 | F51: 0.1337 | G51: 0.221 | H51: 0.0903 | I51: 0.445 | J51: 1.350505051 | K51: 2.232323232 | L51: 0.9121212121 | M51: 4.494949495 | U51: 72.93899693 | V51: 0 | W51: 79.56841139 | X51: 79.56841139 | Y51: 0 | Z51: 84 | AA51: 53.4253 | AB51: 24.5524 | AC51: 5.42716052
A52: 86 | B52: 21.0108 | C52: 17.6411 | D52: 3.9257 | E52: 42.5776 | F52: 0.1268 | G52: 0.2157 | H52: 0.0901 | I52: 0.4326 | J52: 1.280808081 | K52: 2.178787879 | L52: 0.9101010101 | M52: 4.36969697 | U52: 73.78544598 | V52: 0 | W52: 80.13774105 | X52: 80.13774105 | Y52: 0 | Z52: 86 | AA52: 53.6789 | AB52: 24.9838 | AC52: 5.60736052
A53: 88 | B53: 20.0343 | C53: 17.2749 | D53: 3.926 | E53: 41.2352 | F53: 0.1203 | G53: 0.2104 | H53: 0.0899 | I53: 0.4206 | J53: 1.215151515 | K53: 2.125252525 | L53: 0.9080808081 | M53: 4.248484848 | U53: 74.6119467 | V53: 0 | W53: 80.68870523 | X53: 80.68870523 | Y53: 0 | Z53: 88 | AA53: 53.9195 | AB53: 25.4046 | AC53: 5.78716052
A54: 90 | B54: 19.0984 | C54: 16.9038 | D54: 3.9231 | E54: 39.9253 | F54: 0.1141 | G54: 0.2052 | H54: 0.0896 | I54: 0.4089 | J54: 1.152525253 | K54: 2.072727273 | L54: 0.9050505051 | M54: 4.13030303 | U54: 75.41843754 | V54: 0 | W54: 81.22589532 | X54: 81.22589532 | Y54: 0 | Z54: 90 | AA54: =AA53+F54*($A54-$A53) -> 54.1477 | AB54: 25.815 | AC54: 5.96636052
A55: 92 | B55: 18.1965 | C55: 16.5309 | D55: 3.917 | E55: 38.6444 | F55: 0.1081 | G55: 0.2 | H55: 0.0892 | I55: 0.3973 | J55: 1.091919192 | K55: 2.02020202 | L55: 0.901010101 | M55: 4.013131313 | U55: 76.2070734 | V55: 0 | W55: 81.75849403 | X55: 81.75849403 | Y55: 0 | Z55: 92 | AA55: 54.3639 | AB55: 26.215 | AC55: 6.14476052
A56: 94 | B56: 17.3288 | C56: 16.156 | D56: 3.9079 | E56: 37.3927 | F56: 0.1025 | G56: 0.1948 | H56: 0.0888 | I56: 0.3861 | J56: 1.035353535 | K56: 1.967676768 | L56: 0.896969697 | M56: 3.9 | U56: 76.97773115 | V56: 0 | W56: 82.27272727 | X56: 82.27272727 | Y56: 0 | Z56: 94 | AA56: 54.5689 | AB56: 26.6046 | AC56: 6.32236052
A57: 96 | B57: 16.4972 | C57: 15.7784 | D57: 3.8956 | E57: 36.1712 | F57: 0.0971 | G57: 0.1896 | H57: 0.0883 | I57: 0.375 | J57: 0.9808080808 | K57: 1.915151515 | L57: 0.8919191919 | M57: 3.787878788 | U57: 77.72979509 | V57: 0 | W57: 82.78236915 | X57: 82.78236915 | Y57: 0 | Z57: 96 | AA57: 54.7631 | AB57: 26.9838 | AC57: 6.49896052
A58: 98 | B58: 15.6984 | C58: 15.3993 | D58: 3.8806 | E58: 34.9783 | F58: 0.092 | G58: 0.1845 | H58: 0.0878 | I58: 0.3643 | J58: 0.9292929293 | K58: 1.863636364 | L58: 0.8868686869 | M58: 3.67979798 | U58: 78.46425033 | V58: 0 | W58: 83.27364555 | X58: 83.27364555 | Y58: 0 | Z58: 98 | AA58: 54.9471 | AB58: 27.3528 | AC58: 6.67456052
A59: 100 | B59: 14.9289 | C59: 15.0203 | D59: 3.8633 | E59: 33.8125 | F59: 0.0871 | G59: 0.1794 | H59: 0.0872 | I59: 0.3537 | J59: 0.8797979798 | K59: 1.812121212 | L59: 0.8808080808 | M59: 3.572727273 | U59: 79.18202041 | V59: 0 | W59: 83.76033058 | X59: 83.76033058 | Y59: 0 | Z59: 100 | AA59: 55.1213 | AB59: 27.7116 | AC59: 6.84896052

Sheet sim10 (hidden)
B1: sim10 | O1: Remediation time (>90% mass removal or flux reduction)
B2: mass (g/m2) | F2: flux (g/y/m2) | J2: Conc output (mg/L) | O2: Mass | P2: =VLOOKUP(90,V:Z,5,FALSE) -> 86 | AA2: acc flux (g/m2)
A3: Time | B3: TCE | C3: DCE | D3: VC | E3: Total | F3: TCE | G3: DCE | H3: VC | I3: Total | J3: TCE | K3: DCE | L3: VC | M3: Total | O3: Flux | P3: =VLOOKUP(90,Y:Z,2,FALSE) -> 84 | U3: mass removal (%) | V3: to find 90% | W3: flux reduction (%) | Y3: to find 90% | Z3: Time | AA3: TCE | AB3: DCE | AC3: VC
A4: 0 | B4: 162.4107 | C4: 0 | D4: 0 | E4: =SUM(B4:D4) -> 162.4107 | F4: 2.178 | G4: 0 | H4: 0 | I4: =SUM(F4:H4) -> 2.178 | J4: 22 | K4: 0 | L4: 0 | M4: =SUM(J4:L4) -> 22 | U4: =(E$4-E4)/E$4*100 -> 0 | V4: =IF(U4>90,90,0) -> 0 | W4: =(I$4-I4)/I$4*100 -> 0 | X4: =IF(W4>0,W4,0) -> 0 | Y4: =IF(X4>90,90,0) -> 0 | Z4: =A4 -> 0 | AA4: =F4 -> 2.178 | AB4: =G4 -> 0 | AC4: 0
A5: 1 | B5: 147.9191 | C5: 7.7459 | D5: 0.0926 | E5: =SUM(B5:D5) -> 155.7576 | F5: 2.0278 | G5: 0.1701 | H5: 0.0028 | I5: =SUM(F5:H5) -> 2.2007 | J5: 20.48282828 | K5: 1.718181818 | L5: 0.02828282828 | M5: =SUM(J5:L5) -> 22.22929293 | O5: Accumulated flux to the aquifer (g/m2) | U5: =(E$4-E5)/E$4*100 -> 4.096466551 | V5: =IF(U5>90,90,0) -> 0 | W5: =(I$4-I5)/I$4*100 -> -1.042240588 | X5: =IF(W5>0,W5,0) -> 0 | Y5: =IF(X5>90,90,0) -> 0 | Z5: =A5 -> 1 | AA5: =AA4+F5*($A5-$A4) -> 4.2058 | AB5: =AB4+G5*($A5-$A4) -> 0.1701 | AC5: 0.0028
A6: 2 | B6: 137.3513 | C6: 13.1523 | D6: 0.3 | E6: 150.8036 | F6: 1.8981 | G6: 0.2948 | H6: 0.0093 | I6: 2.2022 | J6: 19.17272727 | K6: 2.977777778 | L6: 0.09393939394 | M6: 22.24444444 | O6: TCE | P6: =MAX(AA:AA) -> 30.7574 | U6: 7.146758188 | V6: 0 | W6: -1.111111111 | X6: 0 | Y6: 0 | Z6: 2 | AA6: =AA5+F6*($A6-$A5) -> 6.1039 | AB6: 0.4649 | AC6: 0.0121
A7: 3 | B7: 128.5393 | C7: 17.2767 | D7: 0.57 | E7: 146.386 | F7: 1.7685 | G7: 0.3894 | H7: 0.0181 | I7: 2.176 | J7: 17.86363636 | K7: 3.933333333 | L7: 0.1828282828 | M7: 21.97979798 | O7: DCE | P7: =MAX(AB:AB) -> 30.0843 | U7: 9.866776019 | V7: 0 | W7: 0.09182736455 | X7: 0.09182736455 | Y7: 0 | Z7: 3 | AA7: 7.8724 | AB7: 0.8543 | AC7: 0.0302
A8: 4 | B8: 120.8681 | C8: 20.5511 | D8: 0.8765 | E8: 142.2957 | F8: 1.6394 | G8: 0.461 | H8: 0.0282 | I8: 2.1286 | J8: 16.55959596 | K8: 4.656565657 | L8: 0.2848484848 | M8: 21.5010101 | O8: VC | P8: =MAX(AC:AC) -> 14.7803 | U8: 12.38526772 | V8: 0 | W8: 2.268135904 | X8: 2.268135904 | Y8: 0 | Z8: 4 | AA8: 9.5118 | AB8: 1.3153 | AC8: 0.0584
A9: 5 | B9: 114.025 | C9: 23.2196 | D9: 1.2032 | E9: 138.4478 | F9: 1.5149 | G9: 0.5147 | H9: 0.0389 | I9: 2.0685 | J9: 15.3020202 | K9: 5.198989899 | L9: 0.3929292929 | M9: 20.89393939 | O9: Total | P9: =SUM(P6:P8) -> 75.622 | U9: 14.75450817 | V9: 0 | W9: 5.027548209 | X9: 5.027548209 | Y9: 0 | Z9: 5 | AA9: 11.0267 | AB9: 1.83 | AC9: 0.0973
A10: 6 | B10: 107.8284 | C10: 25.4298 | D10: 1.5397 | E10: 134.7979 | F10: 1.3978 | G10: 0.5544 | H10: 0.0498 | I10: 2.002 | J10: 14.11919192 | K10: 5.6 | L10: 0.503030303 | M10: 20.22222222 | U10: 17.00183547 | V10: 0 | W10: 8.080808081 | X10: 8.080808081 | Y10: 0 | Z10: 6 | AA10: 12.4245 | AB10: 2.3844 | AC10: 0.1471
A11: 7 | B11: 102.1658 | C11: 27.2751 | D11: 1.8794 | E11: 131.3203 | F11: 1.2894 | G11: 0.5831 | H11: 0.0605 | I11: 1.933 | J11: 13.02424242 | K11: 5.88989899 | L11: 0.6111111111 | M11: 19.52525253 | U11: 19.1430737 | V11: 0 | W11: 11.24885216 | X11: 11.24885216 | Y11: 0 | Z11: 7 | AA11: 13.7139 | AB11: 2.9675 | AC11: 0.2076
A12: 8 | B12: 96.9533 | C12: 28.8243 | D12: 2.2179 | E12: 127.9955 | F12: 1.1898 | G12: 0.6033 | H12: 0.0709 | I12: 1.864 | J12: 12.01818182 | K12: 6.093939394 | L12: 0.7161616162 | M12: 18.82828283 | U12: 21.19022946 | V12: 0 | W12: 14.41689624 | X12: 14.41689624 | Y12: 0 | Z12: 8 | AA12: 14.9037 | AB12: 3.5708 | AC12: 0.2785
A13: 9 | B13: 92.1278 | C13: 30.1282 | D13: 2.552 | E13: 124.808 | F13: 1.0989 | G13: 0.6169 | H13: 0.0808 | I13: 1.7966 | J13: 11.1 | K13: 6.231313131 | L13: 0.8161616162 | M13: 18.14747475 | U13: 23.15284646 | V13: 0 | W13: 17.51147842 | X13: 17.51147842 | Y13: 0 | Z13: 9 | AA13: 16.0026 | AB13: 4.1877 | AC13: 0.3593
A14: 10 | B14: 87.6413 | C14: 31.2243 | D14: 2.8797 | E14: 121.7453 | F14: 1.0158 | G14: 0.6252 | H14: 0.0902 | I14: 1.7312 | J14: 10.26060606 | K14: 6.315151515 | L14: 0.9111111111 | M14: 17.48686869 | U14: 25.03862122 | V14: 0 | W14: 20.51423324 | X14: 20.51423324 | Y14: 0 | Z14: 10 | AA14: 17.0184 | AB14: 4.8129 | AC14: 0.4495
A15: 12 | B15: 79.5373 | C15: 32.9066 | D15: 3.5113 | E15: 115.9552 | F15: 0.8709 | G15: 0.6302 | H15: 0.1073 | I15: 1.6084 | J15: 8.796969697 | K15: 6.365656566 | L15: 1.083838384 | M15: 16.24646465 | U15: 28.60371884 | V15: 0 | W15: 26.15243343 | X15: 26.15243343 | Y15: 0 | Z15: 12 | AA15: 18.7602 | AB15: 6.0733 | AC15: 0.6641
A16: 14 | B16: 72.3814 | C16: 34.0649 | D16: 4.1064 | E16: 110.5527 | F16: 0.7503 | G16: 0.6252 | H16: 0.1224 | I16: 1.4979 | J16: 7.578787879 | K16: 6.315151515 | L16: 1.236363636 | M16: 15.13030303 | U16: 31.93016224 | V16: 0 | W16: 31.22589532 | X16: 31.22589532 | Y16: 0 | Z16: 14 | AA16: 20.2608 | AB16: 7.3237 | AC16: 0.9089
A17: 16 | B17: 66.0131 | C17: 34.8105 | D17: 4.6638 | E17: 105.4874 | F17: 0.6492 | G17: 0.6137 | H17: 0.1356 | I17: 1.3985 | J17: 6.557575758 | K17: 6.198989899 | L17: 1.36969697 | M17: 14.12626263 | U17: 35.04898384 | V17: 0 | W17: 35.78971534 | X17: 35.78971534 | Y17: 0 | Z17: 16 | AA17: 21.5592 | AB17: 8.5511 | AC17: 1.1801
A18: 18 | B18: 60.2989 | C18: 35.233 | D18: 5.1831 | E18: 100.715 | F18: 0.5639 | G18: 0.5983 | H18: 0.1472 | I18: 1.3094 | J18: 5.695959596 | K18: 6.043434343 | L18: 1.486868687 | M18: 13.22626263 | U18: 37.98746019 | V18: 0 | W18: 39.88062443 | X18: 39.88062443 | Y18: 0 | Z18: 18 | AA18: 22.687 | AB18: 9.7477 | AC18: 1.4745
A19: 20 | B19: 55.1457 | C19: 35.3911 | D19: 5.6651 | E19: 96.2019 | F19: 0.4915 | G19: 0.5804 | H19: 0.1574 | I19: 1.2293 | J19: 4.964646465 | K19: 5.862626263 | L19: 1.58989899 | M19: 12.41717172 | U19: 40.76627956 | V19: 0 | W19: 43.55831038 | X19: 43.55831038 | Y19: 0 | Z19: 20 | AA19: 23.67 | AB19: 10.9085 | AC19: 1.7893
A20: 22 | B20: 50.4787 | C20: 35.3331 | D20: 6.1087 | E20: 91.9205 | F20: 0.4294 | G20: 0.5609 | H20: 0.1664 | I20: 1.1567 | J20: 4.337373737 | K20: 5.665656566 | L20: 1.680808081 | M20: 11.68383838 | U20: 43.40243592 | V20: 0 | W20: 46.89164371 | X20: 46.89164371 | Y20: 0 | Z20: 22 | AA20: 24.5288 | AB20: 12.0303 | AC20: 2.1221
A21: 24 | B21: 46.2441 | C21: 35.0923 | D21: 6.5149 | E21: 87.8513 | F21: 0.3762 | G21: 0.5403 | H21: 0.1742 | I21: 1.0907 | J21: 3.8 | K21: 5.457575758 | L21: 1.75959596 | M21: 11.01717172 | U21: 45.90793587 | V21: 0 | W21: 49.92194674 | X21: 49.92194674 | Y21: 0 | Z21: 24 | AA21: 25.2812 | AB21: 13.1109 | AC21: 2.4705
A22: 26 | B22: 42.3878 | C22: 34.7016 | D22: 6.8842 | E22: 83.9736 | F22: 0.3304 | G22: 0.5192 | H22: 0.181 | I22: 1.0306 | J22: 3.337373737 | K22: 5.244444444 | L22: 1.828282828 | M22: 10.41010101 | U22: 48.29552486 | V22: 0 | W22: 52.68135904 | X22: 52.68135904 | Y22: 0 | Z22: 26 | AA22: =AA21+F22*($A22-$A21) -> 25.942 | AB22: 14.1493 | AC22: 2.8325
A23: 28 | B23: 38.8522 | C23: 34.1949 | D23: 7.2177 | E23: 80.2648 | F23: 0.2904 | G23: 0.4979 | H23: 0.1868 | I23: 0.9751 | J23: 2.933333333 | K23: 5.029292929 | L23: 1.886868687 | M23: 9.849494949 | U23: 50.57911825 | V23: 0 | W23: 55.22956841 | X23: 55.22956841 | Y23: 0 | Z23: 28 | AA23: 26.5228 | AB23: 15.1451 | AC23: 3.2061
A24: 30 | B24: 35.6113 | C24: 33.5867 | D24: 7.516 | E24: 76.714 | F24: 0.2555 | G24: 0.4767 | H24: 0.1916 | I24: 0.9238 | J24: 2.580808081 | K24: 4.815151515 | L24: 1.935353535 | M24: 9.331313131 | U24: 52.7654274 | V24: 0 | W24: 57.58494031 | X24: 57.58494031 | Y24: 0 | Z24: 30 | AA24: 27.0338 | AB24: 16.0985 | AC24: 3.5893
A25: 32 | B25: 32.6444 | C25: 32.8884 | D25: 7.7799 | E25: 73.3127 | F25: 0.2254 | G25: 0.4556 | H25: 0.1957 | I25: 0.8767 | J25: 2.276767677 | K25: 4.602020202 | L25: 1.976767677 | M25: 8.855555556 | U25: 54.85968597 | V25: 0 | W25: 59.74747475 | X25: 59.74747475 | Y25: 0 | Z25: 32 | AA25: 27.4846 | AB25: 17.0097 | AC25: 3.9807
A26: 34 | B26: 29.921 | C26: 32.1173 | D26: 8.01 | E26: 70.0483 | F26: 0.1991 | G26: 0.435 | H26: 0.1989 | I26: 0.833 | J26: 2.011111111 | K26: 4.393939394 | L26: 2.009090909 | M26: 8.414141414 | U26: 56.86965206 | V26: 0 | W26: 61.75390266 | X26: 61.75390266 | Y26: 0 | Z26: 34 | AA26: 27.8828 | AB26: 17.8797 | AC26: 4.3785
A27: 36 | B27: 27.4114 | C27: 31.2899 | D27: 8.2076 | E27: 66.9089 | F27: 0.1759 | G27: 0.4147 | H27: 0.2013 | I27: 0.7919 | J27: 1.776767677 | K27: 4.188888889 | L27: 2.033333333 | M27: 7.998989899 | U27: 58.80265278 | V27: 0 | W27: 63.640955 | X27: 63.640955 | Y27: 0 | Z27: 36 | AA27: 28.2346 | AB27: 18.7091 | AC27: 4.7811
A28: 38 | B28: 25.1098 | C28: 30.4094 | D28: 8.3732 | E28: 63.8924 | F28: 0.1557 | G28: 0.395 | H28: 0.203 | I28: 0.7537 | J28: 1.572727273 | K28: 3.98989899 | L28: 2.050505051 | M28: 7.613131313 | U28: 60.65998115 | V28: 0 | W28: 65.39485767 | X28: 65.39485767 | Y28: 0 | Z28: 38 | AA28: 28.546 | AB28: 19.4991 | AC28: 5.1871
A29: 40 | B29: 22.9916 | C29: 29.4891 | D29: 8.5079 | E29: 60.9886 | F29: 0.138 | G29: 0.3757 | H29: 0.2041 | I29: 0.7178 | J29: 1.393939394 | K29: 3.794949495 | L29: 2.061616162 | M29: 7.250505051 | U29: 62.44791753 | V29: 0 | W29: 67.04315886 | X29: 67.04315886 | Y29: 0 | Z29: 40 | AA29: 28.822 | AB29: 20.2505 | AC29: 5.5953
A30: 42 | B30: 21.0424 | C30: 28.5372 | D30: 8.6126 | E30: 58.1922 | F30: 0.1225 | G30: 0.357 | H30: 0.2044 | I30: 0.6839 | J30: 1.237373737 | K30: 3.606060606 | L30: 2.064646465 | M30: 6.908080808 | U30: 64.16972527 | V30: 0 | W30: 68.59963269 | X30: 68.59963269 | Y30: 0 | Z30: 42 | AA30: 29.067 | AB30: 20.9645 | AC30: 6.0041
A31: 44 | B31: 19.2454 | C31: 27.5618 | D31: 8.689 | E31: 55.4962 | F31: 0.1088 | G31: 0.3389 | H31: 0.2042 | I31: 0.6519 | J31: 1.098989899 | K31: 3.423232323 | L31: 2.062626263 | M31: 6.584848485 | U31: 65.82971442 | V31: 0 | W31: 70.06887052 | X31: 70.06887052 | Y31: 0 | Z31: 44 | AA31: 29.2846 | AB31: 21.6423 | AC31: 6.4125
A32: 46 | B32: 17.5835 | C32: 26.5718 | D32: 8.7384 | E32: 52.8937 | F32: 0.0966 | G32: 0.3214 | H32: 0.2034 | I32: 0.6214 | J32: 0.9757575758 | K32: 3.246464646 | L32: 2.054545455 | M32: 6.276767677 | U32: 67.43213347 | V32: 0 | W32: 71.46923783 | X32: 71.46923783 | Y32: 0 | Z32: 46 | AA32: 29.4778 | AB32: 22.2851 | AC32: 6.8193
A33: 48 | B33: 16.0403 | C33: 25.576 | D33: 8.762 | E33: 50.3783 | F33: 0.0856 | G33: 0.3046 | H33: 0.2021 | I33: 0.5923 | J33: 0.8646464646 | K33: 3.076767677 | L33: 2.041414141 | M33: 5.982828283 | U33: 68.98092305 | V33: 0 | W33: 72.80532599 | X33: 72.80532599 | Y33: 0 | Z33: 48 | AA33: 29.649 | AB33: 22.8943 | AC33: 7.2235
A34: 50 | B34: 14.613 | C34: 24.5727 | D34: 8.7628 | E34: 47.9485 | F34: 0.0759 | G34: 0.2883 | H34: 0.2004 | I34: 0.5646 | J34: 0.7666666667 | K34: 2.912121212 | L34: 2.024242424 | M34: 5.703030303 | U34: 70.47700675 | V34: 0 | W34: 74.07713499 | X34: 74.07713499 | Y34: 0 | Z34: 50 | AA34: 29.8008 | AB34: 23.4709 | AC34: 7.6243
A35: 52 | B35: 13.2835 | C35: 23.5716 | D35: 8.7421 | E35: 45.5972 | F35: 0.067 | G35: 0.2726 | H35: 0.1983 | I35: 0.5379 | J35: 0.6767676768 | K35: 2.753535354 | L35: 2.003030303 | M35: 5.433333333 | U35: 71.92475619 | V35: 0 | W35: 75.3030303 | X35: 75.3030303 | Y35: 0 | Z35: 52 | AA35: 29.9348 | AB35: 24.0161 | AC35: 8.0209
A36: 54 | B36: 12.0419 | C36: 22.5769 | D36: 8.7011 | E36: 43.3199 | F36: 0.0589 | G36: 0.2574 | H36: 0.1958 | I36: 0.5121 | J36: 0.5949494949 | K36: 2.6 | L36: 1.977777778 | M36: 5.172727273 | U36: 73.32694213 | V36: 0 | W36: 76.48760331 | X36: 76.48760331 | Y36: 0 | Z36: 54 | AA36: 30.0526 | AB36: 24.5309 | AC36: 8.4125
A37: 56 | B37: 10.8924 | C37: 21.5851 | D37: 8.64 | E37: 41.1175 | F37: 0.0517 | G37: 0.2427 | H37: 0.193 | I37: 0.4874 | J37: 0.5222222222 | K37: 2.451515152 | L37: 1.949494949 | M37: 4.923232323 | U37: 74.68301042 | V37: 0 | W37: 77.62167126 | X37: 77.62167126 | Y37: 0 | Z37: 56 | AA37: 30.156 | AB37: 25.0163 | AC37: 8.7985
A38: 58 | B38: 9.8203 | C38: 20.603 | D38: 8.5607 | E38: 38.984 | F38: 0.0451 | G38: 0.2285 | H38: 0.1899 | I38: 0.4635 | J38: 0.4555555556 | K38: 2.308080808 | L38: 1.918181818 | M38: 4.681818182 | U38: 75.99665539 | V38: 0 | W38: 78.71900826 | X38: 78.71900826 | Y38: 0 | Z38: 58 | AA38: =AA37+F38*($A38-$A37) -> 30.2462 | AB38: 25.4733 | AC38: 9.1783
A39: 60 | B39: 8.8236 | C39: 19.6304 | D39: 8.4647 | E39: 36.9187 | F39: 0.0391 | G39: 0.2148 | H39: 0.1865 | I39: 0.4404 | J39: 0.3949494949 | K39: 2.16969697 | L39: 1.883838384 | M39: 4.448484848 | U39: 77.26830806 | V39: 0 | W39: 79.77961433 | X39: 79.77961433 | Y39: 0 | Z39: 60 | AA39: 30.3244 | AB39: 25.9029 | AC39: 9.5513
A40: 62 | B40: 7.905 | C40: 18.6642 | D40: 8.3543 | E40: 34.9235 | F40: 0.0338 | G40: 0.2015 | H40: 0.1828 | I40: 0.4181 | J40: 0.3414141414 | K40: 2.035353535 | L40: 1.846464646 | M40: 4.223232323 | U40: 78.49679855 | V40: 0 | W40: 80.80348944 | X40: 80.80348944 | Y40: 0 | Z40: 62 | AA40: 30.392 | AB40: 26.3059 | AC40: 9.9169
A41: 64 | B41: 7.0559 | C41: 17.708 | D41: 8.2305 | E41: 32.9944 | F41: 0.029 | G41: 0.1887 | H41: 0.179 | I41: 0.3967 | J41: 0.2929292929 | K41: 1.906060606 | L41: 1.808080808 | M41: 4.007070707 | U41: 79.68458975 | V41: 0 | W41: 81.78604224 | X41: 81.78604224 | Y41: 0 | Z41: 64 | AA41: 30.45 | AB41: 26.6833 | AC41: 10.2749
A42: 66 | B42: 6.2808 | C42: 16.7608 | D42: 8.0907 | E42: 31.1323 | F42: 0.0247 | G42: 0.1763 | H42: 0.1748 | I42: 0.3758 | J42: 0.2494949495 | K42: 1.780808081 | L42: 1.765656566 | M42: 3.795959596 | U42: 80.83112751 | V42: 0 | W42: 82.7456382 | X42: 82.7456382 | Y42: 0 | Z42: 66 | AA42: 30.4994 | AB42: 27.0359 | AC42: 10.6245
A43: 68 | B43: 5.5813 | C43: 15.8224 | D43: 7.9332 | E43: 29.3369 | F43: 0.021 | G43: 0.1643 | H43: 0.1702 | I43: 0.3555 | J43: 0.2121212121 | K43: 1.65959596 | L43: 1.719191919 | M43: 3.590909091 | U43: 81.93659654 | V43: 0 | W43: 83.67768595 | X43: 83.67768595 | Y43: 0 | Z43: 68 | AA43: 30.5414 | AB43: 27.3645 | AC43: 10.9649
A44: 70 | B44: 4.9542 | C44: 14.8936 | D44: 7.7593 | E44: 27.6071 | F44: 0.0177 | G44: 0.1528 | H44: 0.1654 | I44: 0.3359 | J44: 0.1787878788 | K44: 1.543434343 | L44: 1.670707071 | M44: 3.392929293 | U44: 83.00167415 | V44: 0 | W44: 84.57759412 | X44: 84.57759412 | Y44: 0 | Z44: 70 | AA44: 30.5768 | AB44: 27.6701 | AC44: 11.2957
A45: 72 | B45: 4.3821 | C45: 13.9861 | D45: 7.5713 | E45: 25.9395 | F45: 0.0149 | G45: 0.1416 | H45: 0.1602 | I45: 0.3167 | J45: 0.1505050505 | K45: 1.43030303 | L45: 1.618181818 | M45: 3.198989899 | U45: 84.02845379 | V45: 0 | W45: 85.45913682 | X45: 85.45913682 | Y45: 0 | Z45: 72 | AA45: 30.6066 | AB45: 27.9533 | AC45: 11.6161
A46: 74 | B46: 3.8705 | C46: 13.0964 | D46: 7.3686 | E46: 24.3355 | F46: 0.0126 | G46: 0.1309 | H46: 0.1547 | I46: 0.2982 | J46: 0.1272727273 | K46: 1.322222222 | L46: 1.562626263 | M46: 3.012121212 | U46: 85.01607345 | V46: 0 | W46: 86.30853994 | X46: 86.30853994 | Y46: 0 | Z46: 74 | AA46: 30.6318 | AB46: 28.2151 | AC46: 11.9255
A47: 76 | B47: 3.4183 | C47: 12.2243 | D47: 7.1514 | E47: 22.794 | F47: 0.0108 | G47: 0.1205 | H47: 0.1488 | I47: 0.2801 | J47: 0.1090909091 | K47: 1.217171717 | L47: 1.503030303 | M47: 2.829292929 | U47: 85.96521042 | V47: 0 | W47: 87.13957759 | X47: 87.13957759 | Y47: 0 | Z47: 76 | AA47: 30.6534 | AB47: 28.4561 | AC47: 12.2231
A48: 78 | B48: 2.9968 | C48: 11.3828 | D48: 6.925 | E48: 21.3046 | F48: 0.0091 | G48: 0.1107 | H48: 0.1428 | I48: 0.2626 | J48: 0.09191919192 | K48: 1.118181818 | L48: 1.442424242 | M48: 2.652525253 | U48: 86.88226822 | V48: 0 | W48: 87.94306703 | X48: 87.94306703 | Y48: 0 | Z48: 78 | AA48: 30.6716 | AB48: 28.6775 | AC48: 12.5087
A49: 80 | B49: 2.6203 | C49: 10.5655 | D49: 6.6868 | E49: 19.8726 | F49: 0.0078 | G49: 0.1013 | H49: 0.1366 | I49: 0.2457 | J49: 0.07878787879 | K49: 1.023232323 | L49: 1.37979798 | M49: 2.481818182 | U49: 87.76398353 | V49: 0 | W49: 88.71900826 | X49: 88.71900826 | Y49: 0 | Z49: 80 | AA49: 30.6872 | AB49: 28.8801 | AC49: 12.7819
A50: 82 | B50: 2.2846 | C50: 9.7738 | D50: 6.437 | E50: 18.4954 | F50: 0.0067 | G50: 0.0925 | H50: 0.1302 | I50: 0.2294 | J50: 0.06767676768 | K50: 0.9343434343 | L50: 1.315151515 | M50: 2.317171717 | U50: 88.61195722 | V50: 0 | W50: 89.46740129 | X50: 89.46740129 | Y50: 0 | Z50: 82 | AA50: 30.7006 | AB50: 29.0651 | AC50: 13.0423
A51: 84 | B51: 1.9781 | C51: 9.0115 | D51: 6.1765 | E51: 17.1661 | F51: 0.0057 | G51: 0.0841 | H51: 0.1237 | I51: 0.2135 | J51: 0.05757575758 | K51: 0.8494949495 | L51: 1.249494949 | M51: 2.156565657 | U51: 89.43043777 | V51: 0 | W51: 90.19742883 | X51: 90.19742883 | Y51: 90 | Z51: 84 | AA51: 30.712 | AB51: 29.2333 | AC51: 13.2897
A52: 86 | B52: 1.7077 | C52: 8.2764 | D52: 5.9048 | E52: 15.8889 | F52: 0.0049 | G52: 0.0762 | H52: 0.1171 | I52: 0.1982 | J52: 0.04949494949 | K52: 0.7696969697 | L52: 1.182828283 | M52: 2.002020202 | U52: 90.21683916 | V52: 90 | W52: 90.89990817 | X52: 90.89990817 | Y52: 90 | Z52: 86 | AA52: 30.7218 | AB52: 29.3857 | AC52: 13.5239
A53: 88 | B53: 1.4646 | C53: 7.5714 | D53: 5.6252 | E53: 14.6612 | F53: 0.0041 | G53: 0.0688 | H53: 0.1104 | I53: 0.1833 | J53: 0.04141414141 | K53: 0.6949494949 | L53: 1.115151515 | M53: 1.851515152 | U53: 90.97276226 | V53: 90 | W53: 91.58402204 | X53: 91.58402204 | Y53: 90 | Z53: 88 | AA53: 30.73 | AB53: 29.5233 | AC53: 13.7447
A54: 90 | B54: 1.2494 | C54: 6.8962 | D54: 5.3375 | E54: 13.4831 | F54: 0.0035 | G54: 0.0618 | H54: 0.1036 | I54: 0.1689 | J54: 0.03535353535 | K54: 0.6242424242 | L54: 1.046464646 | M54: 1.706060606 | U54: 91.6981455 | V54: 90 | W54: 92.24517906 | X54: 92.24517906 | Y54: 90 | Z54: 90 | AA54: =AA53+F54*($A54-$A53) -> 30.737 | AB54: 29.6469 | AC54: 13.9519
A55: 92 | B55: 1.0611 | C55: 6.2513 | D55: 5.0421 | E55: 12.3545 | F55: 0.0029 | G55: 0.0552 | H55: 0.0967 | I55: 0.1548 | J55: 0.02929292929 | K55: 0.5575757576 | L55: 0.9767676768 | M55: 1.563636364 | U55: 92.39305046 | V55: 90 | W55: 92.89256198 | X55: 92.89256198 | Y55: 90 | Z55: 92 | AA55: 30.7428 | AB55: 29.7573 | AC55: 14.1453
A56: 94 | B56: 0.8919 | C56: 5.6397 | D56: 4.7424 | E56: 11.274 | F56: 0.0024 | G56: 0.0491 | H56: 0.0898 | I56: 0.1413 | J56: 0.02424242424 | K56: 0.495959596 | L56: 0.9070707071 | M56: 1.427272727 | U56: 93.05833914 | V56: 90 | W56: 93.51239669 | X56: 93.51239669 | Y56: 90 | Z56: 94 | AA56: 30.7476 | AB56: 29.8555 | AC56: 14.3249
A57: 96 | B57: 0.746 | C57: 5.0597 | D57: 4.4366 | E57: 10.2423 | F57: 0.002 | G57: 0.0433 | H57: 0.0828 | I57: 0.1281 | J57: 0.0202020202 | K57: 0.4373737374 | L57: 0.8363636364 | M57: 1.293939394 | U57: 93.69358053 | V57: 90 | W57: 94.1184573 | X57: 94.1184573 | Y57: 90 | Z57: 96 | AA57: 30.7516 | AB57: 29.9421 | AC57: 14.4905
A58: 98 | B58: 0.6169 | C58: 4.5125 | D58: 4.1293 | E58: 9.2587 | F58: 0.0016 | G58: 0.038 | H58: 0.0759 | I58: 0.1155 | J58: 0.01616161616 | K58: 0.3838383838 | L58: 0.7666666667 | M58: 1.166666667 | U58: 94.29920566 | V58: 90 | W58: 94.6969697 | X58: 94.6969697 | Y58: 90 | Z58: 98 | AA58: 30.7548 | AB58: 30.0181 | AC58: 14.6423
A59: 100 | B59: 0.5047 | C59: 3.9981 | D59: 3.8205 | E59: 8.3233 | F59: 0.0013 | G59: 0.0331 | H59: 0.069 | I59: 0.1034 | J59: 0.01313131313 | K59: 0.3343434343 | L59: 0.696969697 | M59: 1.044444444 | U59: 94.87515293 | V59: 90 | W59: 95.25252525 | X59: 95.25252525 | Y59: 90 | Z59: 100 | AA59: 30.7574 | AB59: 30.0843 | AC59: 14.7803

Sheet sim11 (hidden)
B1: sim11 | O1: Remediation time (>90% mass removal or flux reduction)
B2: mass (g/m2) | F2: flux (g/y/m2) | J2: Conc output (mg/L) | O2: Mass | P2: =VLOOKUP(90,V4:Z59,5,FALSE) -> 28 | AA2: acc flux (g/m2)
A3: Time | B3: TCE | C3: DCE | D3: VC | E3: Total | F3: TCE | G3: DCE | H3: VC | I3: Total | J3: TCE | K3: DCE | L3: VC | M3: Total | O3: Flux | P3: =VLOOKUP(90,Y4:Z59,2,FALSE) -> 12 | U3: mass removal (%) | V3: to find 90% | W3: flux reduction (%) | Y3: to find 90% | Z3: Time | AA3: TCE | AB3: DCE | AC3: VC
A4: 0 | B4: 162.5902 | C4: 0 | D4: 0 | E4: =SUM(B4:D4) -> 162.5902 | F4: 2.178 | G4: 0 | H4: 0 | I4: =SUM(F4:H4) -> 2.178 | J4: 22 | K4: 0 | L4: 0 | M4: =SUM(J4:L4) -> 22 | U4: =(E$4-E4)/E$4*100 -> 0 | V4: =IF(U4>90,90,0) -> 0 | W4: =(I$4-I4)/I$4*100 -> 0 | X4: =IF(W4>0,W4,0) -> 0 | Y4: =IF(X4>90,90,0) -> 0 | Z4: 0 | AA4: =F4 -> 2.178 | AB4: =G4 -> 0 | AC4: 0
A5: 1 | B5: 110.5312 | C5: 12.1002 | D5: 7.2127 | E5: =SUM(B5:D5) -> 129.8441 | F5: 1.147 | G5: 0.5872 | H5: 0.2953 | I5: =SUM(F5:H5) -> 2.0295 | J5: 11.58585859 | K5: 5.931313131 | L5: 2.982828283 | M5: =SUM(J5:L5) -> 20.5 | O5: Accumulated flux to the aquifer (g/m2) | U5: =(E$4-E5)/E$4*100 -> 20.14026676 | V5: =IF(U5>90,90,0) -> 0 | W5: =(I$4-I5)/I$4*100 -> 6.818181818 | X5: =IF(W5>0,W5,0) -> 6.818181818 | Y5: =IF(X5>90,90,0) -> 0 | Z5: 1 | AA5: =AA4+F5*($A5-$A4) -> 3.325 | AB5: =AB4+G5*($A5-$A4) -> 0.5872 | AC5: 0.2953
A6: 2 | B6: 95.1978 | C6: 8.0731 | D6: 4.8088 | E6: 108.0797 | F6: 0.8096 | G6: 0.5101 | H6: 0.3112 | I6: 1.6309 | J6: 8.177777778 | K6: 5.152525253 | L6: 3.143434343 | M6: 16.47373737 | O6: TCE | P6: =AA59 -> 7.37218746 | U6: 33.52631339 | V6: 0 | W6: 25.11937557 | X6: 25.11937557 | Y6: 0 | Z6: 2 | AA6: =AA5+F6*($A6-$A5) -> 4.1346 | AB6: 1.0973 | AC6: 0.6065
A7: 3 | B7: 84.6597 | C7: 6.3538 | D7: 3.4153 | E7: 94.4288 | F7: 0.5882 | G7: 0.3962 | H7: 0.2361 | I7: 1.2205 | J7: 5.941414141 | K7: 4.002020202 | L7: 2.384848485 | M7: 12.32828283 | O7: DCE | P7: =AB59 -> 3.53824806 | U7: 41.92220687 | V7: 0 | W7: 43.96235078 | X7: 43.96235078 | Y7: 0 | Z7: 3 | AA7: 4.7228 | AB7: 1.4935 | AC7: 0.8426
A8: 4 | B8: 76.5828 | C8: 5.4405 | D8: 2.7455 | E8: 84.7688 | F8: 0.4388 | G8: 0.3037 | H8: 0.1737 | I8: 0.9162 | J8: 4.432323232 | K8: 3.067676768 | L8: 1.754545455 | M8: 9.254545455 | O8: VC | P8: =AC59 -> 1.80426628 | U8: 47.86352437 | V8: 0 | W8: 57.9338843 | X8: 57.9338843 | Y8: 0 | Z8: 4 | AA8: 5.1616 | AB8: 1.7972 | AC8: 1.0163
A9: 5 | B9: 69.8633 | C9: 4.7923 | D9: 2.2767 | E9: 76.9323 | F9: 0.3368 | G9: 0.2372 | H9: 0.1307 | I9: 0.7047 | J9: 3.402020202 | K9: 2.395959596 | L9: 1.32020202 | M9: 7.118181818 | O9: Total | P9: =SUM(P6:P8) -> 12.7147018 | U9: 52.68331056 | V9: 0 | W9: 67.6446281 | X9: 67.6446281 | Y9: 0 | Z9: 5 | AA9: 5.4984 | AB9: 2.0344 | AC9: 1.147
A10: 6 | B10: 64.0923 | C10: 4.2853 | D10: 1.9176 | E10: 70.2952 | F10: 0.2658 | G10: 0.1899 | H10: 0.1013 | I10: 0.557 | J10: 2.684848485 | K10: 1.918181818 | L10: 1.023232323 | M10: 5.626262626 | U10: 56.76541391 | V10: 0 | W10: 74.42607897 | X10: 74.42607897 | Y10: 0 | Z10: 6 | AA10: 5.7642 | AB10: 2.2243 | AC10: 1.2483
A11: 7 | B11: 58.9958 | C11: 3.8644 | D11: 1.6286 | E11: 64.4888 | F11: 0.214 | G11: 0.1552 | H11: 0.0803 | I11: 0.4495 | J11: 2.161616162 | K11: 1.567676768 | L11: 0.8111111111 | M11: 4.54040404 | U11: 60.33660085 | V11: 0 | W11: 79.36179982 | X11: 79.36179982 | Y11: 0 | Z11: 7 | AA11: 5.9782 | AB11: 2.3795 | AC11: 1.3286
A12: 8 | B12: 54.4715 | C12: 3.5074 | D12: 1.3948 | E12: 59.3737 | F12: 0.176 | G12: 0.1295 | H12: 0.0652 | I12: 0.3707 | J12: 1.777777778 | K12: 1.308080808 | L12: 0.6585858586 | M12: 3.744444444 | U12: 63.48260842 | V12: 0 | W12: 82.97979798 | X12: 82.97979798 | Y12: 0 | Z12: 8 | AA12: 6.1542 | AB12: 2.509 | AC12: 1.3938
A13: 9 | B13: 50.3903 | C13: 3.1949 | D13: 1.2003 | E13: 54.7855 | F13: 0.1467 | G13: 0.1096 | H13: 0.0536 | I13: 0.3099 | J13: 1.481818182 | K13: 1.107070707 | L13: 0.5414141414 | M13: 3.13030303 | U13: 66.30454972 | V13: 0 | W13: 85.77134986 | X13: 85.77134986 | Y13: 0 | Z13: 9 | AA13: 6.3009 | AB13: 2.6186 | AC13: 1.4474
A14: 10 | B14: 46.6656 | C14: 2.9166 | D14: 1.0357 | E14: 50.6179 | F14: 0.1235 | G14: 0.0937 | H14: 0.0446 | I14: 0.2618 | J14: 1.247474747 | K14: 0.9464646465 | L14: 0.4505050505 | M14: 2.644444444 | U14: 68.86780384 | V14: 0 | W14: 87.97979798 | X14: 87.97979798 | Y14: 0 | Z14: 10 | AA14: 6.4244 | AB14: 2.7123 | AC14: 1.492
A15: 12 | B15: 40.2435 | C15: 2.4531 | D15: 0.7851 | E15: 43.4817 | F15: 0.0907 | G15: 0.071 | H15: 0.0321 | I15: 0.1938 | J15: 0.9161616162 | K15: 0.7171717172 | L15: 0.3242424242 | M15: 1.957575758 | U15: 73.25687526 | V15: 0 | W15: 91.10192837 | X15: 91.10192837 | Y15: 90 | Z15: 12 | AA15: 6.6058 | AB15: 2.8543 | AC15: 1.5562
A16: 14 | B16: 34.8943 | C16: 2.0808 | D16: 0.6061 | E16: 37.5812 | F16: 0.0691 | G16: 0.0557 | H16: 0.024 | I16: 0.1488 | J16: 0.697979798 | K16: 0.5626262626 | L16: 0.2424242424 | M16: 1.503030303 | U16: 76.88593777 | V16: 0 | W16: 93.16804408 | X16: 93.16804408 | Y16: 90 | Z16: 14 | AA16: 6.744 | AB16: 2.9657 | AC16: 1.6042
A17: 16 | B17: 30.3249 | C17: 1.772 | D17: 0.473 | E17: 32.5699 | F17: 0.0538 | G17: 0.0445 | H17: 0.0184 | I17: 0.1167 | J17: 0.5434343434 | K17: 0.4494949495 | L17: 0.1858585859 | M17: 1.178787879 | U17: 79.96810386 | V17: 0 | W17: 94.64187328 | X17: 94.64187328 | Y17: 90 | Z17: 16 | AA17: 6.8516 | AB17: 3.0547 | AC17: 1.641
A18: 18 | B18: 26.4011 | C18: 1.5137 | D18: 0.3726 | E18: 28.2874 | F18: 0.0425 | G18: 0.0361 | H18: 0.0144 | I18: 0.093 | J18: 0.4292929293 | K18: 0.3646464646 | L18: 0.1454545455 | M18: 0.9393939394 | U18: 82.60202644 | V18: 0 | W18: 95.73002755 | X18: 95.73002755 | Y18: 90 | Z18: 18 | AA18: 6.9366 | AB18: 3.1269 | AC18: 1.6698
A19: 20 | B19: 23.0226 | C19: 1.2966 | D19: 0.2957 | E19: 24.6149 | F19: 0.0341 | G19: 0.0297 | H19: 0.0114 | I19: 0.0752 | J19: 0.3444444444 | K19: 0.3 | L19: 0.1151515152 | M19: 0.7595959596 | U19: 84.86077267 | V19: 0 | W19: 96.54729109 | X19: 96.54729109 | Y19: 90 | Z19: 20 | AA19: 7.0048 | AB19: 3.1863 | AC19: 1.6926
A20: 22 | B20: 20.1164 | C20: 1.1141 | D20: 0.236 | E20: 21.4665 | F20: 0.0278 | G20: 0.0247 | H20: 0.0092 | I20: 0.0617 | J20: 0.2808080808 | K20: 0.2494949495 | L20: 0.09292929293 | M20: 0.6232323232 | U20: 86.79717474 | V20: 0 | W20: 97.1671258 | X20: 97.1671258 | Y20: 90 | Z20: 22 | AA20: 7.0604 | AB20: 3.2357 | AC20: 1.711
A21: 24 | B21: 17.5937 | C21: 0.9577 | D21: 0.1906 | E21: 18.742 | F21: 0.0229 | G21: 0.0207 | H21: 0.0075 | I21: 0.0511 | J21: 0.2313131313 | K21: 0.2090909091 | L21: 0.07575757576 | M21: 0.5161616162 | U21: 88.47285999 | V21: 0 | W21: 97.65381084 | X21: 97.65381084 | Y21: 90 | Z21: 24 | AA21: 7.1062 | AB21: 3.2771 | AC21: 1.726
A22: 26 | B22: 15.3992 | C22: 0.8247 | D22: 0.1479 | E22: 16.3718 | F22: 0.0188 | G22: 0.0174 | H22: 0.006 | I22: 0.0422 | J22: 0.1898989899 | K22: 0.1757575758 | L22: 0.06060606061 | M22: 0.4262626263 | U22: 89.93063543 | V22: 0 | W22: 98.06244261 | X22: 98.06244261 | Y22: 90 | Z22: 26 | AA22: =AA21+F22*($A22-$A21) -> 7.1438 | AB22: 3.3119 | AC22: 1.738
A23: 28 | B23: 13.4876 | C23: 0.7097 | D23: 0.1125 | E23: 14.3098 | F23: 0.0155 | G23: 0.0147 | H23: 0.0046 | I23: 0.0348 | J23: 0.1565656566 | K23: 0.1484848485 | L23: 0.04646464646 | M23: 0.3515151515 | U23: 91.19885454 | V23: 90 | W23: 98.40220386 | X23: 98.40220386 | Y23: 90 | Z23: 28 | AA23: 7.1748 | AB23: 3.3413 | AC23: 1.7472
A24: 30 | B24: 11.8086 | C24: 0.6147 | D24: 0.1 | E24: 12.5233 | F24: 0.0133 | G24: 0.0126 | H24: 0.0042 | I24: 0.0301 | J24: 0.1343434343 | K24: 0.1272727273 | L24: 0.04242424242 | M24: 0.304040404 | U24: 92.29762925 | V24: 90 | W24: 98.61799816 | X24: 98.61799816 | Y24: 90 | Z24: 30 | AA24: 7.2014 | AB24: 3.3665 | AC24: 1.7556
A25: 32 | B25: 10.3936 | C25: 0.5348 | D25: 0.0858 | E25: 11.0142 | F25: 0.0113 | G25: 0.0109 | H25: 0.0036 | I25: 0.0258 | J25: 0.1141414141 | K25: 0.1101010101 | L25: 0.03636363636 | M25: 0.2606060606 | U25: 93.22579098 | V25: 90 | W25: 98.815427 | X25: 98.815427 | Y25: 90 | Z25: 32 | AA25: 7.224 | AB25: 3.3883 | AC25: 1.7628
A26: 34 | B26: 9.1566 | C26: 0.4656 | D26: 0.0732 | E26: 9.6954 | F26: 0.0097 | G26: 0.0094 | H26: 0.003 | I26: 0.0221 | J26: 0.09797979798 | K26: 0.09494949495 | L26: 0.0303030303 | M26: 0.2232323232 | U26: 94.03690997 | V26: 90 | W26: 98.98530762 | X26: 98.98530762 | Y26: 90 | Z26: 34 | AA26: 7.2434 | AB26: 3.4071 | AC26: 1.7688
A27: 36 | B27: 8.0687 | C27: 0.4055 | D27: 0.0586 | E27: 8.5328 | F27: 0.0083 | G27: 0.0081 | H27: 0.0025 | I27: 0.0189 | J27: 0.08383838384 | K27: 0.08181818182 | L27: 0.02525252525 | M27: 0.1909090909 | U27: 94.75195922 | V27: 90 | W27: 99.1322314 | X27: 99.1322314 | Y27: 90 | Z27: 36 | AA27: 7.26 | AB27: 3.4233 | AC27: 1.7738
A28: 38 | B28: 7.1114 | C28: 0.3533 | D28: 0.0504 | E28: 7.5151 | F28: 0.0071 | G28: 0.0071 | H28: 0.0022 | I28: 0.0164 | J28: 0.07171717172 | K28: 0.07171717172 | L28: 0.02222222222 | M28: 0.1656565657 | U28: 95.3778887 | V28: 90 | W28: 99.24701561 | X28: 99.24701561 | Y28: 90 | Z28: 38 | AA28: 7.2742 | AB28: 3.4375 | AC28: 1.7782
A29: 40 | B29: 6.269 | C29: 0.3075 | D29: 0.0425 | E29: 6.619 | F29: 0.0062 | G29: 0.0061 | H29: 0.0019 | I29: 0.0142 | J29: 0.06262626263 | K29: 0.06161616162 | L29: 0.01919191919 | M29: 0.1434343434 | U29: 95.92902893 | V29: 90 | W29: 99.34802571 | X29: 99.34802571 | Y29: 90 | Z29: 40 | AA29: 7.2866 | AB29: 3.4497 | AC29: 1.782
A30: 42 | B30: 5.5149 | C30: 0.2674 | D30: 0.0372 | E30: 5.8195 | F30: 0.0053 | G30: 0.0053 | H30: 0.0016 | I30: 0.0122 | J30: 0.05353535354 | K30: 0.05353535354 | L30: 0.01616161616 | M30: 0.1232323232 | U30: 96.42075599 | V30: 90 | W30: 99.43985308 | X30: 99.43985308 | Y30: 90 | Z30: 42 | AA30: 7.2972 | AB30: 3.4603 | AC30: 1.7852
A31: 44 | B31: 4.86 | C31: 0.2338 | D31: 0.0326 | E31: 5.1264 | F31: 0.0046 | G31: 0.0047 | H31: 0.0014 | I31: 0.0107 | J31: 0.04646464646 | K31: 0.04747474747 | L31: 0.01414141414 | M31: 0.1080808081 | U31: 96.84704244 | V31: 90 | W31: 99.5087236 | X31: 99.5087236 | Y31: 90 | Z31: 44 | AA31: 7.3064 | AB31: 3.4697 | AC31: 1.788
A32: 46 | B32: 4.3161 | C32: 0.2061 | D32: 0.0283 | E32: 4.5505 | F32: 0.004 | G32: 0.0041 | H32: 0.0012 | I32: 0.0093 | J32: 0.0404040404 | K32: 0.04141414141 | L32: 0.01212121212 | M32: 0.09393939394 | U32: 97.20124583 | V32: 90 | W32: 99.57300275 | X32: 99.57300275 | Y32: 90 | Z32: 46 | AA32: 7.3144 | AB32: 3.4779 | AC32: 1.7904
A33: 48 | B33: 3.8146 | C33: 0.1807 | D33: 0.0242 | E33: 4.0195 | F33: 0.0035 | G33: 0.0036 | H33: 0.0011 | I33: 0.0082 | J33: 0.03535353535 | K33: 0.03636363636 | L33: 0.01111111111 | M33: 0.08282828283 | U33: 97.52783378 | V33: 90 | W33: 99.62350781 | X33: 99.62350781 | Y33: 90 | Z33: 48 | AA33: 7.3214 | AB33: 3.4851 | AC33: 1.7926
A34: 50 | B34: 3.401 | C34: 0.16 | D34: 0.0204 | E34: 3.5814 | F34: 0.0031 | G34: 0.0032 | H34: 0.00095477 | I34: 0.00725477 | J34: 0.03131313131 | K34: 0.03232323232 | L34: 0.009644141414 | M34: 0.07328050505 | U34: 97.79728422 | V34: 90 | W34: 99.6669068 | X34: 99.6669068 | Y34: 90 | Z34: 50 | AA34: 7.3276 | AB34: 3.4915 | AC34: 1.79450954
A35: 52 | B35: 3.0164 | C35: 0.1409 | D35: 0.0172 | E35: 3.1745 | F35: 0.0027 | G35: 0.0028 | H35: 0.00083746 | I35: 0.00633746 | J35: 0.02727272727 | K35: 0.02828282828 | L35: 0.008459191919 | M35: 0.06401474747 | U35: 98.0475453 | V35: 90 | W35: 99.70902388 | X35: 99.70902388 | Y35: 90 | Z35: 52 | AA35: 7.333 | AB35: 3.4971 | AC35: 1.79618446
A36: 54 | B36: 2.6754 | C36: 0.1241 | D36: 0.015 | E36: 2.8145 | F36: 0.0024 | G36: 0.0025 | H36: 0.00073484 | I36: 0.00563484 | J36: 0.02424242424 | K36: 0.02525252525 | L36: 0.007422626263 | M36: 0.05691757576 | U36: 98.26896086 | V36: 90 | W36: 99.74128375 | X36: 99.74128375 | Y36: 90 | Z36: 54 | AA36: 7.3378 | AB36: 3.5021 | AC36: 1.79765414
A37: 56 | B37: 2.3817 | C37: 0.1098 | D37: 0.0117 | E37: 2.5032 | F37: 0.0021 | G37: 0.0022 | H37: 0.00064312 | I37: 0.00494312 | J37: 0.02121212121 | K37: 0.02222222222 | L37: 0.006496161616 | M37: 0.04993050505 | U37: 98.46042381 | V37: 90 | W37: 99.77304316 | X37: 99.77304316 | Y37: 90 | Z37: 56 | AA37: 7.342 | AB37: 3.5065 | AC37: 1.79894038
A38: 58 | B38: 2.1097 | C38: 0.0966 | D38: 0.0081 | E38: 2.2144 | F38: 0.0019 | G38: 0.0019 | H38: 0.00055724 | I38: 0.00435724 | J38: 0.01919191919 | K38: 0.01919191919 | L38: 0.005628686869 | M38: 0.04401252525 | U38: 98.6380483 | V38: 90 | W38: 99.79994307 | X38: 99.79994307 | Y38: 90 | Z38: 58 | AA38: =AA37+F38*($A38-$A37) -> 7.3458 | AB38: 3.5103 | AC38: 1.80005486
A39: 60 | B39: 1.8774 | C39: 0.0855 | D39: 0.005 | E39: 1.9679 | F39: 0.0017 | G39: 0.0017 | H39: 0.00048429 | I39: 0.00388429 | J39: 0.01717171717 | K39: 0.01717171717 | L39: 0.004891818182 | M39: 0.03923525253 | U39: 98.78965645 | V39: 90 | W39: 99.82165794 | X39: 99.82165794 | Y39: 90 | Z39: 60 | AA39: 7.3492 | AB39: 3.5137 | AC39: 1.80102344
A40: 62 | B40: 1.6581 | C40: 0.075 | D40: 0.004 | E40: 1.7371 | F40: 0.0014 | G40: 0.0015 | H40: 0.00040522 | I40: 0.00330522 | J40: 0.01414141414 | K40: 0.01515151515 | L40: 0.004093131313 | M40: 0.03338606061 | U40: 98.93160842 | V40: 90 | W40: 99.84824518 | X40: 99.84824518 | Y40: 90 | Z40: 62 | AA40: 7.352 | AB40: 3.5167 | AC40: 1.80183388
A41: 64 | B41: 1.4765 | C41: 0.0664 | D41: 0.0038 | E41: 1.5467 | F41: 0.0013 | G41: 0.0013 | H41: 0.00032087 | I41: 0.00292087 | J41: 0.01313131313 | K41: 0.01313131313 | L41: 0.003241111111 | M41: 0.02950373737 | U41: 99.04871265 | V41: 90 | W41: 99.8658921 | X41: 99.8658921 | Y41: 90 | Z41: 64 | AA41: 7.3546 | AB41: 3.5193 | AC41: 1.80247562
A42: 66 | B42: 1.3083 | C42: 0.0585 | D42: 0.0035 | E42: 1.3703 | F42: 0.0011 | G42: 0.0012 | H42: 0.00025645 | I42: 0.00255645 | J42: 0.01111111111 | K42: 0.01212121212 | L42: 0.00259040404 | M42: 0.02582272727 | U42: 99.15720628 | V42: 90 | W42: 99.88262397 | X42: 99.88262397 | Y42: 90 | Z42: 66 | AA42: 7.3568 | AB42: 3.5217 | AC42: 1.80298852
A43: 68 | B43: 1.1649 | C43: 0.0519 | D43: 0.0036 | E43: 1.2204 | F43: 0.001 | G43: 0.0011 | H43: 0.00028559 | I43: 0.00238559 | J43: 0.0101010101 | K43: 0.01111111111 | L43: 0.002884747475 | M43: 0.02409686869 | U43: 99.24940126 | V43: 90 | W43: 99.89046878 | X43: 99.89046878 | Y43: 90 | Z43: 68 | AA43: 7.3588 | AB43: 3.5239 | AC43: 1.8035597
A44: 70 | B44: 1.0357 | C44: 0.0459 | D44: 0.0034 | E44: 1.085 | F44: 0.00088835 | G44: 0.00094137 | H44: 0.00023323 | I44: 0.00206295 | J44: 0.008973232323 | K44: 0.009508787879 | L44: 0.002355858586 | M44: 0.02083787879 | U44: 99.33267811 | V44: 90 | W44: 99.90528237 | X44: 99.90528237 | Y44: 90 | Z44: 70 | AA44: 7.3605767 | AB44: 3.52578274 | AC44: 1.80402616
A45: 72 | B45: 0.9172 | C45: 0.0404 | D45: 0.0028 | E45: 0.9604 | F45: 0.00078417 | G45: 0.00083291 | H45: 0.00012006 | I45: 0.00173714 | J45: 0.007920909091 | K45: 0.008413232323 | L45: 0.001212727273 | M45: 0.01754686869 | U45: 99.40931249 | V45: 90 | W45: 99.92024151 | X45: 99.92024151 | Y45: 90 | Z45: 72 | AA45: 7.36214504 | AB45: 3.52744856 | AC45: 1.80426628
A46: 74 | B46: 0.8126 | C46: 0.0357 | D46: 0.0029 | E46: 0.8512 | F46: 0.00069253 | G46: 0.00073702 | H46: 0 | I46: 0.00142955 | J46: 0.006995252525 | K46: 0.007444646465 | L46: 0 | M46: 0.01443989899 | U46: 99.47647521 | V46: 90 | W46: 99.9343641 | X46: 99.9343641 | Y46: 90 | Z46: 74 | AA46: 7.3635301 | AB46: 3.5289226 | AC46: 1.80426628
A47: 76 | B47: 0.7238 | C47: 0.0316 | D47: 0.0027 | E47: 0.7581 | F47: 0.00061481 | G47: 0.00065616 | H47: 0 | I47: 0.00127097 | J47: 0.00621020202 | K47: 0.006627878788 | L47: 0 | M47: 0.01283808081 | U47: 99.53373574 | V47: 90 | W47: 99.94164509 | X47: 99.94164509 | Y47: 90 | Z47: 76 | AA47: 7.36475972 | AB47: 3.53023492 | AC47: 1.80426628
A48: 78 | B48: 0.6437 | C48: 0.028 | D48: 0.0021 | E48: 0.6738 | F48: 0.00054498 | G48: 0.00058319 | H48: 0 | I48: 0.00112817 | J48: 0.005504848485 | K48: 0.005890808081 | L48: 0 | M48: 0.01139565657 | U48: 99.58558388 | V48: 90 | W48: 99.94820156 | X48: 99.94820156 | Y48: 90 | Z48: 78 | AA48: 7.36584968 | AB48: 3.5314013 | AC48: 1.80426628
A49: 80 | B49: 0.5702 | C49: 0.0247 | D49: 0.0014 | E49: 0.5963 | F49: 0.00048133 | G49: 0.00051639 | H49: 0 | I49: 0.00099772 | J49: 0.004861919192 | K49: 0.005216060606 | L49: 0 | M49: 0.0100779798 | U49: 99.63324973 | V49: 90 | W49: 99.954191 | X49: 99.954191 | Y49: 90 | Z49: 80 | AA49: 7.36681234 | AB49: 3.53243408 | AC49: 1.80426628
A50: 82 | B50: 0.502 | C50: 0.0217 | D50: 0.0022 | E50: 0.5259 | F50: 0.00042274 | G50: 0.00045437 | H50: 0 | I50: 0.00087711 | J50: 0.00427010101 | K50: 0.00458959596 | L50: 0 | M50: 0.00885969697 | U50: 99.67654877 | V50: 90 | W50: 99.95972865 | X50: 99.95972865 | Y50: 90 | Z50: 82 | AA50: 7.36765782 | AB50: 3.53334282 | AC50: 1.80426628
A51: 84 | B51: 0.4449 | C51: 0.0192 | D51: 0.0021 | E51: 0.4662 | F51: 0.00037395 | G51: 0.00040276 | H51: 0 | I51: 0.00077671 | J51: 0.003777272727 | K51: 0.004068282828 | L51: 0 | M51: 0.007845555556 | U51: 99.71326685 | V51: 90 | W51: 99.96433838 | X51: 99.96433838 | Y51: 90 | Z51: 84 | AA51: 7.36840572 | AB51: 3.53414834 | AC51: 1.80426628
A52: 86 | B52: 0.3964 | C52: 0.017 | D52: 0.0019 | E52: 0.4153 | F52: 0.00033257 | G52: 0.00035888 | H52: 0 | I52: 0.00069145 | J52: 0.003359292929 | K52: 0.003625050505 | L52: 0 | M52: 0.006984343434 | U52: 99.74457255 | V52: 90 | W52: 99.96825298 | X52: 99.96825298 | Y52: 90 | Z52: 86 | AA52: 7.36907086 | AB52: 3.5348661 | AC52: 1.80426628
A53: 88 | B53: 0.356 | C53: 0.0152 | D53: 0.0018 | E53: 0.373 | F53: 0.00029823 | G53: 0.00032236 | H53: 0 | I53: 0.00062059 | J53: 0.003012424242 | K53: 0.003256161616 | L53: 0 | M53: 0.006268585859 | U53: 99.77058888 | V53: 90 | W53: 99.97150643 | X53: 99.97150643 | Y53: 90 | Z53: 88 | AA53: 7.36966732 | AB53: 3.53551082 | AC53: 1.80426628
A54: 90 | B54: 0.3217 | C54: 0.0137 | D54: 0.0016 | E54: 0.337 | F54: 0.00026919 | G54: 0.00029139 | H54: 0 | I54: 0.00056058 | J54: 0.002719090909 | K54: 0.002943333333 | L54: 0 | M54: 0.005662424242 | U54: 99.79273044 | V54: 90 | W54: 99.97426171 | X54: 99.97426171 | Y54: 90 | Z54: 90 | AA54: =AA53+F54*($A54-$A53) -> 7.3702057 | AB54: 3.5360936 | AC54: 1.80426628
A55: 92 | B55: 0.2875 | C55: 0.0122 | D55: 0.0014 | E55: 0.3011 | F55: 0.00024016 | G55: 0.00026043 | H55: 0 | I55: 0.00050059 | J55: 0.002425858586 | K55: 0.002630606061 | L55: 0 | M55: 0.005056464646 | U55: 99.81481049 | V55: 90 | W55: 99.97701607 | X55: 99.97701607 | Y55: 90 | Z55: 92 | AA55: 7.37068602 | AB55: 3.53661446 | AC55: 1.80426628
A56: 94 | B56: 0.2577 | C56: 0.0109 | D56: 0.0012 | E56: 0.2698 | F56: 0.00021501 | G56: 0.00023357 | H56: 0 | I56: 0.00044858 | J56: 0.002171818182 | K56: 0.002359292929 | L56: 0 | M56: 0.004531111111 | U56: 99.83406134 | V56: 90 | W56: 99.97940404 | X56: 99.97940404 | Y56: 90 | Z56: 94 | AA56: 7.37111604 | AB56: 3.5370816 | AC56: 1.80426628
A57: 96 | B57: 0.236 | C57: 0.0099 | D57: 0.0011 | E57: 0.247 | F57: 0.00019679 | G57: 0.00021399 | H57: 0 | I57: 0.00041078 | J57: 0.001987777778 | K57: 0.002161515152 | L57: 0 | M57: 0.004149292929 | U57: 99.84808432 | V57: 90 | W57: 99.98113958 | X57: 99.98113958 | Y57: 90 | Z57: 96 | AA57: 7.37150962 | AB57: 3.53750958 | AC57: 1.80426628
A58: 98 | B58: 0.2144 | C58: 0.009 | D58: 0.00094092 | E58: 0.22434092 | F58: 0.00017857 | G58: 0.00019441 | H58: 0 | I58: 0.00037298 | J58: 0.001803737374 | K58: 0.001963737374 | L58: 0 | M58: 0.003767474747 | U58: 99.86202064 | V58: 90 | W58: 99.98287511 | X58: 99.98287511 | Y58: 90 | Z58: 98 | AA58: 7.37186676 | AB58: 3.5378984 | AC58: 1.80426628
A59: 100 | B59: 0.1927 | C59: 0.008 | D59: 0.00080197 | E59: 0.20150197 | F59: 0.00016035 | G59: 0.00017483 | H59: 0 | I59: 0.00033518 | J59: 0.00161969697 | K59: 0.001765959596 | L59: 0 | M59: 0.003385656566 | U59: 99.87606758 | V59: 90 | W59: 99.98461065 | X59: 99.98461065 | Y59: 90 | Z59: 100 | AA59: 7.37218746 | AB59: 3.53824806 | AC59: 1.80426628

Sheet sim12 (hidden)
B1: sim12 | O1: Remediation time (>90% mass removal or flux reduction)
B2: mass (g/m2) | F2: flux (g/y/m2) | J2: Conc output (mg/L) | O2: Mass | P2: =VLOOKUP(90,V4:Z59,5,FALSE) -> 6 | AA2: acc flux (g/m2)
A3: Time | B3: TCE | C3: DCE | D3: VC | E3: Total | F3: TCE | G3: DCE | H3: VC | I3: Total | J3: TCE | K3: DCE | L3: VC | M3: Total | O3: Flux | P3: =VLOOKUP(90,Y4:Z59,2,FALSE) -> 3 | U3: mass removal (%) | V3: to find 90% | W3: flux reduction (%) | Y3: to find 90% | Z3: Time | AA3: TCE | AB3: DCE | AC3: VC
A4: 0 | B4: 162.5768 | C4: 0 | D4: 0 | E4: =SUM(B4:D4) -> 162.5768 | F4: 2.178 | G4: 0 | H4: 0 | I4: =SUM(F4:H4) -> 2.178 | J4: 22 | K4: 0 | L4: 0 | M4: =SUM(J4:L4) -> 22 | U4: =(E$4-E4)/E$4*100 -> 0 | V4: =IF(U4>90,90,0) -> 0 | W4: =(I$4-I4)/I$4*100 -> 0 | X4: =IF(W4>0,W4,0) -> 0 | Y4: =IF(X4>90,90,0) -> 0 | Z4: 0 | AA4: =F4 -> 2.178 | AB4: =G4 -> 0 | AC4: 0
A5: 1 | B5: 47.361 | C5: 16.6217 | D5: 16.0086 | E5: =SUM(B5:D5) -> 79.9913 | F5: 0.3252 | G5: 0.6011 | H5: 0.6517 | I5: =SUM(F5:H5) -> 1.578 | J5: 3.284848485 | K5: 6.071717172 | L5: 6.582828283 | M5: =SUM(J5:L5) -> 15.93939394 | O5: Accumulated flux to the aquifer (g/m2) | U5: =(E$4-E5)/E$4*100 -> 50.79783831 | V5: =IF(U5>90,90,0) -> 0 | W5: =(I$4-I5)/I$4*100 -> 27.54820937 | X5: =IF(W5>0,W5,0) -> 27.54820937 | Y5: =IF(X5>90,90,0) -> 0 | Z5: 1 | AA5: =AA4+F5*($A5-$A4) -> 2.5032 | AB5: =AB4+G5*($A5-$A4) -> 0.6011 | AC5: 0.6517
A6: 2 | B6: 34.321 | C6: 6.1769 | D6: 3.7932 | E6: 44.2911 | F6: 0.0898 | G6: 0.1324 | H6: 0.1417 | I6: 0.3639 | J6: 0.9070707071 | K6: 1.337373737 | L6: 1.431313131 | M6: 3.675757576 | O6: TCE | P6: =AA59 -> 2.706244566 | U6: 72.75681401 | V6: 0 | W6: 83.29201102 | X6: 83.29201102 | Y6: 0 | Z6: 2 | AA6: =AA5+F6*($A6-$A5) -> 2.593 | AB6: 0.7335 | AC6: 0.7934
A7: 3 | B7: 25.9592 | C7: 4.2424 | D7: 2.154 | E7: 32.3556 | F7: 0.036 | G7: 0.0414 | H7: 0.0294 | I7: 0.1068 | J7: 0.3636363636 | K7: 0.4181818182 | L7: 0.296969697 | M7: 1.078787879 | O7: DCE | P7: =AB59 -> 0.8495210964 | U7: 80.0982674 | V7: 0 | W7: 95.09641873 | X7: 95.09641873 | Y7: 90 | Z7: 3 | AA7: 2.629 | AB7: 0.7749 | AC7: 0.8228
A8: 4 | B8: 20.0617 | C8: 3.0866 | D8: 1.3226 | E8: 24.4709 | F8: 0.022 | G8: 0.0233 | H8: 0.0138 | I8: 0.0591 | J8: 0.2222222222 | K8: 0.2353535354 | L8: 0.1393939394 | M8: 0.596969697 | O8: VC | P8: =AC59 -> 0.859372464 | U8: 84.94809838 | V8: 0 | W8: 97.28650138 | X8: 97.28650138 | Y8: 90 | Z8: 4 | AA8: 2.651 | AB8: 0.7982 | AC8: 0.8366
A9: 5 | B9: 15.4771 | C9: 2.2392 | D9: 0.8035 | E9: 18.5198 | F9: 0.0145 | G9: 0.0146 | H9: 0.0074 | I9: 0.0365 | J9: 0.1464646465 | K9: 0.1474747475 | L9: 0.07474747475 | M9: 0.3686868687 | O9: Total | P9: =SUM(P6:P8) -> 4.415138126 | U9: 88.60858376 | V9: 0 | W9: 98.3241506 | X9: 98.3241506 | Y9: 90 | Z9: 5 | AA9: 2.6655 | AB9: 0.8128 | AC9: 0.844
A10: 6 | B10: 12.0604 | C10: 1.6468 | D10: 0.5095 | E10: 14.2167 | F10: 0.0103 | G10: 0.01 | H10: 0.0047 | I10: 0.025 | J10: 0.104040404 | K10: 0.101010101 | L10: 0.04747474747 | M10: 0.2525252525 | U10: 91.25539437 | V10: 90 | W10: 98.85215794 | X10: 98.85215794 | Y10: 90 | Z10: 6 | AA10: 2.6758 | AB10: 0.8228 | AC10: 0.8487
A11: 7 | B11: 9.4174 | C11: 1.2143 | D11: 0.3266 | E11: 10.9583 | F11: 0.0075 | G11: 0.0071 | H11: 0.0031 | I11: 0.0177 | J11: 0.07575757576 | K11: 0.07171717172 | L11: 0.03131313131 | M11: 0.1787878788 | U11: 93.25961638 | V11: 90 | W11: 99.18732782 | X11: 99.18732782 | Y11: 90 | Z11: 7 | AA11: 2.6833 | AB11: 0.8299 | AC11: 0.8518
A12: 8 | B12: 7.3986 | C12: 0.9023 | D12: 0.2163 | E12: 8.5172 | F12: 0.0056 | G12: 0.0051 | H12: 0.0021 | I12: 0.0128 | J12: 0.05656565657 | K12: 0.05151515152 | L12: 0.02121212121 | M12: 0.1292929293 | U12: 94.76112213 | V12: 90 | W12: 99.41230487 | X12: 99.41230487 | Y12: 90 | Z12: 8 | AA12: 2.6889 | AB12: 0.835 | AC12: 0.8539
A13: 9 | B13: 5.8129 | C13: 0.6738 | D13: 0.1455 | E13: 6.6322 | F13: 0.0042 | G13: 0.0038 | H13: 0.0015 | I13: 0.0095 | J13: 0.04242424242 | K13: 0.03838383838 | L13: 0.01515151515 | M13: 0.09595959596 | U13: 95.92057415 | V13: 90 | W13: 99.56382002 | X13: 99.56382002 | Y13: 90 | Z13: 9 | AA13: 2.6931 | AB13: 0.8388 | AC13: 0.8554
A14: 10 | B14: 4.5594 | C14: 0.4996 | D14: 0.0991 | E14: 5.1581 | F14: 0.0032 | G14: 0.0028 | H14: 0.0011 | I14: 0.0071 | J14: 0.03232323232 | K14: 0.02828282828 | L14: 0.01111111111 | M14: 0.07171717172 | U14: 96.82728409 | V14: 90 | W14: 99.67401286 | X14: 99.67401286 | Y14: 90 | Z14: 10 | AA14: 2.6963 | AB14: 0.8416 | AC14: 0.8565
A15: 12 | B15: 2.8696 | C15: 0.2887 | D15: 0.0503 | E15: 3.2086 | F15: 0.0019 | G15: 0.0016 | H15: 0.00060195 | I15: 0.00410195 | J15: 0.01919191919 | K15: 0.01616161616 | L15: 0.00608030303 | M15: 0.04143383838 | U15: 98.02640967 | V15: 90 | W15: 99.81166437 | X15: 99.81166437 | Y15: 90 | Z15: 12 | AA15: 2.7001 | AB15: 0.8448 | AC15: 0.8577039
A16: 14 | B16: 1.8003 | C16: 0.169 | D16: 0.0247 | E16: 1.994 | F16: 0.0012 | G16: 0.00097374 | H16: 0.00035002 | I16: 0.00252376 | J16: 0.01212121212 | K16: 0.009835757576 | L16: 0.003535555556 | M16: 0.02549252525 | U16: 98.77350274 | V16: 90 | W16: 99.88412489 | X16: 99.88412489 | Y16: 90 | Z16: 14 | AA16: 2.7025 | AB16: 0.84674748 | AC16: 0.85840394
A17: 16 | B17: 1.0791 | C17: 0.106 | D17: 0.0144 | E17: 1.1995 | F17: 0.00072076 | G17: 0.00058262 | H17: 0.00020734 | I17: 0.00151072 | J17: 0.00728040404 | K17: 0.005885050505 | L17: 0.002094343434 | M17: 0.01525979798 | U17: 99.26219485 | V17: 90 | W17: 99.93063728 | X17: 99.93063728 | Y17: 90 | Z17: 16 | AA17: 2.70394152 | AB17: 0.84791272 | AC17: 0.85881862
A18: 18 | B18: 0.6474 | C18: 0.0385 | D18: 0.0035 | E18: 0.6894 | F18: 0.00044604 | G18: 0.00034502 | H18: 0.00012244 | I18: 0.0009135 | J18: 0.004505454545 | K18: 0.003485050505 | L18: 0.001236767677 | M18: 0.009227272727 | U18: 99.57595426 | V18: 90 | W18: 99.95805785 | X18: 99.95805785 | Y18: 90 | Z18: 18 | AA18: 2.7048336 | AB18: 0.84860276 | AC18: 0.8590635
A19: 20 | B19: 0.3751 | C19: 0.0165 | D19: 0 | E19: 0.3916 | F19: 0.00027657 | G19: 0.00020202 | H19: 7.2033e-05 | I19: 0.000550623 | J19: 0.002793636364 | K19: 0.002040606061 | L19: 0.0007276060606 | M19: 0.005561848485 | U19: 99.75912922 | V19: 90 | W19: 99.97471887 | X19: 99.97471887 | Y19: 90 | Z19: 20 | AA19: 2.70538674 | AB19: 0.8490068 | AC19: 0.859207566
A20: 22 | B20: 0.2111 | C20: 0.0042 | D20: 0 | E20: 0.2153 | F20: 0.00017494 | G20: 0.0001186 | H20: 4.2734e-05 | I20: 0.000336274 | J20: 0.001767070707 | K20: 0.001197979798 | L20: 0.0004316565657 | M20: 0.003396707071 | U20: 99.86757028 | V20: 90 | W20: 99.98456042 | X20: 99.98456042 | Y20: 90 | Z20: 22 | AA20: 2.70573662 | AB20: 0.849244 | AC20: 0.859293034
A21: 24 | B21: 0.1104 | C21: 0 | D21: 0 | E21: 0.1104 | F21: 0.00011161 | G21: 6.8717e-05 | H21: 2.5165e-05 | I21: 0.000205492 | J21: 0.001127373737 | K21: 0.0006941111111 | L21: 0.0002541919192 | M21: 0.002075676768 | U21: 99.93209363 | V21: 90 | W21: 99.99056511 | X21: 99.99056511 | Y21: 90 | Z21: 24 | AA21: 2.70595984 | AB21: 0.849381434 | AC21: 0.859343364
A22: 26 | B22: 0.0495 | C22: 0 | D22: 0 | E22: 0.0495 | F22: 7.0278e-05 | G22: 3.9201e-05 | H22: 1.455e-05 | I22: 0.000124029 | J22: 0.0007098787879 | K22: 0.000395969697 | L22: 0.000146969697 | M22: 0.001252818182 | U22: 99.96955285 | V22: 90 | W22: 99.99430537 | X22: 99.99430537 | Y22: 90 | Z22: 26 | AA22: =AA21+F22*($A22-$A21) -> 2.706100396 | AB22: 0.849459836 | AC22: 0.859372464
A23: 28 | B23: 0.0133 | C23: 0 | D23: 0 | E23: 0.0133 | F23: 4.1898e-05 | G23: 2.1758e-05 | H23: 0 | I23: 6.3656e-05 | J23: 0.0004232121212 | K23: 0.0002197777778 | L23: 0 | M23: 0.000642989899 | U23: 99.99181925 | V23: 90 | W23: 99.99707732 | X23: 99.99707732 | Y23: 90 | Z23: 28 | AA23: 2.706184192 | AB23: 0.849503352 | AC23: 0.859372464
A24: 30 | B24: 0 | C24: 0 | D24: 0 | E24: 0 | F24: 2.2556e-05 | G24: 8.8722e-06 | H24: 0 | I24: 3.14282e-05 | J24: 0.0002278383838 | K24: 8.961818182e-05 | L24: 0 | M24: 0.0003174565657 | U24: 100 | V24: 90 | W24: 99.99855702 | X24: 99.99855702 | Y24: 90 | Z24: 30 | AA24: 2.706229304 | AB24: 0.8495210964 | AC24: 0.859372464
A25: 32 | B25: 0 | C25: 0 | D25: 0 | E25: 0 | F25: 7.631e-06 | G25: 0 | H25: 0 | I25: 7.631e-06 | J25: 7.708080808e-05 | K25: 0 | L25: 0 | M25: 7.708080808e-05 | U25: 100 | V25: 90 | W25: 99.99964963 | X25: 99.99964963 | Y25: 90 | Z25: 32 | AA25: 2.706244566 | AB25: 0.8495210964 | AC25: 0.859372464
A26: 34 | B26: 0 | C26: 0 | D26: 0 | E26: 0 | F26: 0 | G26: 0 | H26: 0 | I26: 0 | J26: 0 | K26: 0 | L26: 0 | M26: 0 | U26: 100 | V26: 90 | W26: 100 | X26: 100 | Y26: 90 | Z26: 34 | AA26: 2.706244566 | AB26: 0.8495210964 | AC26: 0.859372464
A27: 36 | B27: 0 | C27: 0 | D27: 0 | E27: 0 | F27: 0 | G27: 0 | H27: 0 | I27: 0 | J27: 0 | K27: 0 | L27: 0 | M27: 0 | U27: 100 | V27: 90 | W27: 100 | X27: 100 | Y27: 90 | Z27: 36 | AA27: 2.706244566 | AB27: 0.8495210964 | AC27: 0.859372464
A28: 38 | B28: 0 | C28: 0 | D28: 0 | E28: 0 | F28: 0 | G28: 0 | H28: 0 | I28: 0 | J28: 0 | K28: 0 | L28: 0 | M28: 0 | U28: 100 | V28: 90 | W28: 100 | X28: 100 | Y28: 90 | Z28: 38 | AA28: 2.706244566 | AB28: 0.8495210964 | AC28: 0.859372464
A29: 40 | B29: 0 | C29: 0 | D29: 0 | E29: 0 | F29: 0 | G29: 0 | H29: 0 | I29: 0 | J29: 0 | K29: 0 | L29: 0 | M29: 0 | U29: 100 | V29: 90 | W29: 100 | X29: 100 | Y29: 90 | Z29: 40 | AA29: 2.706244566 | AB29: 0.8495210964 | AC29: 0.859372464
A30: 42 | B30: 0 | C30: 0 | D30: 0 | E30: 0 | F30: 0 | G30: 0 | H30: 0 | I30: 0 | J30: 0 | K30: 0 | L30: 0 | M30: 0 | U30: 100 | V30: 90 | W30: 100 | X30: 100 | Y30: 90 | Z30: 42 | AA30: 2.706244566 | AB30: 0.8495210964 | AC30: 0.859372464
A31: 44 | B31: 0 | C31: 0 | D31: 0 | E31: 0 | F31: 0 | G31: 0 | H31: 0 | I31: 0 | J31: 0 | K31: 0 | L31: 0 | M31: 0 | U31: 100 | V31: 90 | W31: 100 | X31: 100 | Y31: 90 | Z31: 44 | AA31: 2.706244566 | AB31: 0.8495210964 | AC31: 0.859372464
A32: 46 | B32: 0 | C32: 0 | D32: 0 | E32: 0 | F32: 0 | G32: 0 | H32: 0 | I32: 0 | J32: 0 | K32: 0 | L32: 0 | M32: 0 | U32: 100 | V32: 90 | W32: 100 | X32: 100 | Y32: 90 | Z32: 46 | AA32: 2.706244566 | AB32: 0.8495210964 | AC32: 0.859372464
A33: 48 | B33: 0 | C33: 0 | D33: 0 | E33: 0 | F33: 0 | G33: 0 | H33: 0 | I33: 0 | J33: 0 | K33: 0 | L33: 0 | M33: 0 | U33: 100 | V33: 90 | W33: 100 | X33: 100 | Y33: 90 | Z33: 48 | AA33: 2.706244566 | AB33: 0.8495210964 | AC33: 0.859372464
A34: 50 | B34: 0 | C34: 0 | D34: 0 | E34: 0 | F34: 0 | G34: 0 | H34: 0 | I34: 0 | J34: 0 | K34: 0 | L34: 0 | M34: 0 | U34: 100 | V34: 90 | W34: 100 | X34: 100 | Y34: 90 | Z34: 50 | AA34: 2.706244566 | AB34: 0.8495210964 | AC34: 0.859372464
A35: 52 | B35: 0 | C35: 0 | D35: 0 | E35: 0 | F35: 0 | G35: 0 | H35: 0 | I35: 0 | J35: 0 | K35: 0 | L35: 0 | M35: 0 | U35: 100 | V35: 90 | W35: 100 | X35: 100 | Y35: 90 | Z35: 52 | AA35: 2.706244566 | AB35: 0.8495210964 | AC35: 0.859372464
A36: 54 | B36: 0 | C36: 0 | D36: 0 | E36: 0 | F36: 0 | G36: 0 | H36: 0 | I36: 0 | J36: 0 | K36: 0 | L36: 0 | M36: 0 | U36: 100 | V36: 90 | W36: 100 | X36: 100 | Y36: 90 | Z36: 54 | AA36: 2.706244566 | AB36: 0.8495210964 | AC36: 0.859372464
A37: 56 | B37: 0 | C37: 0 | D37: 0 | E37: 0 | F37: 0 | G37: 0 | H37: 0 | I37: 0 | J37: 0 | K37: 0 | L37: 0 | M37: 0 | U37: 100 | V37: 90 | W37: 100 | X37: 100 | Y37: 90 | Z37: 56 | AA37: 2.706244566 | AB37: 0.8495210964 | AC37: 0.859372464
A38: 58 | B38: 0 | C38: 0 | D38: 0 | E38: 0 | F38: 0 | G38: 0 | H38: 0 | I38: 0 | J38: 0 | K38: 0 | L38: 0 | M38: 0 | U38: 100 | V38: 90 | W38: 100 | X38: 100 | Y38: 90 | Z38: 58 | AA38: =AA37+F38*($A38-$A37) -> 2.706244566 | AB38: 0.8495210964 | AC38: 0.859372464
A39: 60 | B39: 0 | C39: 0 | D39: 0 | E39: 0 | F39: 0 | G39: 0 | H39: 0 | I39: 0 | J39: 0 | K39: 0 | L39: 0 | M39: 0 | U39: 100 | V39: 90 | W39: 100 | X39: 100 | Y39: 90 | Z39: 60 | AA39: 2.706244566 | AB39: 0.8495210964 | AC39: 0.859372464
A40: 62 | B40: 0 | C40: 0 | D40: 0 | E40: 0 | F40: 0 | G40: 0 | H40: 0 | I40: 0 | J40: 0 | K40: 0 | L40: 0 | M40: 0 | U40: 100 | V40: 90 | W40: 100 | X40: 100 | Y40: 90 | Z40: 62 | AA40: 2.706244566 | AB40: 0.8495210964 | AC40: 0.859372464
A41: 64 | B41: 0 | C41: 0 | D41: 0 | E41: 0 | F41: 0 | G41: 0 | H41: 0 | I41: 0 | J41: 0 | K41: 0 | L41: 0 | M41: 0 | U41: 100 | V41: 90 | W41: 100 | X41: 100 | Y41: 90 | Z41: 64 | AA41: 2.706244566 | AB41: 0.8495210964 | AC41: 0.859372464
A42: 66 | B42: 0 | C42: 0 | D42: 0 | E42: 0 | F42: 0 | G42: 0 | H42: 0 | I42: 0 | J42: 0 | K42: 0 | L42: 0 | M42: 0 | U42: 100 | V42: 90 | W42: 100 | X42: 100 | Y42: 90 | Z42: 66 | AA42: 2.706244566 | AB42: 0.8495210964 | AC42: 0.859372464
A43: 68 | B43: 0 | C43: 0 | D43: 0 | E43: 0 | F43: 0 | G43: 0 | H43: 0 | I43: 0 | J43: 0 | K43: 0 | L43: 0 | M43: 0 | U43: 100 | V43: 90 | W43: 100 | X43: 100 | Y43: 90 | Z43: 68 | AA43: 2.706244566 | AB43: 0.8495210964 | AC43: 0.859372464
A44: 70 | B44: 0 | C44: 0 | D44: 0 | E44: 0 | F44: 0 | G44: 0 | H44: 0 | I44: 0 | J44: 0 | K44: 0 | L44: 0 | M44: 0 | U44: 100 | V44: 90 | W44: 100 | X44: 100 | Y44: 90 | Z44: 70 | AA44: 2.706244566 | AB44: 0.8495210964 | AC44: 0.859372464
A45: 72 | B45: 0 | C45: 0 | D45: 0 | E45: 0 | F45: 0 | G45: 0 | H45: 0 | I45: 0 | J45: 0 | K45: 0 | L45: 0 | M45: 0 | U45: 100 | V45: 90 | W45: 100 | X45: 100 | Y45: 90 | Z45: 72 | AA45: 2.706244566 | AB45: 0.8495210964 | AC45: 0.859372464
A46: 74 | B46: 0 | C46: 0 | D46: 0 | E46: 0 | F46: 0 | G46: 0 | H46: 0 | I46: 0 | J46: 0 | K46: 0 | L46: 0 | M46: 0 | U46: 100 | V46: 90 | W46: 100 | X46: 100 | Y46: 90 | Z46: 74 | AA46: 2.706244566 | AB46: 0.8495210964 | AC46: 0.859372464
A47: 76 | B47: 0 | C47: 0 | D47: 0 | E47: 0 | F47: 0 | G47: 0 | H47: 0 | I47: 0 | J47: 0 | K47: 0 | L47: 0 | M47: 0 | U47: 100 | V47: 90 | W47: 100 | X47: 100 | Y47: 90 | Z47: 76 | AA47: 2.706244566 | AB47: 0.8495210964 | AC47: 0.859372464
A48: 78 | B48: 0 | C48: 0 | D48: 0 | E48: 0 | F48: 0 | G48: 0 | H48: 0 | I48: 0 | J48: 0 | K48: 0 | L48: 0 | M48: 0 | U48: 100 | V48: 90 | W48: 100 | X48: 100 | Y48: 90 | Z48: 78 | AA48: 2.706244566 | AB48: 0.8495210964 | AC48: 0.859372464
A49: 80 | B49: 0 | C49: 0 | D49: 0 | E49: 0 | F49: 0 | G49: 0 | H49: 0 | I49: 0 | J49: 0 | K49: 0 | L49: 0 | M49: 0 | U49: 100 | V49: 90 | W49: 100 | X49: 100 | Y49: 90 | Z49: 80 | AA49: 2.706244566 | AB49: 0.8495210964 | AC49: 0.859372464
A50: 82 | B50: 0 | C50: 0 | D50: 0 | E50: 0 | F50: 0 | G50: 0 | H50: 0 | I50: 0 | J50: 0 | K50: 0 | L50: 0 | M50: 0 | U50: 100 | V50: 90 | W50: 100 | X50: 100 | Y50: 90 | Z50: 82 | AA50: 2.706244566 | AB50: 0.8495210964 | AC50: 0.859372464
A51: 84 | B51: 0 | C51: 0 | D51: 0 | E51: 0 | F51: 0 | G51: 0 | H51: 0 | I51: 0 | J51: 0 | K51: 0 | L51: 0 | M51: 0 | U51: 100 | V51: 90 | W51: 100 | X51: 100 | Y51: 90 | Z51: 84 | AA51: 2.706244566 | AB51: 0.8495210964 | AC51: 0.859372464
A52: 86 | B52: 0 | C52: 0 | D52: 0 | E52: 0 | F52: 0 | G52: 0 | H52: 0 | I52: 0 | J52: 0 | K52: 0 | L52: 0 | M52: 0 | U52: 100 | V52: 90 | W52: 100 | X52: 100 | Y52: 90 | Z52: 86 | AA52: 2.706244566 | AB52: 0.8495210964 | AC52: 0.859372464
A53: 88 | B53: 0 | C53: 0 | D53: 0 | E53: 0 | F53: 0 | G53: 0 | H53: 0 | I53: 0 | J53: 0 | K53: 0 | L53: 0 | M53: 0 | U53: 100 | V53: 90 | W53: 100 | X53: 100 | Y53: 90 | Z53: 88 | AA53: 2.706244566 | AB53: 0.8495210964 | AC53: 0.859372464
A54: 90 | B54: 0 | C54: 0 | D54: 0 | E54: 0 | F54: 0 | G54: 0 | H54: 0 | I54: 0 | J54: 0 | K54: 0 | L54: 0 | M54: 0 | U54: 100 | V54: 90 | W54: 100 | X54: 100 | Y54: 90 | Z54: 90 | AA54: =AA53+F54*($A54-$A53) -> 2.706244566 | AB54: 0.8495210964 | AC54: 0.859372464
A55: 92 | B55: 0 | C55: 0 | D55: 0 | E55: 0 | F55: 0 | G55: 0 | H55: 0 | I55: 0 | J55: 0 | K55: 0 | L55: 0 | M55: 0 | U55: 100 | V55: 90 | W55: 100 | X55: 100 | Y55: 90 | Z55: 92 | AA55: 2.706244566 | AB55: 0.8495210964 | AC55: 0.859372464
A56: 94 | B56: 0 | C56: 0 | D56: 0 | E56: 0 | F56: 0 | G56: 0 | H56: 0 | I56: 0 | J56: 0 | K56: 0 | L56: 0 | M56: 0 | U56: 100 | V56: 90 | W56: 100 | X56: 100 | Y56: 90 | Z56: 94 | AA56: 2.706244566 | AB56: 0.8495210964 | AC56: 0.859372464
A57: 96 | B57: 0 | C57: 0 | D57: 0 | E57: 0 | F57: 0 | G57: 0 | H57: 0 | I57: 0 | J57: 0 | K57: 0 | L57: 0 | M57: 0 | U57: 100 | V57: 90 | W57: 100 | X57: 100 | Y57: 90 | Z57: 96 | AA57: 2.706244566 | AB57: 0.8495210964 | AC57: 0.859372464
A58: 98 | B58: 0 | C58: 0 | D58: 0 | E58: 0 | F58: 0 | G58: 0 | H58: 0 | I58: 0 | J58: 0 | K58: 0 | L58: 0 | M58: 0 | U58: 100 | V58: 90 | W58: 100 | X58: 100 | Y58: 90 | Z58: 98 | AA58: 2.706244566 | AB58: 0.8495210964 | AC58: 0.859372464
A59: 100 | B59: 0 | C59: 0 | D59: 0 | E59: 0 | F59: 0 | G59: 0 | H59: 0 | I59: 0 | J59: 0 | K59: 0 | L59: 0 | M59: 0 | U59: 100 | V59: 90 | W59: 100 | X59: 100 | Y59: 90 | Z59: 100 | AA59: 2.706244566 | AB59: 0.8495210964 | AC59: 0.859372464

Sheet sim13 (hidden)
B1: sim13 | O1: Remediation time (>90% mass removal or flux reduction)
B2: mass (g/m2) | F2: flux (g/y/m2) | J2: Conc output (mg/L) | O2: Mass | P2: =VLOOKUP(90,V:Z,5,FALSE) ->  | AA2: acc flux (g/m2)
A3: Time | B3: TCE | C3: DCE | D3: VC | E3: Total | F3: TCE | G3: DCE | H3: VC | I3: Total | J3: TCE | K3: DCE | L3: VC | M3: Total | O3: Flux | P3: =VLOOKUP(90,Y:Z,2,FALSE) -> 72 | U3: mass removal (%) | V3: to find 90% | W3: flux reduction (%) | Y3: to find 90% | Z3: Time | AA3: TCE | AB3: DCE | AC3: VC
A4: 0 | B4: 162.4035 | C4: 0 | D4: 0 | E4: =SUM(B4:D4) -> 162.4035 | F4: 2.178 | G4: 0 | H4: 0 | I4: =SUM(F4:H4) -> 2.178 | J4: 22 | K4: 0 | L4: 0 | M4: =SUM(J4:L4) -> 22 | U4: =(E$4-E4)/E$4*100 -> 0 | V4: =IF(U4>90,90,0) -> 0 | W4: =(I$4-I4)/I$4*100 -> 0 | X4: =IF(W4>0,W4,0) -> 0 | Y4: =IF(X4>90,90,0) -> 0 | Z4: =A4 -> 0 | AA4: =F4 -> 2.178 | AB4: =G4 -> 0 | AC4: 0
A5: 1 | B5: 148.7361 | C5: 6.3474 | D5: 0.541 | E5: =SUM(B5:D5) -> 155.6245 | F5: 2.011 | G5: 0.1719 | H5: 0.0144 | I5: =SUM(F5:H5) -> 2.1973 | J5: 20.31313131 | K5: 1.736363636 | L5: 0.1454545455 | M5: =SUM(J5:L5) -> 22.19494949 | O5: Accumulated flux to the aquifer (g/m2) | U5: =(E$4-E5)/E$4*100 -> 4.174171123 | V5: =IF(U5>90,90,0) -> 0 | W5: =(I$4-I5)/I$4*100 -> -0.886134068 | X5: =IF(W5>0,W5,0) -> 0 | Y5: =IF(X5>90,90,0) -> 0 | Z5: =A5 -> 1 | AA5: =AA4+F5*($A5-$A4) -> 4.189 | AB5: =AB4+G5*($A5-$A4) -> 0.1719 | AC5: 0.0144
A6: 2 | B6: 140.8177 | C6: 8.8374 | D6: 1.2215 | E6: 150.8766 | F6: 1.8932 | G6: 0.2574 | H6: 0.0357 | I6: 2.1863 | J6: 19.12323232 | K6: 2.6 | L6: 0.3606060606 | M6: 22.08383838 | O6: TCE | P6: =MAX(AA:AA) -> 42.8184 | U6: 7.09769186 | V6: 0 | W6: -0.3810835629 | X6: 0 | Y6: 0 | Z6: 2 | AA6: =AA5+F6*($A6-$A5) -> 6.0822 | AB6: 0.4293 | AC6: 0.0501
A7: 3 | B7: 134.2972 | C7: 10.4156 | D7: 1.8469 | E7: 146.5597 | F7: 1.7788 | G7: 0.3102 | H7: 0.0564 | I7: 2.1454 | J7: 17.96767677 | K7: 3.133333333 | L7: 0.5696969697 | M7: 21.67070707 | O7: DCE | P7: =MAX(AB:AB) -> 13.9334 | U7: 9.755824228 | V7: 0 | W7: 1.496786042 | X7: 1.496786042 | Y7: 0 | Z7: 3 | AA7: 7.861 | AB7: 0.7395 | AC7: 0.1065
A8: 4 | B8: 128.5777 | C8: 11.514 | D8: 2.4109 | E8: 142.5026 | F8: 1.666 | G8: 0.3434 | H8: 0.0752 | I8: 2.0846 | J8: 16.82828283 | K8: 3.468686869 | L8: 0.7595959596 | M8: 21.05656566 | O8: VC | P8: =MAX(AC:AC) -> 6.9464 | U8: 12.25398467 | V8: 0 | W8: 4.288337925 | X8: 4.288337925 | Y8: 0 | Z8: 4 | AA8: 9.527 | AB8: 1.0829 | AC8: 0.1817
A9: 5 | B9: 123.4634 | C9: 12.275 | D9: 2.9157 | E9: 138.6541 | F9: 1.5576 | G9: 0.3634 | H9: 0.092 | I9: 2.013 | J9: 15.73333333 | K9: 3.670707071 | L9: 0.9292929293 | M9: 20.33333333 | O9: Total | P9: =SUM(P6:P8) -> 63.6982 | U9: 14.62369961 | V9: 0 | W9: 7.575757576 | X9: 7.575757576 | Y9: 0 | Z9: 5 | AA9: 11.0846 | AB9: 1.4463 | AC9: 0.2737
A10: 6 | B10: 118.8126 | C10: 12.8017 | D10: 3.3648 | E10: 134.9791 | F10: 1.4553 | G10: 0.3742 | H10: 0.1065 | I10: 1.936 | J10: 14.7 | K10: 3.77979798 | L10: 1.075757576 | M10: 19.55555556 | U10: 16.88658188 | V10: 0 | W10: 11.11111111 | X10: 11.11111111 | Y10: 0 | Z10: 6 | AA10: 12.5399 | AB10: 1.8205 | AC10: 0.3802
A11: 7 | B11: 114.5462 | C11: 13.1503 | D11: 3.7623 | E11: 131.4588 | F11: 1.3597 | G11: 0.3785 | H11: 0.119 | I11: 1.8572 | J11: 13.73434343 | K11: 3.823232323 | L11: 1.202020202 | M11: 18.75959596 | U11: 19.05420758 | V11: 0 | W11: 14.72910927 | X11: 14.72910927 | Y11: 0 | Z11: 7 | AA11: 13.8996 | AB11: 2.199 | AC11: 0.4992
A12: 8 | B12: 110.6066 | C12: 13.3609 | D12: 4.1122 | E12: 128.0797 | F12: 1.2715 | G12: 0.378 | H12: 0.1296 | I12: 1.7791 | J12: 12.84343434 | K12: 3.818181818 | L12: 1.309090909 | M12: 17.97070707 | U12: 21.13488933 | V12: 0 | W12: 18.31496786 | X12: 18.31496786 | Y12: 0 | Z12: 8 | AA12: 15.1711 | AB12: 2.577 | AC12: 0.6288
A13: 9 | B13: 106.957 | C13: 13.4581 | D13: 4.4176 | E13: 124.8327 | F13: 1.1904 | G13: 0.374 | H13: 0.1383 | I13: 1.7027 | J13: 12.02424242 | K13: 3.777777778 | L13: 1.396969697 | M13: 17.1989899 | U13: 23.13423048 | V13: 0 | W13: 21.82277319 | X13: 21.82277319 | Y13: 0 | Z13: 9 | AA13: 16.3615 | AB13: 2.951 | AC13: 0.7671
A14: 10 | B14: 103.562 | C14: 13.4655 | D14: 4.681 | E14: 121.7085 | F14: 1.1161 | G14: 0.3674 | H14: 0.1455 | I14: 1.629 | J14: 11.27373737 | K14: 3.711111111 | L14: 1.46969697 | M14: 16.45454545 | U14: 25.05795749 | V14: 0 | W14: 25.20661157 | X14: 25.20661157 | Y14: 0 | Z14: 10 | AA14: 17.4776 | AB14: 3.3184 | AC14: 0.9126
A15: 12 | B15: 97.4151 | C15: 13.2895 | D15: 5.0906 | E15: 115.7952 | F15: 0.9865 | G15: 0.3494 | H15: 0.1553 | I15: 1.4912 | J15: 9.964646465 | K15: 3.529292929 | L15: 1.568686869 | M15: 15.06262626 | U15: 28.6990736 | V15: 0 | W15: 31.53351699 | X15: 31.53351699 | Y15: 0 | Z15: 12 | AA15: 19.4506 | AB15: 4.0172 | AC15: 1.2232
A16: 14 | B16: 91.9812 | C16: 12.9466 | D16: 5.3579 | E16: 110.2857 | F16: 0.8781 | G16: 0.3276 | H16: 0.1598 | I16: 1.3655 | J16: 8.86969697 | K16: 3.309090909 | L16: 1.614141414 | M16: 13.79292929 | U16: 32.09154975 | V16: 0 | W16: 37.30486685 | X16: 37.30486685 | Y16: 0 | Z16: 14 | AA16: 21.2068 | AB16: 4.6724 | AC16: 1.5428
A17: 16 | B17: 87.1181 | C17: 12.5168 | D17: 5.5023 | E17: 105.1372 | F17: 0.787 | G17: 0.3046 | H17: 0.16 | I17: 1.2516 | J17: 7.949494949 | K17: 3.076767677 | L17: 1.616161616 | M17: 12.64242424 | U17: 35.26174005 | V17: 0 | W17: 42.53443526 | X17: 42.53443526 | Y17: 0 | Z17: 16 | AA17: 22.7808 | AB17: 5.2816 | AC17: 1.8628
A18: 18 | B18: 82.7084 | C18: 12.0572 | D18: 5.5503 | E18: 100.3159 | F18: 0.7095 | G18: 0.2827 | H18: 0.1569 | I18: 1.1491 | J18: 7.166666667 | K18: 2.855555556 | L18: 1.584848485 | M18: 11.60707071 | U18: 38.23045686 | V18: 0 | W18: 47.2405877 | X18: 47.2405877 | Y18: 0 | Z18: 18 | AA18: 24.1998 | AB18: 5.847 | AC18: 2.1766
A19: 20 | B19: 78.7083 | C19: 11.5944 | D19: 5.5306 | E19: 95.8333 | F19: 0.6444 | G19: 0.2619 | H19: 0.152 | I19: 1.0583 | J19: 6.509090909 | K19: 2.645454545 | L19: 1.535353535 | M19: 10.68989899 | U19: 40.99061904 | V19: 0 | W19: 51.40955005 | X19: 51.40955005 | Y19: 0 | Z19: 20 | AA19: 25.4886 | AB19: 6.3708 | AC19: 2.4806
A20: 22 | B20: 75.0356 | C20: 11.1379 | D20: 5.4732 | E20: 91.6467 | F20: 0.589 | G20: 0.243 | H20: 0.1465 | I20: 0.9785 | J20: 5.949494949 | K20: 2.454545455 | L20: 1.47979798 | M20: 9.883838384 | U20: 43.56851915 | V20: 0 | W20: 55.07346189 | X20: 55.07346189 | Y20: 0 | Z20: 22 | AA20: 26.6666 | AB20: 6.8568 | AC20: 2.7736
A21: 24 | B21: 71.6506 | C21: 10.6918 | D21: 5.3863 | E21: 87.7287 | F21: 0.5417 | G21: 0.2261 | H21: 0.1406 | I21: 0.9084 | J21: 5.471717172 | K21: 2.283838384 | L21: 1.42020202 | M21: 9.175757576 | U21: 45.98102873 | V21: 0 | W21: 58.29201102 | X21: 58.29201102 | Y21: 0 | Z21: 24 | AA21: 27.75 | AB21: 7.309 | AC21: 3.0548
A22: 26 | B22: 68.4804 | C22: 10.2529 | D22: 5.2756 | E22: 84.0089 | F22: 0.5002 | G22: 0.2108 | H22: 0.1345 | I22: 0.8455 | J22: 5.052525253 | K22: 2.129292929 | L22: 1.358585859 | M22: 8.54040404 | U22: 48.27149661 | V22: 0 | W22: 61.17998163 | X22: 61.17998163 | Y22: 0 | Z22: 26 | AA22: =AA21+F22*($A22-$A21) -> 28.7504 | AB22: 7.7306 | AC22: 3.3238
A23: 28 | B23: 65.4878 | C23: 9.8198 | D23: 5.1433 | E23: 80.4509 | F23: 0.4631 | G23: 0.1969 | H23: 0.1284 | I23: 0.7884 | J23: 4.677777778 | K23: 1.988888889 | L23: 1.296969697 | M23: 7.963636364 | U23: 50.46233609 | V23: 0 | W23: 63.80165289 | X23: 63.80165289 | Y23: 0 | Z23: 28 | AA23: 29.6766 | AB23: 8.1244 | AC23: 3.5806
A24: 30 | B24: 62.6401 | C24: 9.3921 | D24: 4.9926 | E24: 77.0248 | F24: 0.4295 | G24: 0.1839 | H24: 0.1222 | I24: 0.7356 | J24: 4.338383838 | K24: 1.857575758 | L24: 1.234343434 | M24: 7.43030303 | U24: 52.57195812 | V24: 0 | W24: 66.22589532 | X24: 66.22589532 | Y24: 0 | Z24: 30 | AA24: 30.5356 | AB24: 8.4922 | AC24: 3.825
A25: 32 | B25: 59.9341 | C25: 8.9706 | D25: 4.8235 | E25: 73.7282 | F25: 0.399 | G25: 0.172 | H25: 0.1159 | I25: 0.6869 | J25: 4.03030303 | K25: 1.737373737 | L25: 1.170707071 | M25: 6.938383838 | U25: 54.60184048 | V25: 0 | W25: 68.46189164 | X25: 68.46189164 | Y25: 0 | Z25: 32 | AA25: 31.3336 | AB25: 8.8362 | AC25: 4.0568
A26: 34 | B26: 57.3664 | C26: 8.5568 | D26: 4.6372 | E26: 70.5604 | F26: 0.3716 | G26: 0.161 | H26: 0.1096 | I26: 0.6422 | J26: 3.753535354 | K26: 1.626262626 | L26: 1.107070707 | M26: 6.486868687 | U26: 56.5524142 | V26: 0 | W26: 70.51423324 | X26: 70.51423324 | Y26: 0 | Z26: 34 | AA26: 32.0768 | AB26: 9.1582 | AC26: 4.276
A27: 36 | B27: 54.9258 | C27: 8.1528 | D27: 4.4373 | E27: 67.5159 | F27: 0.3465 | G27: 0.1508 | H27: 0.1033 | I27: 0.6006 | J27: 3.5 | K27: 1.523232323 | L27: 1.043434343 | M27: 6.066666667 | U27: 58.42706592 | V27: 0 | W27: 72.42424242 | X27: 72.42424242 | Y27: 0 | Z27: 36 | AA27: 32.7698 | AB27: 9.4598 | AC27: 4.4826
A28: 38 | B28: 52.615 | C28: 7.7579 | D28: 4.2229 | E28: 64.5958 | F28: 0.3241 | G28: 0.1416 | H28: 0.097 | I28: 0.5627 | J28: 3.273737374 | K28: 1.43030303 | L28: 0.9797979798 | M28: 5.683838384 | U28: 60.2251183 | V28: 0 | W28: 74.16437098 | X28: 74.16437098 | Y28: 0 | Z28: 38 | AA28: 33.418 | AB28: 9.743 | AC28: 4.6766
A29: 40 | B29: 50.4095 | C29: 7.3739 | D29: 4.0017 | E29: 61.7851 | F29: 0.3034 | G29: 0.133 | H29: 0.0909 | I29: 0.5273 | J29: 3.064646465 | K29: 1.343434343 | L29: 0.9181818182 | M29: 5.326262626 | U29: 61.9558076 | V29: 0 | W29: 75.78971534 | X29: 75.78971534 | Y29: 0 | Z29: 40 | AA29: 34.0248 | AB29: 10.009 | AC29: 4.8584
A30: 42 | B30: 48.3115 | C30: 7.0008 | D30: 3.773 | E30: 59.0853 | F30: 0.2846 | G30: 0.1251 | H30: 0.0849 | I30: 0.4946 | J30: 2.874747475 | K30: 1.263636364 | L30: 0.8575757576 | M30: 4.995959596 | U30: 63.6182102 | V30: 0 | W30: 77.29109275 | X30: 77.29109275 | Y30: 0 | Z30: 42 | AA30: 34.594 | AB30: 10.2592 | AC30: 5.0282
A31: 44 | B31: 46.3226 | C31: 6.6384 | D31: 3.5366 | E31: 56.4976 | F31: 0.2678 | G31: 0.1179 | H31: 0.079 | I31: 0.4647 | J31: 2.705050505 | K31: 1.190909091 | L31: 0.797979798 | M31: 4.693939394 | U31: 65.21158719 | V31: 0 | W31: 78.66391185 | X31: 78.66391185 | Y31: 0 | Z31: 44 | AA31: 35.1296 | AB31: 10.495 | AC31: 5.1862
A32: 46 | B32: 44.4126 | C32: 6.2897 | D32: 3.3037 | E32: 54.006 | F32: 0.252 | G32: 0.1112 | H32: 0.0734 | I32: 0.4366 | J32: 2.545454545 | K32: 1.123232323 | L32: 0.7414141414 | M32: 4.41010101 | U32: 66.74579058 | V32: 0 | W32: 79.95408632 | X32: 79.95408632 | Y32: 0 | Z32: 46 | AA32: 35.6336 | AB32: 10.7174 | AC32: 5.333
A33: 48 | B33: 42.5963 | C33: 5.9533 | D33: 3.0688 | E33: 51.6184 | F33: 0.2376 | G33: 0.105 | H33: 0.068 | I33: 0.4106 | J33: 2.4 | K33: 1.060606061 | L33: 0.6868686869 | M33: 4.147474747 | U33: 68.21595594 | V33: 0 | W33: 81.14784206 | X33: 81.14784206 | Y33: 0 | Z33: 48 | AA33: 36.1088 | AB33: 10.9274 | AC33: 5.469
A34: 50 | B34: 40.8629 | C34: 5.6307 | D34: 2.8376 | E34: 49.3312 | F34: 0.2244 | G34: 0.0993 | H34: 0.0629 | I34: 0.3866 | J34: 2.266666667 | K34: 1.003030303 | L34: 0.6353535354 | M34: 3.905050505 | U34: 69.62429997 | V34: 0 | W34: 82.24977043 | X34: 82.24977043 | Y34: 0 | Z34: 50 | AA34: 36.5576 | AB34: 11.126 | AC34: 5.5948
A35: 52 | B35: 39.1982 | C35: 5.3243 | D35: 2.6179 | E35: 47.1404 | F35: 0.212 | G35: 0.094 | H35: 0.0581 | I35: 0.3641 | J35: 2.141414141 | K35: 0.9494949495 | L35: 0.5868686869 | M35: 3.677777778 | U35: 70.97328567 | V35: 0 | W35: 83.28282828 | X35: 83.28282828 | Y35: 0 | Z35: 52 | AA35: 36.9816 | AB35: 11.314 | AC35: 5.711
A36: 54 | B36: 37.6113 | C36: 5.0326 | D36: 2.4045 | E36: 45.0484 | F36: 0.2007 | G36: 0.0891 | H36: 0.0537 | I36: 0.3435 | J36: 2.027272727 | K36: 0.9 | L36: 0.5424242424 | M36: 3.46969697 | U36: 72.26143525 | V36: 0 | W36: 84.22865014 | X36: 84.22865014 | Y36: 0 | Z36: 54 | AA36: 37.383 | AB36: 11.4922 | AC36: 5.8184
A37: 56 | B37: 36.0995 | C37: 4.7559 | D37: 2.1986 | E37: 43.054 | F37: 0.1902 | G37: 0.0845 | H37: 0.0496 | I37: 0.3243 | J37: 1.921212121 | K37: 0.8535353535 | L37: 0.501010101 | M37: 3.275757576 | U37: 73.4894876 | V37: 0 | W37: 85.11019284 | X37: 85.11019284 | Y37: 0 | Z37: 56 | AA37: 37.7634 | AB37: 11.6612 | AC37: 5.9176
A38: 58 | B38: 34.662 | C38: 4.4932 | D38: 2.003 | E38: 41.1582 | F38: 0.1806 | G38: 0.0803 | H38: 0.0457 | I38: 0.3066 | J38: 1.824242424 | K38: 0.8111111111 | L38: 0.4616161616 | M38: 3.096969697 | U38: 74.65682698 | V38: 0 | W38: 85.92286501 | X38: 85.92286501 | Y38: 0 | Z38: 58 | AA38: =AA37+F38*($A38-$A37) -> 38.1246 | AB38: 11.8218 | AC38: 6.009
A39: 60 | B39: 33.2824 | C39: 4.2487 | D39: 1.8238 | E39: 39.3549 | F39: 0.1716 | G39: 0.0764 | H39: 0.0422 | I39: 0.2902 | J39: 1.733333333 | K39: 0.7717171717 | L39: 0.4262626263 | M39: 2.931313131 | U39: 75.76720945 | V39: 0 | W39: 86.6758494 | X39: 86.6758494 | Y39: 0 | Z39: 60 | AA39: 38.4678 | AB39: 11.9746 | AC39: 6.0934
A40: 62 | B40: 31.9714 | C40: 4.0218 | D40: 1.6629 | E40: 37.6561 | F40: 0.1632 | G40: 0.0728 | H40: 0.039 | I40: 0.275 | J40: 1.648484848 | K40: 0.7353535354 | L40: 0.3939393939 | M40: 2.777777778 | U40: 76.81324602 | V40: 0 | W40: 87.37373737 | X40: 87.37373737 | Y40: 0 | Z40: 62 | AA40: 38.7942 | AB40: 12.1202 | AC40: 6.1714
A41: 64 | B41: 30.7387 | C41: 3.8146 | D41: 1.5223 | E41: 36.0756 | F41: 0.1555 | G41: 0.0694 | H41: 0.0362 | I41: 0.2611 | J41: 1.570707071 | K41: 0.701010101 | L41: 0.3656565657 | M41: 2.637373737 | U41: 77.78643933 | V41: 0 | W41: 88.01193756 | X41: 88.01193756 | Y41: 0 | Z41: 64 | AA41: 39.1052 | AB41: 12.259 | AC41: 6.2438
A42: 66 | B42: 29.5506 | C42: 3.6182 | D42: 1.3928 | E42: 34.5616 | F42: 0.1481 | G42: 0.0663 | H42: 0.0336 | I42: 0.248 | J42: 1.495959596 | K42: 0.6696969697 | L42: 0.3393939394 | M42: 2.505050505 | U42: 78.71868525 | V42: 0 | W42: 88.6134068 | X42: 88.6134068 | Y42: 0 | Z42: 66 | AA42: 39.4014 | AB42: 12.3916 | AC42: 6.311
A43: 68 | B43: 28.4187 | C43: 3.435 | D43: 1.2764 | E43: 33.1301 | F43: 0.1413 | G43: 0.0633 | H43: 0.0312 | I43: 0.2358 | J43: 1.427272727 | K43: 0.6393939394 | L43: 0.3151515152 | M43: 2.381818182 | U43: 79.60013177 | V43: 0 | W43: 89.17355372 | X43: 89.17355372 | Y43: 0 | Z43: 68 | AA43: 39.684 | AB43: 12.5182 | AC43: 6.3734
A44: 70 | B44: 27.3291 | C44: 3.263 | D44: 1.1722 | E44: 31.7643 | F44: 0.1348 | G44: 0.0604 | H44: 0.0289 | I44: 0.2241 | J44: 1.361616162 | K44: 0.6101010101 | L44: 0.2919191919 | M44: 2.263636364 | U44: 80.4411235 | V44: 0 | W44: 89.7107438 | X44: 89.7107438 | Y44: 0 | Z44: 70 | AA44: 39.9536 | AB44: 12.639 | AC44: 6.4312
A45: 72 | B45: 26.2735 | C45: 3.0971 | D45: 1.0737 | E45: 30.4443 | F45: 0.1285 | G45: 0.0577 | H45: 0.0268 | I45: 0.213 | J45: 1.297979798 | K45: 0.5828282828 | L45: 0.2707070707 | M45: 2.151515152 | U45: 81.25391386 | V45: 0 | W45: 90.22038567 | X45: 90.22038567 | Y45: 90 | Z45: 72 | AA45: 40.2106 | AB45: 12.7544 | AC45: 6.4848
A46: 74 | B46: 25.2649 | C46: 2.9403 | D46: 0.9836 | E46: 29.1888 | F46: 0.1226 | G46: 0.0551 | H46: 0.0249 | I46: 0.2026 | J46: 1.238383838 | K46: 0.5565656566 | L46: 0.2515151515 | M46: 2.046464646 | U46: 82.02698833 | V46: 0 | W46: 90.69788797 | X46: 90.69788797 | Y46: 90 | Z46: 74 | AA46: 40.4558 | AB46: 12.8646 | AC46: 6.5346
A47: 76 | B47: 24.3048 | C47: 2.7957 | D47: 0.9042 | E47: 28.0047 | F47: 0.1171 | G47: 0.0527 | H47: 0.0231 | I47: 0.1929 | J47: 1.182828283 | K47: 0.5323232323 | L47: 0.2333333333 | M47: 1.948484848 | U47: 82.75609824 | V47: 0 | W47: 91.14325069 | X47: 91.14325069 | Y47: 90 | Z47: 76 | AA47: 40.69 | AB47: 12.97 | AC47: 6.5808
A48: 78 | B48: 23.3967 | C48: 2.6617 | D48: 0.8343 | E48: 26.8927 | F48: 0.112 | G48: 0.0504 | H48: 0.0216 | I48: 0.184 | J48: 1.131313131 | K48: 0.5090909091 | L48: 0.2181818182 | M48: 1.858585859 | U48: 83.44081254 | V48: 0 | W48: 91.55188246 | X48: 91.55188246 | Y48: 90 | Z48: 78 | AA48: 40.914 | AB48: 13.0708 | AC48: 6.624
A49: 80 | B49: 22.5078 | C49: 2.5315 | D49: 0.7675 | E49: 25.8068 | F49: 0.107 | G49: 0.0482 | H49: 0.0201 | I49: 0.1753 | J49: 1.080808081 | K49: 0.4868686869 | L49: 0.203030303 | M49: 1.770707071 | U49: 84.10945577 | V49: 0 | W49: 91.9513315 | X49: 91.9513315 | Y49: 90 | Z49: 80 | AA49: 41.128 | AB49: 13.1672 | AC49: 6.6642
A50: 82 | B50: 21.6609 | C50: 2.4096 | D50: 0.7077 | E50: 24.7782 | F50: 0.1023 | G50: 0.0462 | H50: 0.0188 | I50: 0.1673 | J50: 1.033333333 | K50: 0.4666666667 | L50: 0.1898989899 | M50: 1.68989899 | U50: 84.7428165 | V50: 0 | W50: 92.31864096 | X50: 92.31864096 | Y50: 90 | Z50: 82 | AA50: 41.3326 | AB50: 13.2596 | AC50: 6.7018
A51: 84 | B51: 20.8414 | C51: 2.2932 | D51: 0.6527 | E51: 23.7873 | F51: 0.0978 | G51: 0.0442 | H51: 0.0175 | I51: 0.1595 | J51: 0.9878787879 | K51: 0.4464646465 | L51: 0.1767676768 | M51: 1.611111111 | U51: 85.35296345 | V51: 0 | W51: 92.67676768 | X51: 92.67676768 | Y51: 90 | Z51: 84 | AA51: 41.5282 | AB51: 13.348 | AC51: 6.7368
A52: 86 | B52: 20.0398 | C52: 2.1805 | D52: 0.601 | E52: 22.8213 | F52: 0.0935 | G52: 0.0423 | H52: 0.0163 | I52: 0.1521 | J52: 0.9444444444 | K52: 0.4272727273 | L52: 0.1646464646 | M52: 1.536363636 | U52: 85.94777822 | V52: 0 | W52: 93.01652893 | X52: 93.01652893 | Y52: 90 | Z52: 86 | AA52: 41.7152 | AB52: 13.4326 | AC52: 6.7694
A53: 88 | B53: 19.2682 | C53: 2.0724 | D53: 0.5517 | E53: 21.8923 | F53: 0.0893 | G53: 0.0404 | H53: 0.0152 | I53: 0.1449 | J53: 0.902020202 | K53: 0.4080808081 | L53: 0.1535353535 | M53: 1.463636364 | U53: 86.51981023 | V53: 0 | W53: 93.34710744 | X53: 93.34710744 | Y53: 90 | Z53: 88 | AA53: 41.8938 | AB53: 13.5134 | AC53: 6.7998
A54: 90 | B54: 18.5376 | C54: 1.9724 | D54: 0.5089 | E54: 21.0189 | F54: 0.0854 | G54: 0.0387 | H54: 0.0142 | I54: 0.1383 | J54: 0.8626262626 | K54: 0.3909090909 | L54: 0.1434343434 | M54: 1.396969697 | U54: 87.05760652 | V54: 0 | W54: 93.65013774 | X54: 93.65013774 | Y54: 90 | Z54: 90 | AA54: =AA53+F54*($A54-$A53) -> 42.0646 | AB54: 13.5908 | AC54: 6.8282
A55: 92 | B55: 17.8466 | C55: 1.8795 | D55: 0.4711 | E55: 20.1972 | F55: 0.0818 | G55: 0.0371 | H55: 0.0133 | I55: 0.1322 | J55: 0.8262626263 | K55: 0.3747474747 | L55: 0.1343434343 | M55: 1.335353535 | U55: 87.56356852 | V55: 0 | W55: 93.9302112 | X55: 93.9302112 | Y55: 90 | Z55: 92 | AA55: 42.2282 | AB55: 13.665 | AC55: 6.8548
A56: 94 | B56: 17.1974 | C56: 1.7938 | D56: 0.4379 | E56: 19.4291 | F56: 0.0784 | G56: 0.0356 | H56: 0.0125 | I56: 0.1265 | J56: 0.7919191919 | K56: 0.3595959596 | L56: 0.1262626263 | M56: 1.277777778 | U56: 88.03652631 | V56: 0 | W56: 94.19191919 | X56: 94.19191919 | Y56: 90 | Z56: 94 | AA56: 42.385 | AB56: 13.7362 | AC56: 6.8798
A57: 96 | B57: 16.5862 | C57: 1.7146 | D57: 0.4088 | E57: 18.7096 | F57: 0.0753 | G57: 0.0342 | H57: 0.0118 | I57: 0.1213 | J57: 0.7606060606 | K57: 0.3454545455 | L57: 0.1191919192 | M57: 1.225252525 | U57: 88.47955863 | V57: 0 | W57: 94.43067034 | X57: 94.43067034 | Y57: 90 | Z57: 96 | AA57: 42.5356 | AB57: 13.8046 | AC57: 6.9034
A58: 98 | B58: 15.9751 | C58: 1.6354 | D58: 0.3797 | E58: 17.9902 | F58: 0.0722 | G58: 0.0329 | H58: 0.0111 | I58: 0.1162 | J58: 0.7292929293 | K58: 0.3323232323 | L58: 0.1121212121 | M58: 1.173737374 | U58: 88.92252938 | V58: 0 | W58: 94.66483012 | X58: 94.66483012 | Y58: 90 | Z58: 98 | AA58: 42.68 | AB58: 13.8704 | AC58: 6.9256
A59: 100 | B59: 15.3831 | C59: 1.5593 | D59: 0.3524 | E59: 17.2948 | F59: 0.0692 | G59: 0.0315 | H59: 0.0104 | I59: 0.1111 | J59: 0.698989899 | K59: 0.3181818182 | L59: 0.1050505051 | M59: 1.122222222 | U59: 89.35072212 | V59: 0 | W59: 94.8989899 | X59: 94.8989899 | Y59: 90 | Z59: 100 | AA59: 42.8184 | AB59: 13.9334 | AC59: 6.9464

Sheet sim14 (hidden)
B1: sim14 | O1: Remediation time (>90% mass removal or flux reduction)
B2: mass (g/m2) | F2: flux (g/y/m2) | J2: Conc output (mg/L) | O2: Mass | P2: =VLOOKUP(90,V4:Z59,5,FALSE) -> 64 | AA2: acc flux (g/m2)
A3: Time | B3: TCE | C3: DCE | D3: VC | E3: Total | F3: TCE | G3: DCE | H3: VC | I3: Total | J3: TCE | K3: DCE | L3: VC | M3: Total | O3: Flux | P3: =VLOOKUP(90,Y4:Z59,2,FALSE) -> 38 | U3: mass removal (%) | V3: to find 90% | W3: flux reduction (%) | Y3: to find 90% | Z3: Time | AA3: TCE | AB3: DCE | AC3: VC
A4: 0 | B4: 162.5592 | C4: 0 | D4: 0 | E4: =SUM(B4:D4) -> 162.5592 | F4: 2.178 | G4: 0 | H4: 0 | I4: =SUM(F4:H4) -> 2.178 | J4: 22 | K4: 0 | L4: 0 | M4: =SUM(J4:L4) -> 22 | U4: =(E$4-E4)/E$4*100 -> 0 | V4: =IF(U4>90,90,0) -> 0 | W4: =(I$4-I4)/I$4*100 -> 0 | X4: =IF(W4>0,W4,0) -> 0 | Y4: =IF(X4>90,90,0) -> 0 | Z4: 0 | AA4: =F4 -> 2.178 | AB4: =G4 -> 0 | AC4: 0
A5: 1 | B5: 131.6963 | C5: 16.7015 | D5: 1.767 | E5: =SUM(B5:D5) -> 150.1648 | F5: 1.7477 | G5: 0.4324 | H5: 0.0511 | I5: =SUM(F5:H5) -> 2.2312 | J5: 17.65353535 | K5: 4.367676768 | L5: 0.5161616162 | M5: =SUM(J5:L5) -> 22.53737374 | O5: Accumulated flux to the aquifer (g/m2) | U5: =(E$4-E5)/E$4*100 -> 7.624545396 | V5: =IF(U5>90,90,0) -> 0 | W5: =(I$4-I5)/I$4*100 -> -2.442607897 | X5: =IF(W5>0,W5,0) -> 0 | Y5: =IF(X5>90,90,0) -> 0 | Z5: 1 | AA5: =AA4+F5*($A5-$A4) -> 3.9257 | AB5: =AB4+G5*($A5-$A4) -> 0.4324 | AC5: 0.0511
A6: 2 | B6: 117.4771 | C6: 20.7005 | D6: 3.8757 | E6: 142.0533 | F6: 1.5149 | G6: 0.58 | H6: 0.1209 | I6: 2.2158 | J6: 15.3020202 | K6: 5.858585859 | L6: 1.221212121 | M6: 22.38181818 | O6: TCE | P6: =AA59 -> 21.13 | U6: 12.61441985 | V6: 0 | W6: -1.73553719 | X6: 0 | Y6: 0 | Z6: 2 | AA6: =AA5+F6*($A6-$A5) -> 5.4406 | AB6: 1.0124 | AC6: 0.172
A7: 3 | B7: 107.4734 | C7: 21.8592 | D7: 5.6146 | E7: 134.9472 | F7: 1.3332 | G7: 0.6369 | H7: 0.1821 | I7: 2.1522 | J7: 13.46666667 | K7: 6.433333333 | L7: 1.839393939 | M7: 21.73939394 | O7: DCE | P7: =AB59 -> 11.8826 | U7: 16.98581194 | V7: 0 | W7: 1.184573003 | X7: 1.184573003 | Y7: 0 | Z7: 3 | AA7: 6.7738 | AB7: 1.6493 | AC7: 0.3541
A8: 4 | B8: 99.5282 | C8: 21.9069 | D8: 6.9653 | E8: 128.4004 | F8: 1.1774 | G8: 0.6507 | H8: 0.2302 | I8: 2.0583 | J8: 11.89292929 | K8: 6.572727273 | L8: 2.325252525 | M8: 20.79090909 | O8: VC | P8: =AC59 -> 6.0825 | U8: 21.01314475 | V8: 0 | W8: 5.495867769 | X8: 5.495867769 | Y8: 0 | Z8: 4 | AA8: 7.9512 | AB8: 2.3 | AC8: 0.5843
A9: 5 | B9: 93.1169 | C9: 21.2199 | D9: 7.9834 | E9: 122.3202 | F9: 1.0445 | G9: 0.6374 | H9: 0.2664 | I9: 1.9483 | J9: 10.55050505 | K9: 6.438383838 | L9: 2.690909091 | M9: 19.67979798 | O9: Total | P9: =SUM(P6:P8) -> 39.0951 | U9: 24.75344367 | V9: 0 | W9: 10.54637282 | X9: 10.54637282 | Y9: 0 | Z9: 5 | AA9: 8.9957 | AB9: 2.9374 | AC9: 0.8507
A10: 6 | B10: 87.7697 | C10: 20.1539 | D10: 8.6884 | E10: 116.612 | F10: 0.9297 | G10: 0.6085 | H10: 0.2912 | I10: 1.8294 | J10: 9.390909091 | K10: 6.146464646 | L10: 2.941414141 | M10: 18.47878788 | U10: 28.26490288 | V10: 0 | W10: 16.00550964 | X10: 16.00550964 | Y10: 0 | Z10: 6 | AA10: 9.9254 | AB10: 3.5459 | AC10: 1.1419
A11: 7 | B11: 83.1821 | C11: 18.9223 | D11: 9.1121 | E11: 111.2165 | F11: 0.8301 | G11: 0.5714 | H11: 0.3057 | I11: 1.7072 | J11: 8.384848485 | K11: 5.771717172 | L11: 3.087878788 | M11: 17.24444444 | U11: 31.5840014 | V11: 0 | W11: 21.61616162 | X11: 21.61616162 | Y11: 0 | Z11: 7 | AA11: 10.7555 | AB11: 4.1173 | AC11: 1.4476
A12: 8 | B12: 79.1931 | C12: 17.624 | D12: 9.285 | E12: 106.1021 | F12: 0.7437 | G12: 0.5301 | H12: 0.3111 | I12: 1.5849 | J12: 7.512121212 | K12: 5.354545455 | L12: 3.142424242 | M12: 16.00909091 | U12: 34.7301783 | V12: 0 | W12: 27.23140496 | X12: 27.23140496 | Y12: 0 | Z12: 8 | AA12: 11.4992 | AB12: 4.6474 | AC12: 1.7587
A13: 9 | B13: 75.6788 | C13: 16.3312 | D13: 9.2341 | E13: 101.2441 | F13: 0.6689 | G13: 0.4875 | H13: 0.3084 | I13: 1.4648 | J13: 6.756565657 | K13: 4.924242424 | L13: 3.115151515 | M13: 14.7959596 | U13: 37.71862804 | V13: 0 | W13: 32.7456382 | X13: 32.7456382 | Y13: 0 | Z13: 9 | AA13: 12.1681 | AB13: 5.1349 | AC13: 2.0671
A14: 10 | B14: 72.5199 | C14: 15.1083 | D14: 8.9917 | E14: 96.6199 | F14: 0.6037 | G14: 0.4457 | H14: 0.299 | I14: 1.3484 | J14: 6.097979798 | K14: 4.502020202 | L14: 3.02020202 | M14: 13.62020202 | U14: 40.56325326 | V14: 0 | W14: 38.08999082 | X14: 38.08999082 | Y14: 0 | Z14: 10 | AA14: 12.7718 | AB14: 5.5806 | AC14: 2.3661
A15: 12 | B15: 66.9505 | C15: 12.9951 | D15: 8.1323 | E15: 88.0779 | F15: 0.4959 | G15: 0.3701 | H15: 0.2661 | I15: 1.1321 | J15: 5.009090909 | K15: 3.738383838 | L15: 2.687878788 | M15: 11.43535354 | U15: 45.81795432 | V15: 0 | W15: 48.02112029 | X15: 48.02112029 | Y15: 0 | Z15: 12 | AA15: 13.7636 | AB15: 6.3208 | AC15: 2.8983
A16: 14 | B16: 62.1174 | C16: 11.2942 | D16: 7.1282 | E16: 80.5398 | F16: 0.4116 | G16: 0.3073 | H16: 0.2264 | I16: 0.9453 | J16: 4.157575758 | K16: 3.104040404 | L16: 2.286868687 | M16: 9.548484848 | U16: 50.45509574 | V16: 0 | W16: 56.59779614 | X16: 56.59779614 | Y16: 0 | Z16: 14 | AA16: 14.5868 | AB16: 6.9354 | AC16: 3.3511
A17: 16 | B17: 57.8888 | C17: 9.9035 | D17: 6.0356 | E17: 73.8279 | F17: 0.3468 | G17: 0.2575 | H17: 0.1876 | I17: 0.7919 | J17: 3.503030303 | K17: 2.601010101 | L17: 1.894949495 | M17: 7.998989899 | U17: 54.58399156 | V17: 0 | W17: 63.640955 | X17: 63.640955 | Y17: 0 | Z17: 16 | AA17: 15.2804 | AB17: 7.4504 | AC17: 3.7263
A18: 18 | B18: 54.0899 | C18: 8.7489 | D18: 4.9765 | E18: 67.8153 | F18: 0.2953 | G18: 0.2176 | H18: 0.1526 | I18: 0.6655 | J18: 2.982828283 | K18: 2.197979798 | L18: 1.541414141 | M18: 6.722222222 | U18: 58.28270562 | V18: 0 | W18: 69.44444444 | X18: 69.44444444 | Y18: 0 | Z18: 18 | AA18: 15.871 | AB18: 7.8856 | AC18: 4.0315
A19: 20 | B19: 50.5939 | C19: 7.8121 | D19: 4.1338 | E19: 62.5398 | F19: 0.2526 | G19: 0.1844 | H19: 0.1227 | I19: 0.5597 | J19: 2.551515152 | K19: 1.862626263 | L19: 1.239393939 | M19: 5.653535354 | U19: 61.52798488 | V19: 0 | W19: 74.30211203 | X19: 74.30211203 | Y19: 0 | Z19: 20 | AA19: 16.3762 | AB19: 8.2544 | AC19: 4.2769
A20: 22 | B20: 47.4158 | C20: 7.084 | D20: 3.5533 | E20: 58.0531 | F20: 0.2187 | G20: 0.1587 | H20: 0.1006 | I20: 0.478 | J20: 2.209090909 | K20: 1.603030303 | L20: 1.016161616 | M20: 4.828282828 | U20: 64.28802553 | V20: 0 | W20: 78.05325987 | X20: 78.05325987 | Y20: 0 | Z20: 22 | AA20: 16.8136 | AB20: 8.5718 | AC20: 4.4781
A21: 24 | B21: 44.5807 | C21: 6.5086 | D21: 3.1272 | E21: 54.2165 | F21: 0.193 | G21: 0.14 | H21: 0.0858 | I21: 0.4188 | J21: 1.949494949 | K21: 1.414141414 | L21: 0.8666666667 | M21: 4.23030303 | U21: 66.64815034 | V21: 0 | W21: 80.77134986 | X21: 80.77134986 | Y21: 0 | Z21: 24 | AA21: 17.1996 | AB21: 8.8518 | AC21: 4.6497
A22: 26 | B22: 41.9797 | C22: 6.0125 | D22: 2.7713 | E22: 50.7635 | F22: 0.1719 | G22: 0.125 | H22: 0.0744 | I22: 0.3713 | J22: 1.736363636 | K22: 1.262626263 | L22: 0.7515151515 | M22: 3.750505051 | U22: 68.77229957 | V22: 0 | W22: 82.95224977 | X22: 82.95224977 | Y22: 0 | Z22: 26 | AA22: =AA21+F22*($A22-$A21) -> 17.5434 | AB22: 9.1018 | AC22: 4.7985
A23: 28 | B23: 39.5584 | C23: 5.5698 | D23: 2.4631 | E23: 47.5913 | F23: 0.1539 | G23: 0.1124 | H23: 0.065 | I23: 0.3313 | J23: 1.554545455 | K23: 1.135353535 | L23: 0.6565656566 | M23: 3.346464646 | U23: 70.72371173 | V23: 0 | W23: 84.78879706 | X23: 84.78879706 | Y23: 0 | Z23: 28 | AA23: 17.8512 | AB23: 9.3266 | AC23: 4.9285
A24: 30 | B24: 37.2706 | C24: 5.163 | D24: 2.187 | E24: 44.6206 | F24: 0.138 | G24: 0.1013 | H24: 0.057 | I24: 0.2963 | J24: 1.393939394 | K24: 1.023232323 | L24: 0.5757575758 | M24: 2.992929293 | U24: 72.55116905 | V24: 0 | W24: 86.39577594 | X24: 86.39577594 | Y24: 0 | Z24: 30 | AA24: 18.1272 | AB24: 9.5292 | AC24: 5.0425
A25: 32 | B25: 35.1259 | C25: 4.7933 | D25: 1.9436 | E25: 41.8628 | F25: 0.1243 | G25: 0.0917 | H25: 0.0502 | I25: 0.2662 | J25: 1.255555556 | K25: 0.9262626263 | L25: 0.5070707071 | M25: 2.688888889 | U25: 74.2476587 | V25: 0 | W25: 87.77777778 | X25: 87.77777778 | Y25: 0 | Z25: 32 | AA25: 18.3758 | AB25: 9.7126 | AC25: 5.1429
A26: 34 | B26: 33.1216 | C26: 4.4565 | D26: 1.7297 | E26: 39.3078 | F26: 0.1124 | G26: 0.0835 | H26: 0.0445 | I26: 0.2404 | J26: 1.135353535 | K26: 0.8434343434 | L26: 0.4494949495 | M26: 2.428282828 | U26: 75.8193938 | V26: 0 | W26: 88.96235078 | X26: 88.96235078 | Y26: 0 | Z26: 34 | AA26: 18.6006 | AB26: 9.8796 | AC26: 5.2319
A27: 36 | B27: 31.2267 | C27: 4.1476 | D27: 1.5406 | E27: 36.9149 | F27: 0.102 | G27: 0.0763 | H27: 0.0396 | I27: 0.2179 | J27: 1.03030303 | K27: 0.7707070707 | L27: 0.4 | M27: 2.201010101 | U27: 77.29141138 | V27: 0 | W27: 89.99540863 | X27: 89.99540863 | Y27: 0 | Z27: 36 | AA27: 18.8046 | AB27: 10.0322 | AC27: 5.3111
A28: 38 | B28: 29.4439 | C28: 3.8646 | D28: 1.3746 | E28: 34.6831 | F28: 0.093 | G28: 0.07 | H28: 0.0355 | I28: 0.1985 | J28: 0.9393939394 | K28: 0.7070707071 | L28: 0.3585858586 | M28: 2.005050505 | U28: 78.6643266 | V28: 0 | W28: 90.88613407 | X28: 90.88613407 | Y28: 90 | Z28: 38 | AA28: 18.9906 | AB28: 10.1722 | AC28: 5.3821
A29: 40 | B29: 27.7964 | C29: 3.6014 | D29: 1.2277 | E29: 32.6255 | F29: 0.0851 | G29: 0.0645 | H29: 0.0319 | I29: 0.1815 | J29: 0.8595959596 | K29: 0.6515151515 | L29: 0.3222222222 | M29: 1.833333333 | U29: 79.93008086 | V29: 0 | W29: 91.66666667 | X29: 91.66666667 | Y29: 90 | Z29: 40 | AA29: 19.1608 | AB29: 10.3012 | AC29: 5.4459
A30: 42 | B30: 26.2622 | C30: 3.3567 | D30: 1.0973 | E30: 30.7162 | F30: 0.078 | G30: 0.0596 | H30: 0.0287 | I30: 0.1663 | J30: 0.7878787879 | K30: 0.602020202 | L30: 0.2898989899 | M30: 1.67979798 | U30: 81.10460681 | V30: 0 | W30: 92.36455464 | X30: 92.36455464 | Y30: 90 | Z30: 42 | AA30: 19.3168 | AB30: 10.4204 | AC30: 5.5033
A31: 44 | B31: 24.8266 | C31: 3.1297 | D31: 0.9814 | E31: 28.9377 | F31: 0.0718 | G31: 0.0552 | H31: 0.026 | I31: 0.153 | J31: 0.7252525253 | K31: 0.5575757576 | L31: 0.2626262626 | M31: 1.545454545 | U31: 82.19866978 | V31: 0 | W31: 92.97520661 | X31: 92.97520661 | Y31: 90 | Z31: 44 | AA31: 19.4604 | AB31: 10.5308 | AC31: 5.5553
A32: 46 | B32: 23.4653 | C32: 2.9221 | D32: 0.879 | E32: 27.2664 | F32: 0.0662 | G32: 0.0512 | H32: 0.0236 | I32: 0.141 | J32: 0.6686868687 | K32: 0.5171717172 | L32: 0.2383838384 | M32: 1.424242424 | U32: 83.22678753 | V32: 0 | W32: 93.5261708 | X32: 93.5261708 | Y32: 90 | Z32: 46 | AA32: 19.5928 | AB32: 10.6332 | AC32: 5.6025
A33: 48 | B33: 22.1829 | C33: 2.734 | D33: 0.7935 | E33: 25.7104 | F33: 0.0612 | G33: 0.0477 | H33: 0.0215 | I33: 0.1304 | J33: 0.6181818182 | K33: 0.4818181818 | L33: 0.2171717172 | M33: 1.317171717 | U33: 84.18397728 | V33: 0 | W33: 94.01285583 | X33: 94.01285583 | Y33: 90 | Z33: 48 | AA33: 19.7152 | AB33: 10.7286 | AC33: 5.6455
A34: 50 | B34: 20.9627 | C34: 2.5549 | D34: 0.7127 | E34: 24.2303 | F34: 0.0566 | G34: 0.0444 | H34: 0.0196 | I34: 0.1206 | J34: 0.5717171717 | K34: 0.4484848485 | L34: 0.197979798 | M34: 1.218181818 | U34: 85.09447635 | V34: 0 | W34: 94.46280992 | X34: 94.46280992 | Y34: 90 | Z34: 50 | AA34: 19.8284 | AB34: 10.8174 | AC34: 5.6847
A35: 52 | B35: 19.8036 | C35: 2.3847 | D35: 0.6393 | E35: 22.8276 | F35: 0.0525 | G35: 0.0414 | H35: 0.0179 | I35: 0.1118 | J35: 0.5303030303 | K35: 0.4181818182 | L35: 0.1808080808 | M35: 1.129292929 | U35: 85.95736199 | V35: 0 | W35: 94.86685032 | X35: 94.86685032 | Y35: 90 | Z35: 52 | AA35: 19.9334 | AB35: 10.9002 | AC35: 5.7205
A36: 54 | B36: 18.7265 | C36: 2.2305 | D36: 0.5778 | E36: 21.5348 | F36: 0.0488 | G36: 0.0387 | H36: 0.0164 | I36: 0.1039 | J36: 0.4929292929 | K36: 0.3909090909 | L36: 0.1656565657 | M36: 1.049494949 | U36: 86.7526415 | V36: 0 | W36: 95.22956841 | X36: 95.22956841 | Y36: 90 | Z36: 54 | AA36: 20.031 | AB36: 10.9776 | AC36: 5.7533
A37: 56 | B37: 17.7034 | C37: 2.085 | D37: 0.5225 | E37: 20.3109 | F37: 0.0454 | G37: 0.0362 | H37: 0.015 | I37: 0.0966 | J37: 0.4585858586 | K37: 0.3656565657 | L37: 0.1515151515 | M37: 0.9757575758 | U37: 87.50553644 | V37: 0 | W37: 95.56473829 | X37: 95.56473829 | Y37: 90 | Z37: 56 | AA37: 20.1218 | AB37: 11.05 | AC37: 5.7833
A38: 58 | B38: 16.7337 | C38: 1.9477 | D38: 0.473 | E38: 19.1544 | F38: 0.0422 | G38: 0.0338 | H38: 0.0137 | I38: 0.0897 | J38: 0.4262626263 | K38: 0.3414141414 | L38: 0.1383838384 | M38: 0.9060606061 | U38: 88.21696957 | V38: 0 | W38: 95.8815427 | X38: 95.8815427 | Y38: 90 | Z38: 58 | AA38: =AA37+F38*($A38-$A37) -> 20.2062 | AB38: 11.1176 | AC38: 5.8107
A39: 60 | B39: 15.8236 | C39: 1.822 | D39: 0.428 | E39: 18.0736 | F39: 0.0393 | G39: 0.0317 | H39: 0.0126 | I39: 0.0836 | J39: 0.396969697 | K39: 0.3202020202 | L39: 0.1272727273 | M39: 0.8444444444 | U39: 88.88183505 | V39: 0 | W39: 96.16161616 | X39: 96.16161616 | Y39: 90 | Z39: 60 | AA39: 20.2848 | AB39: 11.181 | AC39: 5.8359
A40: 62 | B40: 14.9608 | C40: 1.7039 | D40: 0.3873 | E40: 17.052 | F40: 0.0367 | G40: 0.0296 | H40: 0.0116 | I40: 0.0779 | J40: 0.3707070707 | K40: 0.298989899 | L40: 0.1171717172 | M40: 0.7868686869 | U40: 89.51028302 | V40: 0 | W40: 96.42332415 | X40: 96.42332415 | Y40: 90 | Z40: 62 | AA40: 20.3582 | AB40: 11.2402 | AC40: 5.8591
A41: 64 | B41: 14.1515 | C41: 1.5924 | D41: 0.3517 | E41: 16.0956 | F41: 0.0342 | G41: 0.0278 | H41: 0.0106 | I41: 0.0726 | J41: 0.3454545455 | K41: 0.2808080808 | L41: 0.1070707071 | M41: 0.7333333333 | U41: 90.09862253 | V41: 90 | W41: 96.66666667 | X41: 96.66666667 | Y41: 90 | Z41: 64 | AA41: 20.4266 | AB41: 11.2958 | AC41: 5.8803
A42: 66 | B42: 13.3856 | C42: 1.4889 | D42: 0.3193 | E42: 15.1938 | F42: 0.032 | G42: 0.026 | H42: 0.0098 | I42: 0.0678 | J42: 0.3232323232 | K42: 0.2626262626 | L42: 0.09898989899 | M42: 0.6848484848 | U42: 90.65337428 | V42: 90 | W42: 96.88705234 | X42: 96.88705234 | Y42: 90 | Z42: 66 | AA42: 20.4906 | AB42: 11.3478 | AC42: 5.8999
A43: 68 | B43: 12.6648 | C43: 1.3936 | D43: 0.2904 | E43: 14.3488 | F43: 0.0299 | G43: 0.0244 | H43: 0.009 | I43: 0.0633 | J43: 0.302020202 | K43: 0.2464646465 | L43: 0.09090909091 | M43: 0.6393939394 | U43: 91.17318491 | V43: 90 | W43: 97.09366391 | X43: 97.09366391 | Y43: 90 | Z43: 68 | AA43: 20.5504 | AB43: 11.3966 | AC43: 5.9179
A44: 70 | B44: 11.9851 | C44: 1.3037 | D44: 0.2644 | E44: 13.5532 | F44: 0.028 | G44: 0.0229 | H44: 0.0084 | I44: 0.0593 | J44: 0.2828282828 | K44: 0.2313131313 | L44: 0.08484848485 | M44: 0.598989899 | U44: 91.66260661 | V44: 90 | W44: 97.27731864 | X44: 97.27731864 | Y44: 90 | Z44: 70 | AA44: 20.6064 | AB44: 11.4424 | AC44: 5.9347
A45: 72 | B45: 11.3426 | C45: 1.2191 | D45: 0.2408 | E45: 12.8025 | F45: 0.0262 | G45: 0.0215 | H45: 0.0077 | I45: 0.0554 | J45: 0.2646464646 | K45: 0.2171717172 | L45: 0.07777777778 | M45: 0.5595959596 | U45: 92.1244076 | V45: 90 | W45: 97.456382 | X45: 97.456382 | Y45: 90 | Z45: 72 | AA45: 20.6588 | AB45: 11.4854 | AC45: 5.9501
A46: 74 | B46: 10.7388 | C46: 1.1417 | D46: 0.2201 | E46: 12.1006 | F46: 0.0245 | G46: 0.0202 | H46: 0.0071 | I46: 0.0518 | J46: 0.2474747475 | K46: 0.204040404 | L46: 0.07171717172 | M46: 0.5232323232 | U46: 92.55618876 | V46: 90 | W46: 97.62167126 | X46: 97.62167126 | Y46: 90 | Z46: 74 | AA46: 20.7078 | AB46: 11.5258 | AC46: 5.9643
A47: 76 | B47: 10.1666 | C47: 1.0693 | D47: 0.2019 | E47: 11.4378 | F47: 0.023 | G47: 0.019 | H47: 0.0067 | I47: 0.0487 | J47: 0.2323232323 | K47: 0.1919191919 | L47: 0.06767676768 | M47: 0.4919191919 | U47: 92.96391715 | V47: 90 | W47: 97.76400367 | X47: 97.76400367 | Y47: 90 | Z47: 76 | AA47: 20.7538 | AB47: 11.5638 | AC47: 5.9777
A48: 78 | B48: 9.6289 | C48: 1.0008 | D48: 0.1846 | E48: 10.8143 | F48: 0.0216 | G48: 0.0179 | H48: 0.0062 | I48: 0.0457 | J48: 0.2181818182 | K48: 0.1808080808 | L48: 0.06262626263 | M48: 0.4616161616 | U48: 93.34746972 | V48: 90 | W48: 97.90174472 | X48: 97.90174472 | Y48: 90 | Z48: 78 | AA48: 20.797 | AB48: 11.5996 | AC48: 5.9901
A49: 80 | B49: 9.1181 | C49: 0.9369 | D49: 0.1684 | E49: 10.2234 | F49: 0.0202 | G49: 0.0169 | H49: 0.0057 | I49: 0.0428 | J49: 0.204040404 | K49: 0.1707070707 | L49: 0.05757575758 | M49: 0.4323232323 | U49: 93.71096807 | V49: 90 | W49: 98.0348944 | X49: 98.0348944 | Y49: 90 | Z49: 80 | AA49: 20.8374 | AB49: 11.6334 | AC49: 6.0015
A50: 82 | B50: 8.6387 | C50: 0.8779 | D50: 0.1558 | E50: 9.6724 | F50: 0.019 | G50: 0.0159 | H50: 0.0054 | I50: 0.0403 | J50: 0.1919191919 | K50: 0.1606060606 | L50: 0.05454545455 | M50: 0.4070707071 | U50: 94.04992151 | V50: 90 | W50: 98.1496786 | X50: 98.1496786 | Y50: 90 | Z50: 82 | AA50: 20.8754 | AB50: 11.6652 | AC50: 6.0123
A51: 84 | B51: 8.1834 | C51: 0.822 | D51: 0.1438 | E51: 9.1492 | F51: 0.0179 | G51: 0.015 | H51: 0.0051 | I51: 0.038 | J51: 0.1808080808 | K51: 0.1515151515 | L51: 0.05151515152 | M51: 0.3838383838 | U51: 94.37177348 | V51: 90 | W51: 98.25528007 | X51: 98.25528007 | Y51: 90 | Z51: 84 | AA51: 20.9112 | AB51: 11.6952 | AC51: 6.0225
A52: 86 | B52: 7.7486 | C52: 0.7702 | D52: 0.1304 | E52: 8.6492 | F52: 0.0167 | G52: 0.0142 | H52: 0.0045 | I52: 0.0354 | J52: 0.1686868687 | K52: 0.1434343434 | L52: 0.04545454545 | M52: 0.3575757576 | U52: 94.67935374 | V52: 90 | W52: 98.37465565 | X52: 98.37465565 | Y52: 90 | Z52: 86 | AA52: 20.9446 | AB52: 11.7236 | AC52: 6.0315
A53: 88 | B53: 7.3394 | C53: 0.7223 | D53: 0.1204 | E53: 8.1821 | F53: 0.0157 | G53: 0.0134 | H53: 0.0043 | I53: 0.0334 | J53: 0.1585858586 | K53: 0.1353535354 | L53: 0.04343434343 | M53: 0.3373737374 | U53: 94.96669521 | V53: 90 | W53: 98.46648301 | X53: 98.46648301 | Y53: 90 | Z53: 88 | AA53: 20.976 | AB53: 11.7504 | AC53: 6.0401
A54: 90 | B54: 6.9496 | C54: 0.6772 | D54: 0.1129 | E54: 7.7397 | F54: 0.0152 | G54: 0.0125 | H54: 0.0044 | I54: 0.0321 | J54: 0.1535353535 | K54: 0.1262626263 | L54: 0.04444444444 | M54: 0.3242424242 | U54: 95.23884222 | V54: 90 | W54: 98.5261708 | X54: 98.5261708 | Y54: 90 | Z54: 90 | AA54: =AA53+F54*($A54-$A53) -> 21.0064 | AB54: 11.7754 | AC54: 6.0489
A55: 92 | B55: 6.5803 | C55: 0.6354 | D55: 0.1014 | E55: 7.3171 | F55: 0.014 | G55: 0.0119 | H55: 0.0039 | I55: 0.0298 | J55: 0.1414141414 | K55: 0.1202020202 | L55: 0.03939393939 | M55: 0.301010101 | U55: 95.49880905 | V55: 90 | W55: 98.63177227 | X55: 98.63177227 | Y55: 90 | Z55: 92 | AA55: 21.0344 | AB55: 11.7992 | AC55: 6.0567
A56: 94 | B56: 6.2285 | C56: 0.5969 | D56: 0.0931 | E56: 6.9185 | F56: 0.0127 | G56: 0.0115 | H56: 0.0033 | I56: 0.0275 | J56: 0.1282828283 | K56: 0.1161616162 | L56: 0.03333333333 | M56: 0.2777777778 | U56: 95.74401203 | V56: 90 | W56: 98.73737374 | X56: 98.73737374 | Y56: 90 | Z56: 94 | AA56: 21.0598 | AB56: 11.8222 | AC56: 6.0633
A57: 96 | B57: 5.897 | C57: 0.5598 | D57: 0.0863 | E57: 6.5431 | F57: 0.0125 | G57: 0.0106 | H57: 0.0035 | I57: 0.0266 | J57: 0.1262626263 | K57: 0.1070707071 | L57: 0.03535353535 | M57: 0.2686868687 | U57: 95.97494328 | V57: 90 | W57: 98.77869605 | X57: 98.77869605 | Y57: 90 | Z57: 96 | AA57: 21.0848 | AB57: 11.8434 | AC57: 6.0703
A58: 98 | B58: 5.5823 | C58: 0.5255 | D58: 0.0789 | E58: 6.1867 | F58: 0.012 | G58: 0.0099 | H58: 0.0034 | I58: 0.0253 | J58: 0.1212121212 | K58: 0.1 | L58: 0.03434343434 | M58: 0.2555555556 | U58: 96.19418649 | V58: 90 | W58: 98.83838384 | X58: 98.83838384 | Y58: 90 | Z58: 98 | AA58: 21.1088 | AB58: 11.8632 | AC58: 6.0771
A59: 100 | B59: 5.2829 | C59: 0.4929 | D59: 0.073 | E59: 5.8488 | F59: 0.0106 | G59: 0.0097 | H59: 0.0027 | I59: 0.023 | J59: 0.1070707071 | K59: 0.09797979798 | L59: 0.02727272727 | M59: 0.2323232323 | U59: 96.40204922 | V59: 90 | W59: 98.94398531 | X59: 98.94398531 | Y59: 90 | Z59: 100 | AA59: 21.13 | AB59: 11.8826 | AC59: 6.0825

Sheet sim15 (hidden)
B1: sim15 | O1: Remediation time (>90% mass removal or flux reduction)
B2: mass (g/m2) | F2: flux (g/y/m2) | J2: Conc output (mg/L) | O2: Mass | P2: =VLOOKUP(90,V4:Z59,5,FALSE) -> 38 | AA2: acc flux (g/m2)
A3: Time | B3: TCE | C3: DCE | D3: VC | E3: Total | F3: TCE | G3: DCE | H3: VC | I3: Total | J3: TCE | K3: DCE | L3: VC | M3: Total | O3: Flux | P3: =VLOOKUP(90,Y4:Z59,2,FALSE) -> 22 | U3: mass removal (%) | V3: to find 90% | W3: flux reduction (%) | Y3: to find 90% | Z3: Time | AA3: TCE | AB3: DCE | AC3: VC
A4: 0 | B4: 162.5626 | C4: 0 | D4: 0 | E4: =SUM(B4:D4) -> 162.5626 | F4: 2.178 | G4: 0 | H4: 0 | I4: =SUM(F4:H4) -> 2.178 | J4: 22 | K4: 0 | L4: 0 | M4: =SUM(J4:L4) -> 22 | U4: =(E$4-E4)/E$4*100 -> 0 | V4: =IF(U4>90,90,0) -> 0 | W4: =(I$4-I4)/I$4*100 -> 0 | X4: =IF(W4>0,W4,0) -> 0 | Y4: =IF(X4>90,90,0) -> 0 | Z4: 0 | AA4: =F4 -> 2.178 | AB4: =G4 -> 0 | AC4: 0
A5: 1 | B5: 114.921 | C5: 26.8151 | D5: 2.9959 | E5: =SUM(B5:D5) -> 144.732 | F5: 1.5216 | G5: 0.6499 | H5: 0.0915 | I5: =SUM(F5:H5) -> 2.263 | J5: 15.36969697 | K5: 6.564646465 | L5: 0.9242424242 | M5: =SUM(J5:L5) -> 22.85858586 | O5: Accumulated flux to the aquifer (g/m2) | U5: =(E$4-E5)/E$4*100 -> 10.96845154 | V5: =IF(U5>90,90,0) -> 0 | W5: =(I$4-I5)/I$4*100 -> -3.902662994 | X5: =IF(W5>0,W5,0) -> 0 | Y5: =IF(X5>90,90,0) -> 0 | Z5: 1 | AA5: =AA4+F5*($A5-$A4) -> 3.6996 | AB5: =AB4+G5*($A5-$A4) -> 0.6499 | AC5: 0.0915
A6: 2 | B6: 94.8595 | C6: 31.9971 | D6: 6.5194 | E6: 133.376 | F6: 1.2102 | G6: 0.821 | H6: 0.2107 | I6: 2.2419 | J6: 12.22424242 | K6: 8.292929293 | L6: 2.128282828 | M6: 22.64545455 | O6: TCE | P6: =AA59 -> 11.8978 | U6: 17.95406816 | V6: 0 | W6: -2.933884298 | X6: 0 | Y6: 0 | Z6: 2 | AA6: =AA5+F6*($A6-$A5) -> 4.9098 | AB6: 1.4709 | AC6: 0.3022
A7: 3 | B7: 81.6359 | C7: 32.6146 | D7: 9.3178 | E7: 123.5683 | F7: 0.9864 | G7: 0.8605 | H7: 0.3092 | I7: 2.1561 | J7: 9.963636364 | K7: 8.691919192 | L7: 3.123232323 | M7: 21.77878788 | O7: DCE | P7: =AB59 -> 9.5215 | U7: 23.98725168 | V7: 0 | W7: 1.005509642 | X7: 1.005509642 | Y7: 0 | Z7: 3 | AA7: 5.8962 | AB7: 2.3314 | AC7: 0.6114
A8: 4 | B8: 72.093 | C8: 31.2379 | D8: 11.3937 | E8: 114.7246 | F8: 0.8123 | G8: 0.8363 | H8: 0.3821 | I8: 2.0307 | J8: 8.205050505 | K8: 8.447474747 | L8: 3.85959596 | M8: 20.51212121 | O8: VC | P8: =AC59 -> 5.84296622 | U8: 29.42743288 | V8: 0 | W8: 6.763085399 | X8: 6.763085399 | Y8: 0 | Z8: 4 | AA8: 6.7085 | AB8: 3.1677 | AC8: 0.9935
A9: 5 | B9: 65.0605 | C9: 28.7817 | D9: 12.7897 | E9: 106.6319 | F9: 0.6752 | G9: 0.7758 | H9: 0.4304 | I9: 1.8814 | J9: 6.82020202 | K9: 7.836363636 | L9: 4.347474747 | M9: 19.0040404 | O9: Total | P9: =SUM(P6:P8) -> 27.26226622 | U9: 34.4056382 | V9: 0 | W9: 13.61799816 | X9: 13.61799816 | Y9: 0 | Z9: 5 | AA9: 7.3837 | AB9: 3.9435 | AC9: 1.4239
A10: 6 | B10: 59.6109 | C10: 25.9569 | D10: 13.551 | E10: 99.1188 | F10: 0.5649 | G10: 0.6991 | H10: 0.4551 | I10: 1.7191 | J10: 5.706060606 | K10: 7.061616162 | L10: 4.596969697 | M10: 17.36464646 | U10: 39.02730394 | V10: 0 | W10: 21.0697888 | X10: 21.0697888 | Y10: 0 | Z10: 6 | AA10: 7.9486 | AB10: 4.6426 | AC10: 1.879
A11: 7 | B11: 55.2821 | C11: 23.0818 | D11: 13.7372 | E11: 92.1011 | F11: 0.476 | G11: 0.6166 | H11: 0.4589 | I11: 1.5515 | J11: 4.808080808 | K11: 6.228282828 | L11: 4.635353535 | M11: 15.67171717 | U11: 43.34422555 | V11: 0 | W11: 28.76492195 | X11: 28.76492195 | Y11: 0 | Z11: 7 | AA11: 8.4246 | AB11: 5.2592 | AC11: 2.3379
A12: 8 | B12: 51.7534 | C12: 20.3543 | D12: 13.4169 | E12: 85.5246 | F12: 0.4043 | G12: 0.535 | H12: 0.4443 | I12: 1.3836 | J12: 4.083838384 | K12: 5.404040404 | L12: 4.487878788 | M12: 13.97575758 | U12: 47.38974401 | V12: 0 | W12: 36.4738292 | X12: 36.4738292 | Y12: 0 | Z12: 8 | AA12: 8.8289 | AB12: 5.7942 | AC12: 2.7822
A13: 9 | B13: 48.7023 | C13: 17.9567 | D13: 12.7098 | E13: 79.3688 | F13: 0.3451 | G13: 0.4599 | H13: 0.4152 | I13: 1.2202 | J13: 3.485858586 | K13: 4.645454545 | L13: 4.193939394 | M13: 12.32525253 | U13: 51.17646986 | V13: 0 | W13: 43.97612489 | X13: 43.97612489 | Y13: 0 | Z13: 9 | AA13: 9.174 | AB13: 6.2541 | AC13: 3.1974
A14: 10 | B14: 45.9787 | C14: 15.8973 | D14: 11.7981 | E14: 73.6741 | F14: 0.2956 | G14: 0.3932 | H14: 0.377 | I14: 1.0658 | J14: 2.985858586 | K14: 3.971717172 | L14: 3.808080808 | M14: 10.76565657 | U14: 54.67955114 | V14: 0 | W14: 51.06519743 | X14: 51.06519743 | Y14: 0 | Z14: 10 | AA14: 9.4696 | AB14: 6.6473 | AC14: 3.5744
A15: 12 | B15: 41.2464 | C15: 12.6014 | D15: 9.6158 | E15: 63.4636 | F15: 0.2191 | G15: 0.2855 | H15: 0.2908 | I15: 0.7954 | J15: 2.213131313 | K15: 2.883838384 | L15: 2.937373737 | M15: 8.034343434 | U15: 60.96051613 | V15: 0 | W15: 63.48025712 | X15: 63.48025712 | Y15: 0 | Z15: 12 | AA15: 9.9078 | AB15: 7.2183 | AC15: 4.156
A16: 14 | B16: 37.2018 | C16: 10.1941 | D16: 7.1078 | E16: 54.5037 | F16: 0.1645 | G16: 0.2072 | H16: 0.2055 | I16: 0.5772 | J16: 1.661616162 | K16: 2.092929293 | L16: 2.075757576 | M16: 5.83030303 | U16: 66.47217749 | V16: 0 | W16: 73.49862259 | X16: 73.49862259 | Y16: 0 | Z16: 14 | AA16: 10.2368 | AB16: 7.6327 | AC16: 4.567
A17: 16 | B17: 33.613 | C17: 8.4956 | D17: 5.0967 | E17: 47.2053 | F17: 0.124 | G17: 0.1494 | H17: 0.1346 | I17: 0.408 | J17: 1.252525253 | K17: 1.509090909 | L17: 1.35959596 | M17: 4.121212121 | U17: 70.96177103 | V17: 0 | W17: 81.26721763 | X17: 81.26721763 | Y17: 0 | Z17: 16 | AA17: 10.4848 | AB17: 7.9315 | AC17: 4.8362
A18: 18 | B18: 30.4652 | C18: 7.362 | D18: 4.085 | E18: 41.9122 | F18: 0.0973 | G18: 0.1134 | H18: 0.094 | I18: 0.3047 | J18: 0.9828282828 | K18: 1.145454545 | L18: 0.9494949495 | M18: 3.077777778 | U18: 74.21780902 | V18: 0 | W18: 86.01010101 | X18: 86.01010101 | Y18: 0 | Z18: 18 | AA18: 10.6794 | AB18: 8.1583 | AC18: 5.0242
A19: 20 | B19: 27.6781 | C19: 6.4838 | D19: 3.3743 | E19: 37.5362 | F19: 0.079 | G19: 0.0904 | H19: 0.0706 | I19: 0.24 | J19: 0.797979798 | K19: 0.9131313131 | L19: 0.7131313131 | M19: 2.424242424 | U19: 76.9096951 | V19: 0 | W19: 88.98071625 | X19: 88.98071625 | Y19: 0 | Z19: 20 | AA19: 10.8374 | AB19: 8.3391 | AC19: 5.1654
A20: 22 | B20: 25.2178 | C20: 5.7666 | D20: 2.832 | E20: 33.8164 | F20: 0.0658 | G20: 0.0746 | H20: 0.0554 | I20: 0.1958 | J20: 0.6646464646 | K20: 0.7535353535 | L20: 0.5595959596 | M20: 1.977777778 | U20: 79.19792129 | V20: 0 | W20: 91.01010101 | X20: 91.01010101 | Y20: 90 | Z20: 22 | AA20: 10.969 | AB20: 8.4883 | AC20: 5.2762
A21: 24 | B21: 22.9911 | C21: 5.1459 | D21: 2.3854 | E21: 30.5224 | F21: 0.0555 | G21: 0.0625 | H21: 0.0444 | I21: 0.1624 | J21: 0.5606060606 | K21: 0.6313131313 | L21: 0.4484848485 | M21: 1.64040404 | U21: 81.22421762 | V21: 0 | W21: 92.543618 | X21: 92.543618 | Y21: 90 | Z21: 24 | AA21: 11.08 | AB21: 8.6133 | AC21: 5.365
A22: 26 | B22: 20.9511 | C22: 4.5939 | D22: 2.0063 | E22: 27.5513 | F22: 0.0472 | G22: 0.0528 | H22: 0.0358 | I22: 0.1358 | J22: 0.4767676768 | K22: 0.5333333333 | L22: 0.3616161616 | M22: 1.371717172 | U22: 83.05188278 | V22: 0 | W22: 93.76492195 | X22: 93.76492195 | Y22: 90 | Z22: 26 | AA22: =AA21+F22*($A22-$A21) -> 11.1744 | AB22: 8.7189 | AC22: 5.4366
A23: 28 | B23: 19.0883 | C23: 4.103 | D23: 1.6861 | E23: 24.8774 | F23: 0.0403 | G23: 0.045 | H23: 0.0292 | I23: 0.1145 | J23: 0.4070707071 | K23: 0.4545454545 | L23: 0.2949494949 | M23: 1.156565657 | U23: 84.69672606 | V23: 0 | W23: 94.74288338 | X23: 94.74288338 | Y23: 90 | Z23: 28 | AA23: 11.255 | AB23: 8.8089 | AC23: 5.495
A24: 30 | B24: 17.3964 | C24: 3.6684 | D24: 1.4201 | E24: 22.4849 | F24: 0.0349 | G24: 0.0388 | H24: 0.0241 | I24: 0.0978 | J24: 0.3525252525 | K24: 0.3919191919 | L24: 0.2434343434 | M24: 0.9878787879 | U24: 86.16846679 | V24: 0 | W24: 95.50964187 | X24: 95.50964187 | Y24: 90 | Z24: 30 | AA24: 11.3248 | AB24: 8.8865 | AC24: 5.5432
A25: 32 | B25: 15.8578 | C25: 3.2799 | D25: 1.1948 | E25: 20.3325 | F25: 0.0303 | G25: 0.0337 | H25: 0.02 | I25: 0.084 | J25: 0.3060606061 | K25: 0.3404040404 | L25: 0.202020202 | M25: 0.8484848485 | U25: 87.49251058 | V25: 0 | W25: 96.14325069 | X25: 96.14325069 | Y25: 90 | Z25: 32 | AA25: 11.3854 | AB25: 8.9539 | AC25: 5.5832
A26: 34 | B26: 14.4541 | C26: 2.9327 | D26: 0.9881 | E26: 18.3749 | F26: 0.0265 | G26: 0.0295 | H26: 0.0168 | I26: 0.0728 | J26: 0.2676767677 | K26: 0.297979798 | L26: 0.1696969697 | M26: 0.7353535354 | U26: 88.6967236 | V26: 0 | W26: 96.65748393 | X26: 96.65748393 | Y26: 90 | Z26: 34 | AA26: 11.4384 | AB26: 9.0129 | AC26: 5.6168
A27: 36 | B27: 13.1789 | C27: 2.6182 | D27: 0.8258 | E27: 16.6229 | F27: 0.0233 | G27: 0.0259 | H27: 0.0141 | I27: 0.0633 | J27: 0.2353535354 | K27: 0.2616161616 | L27: 0.1424242424 | M27: 0.6393939394 | U27: 89.77446227 | V27: 0 | W27: 97.09366391 | X27: 97.09366391 | Y27: 90 | Z27: 36 | AA27: 11.485 | AB27: 9.0647 | AC27: 5.645
A28: 38 | B28: 12.0692 | C28: 2.355 | D28: 0.7103 | E28: 15.1345 | F28: 0.0207 | G28: 0.0231 | H28: 0.0122 | I28: 0.056 | J28: 0.2090909091 | K28: 0.2333333333 | L28: 0.1232323232 | M28: 0.5656565657 | U28: 90.69004802 | V28: 90 | W28: 97.42883379 | X28: 97.42883379 | Y28: 90 | Z28: 38 | AA28: 11.5264 | AB28: 9.1109 | AC28: 5.6694
A29: 40 | B29: 11.0408 | C29: 2.1125 | D29: 0.6063 | E29: 13.7596 | F29: 0.0185 | G29: 0.0206 | H29: 0.0105 | I29: 0.0496 | J29: 0.1868686869 | K29: 0.2080808081 | L29: 0.1060606061 | M29: 0.501010101 | U29: 91.53581451 | V29: 90 | W29: 97.72268136 | X29: 97.72268136 | Y29: 90 | Z29: 40 | AA29: 11.5634 | AB29: 9.1521 | AC29: 5.6904
A30: 42 | B30: 10.0948 | C30: 1.8962 | D30: 0.5205 | E30: 12.5115 | F30: 0.0166 | G30: 0.0184 | H30: 0.0091 | I30: 0.0441 | J30: 0.1676767677 | K30: 0.1858585859 | L30: 0.09191919192 | M30: 0.4454545455 | U30: 92.30358028 | V30: 90 | W30: 97.97520661 | X30: 97.97520661 | Y30: 90 | Z30: 42 | AA30: 11.5966 | AB30: 9.1889 | AC30: 5.7086
A31: 44 | B31: 9.226 | C31: 1.6976 | D31: 0.4392 | E31: 11.3628 | F31: 0.0148 | G31: 0.0165 | H31: 0.0078 | I31: 0.0391 | J31: 0.1494949495 | K31: 0.1666666667 | L31: 0.07878787879 | M31: 0.3949494949 | U31: 93.01020038 | V31: 90 | W31: 98.20477502 | X31: 98.20477502 | Y31: 90 | Z31: 44 | AA31: 11.6262 | AB31: 9.2219 | AC31: 5.7242
A32: 46 | B32: 8.4292 | C32: 1.5229 | D32: 0.3811 | E32: 10.3332 | F32: 0.0133 | G32: 0.0147 | H32: 0.0068 | I32: 0.0348 | J32: 0.1343434343 | K32: 0.1484848485 | L32: 0.06868686869 | M32: 0.3515151515 | U32: 93.64355639 | V32: 90 | W32: 98.40220386 | X32: 98.40220386 | Y32: 90 | Z32: 46 | AA32: 11.6528 | AB32: 9.2513 | AC32: 5.7378
A33: 48 | B33: 7.7249 | C33: 1.3722 | D33: 0.3325 | E33: 9.4296 | F33: 0.012 | G33: 0.0133 | H33: 0.006 | I33: 0.0313 | J33: 0.1212121212 | K33: 0.1343434343 | L33: 0.06060606061 | M33: 0.3161616162 | U33: 94.1994038 | V33: 90 | W33: 98.56290174 | X33: 98.56290174 | Y33: 90 | Z33: 48 | AA33: 11.6768 | AB33: 9.2779 | AC33: 5.7498
A34: 50 | B34: 7.0798 | C34: 1.2358 | D34: 0.2835 | E34: 8.5991 | F34: 0.0108 | G34: 0.012 | H34: 0.0053 | I34: 0.0281 | J34: 0.1090909091 | K34: 0.1212121212 | L34: 0.05353535354 | M34: 0.2838383838 | U34: 94.71028392 | V34: 90 | W34: 98.70982553 | X34: 98.70982553 | Y34: 90 | Z34: 50 | AA34: 11.6984 | AB34: 9.3019 | AC34: 5.7604
A35: 52 | B35: 6.4891 | C35: 1.113 | D35: 0.2461 | E35: 7.8482 | F35: 0.0098 | G35: 0.0109 | H35: 0.0046 | I35: 0.0253 | J35: 0.09898989899 | K35: 0.1101010101 | L35: 0.04646464646 | M35: 0.2555555556 | U35: 95.17219828 | V35: 90 | W35: 98.83838384 | X35: 98.83838384 | Y35: 90 | Z35: 52 | AA35: 11.718 | AB35: 9.3237 | AC35: 5.7696
A36: 54 | B36: 5.9481 | C36: 1.0026 | D36: 0.2115 | E36: 7.1622 | F36: 0.0089 | G36: 0.0098 | H36: 0.0041 | I36: 0.0228 | J36: 0.0898989899 | K36: 0.09898989899 | L36: 0.04141414141 | M36: 0.2303030303 | U36: 95.59418956 | V36: 90 | W36: 98.95316804 | X36: 98.95316804 | Y36: 90 | Z36: 54 | AA36: 11.7358 | AB36: 9.3433 | AC36: 5.7778
A37: 56 | B37: 5.4526 | C37: 0.9034 | D37: 0.1839 | E37: 6.5399 | F37: 0.008 | G37: 0.0089 | H37: 0.0036 | I37: 0.0205 | J37: 0.08080808081 | K37: 0.0898989899 | L37: 0.03636363636 | M37: 0.2070707071 | U37: 95.97699594 | V37: 90 | W37: 99.05876951 | X37: 99.05876951 | Y37: 90 | Z37: 56 | AA37: 11.7518 | AB37: 9.3611 | AC37: 5.785
A38: 58 | B38: 4.9987 | C38: 0.8141 | D38: 0.1568 | E38: 5.9696 | F38: 0.0073 | G38: 0.0081 | H38: 0.0032 | I38: 0.0186 | J38: 0.07373737374 | K38: 0.08181818182 | L38: 0.03232323232 | M38: 0.1878787879 | U38: 96.32781464 | V38: 90 | W38: 99.14600551 | X38: 99.14600551 | Y38: 90 | Z38: 58 | AA38: =AA37+F38*($A38-$A37) -> 11.7664 | AB38: 9.3773 | AC38: 5.7914
A39: 60 | B39: 4.5829 | C39: 0.7338 | D39: 0.1369 | E39: 5.4536 | F39: 0.0066 | G39: 0.0074 | H39: 0.0029 | I39: 0.0169 | J39: 0.06666666667 | K39: 0.07474747475 | L39: 0.02929292929 | M39: 0.1707070707 | U39: 96.64523082 | V39: 90 | W39: 99.22405877 | X39: 99.22405877 | Y39: 90 | Z39: 60 | AA39: 11.7796 | AB39: 9.3921 | AC39: 5.7972
A40: 62 | B40: 4.202 | C40: 0.6616 | D40: 0.1136 | E40: 4.9772 | F40: 0.006 | G40: 0.0067 | H40: 0.0026 | I40: 0.0153 | J40: 0.06060606061 | K40: 0.06767676768 | L40: 0.02626262626 | M40: 0.1545454545 | U40: 96.93828716 | V40: 90 | W40: 99.29752066 | X40: 99.29752066 | Y40: 90 | Z40: 62 | AA40: 11.7916 | AB40: 9.4055 | AC40: 5.8024
A41: 64 | B41: 3.853 | C41: 0.5967 | D41: 0.1002 | E41: 4.5499 | F41: 0.0055 | G41: 0.0061 | H41: 0.0023 | I41: 0.0139 | J41: 0.05555555556 | K41: 0.06161616162 | L41: 0.02323232323 | M41: 0.1404040404 | U41: 97.20113975 | V41: 90 | W41: 99.36179982 | X41: 99.36179982 | Y41: 90 | Z41: 64 | AA41: 11.8026 | AB41: 9.4177 | AC41: 5.807
A42: 66 | B42: 3.5308 | C42: 0.5379 | D42: 0.0883 | E42: 4.157 | F42: 0.005 | G42: 0.0055 | H42: 0.002 | I42: 0.0125 | J42: 0.05050505051 | K42: 0.05555555556 | L42: 0.0202020202 | M42: 0.1262626263 | U42: 97.44283125 | V42: 90 | W42: 99.42607897 | X42: 99.42607897 | Y42: 90 | Z42: 66 | AA42: 11.8126 | AB42: 9.4287 | AC42: 5.811
A43: 68 | B43: 3.2412 | C43: 0.4861 | D43: 0.0778 | E43: 3.8051 | F43: 0.0046 | G43: 0.005 | H43: 0.0018 | I43: 0.0114 | J43: 0.04646464646 | K43: 0.05050505051 | L43: 0.01818181818 | M43: 0.1151515152 | U43: 97.65930171 | V43: 90 | W43: 99.47658402 | X43: 99.47658402 | Y43: 90 | Z43: 68 | AA43: 11.8218 | AB43: 9.4387 | AC43: 5.8146
A44: 70 | B44: 2.9877 | C44: 0.442 | D44: 0.0708 | E44: 3.5005 | F44: 0.0042 | G44: 0.0046 | H44: 0.0017 | I44: 0.0105 | J44: 0.04242424242 | K44: 0.04646464646 | L44: 0.01717171717 | M44: 0.1060606061 | U44: 97.84667568 | V44: 90 | W44: 99.51790634 | X44: 99.51790634 | Y44: 90 | Z44: 70 | AA44: 11.8302 | AB44: 9.4479 | AC44: 5.818
A45: 72 | B45: 2.7409 | C45: 0.3993 | D45: 0.0641 | E45: 3.2043 | F45: 0.0038 | G45: 0.0042 | H45: 0.0015 | I45: 0.0095 | J45: 0.03838383838 | K45: 0.04242424242 | L45: 0.01515151515 | M45: 0.09595959596 | U45: 98.02888241 | V45: 90 | W45: 99.56382002 | X45: 99.56382002 | Y45: 90 | Z45: 72 | AA45: 11.8378 | AB45: 9.4563 | AC45: 5.821
A46: 74 | B46: 2.517 | C46: 0.3614 | D46: 0.0578 | E46: 2.9362 | F46: 0.0035 | G46: 0.0038 | H46: 0.0014 | I46: 0.0087 | J46: 0.03535353535 | K46: 0.03838383838 | L46: 0.01414141414 | M46: 0.08787878788 | U46: 98.19380349 | V46: 90 | W46: 99.60055096 | X46: 99.60055096 | Y46: 90 | Z46: 74 | AA46: 11.8448 | AB46: 9.4639 | AC46: 5.8238
A47: 76 | B47: 2.3266 | C47: 0.3301 | D47: 0.0516 | E47: 2.7083 | F47: 0.0032 | G47: 0.0035 | H47: 0.0012 | I47: 0.0079 | J47: 0.03232323232 | K47: 0.03535353535 | L47: 0.01212121212 | M47: 0.0797979798 | U47: 98.33399564 | V47: 90 | W47: 99.63728191 | X47: 99.63728191 | Y47: 90 | Z47: 76 | AA47: 11.8512 | AB47: 9.4709 | AC47: 5.8262
A48: 78 | B48: 2.1362 | C48: 0.2988 | D48: 0.0454 | E48: 2.4804 | F48: 0.003 | G48: 0.0032 | H48: 0.0011 | I48: 0.0073 | J48: 0.0303030303 | K48: 0.03232323232 | L48: 0.01111111111 | M48: 0.07373737374 | U48: 98.47418779 | V48: 90 | W48: 99.66483012 | X48: 99.66483012 | Y48: 90 | Z48: 78 | AA48: 11.8572 | AB48: 9.4773 | AC48: 5.8284
A49: 80 | B49: 1.9744 | C49: 0.273 | D49: 0.0411 | E49: 2.2885 | F49: 0.0027 | G49: 0.003 | H49: 0.001 | I49: 0.0067 | J49: 0.02727272727 | K49: 0.0303030303 | L49: 0.0101010101 | M49: 0.06767676768 | U49: 98.59223462 | V49: 90 | W49: 99.69237833 | X49: 99.69237833 | Y49: 90 | Z49: 80 | AA49: 11.8626 | AB49: 9.4833 | AC49: 5.8304
A50: 82 | B50: 1.8166 | C50: 0.248 | D50: 0.0371 | E50: 2.1017 | F50: 0.0025 | G50: 0.0027 | H50: 0.00093187 | I50: 0.00613187 | J50: 0.02525252525 | K50: 0.02727272727 | L50: 0.009412828283 | M50: 0.06193808081 | U50: 98.7071442 | V50: 90 | W50: 99.71846327 | X50: 99.71846327 | Y50: 90 | Z50: 82 | AA50: 11.8676 | AB50: 9.4887 | AC50: 5.83226374
A51: 84 | B51: 1.6751 | C51: 0.2257 | D51: 0.0311 | E51: 1.9319 | F51: 0.0023 | G51: 0.0025 | H51: 0.00084519 | I51: 0.00564519 | J51: 0.02323232323 | K51: 0.02525252525 | L51: 0.008537272727 | M51: 0.05702212121 | U51: 98.81159627 | V51: 90 | W51: 99.74080854 | X51: 99.74080854 | Y51: 90 | Z51: 84 | AA51: 11.8722 | AB51: 9.4937 | AC51: 5.83395412
A52: 86 | B52: 1.5442 | C52: 0.2053 | D52: 0.0237 | E52: 1.7732 | F52: 0.0021 | G52: 0.0023 | H52: 0.00076154 | I52: 0.00516154 | J52: 0.02121212121 | K52: 0.02323232323 | L52: 0.007692323232 | M52: 0.05213676768 | U52: 98.9092202 | V52: 90 | W52: 99.76301469 | X52: 99.76301469 | Y52: 90 | Z52: 86 | AA52: 11.8764 | AB52: 9.4983 | AC52: 5.8354772
A53: 88 | B53: 1.4207 | C53: 0.1863 | D53: 0.0187 | E53: 1.6257 | F53: 0.0019 | G53: 0.0021 | H53: 0.00068608 | I53: 0.00468608 | J53: 0.01919191919 | K53: 0.02121212121 | L53: 0.00693010101 | M53: 0.04733414141 | U53: 98.99995448 | V53: 90 | W53: 99.78484481 | X53: 99.78484481 | Y53: 90 | Z53: 88 | AA53: 11.8802 | AB53: 9.5025 | AC53: 5.83684936
A54: 90 | B54: 1.3122 | C54: 0.1704 | D54: 0.0182 | E54: 1.5008 | F54: 0.0018 | G54: 0.0019 | H54: 0.00062731 | I54: 0.00432731 | J54: 0.01818181818 | K54: 0.01919191919 | L54: 0.006336464646 | M54: 0.04371020202 | U54: 99.07678642 | V54: 90 | W54: 99.80131726 | X54: 99.80131726 | Y54: 90 | Z54: 90 | AA54: =AA53+F54*($A54-$A53) -> 11.8838 | AB54: 9.5063 | AC54: 5.83810398
A55: 92 | B55: 1.2044 | C55: 0.1546 | D55: 0.0177 | E55: 1.3767 | F55: 0.0016 | G55: 0.0018 | H55: 0.00056945 | I55: 0.00396945 | J55: 0.01616161616 | K55: 0.01818181818 | L55: 0.005752020202 | M55: 0.04009545455 | U55: 99.15312624 | V55: 90 | W55: 99.81774793 | X55: 99.81774793 | Y55: 90 | Z55: 92 | AA55: 11.887 | AB55: 9.5099 | AC55: 5.83924288
A56: 94 | B56: 1.1098 | C56: 0.141 | D56: 0.0161 | E56: 1.2669 | F56: 0.0015 | G56: 0.0016 | H56: 0.00052674 | I56: 0.00362674 | J56: 0.01515151515 | K56: 0.01616161616 | L56: 0.005320606061 | M56: 0.03663373737 | U56: 99.22066945 | V56: 90 | W56: 99.83348301 | X56: 99.83348301 | Y56: 90 | Z56: 94 | AA56: 11.89 | AB56: 9.5131 | AC56: 5.84029636
A57: 96 | B57: 1.0265 | C57: 0.1291 | D57: 0.0145 | E57: 1.1701 | F57: 0.0014 | G57: 0.0015 | H57: 0.00048549 | I57: 0.00338549 | J57: 0.01414141414 | K57: 0.01515151515 | L57: 0.004903939394 | M57: 0.03419686869 | U57: 99.28021574 | V57: 90 | W57: 99.84455969 | X57: 99.84455969 | Y57: 90 | Z57: 96 | AA57: 11.8928 | AB57: 9.5161 | AC57: 5.84126734
A58: 98 | B58: 0.9488 | C58: 0.1182 | D58: 0.013 | E58: 1.08 | F58: 0.0013 | G58: 0.0014 | H58: 0.00044498 | I58: 0.00314498 | J58: 0.01313131313 | K58: 0.01414141414 | L58: 0.004494747475 | M58: 0.03176747475 | U58: 99.33564055 | V58: 90 | W58: 99.85560239 | X58: 99.85560239 | Y58: 90 | Z58: 98 | AA58: 11.8954 | AB58: 9.5189 | AC58: 5.8421573
A59: 100 | B59: 0.8711 | C59: 0.1072 | D59: 0.0114 | E59: 0.9897 | F59: 0.0012 | G59: 0.0013 | H59: 0.00040446 | I59: 0.00290446 | J59: 0.01212121212 | K59: 0.01313131313 | L59: 0.004085454545 | M59: 0.0293379798 | U59: 99.39118838 | V59: 90 | W59: 99.86664555 | X59: 99.86664555 | Y59: 90 | Z59: 100 | AA59: 11.8978 | AB59: 9.5215 | AC59: 5.84296622

Sheet sim16 (hidden)
B1: sim16 | O1: Remediation time (>90% mass removal or flux reduction)
B2: mass (g/m2) | F2: flux (g/y/m2) | J2: Conc output (mg/L) | O2: Mass | P2: =VLOOKUP(90,V:Z,5,FALSE) ->  | AA2: acc flux (g/m2)
A3: Time | B3: TCE | C3: DCE | D3: VC | E3: Total | F3: TCE | G3: DCE | H3: VC | I3: Total | J3: TCE | K3: DCE | L3: VC | M3: Total | O3: Flux | P3: =VLOOKUP(90,Y:Z,2,FALSE) ->  | U3: mass removal (%) | V3: to find 90% | W3: flux reduction (%) | Y3: to find 90% | Z3: Time | AA3: TCE | AB3: DCE | AC3: VC
A4: 0 | B4: 162.4035 | C4: 0 | D4: 0 | E4: =SUM(B4:D4) -> 162.4035 | F4: 2.178 | G4: 0 | H4: 0 | I4: =SUM(F4:H4) -> 2.178 | J4: 22 | K4: 0 | L4: 0 | M4: =SUM(J4:L4) -> 22 | U4: =(E$4-E4)/E$4*100 -> 0 | V4: =IF(U4>90,90,0) -> 0 | W4: =(I$4-I4)/I$4*100 -> 0 | X4: =IF(W4>0,W4,0) -> 0 | Y4: =IF(X4>90,90,0) -> 0 | Z4: =A4 -> 0 | AA4: =F4 -> 2.178 | AB4: =G4 -> 0 | AC4: 0
A5: 1 | B5: 156.8104 | C5: 1.3502 | D5: 0.0128 | E5: =SUM(B5:D5) -> 158.1734 | F5: 2.151 | G5: 0.0299 | H5: 0.00030018 | I5: =SUM(F5:H5) -> 2.18120018 | J5: 21.72727273 | K5: 0.302020202 | L5: 0.003032121212 | M5: =SUM(J5:L5) -> 22.03232505 | O5: Accumulated flux to the aquifer (g/m2) | U5: =(E$4-E5)/E$4*100 -> 2.604685244 | V5: =IF(U5>90,90,0) -> 0 | W5: =(I$4-I5)/I$4*100 -> -0.1469320478 | X5: =IF(W5>0,W5,0) -> 0 | Y5: =IF(X5>90,90,0) -> 0 | Z5: =A5 -> 1 | AA5: =AA4+F5*($A5-$A4) -> 4.329 | AB5: =AB4+G5*($A5-$A4) -> 0.0299 | AC5: 0.00030018
A6: 2 | B6: 152.6522 | C6: 2.4097 | D6: 0.0389 | E6: 155.1008 | F6: 2.1128 | G6: 0.0554 | H6: 0.00099303 | I6: 2.16919303 | J6: 21.34141414 | K6: 0.5595959596 | L6: 0.01003060606 | M6: 21.91104071 | O6: TCE | P6: =MAX(AA:AA) -> 70.9956 | U6: 4.496639543 | V6: 0 | W6: 0.4043604224 | X6: 0.4043604224 | Y6: 0 | Z6: 2 | AA6: =AA5+F6*($A6-$A5) -> 6.4418 | AB6: 0.0853 | AC6: 0.00129321
A7: 3 | B7: 148.9032 | C7: 3.3174 | D7: 0.0717 | E7: 152.2923 | F7: 2.0565 | G7: 0.0773 | H7: 0.0019 | I7: 2.1357 | J7: 20.77272727 | K7: 0.7808080808 | L7: 0.01919191919 | M7: 21.57272727 | O7: DCE | P7: =MAX(AB:AB) -> 17.3802 | U7: 6.225974194 | V7: 0 | W7: 1.94214876 | X7: 1.94214876 | Y7: 0 | Z7: 3 | AA7: 8.4983 | AB7: 0.1626 | AC7: 0.00319321
A8: 4 | B8: 145.4081 | C8: 4.1193 | D8: 0.1084 | E8: 149.6358 | F8: 1.987 | G8: 0.096 | H8: 0.003 | I8: 2.086 | J8: 20.07070707 | K8: 0.9696969697 | L8: 0.0303030303 | M8: 21.07070707 | O8: VC | P8: =MAX(AC:AC) -> 3.37919321 | U8: 7.861714803 | V8: 0 | W8: 4.22405877 | X8: 4.22405877 | Y8: 0 | Z8: 4 | AA8: 10.4853 | AB8: 0.2586 | AC8: 0.00619321
A9: 5 | B9: 142.1115 | C9: 4.8392 | D9: 0.1477 | E9: 147.0984 | F9: 1.9106 | G9: 0.1121 | H9: 0.0041 | I9: 2.0268 | J9: 19.2989899 | K9: 1.132323232 | L9: 0.04141414141 | M9: 20.47272727 | O9: Total | P9: =SUM(P6:P8) -> 91.75499321 | U9: 9.424119554 | V9: 0 | W9: 6.94214876 | X9: 6.94214876 | Y9: 0 | Z9: 5 | AA9: 12.3959 | AB9: 0.3707 | AC9: 0.01029321
A10: 6 | B10: 138.981 | C10: 5.4934 | D10: 0.1888 | E10: 144.6632 | F10: 1.8324 | G10: 0.126 | H10: 0.0053 | I10: 1.9637 | J10: 18.50909091 | K10: 1.272727273 | L10: 0.05353535354 | M10: 19.83535354 | U10: 10.92359463 | V10: 0 | W10: 9.839302112 | X10: 9.839302112 | Y10: 0 | Z10: 6 | AA10: 14.2283 | AB10: 0.4967 | AC10: 0.01559321
A11: 7 | B11: 135.9959 | C11: 6.0929 | D11: 0.231 | E11: 142.3198 | F11: 1.7562 | G11: 0.1382 | H11: 0.0065 | I11: 1.9009 | J11: 17.73939394 | K11: 1.395959596 | L11: 0.06565656566 | M11: 19.2010101 | U11: 12.36654382 | V11: 0 | W11: 12.72268136 | X11: 12.72268136 | Y11: 0 | Z11: 7 | AA11: 15.9845 | AB11: 0.6349 | AC11: 0.02209321
A12: 8 | B12: 133.1462 | C12: 6.6435 | D12: 0.2741 | E12: 140.0638 | F12: 1.6832 | G12: 0.1487 | H12: 0.0078 | I12: 1.8397 | J12: 17.0020202 | K12: 1.502020202 | L12: 0.07878787879 | M12: 18.58282828 | U12: 13.75567645 | V12: 0 | W12: 15.53259871 | X12: 15.53259871 | Y12: 0 | Z12: 8 | AA12: 17.6677 | AB12: 0.7836 | AC12: 0.02989321
A13: 9 | B13: 130.4217 | C13: 7.1495 | D13: 0.3179 | E13: 137.8891 | F13: 1.6132 | G13: 0.158 | H13: 0.009 | I13: 1.7802 | J13: 16.29494949 | K13: 1.595959596 | L13: 0.09090909091 | M13: 17.98181818 | U13: 15.09474857 | V13: 0 | W13: 18.26446281 | X13: 18.26446281 | Y13: 0 | Z13: 9 | AA13: 19.2809 | AB13: 0.9416 | AC13: 0.03889321
A14: 10 | B14: 127.8084 | C14: 7.6161 | D14: 0.362 | E14: 135.7865 | F14: 1.5459 | G14: 0.166 | H14: 0.0103 | I14: 1.7222 | J14: 15.61515152 | K14: 1.676767677 | L14: 0.104040404 | M14: 17.3959596 | U14: 16.3894251 | V14: 0 | W14: 20.92745638 | X14: 20.92745638 | Y14: 0 | Z14: 10 | AA14: 20.8268 | AB14: 1.1076 | AC14: 0.04919321
A15: 12 | B15: 122.8957 | C15: 8.4411 | D15: 0.451 | E15: 131.7878 | F15: 1.4218 | G15: 0.179 | H15: 0.0128 | I15: 1.6136 | J15: 14.36161616 | K15: 1.808080808 | L15: 0.1292929293 | M15: 16.2989899 | U15: 18.85162573 | V15: 0 | W15: 25.91368228 | X15: 25.91368228 | Y15: 0 | Z15: 12 | AA15: 23.6704 | AB15: 1.4656 | AC15: 0.07479321
A16: 14 | B16: 118.3469 | C16: 9.1457 | D16: 0.5397 | E16: 128.0323 | F16: 1.3124 | G16: 0.1885 | H16: 0.0152 | I16: 1.5161 | J16: 13.25656566 | K16: 1.904040404 | L16: 0.1535353535 | M16: 15.31414141 | U16: 21.1640759 | V16: 0 | W16: 30.3902663 | X16: 30.3902663 | Y16: 0 | Z16: 14 | AA16: 26.2952 | AB16: 1.8426 | AC16: 0.10519321
A17: 16 | B17: 114.1155 | C17: 9.7492 | D17: 0.6271 | E17: 124.4918 | F17: 1.2162 | G17: 0.1954 | H17: 0.0175 | I17: 1.4291 | J17: 12.28484848 | K17: 1.973737374 | L17: 0.1767676768 | M17: 14.43535354 | U17: 23.34413975 | V17: 0 | W17: 34.38475666 | X17: 34.38475666 | Y17: 0 | Z17: 16 | AA17: 28.7276 | AB17: 2.2334 | AC17: 0.14019321
A18: 18 | B18: 110.1654 | C18: 10.266 | D18: 0.7125 | E18: 121.1439 | F18: 1.1315 | G18: 0.2 | H18: 0.0198 | I18: 1.3513 | J18: 11.42929293 | K18: 2.02020202 | L18: 0.2 | M18: 13.64949495 | U18: 25.4056101 | V18: 0 | W18: 37.95684114 | X18: 37.95684114 | Y18: 0 | Z18: 18 | AA18: 30.9906 | AB18: 2.6334 | AC18: 0.17979321
A19: 20 | B19: 106.4654 | C19: 10.7083 | D19: 0.7953 | E19: 117.969 | F19: 1.057 | G19: 0.203 | H19: 0.0219 | I19: 1.2819 | J19: 10.67676768 | K19: 2.050505051 | L19: 0.2212121212 | M19: 12.94848485 | U19: 27.36055565 | V19: 0 | W19: 41.14325069 | X19: 41.14325069 | Y19: 0 | Z19: 20 | AA19: 33.1046 | AB19: 3.0394 | AC19: 0.22359321
A20: 22 | B20: 102.9858 | C20: 11.0879 | D20: 0.8748 | E20: 114.9485 | F20: 0.9911 | G20: 0.2046 | H20: 0.0239 | I20: 1.2196 | J20: 10.01111111 | K20: 2.066666667 | L20: 0.2414141414 | M20: 12.31919192 | U20: 29.22042936 | V20: 0 | W20: 44.00367309 | X20: 44.00367309 | Y20: 0 | Z20: 22 | AA20: 35.0868 | AB20: 3.4486 | AC20: 0.27139321
A21: 24 | B21: 99.6956 | C21: 11.4172 | D21: 0.9506 | E21: 112.0634 | F21: 0.9323 | G21: 0.2052 | H21: 0.0257 | I21: 1.1632 | J21: 9.417171717 | K21: 2.072727273 | L21: 0.2595959596 | M21: 11.74949495 | U21: 30.99693048 | V21: 0 | W21: 46.59320478 | X21: 46.59320478 | Y21: 0 | Z21: 24 | AA21: 36.9514 | AB21: 3.859 | AC21: 0.32279321
A22: 26 | B22: 96.5749 | C22: 11.7025 | D22: 1.0226 | E22: 109.3 | F22: 0.8795 | G22: 0.2052 | H22: 0.0274 | I22: 1.1121 | J22: 8.883838384 | K22: 2.072727273 | L22: 0.2767676768 | M22: 11.23333333 | U22: 32.6984948 | V22: 0 | W22: 48.93939394 | X22: 48.93939394 | Y22: 0 | Z22: 26 | AA22: =AA21+F22*($A22-$A21) -> 38.7104 | AB22: 4.2694 | AC22: 0.37759321
A23: 28 | B23: 93.6004 | C23: 11.9521 | D23: 1.0905 | E23: 106.643 | F23: 0.8315 | G23: 0.2048 | H23: 0.0289 | I23: 1.0652 | J23: 8.398989899 | K23: 2.068686869 | L23: 0.2919191919 | M23: 10.75959596 | U23: 34.33454328 | V23: 0 | W23: 51.09274564 | X23: 51.09274564 | Y23: 0 | Z23: 28 | AA23: 40.3734 | AB23: 4.679 | AC23: 0.43539321
A24: 30 | B24: 90.7643 | C24: 12.168 | D24: 1.1542 | E24: 104.0865 | F24: 0.7878 | G24: 0.204 | H24: 0.0303 | I24: 1.0221 | J24: 7.957575758 | K24: 2.060606061 | L24: 0.3060606061 | M24: 10.32424242 | U24: 35.90870886 | V24: 0 | W24: 53.07162534 | X24: 53.07162534 | Y24: 0 | Z24: 30 | AA24: 41.949 | AB24: 5.087 | AC24: 0.49599321
A25: 32 | B25: 88.0528 | C25: 12.3547 | D25: 1.2136 | E25: 101.6211 | F25: 0.7479 | G25: 0.203 | H25: 0.0315 | I25: 0.9824 | J25: 7.554545455 | K25: 2.050505051 | L25: 0.3181818182 | M25: 9.923232323 | U25: 37.4267796 | V25: 0 | W25: 54.89439853 | X25: 54.89439853 | Y25: 0 | Z25: 32 | AA25: 43.4448 | AB25: 5.493 | AC25: 0.55899321
A26: 34 | B26: 85.4597 | C26: 12.5143 | D26: 1.2688 | E26: 99.2428 | F26: 0.7114 | G26: 0.2017 | H26: 0.0327 | I26: 0.9458 | J26: 7.185858586 | K26: 2.037373737 | L26: 0.3303030303 | M26: 9.553535354 | U26: 38.89121848 | V26: 0 | W26: 56.5748393 | X26: 56.5748393 | Y26: 0 | Z26: 34 | AA26: 44.8676 | AB26: 5.8964 | AC26: 0.62439321
A27: 36 | B27: 82.9693 | C27: 12.6531 | D27: 1.3208 | E27: 96.9432 | F27: 0.678 | G27: 0.2002 | H27: 0.0337 | I27: 0.9119 | J27: 6.848484848 | K27: 2.022222222 | L27: 0.3404040404 | M27: 9.211111111 | U27: 40.30719781 | V27: 0 | W27: 58.13131313 | X27: 58.13131313 | Y27: 0 | Z27: 36 | AA27: 46.2236 | AB27: 6.2968 | AC27: 0.69179321
A28: 38 | B28: 80.5807 | C28: 12.7711 | D28: 1.3695 | E28: 94.7213 | F28: 0.6477 | G28: 0.1986 | H28: 0.0346 | I28: 0.8809 | J28: 6.542424242 | K28: 2.006060606 | L28: 0.3494949495 | M28: 8.897979798 | U28: 41.67533335 | V28: 0 | W28: 59.55463728 | X28: 59.55463728 | Y28: 0 | Z28: 38 | AA28: 47.519 | AB28: 6.694 | AC28: 0.76099321
A29: 40 | B29: 78.2783 | C29: 12.8717 | D29: 1.4153 | E29: 92.5653 | F29: 0.6196 | G29: 0.197 | H29: 0.0354 | I29: 0.852 | J29: 6.258585859 | K29: 1.98989899 | L29: 0.3575757576 | M29: 8.606060606 | U29: 43.00289095 | V29: 0 | W29: 60.8815427 | X29: 60.8815427 | Y29: 0 | Z29: 40 | AA29: 48.7582 | AB29: 7.088 | AC29: 0.83179321
A30: 42 | B30: 76.0608 | C30: 12.9554 | D30: 1.4582 | E30: 90.4744 | F30: 0.5937 | G30: 0.1954 | H30: 0.0362 | I30: 0.8253 | J30: 5.996969697 | K30: 1.973737374 | L30: 0.3656565657 | M30: 8.336363636 | U30: 44.2903632 | V30: 0 | W30: 62.10743802 | X30: 62.10743802 | Y30: 0 | Z30: 42 | AA30: 49.9456 | AB30: 7.4788 | AC30: 0.90419321
A31: 44 | B31: 73.9199 | C31: 13.0242 | D31: 1.4985 | E31: 88.4426 | F31: 0.5696 | G31: 0.1939 | H31: 0.037 | I31: 0.8005 | J31: 5.753535354 | K31: 1.958585859 | L31: 0.3737373737 | M31: 8.085858586 | U31: 45.54144461 | V31: 0 | W31: 63.24609734 | X31: 63.24609734 | Y31: 0 | Z31: 44 | AA31: 51.0848 | AB31: 7.8666 | AC31: 0.97819321
A32: 46 | B32: 71.8501 | C32: 13.0791 | D32: 1.5364 | E32: 86.4656 | F32: 0.547 | G32: 0.1923 | H32: 0.0376 | I32: 0.7769 | J32: 5.525252525 | K32: 1.942424242 | L32: 0.3797979798 | M32: 7.847474747 | U32: 46.75878291 | V32: 0 | W32: 64.32966024 | X32: 64.32966024 | Y32: 0 | Z32: 46 | AA32: 52.1788 | AB32: 8.2512 | AC32: 1.05339321
A33: 48 | B33: 69.85 | C33: 13.1205 | D33: 1.5719 | E33: 84.5424 | F33: 0.5259 | G33: 0.1908 | H33: 0.0383 | I33: 0.755 | J33: 5.312121212 | K33: 1.927272727 | L33: 0.3868686869 | M33: 7.626262626 | U33: 47.94299384 | V33: 0 | W33: 65.33516988 | X33: 65.33516988 | Y33: 0 | Z33: 48 | AA33: 53.2306 | AB33: 8.6328 | AC33: 1.12999321
A34: 50 | B34: 67.9134 | C34: 13.1495 | D34: 1.6054 | E34: 82.6683 | F34: 0.5062 | G34: 0.1892 | H34: 0.0389 | I34: 0.7343 | J34: 5.113131313 | K34: 1.911111111 | L34: 0.3929292929 | M34: 7.417171717 | U34: 49.09697143 | V34: 0 | W34: 66.2855831 | X34: 66.2855831 | Y34: 0 | Z34: 50 | AA34: 54.243 | AB34: 9.0112 | AC34: 1.20779321
A35: 52 | B35: 66.0379 | C35: 13.1668 | D35: 1.6368 | E35: 80.8415 | F35: 0.4876 | G35: 0.1877 | H35: 0.0394 | I35: 0.7147 | J35: 4.925252525 | K35: 1.895959596 | L35: 0.397979798 | M35: 7.219191919 | U35: 50.22182404 | V35: 0 | W35: 67.18549128 | X35: 67.18549128 | Y35: 0 | Z35: 52 | AA35: 55.2182 | AB35: 9.3866 | AC35: 1.28659321
A36: 54 | B36: 64.2199 | C36: 13.173 | D36: 1.6663 | E36: 79.0592 | F36: 0.4701 | G36: 0.1861 | H36: 0.0399 | I36: 0.6961 | J36: 4.748484848 | K36: 1.87979798 | L36: 0.403030303 | M36: 7.031313131 | U36: 51.31927575 | V36: 0 | W36: 68.03948577 | X36: 68.03948577 | Y36: 0 | Z36: 54 | AA36: 56.1584 | AB36: 9.7588 | AC36: 1.36639321
A37: 56 | B37: 62.4565 | C37: 13.1686 | D37: 1.6942 | E37: 77.3193 | F37: 0.4536 | G37: 0.1846 | H37: 0.0404 | I37: 0.6786 | J37: 4.581818182 | K37: 1.864646465 | L37: 0.4080808081 | M37: 6.854545455 | U37: 52.39061966 | V37: 0 | W37: 68.84297521 | X37: 68.84297521 | Y37: 0 | Z37: 56 | AA37: 57.0656 | AB37: 10.128 | AC37: 1.44719321
A38: 58 | B38: 60.7444 | C38: 13.1542 | D38: 1.7204 | E38: 75.619 | F38: 0.4379 | G38: 0.1831 | H38: 0.0409 | I38: 0.6619 | J38: 4.423232323 | K38: 1.849494949 | L38: 0.4131313131 | M38: 6.685858586 | U38: 53.43757986 | V38: 0 | W38: 69.6097337 | X38: 69.6097337 | Y38: 0 | Z38: 58 | AA38: =AA37+F38*($A38-$A37) -> 57.9414 | AB38: 10.4942 | AC38: 1.52899321
A39: 60 | B39: 59.0801 | C39: 13.1305 | D39: 1.7452 | E39: 73.9558 | F39: 0.423 | G39: 0.1815 | H39: 0.0413 | I39: 0.6458 | J39: 4.272727273 | K39: 1.833333333 | L39: 0.4171717172 | M39: 6.523232323 | U39: 54.46169571 | V39: 0 | W39: 70.34894399 | X39: 70.34894399 | Y39: 0 | Z39: 60 | AA39: 58.7874 | AB39: 10.8572 | AC39: 1.61159321
A40: 62 | B40: 57.4613 | C40: 13.0981 | D40: 1.7687 | E40: 72.3281 | F40: 0.4087 | G40: 0.1799 | H40: 0.0418 | I40: 0.6304 | J40: 4.128282828 | K40: 1.817171717 | L40: 0.4222222222 | M40: 6.367676768 | U40: 55.46395244 | V40: 0 | W40: 71.05601469 | X40: 71.05601469 | Y40: 0 | Z40: 62 | AA40: 59.6048 | AB40: 11.217 | AC40: 1.69519321
A41: 64 | B41: 55.8878 | C41: 13.0571 | D41: 1.7904 | E41: 70.7353 | F41: 0.3951 | G41: 0.1783 | H41: 0.0421 | I41: 0.6155 | J41: 3.990909091 | K41: 1.801010101 | L41: 0.4252525253 | M41: 6.217171717 | U41: 56.44471948 | V41: 0 | W41: 71.74012856 | X41: 71.74012856 | Y41: 0 | Z41: 64 | AA41: 60.395 | AB41: 11.5736 | AC41: 1.77939321
A42: 66 | B42: 54.3555 | C42: 13.0083 | D42: 1.8108 | E42: 69.1746 | F42: 0.382 | G42: 0.1767 | H42: 0.0425 | I42: 0.6012 | J42: 3.858585859 | K42: 1.784848485 | L42: 0.4292929293 | M42: 6.072727273 | U42: 57.40572094 | V42: 0 | W42: 72.39669421 | X42: 72.39669421 | Y42: 0 | Z42: 66 | AA42: 61.159 | AB42: 11.927 | AC42: 1.86439321
A43: 68 | B43: 52.8619 | C43: 12.9523 | D43: 1.8298 | E43: 67.644 | F43: 0.3693 | G43: 0.175 | H43: 0.0429 | I43: 0.5872 | J43: 3.73030303 | K43: 1.767676768 | L43: 0.4333333333 | M43: 5.931313131 | U43: 58.34818831 | V43: 0 | W43: 73.03948577 | X43: 73.03948577 | Y43: 0 | Z43: 68 | AA43: 61.8976 | AB43: 12.277 | AC43: 1.95019321
A44: 70 | B44: 51.4092 | C44: 12.8888 | D44: 1.8477 | E44: 66.1457 | F44: 0.3572 | G44: 0.1734 | H44: 0.0432 | I44: 0.5738 | J44: 3.608080808 | K44: 1.751515152 | L44: 0.4363636364 | M44: 5.795959596 | U44: 59.27076695 | V44: 0 | W44: 73.65472911 | X44: 73.65472911 | Y44: 0 | Z44: 70 | AA44: 62.612 | AB44: 12.6238 | AC44: 2.03659321
A45: 72 | B45: 49.9941 | C45: 12.8186 | D45: 1.8647 | E45: 64.6774 | F45: 0.3456 | G45: 0.1716 | H45: 0.0435 | I45: 0.5607 | J45: 3.490909091 | K45: 1.733333333 | L45: 0.4393939394 | M45: 5.663636364 | U45: 60.17487308 | V45: 0 | W45: 74.25619835 | X45: 74.25619835 | Y45: 0 | Z45: 72 | AA45: 63.3032 | AB45: 12.967 | AC45: 2.12359321
A46: 74 | B46: 48.6147 | C46: 12.742 | D46: 1.8807 | E46: 63.2374 | F46: 0.3344 | G46: 0.1699 | H46: 0.0438 | I46: 0.5481 | J46: 3.377777778 | K46: 1.716161616 | L46: 0.4424242424 | M46: 5.536363636 | U46: 61.06155348 | V46: 0 | W46: 74.83471074 | X46: 74.83471074 | Y46: 0 | Z46: 74 | AA46: 63.972 | AB46: 13.3068 | AC46: 2.21119321
A47: 76 | B47: 47.2713 | C47: 12.6591 | D47: 1.8956 | E47: 61.826 | F47: 0.3236 | G47: 0.1681 | H47: 0.044 | I47: 0.5357 | J47: 3.268686869 | K47: 1.697979798 | L47: 0.4444444444 | M47: 5.411111111 | U47: 61.93062342 | V47: 0 | W47: 75.4040404 | X47: 75.4040404 | Y47: 0 | Z47: 76 | AA47: 64.6192 | AB47: 13.643 | AC47: 2.29919321
A48: 78 | B48: 45.9637 | C48: 12.5698 | D48: 1.9092 | E48: 60.4427 | F48: 0.3133 | G48: 0.1662 | H48: 0.0442 | I48: 0.5237 | J48: 3.164646465 | K48: 1.678787879 | L48: 0.4464646465 | M48: 5.28989899 | U48: 62.78239077 | V48: 0 | W48: 75.95500459 | X48: 75.95500459 | Y48: 0 | Z48: 78 | AA48: 65.2458 | AB48: 13.9754 | AC48: 2.38759321
A49: 80 | B49: 44.69 | C49: 12.4745 | D49: 1.9216 | E49: 59.0861 | F49: 0.3034 | G49: 0.1644 | H49: 0.0444 | I49: 0.5122 | J49: 3.064646465 | K49: 1.660606061 | L49: 0.4484848485 | M49: 5.173737374 | U49: 63.6177176 | V49: 0 | W49: 76.48301194 | X49: 76.48301194 | Y49: 0 | Z49: 80 | AA49: 65.8526 | AB49: 14.3042 | AC49: 2.47639321
A50: 82 | B50: 43.4502 | C50: 12.3735 | D50: 1.933 | E50: 57.7567 | F50: 0.294 | G50: 0.1625 | H50: 0.0446 | I50: 0.5011 | J50: 2.96969697 | K50: 1.641414141 | L50: 0.4505050505 | M50: 5.061616162 | U50: 64.43629602 | V50: 0 | W50: 76.99265381 | X50: 76.99265381 | Y50: 0 | Z50: 82 | AA50: 66.4406 | AB50: 14.6292 | AC50: 2.56559321
A51: 84 | B51: 42.2476 | C51: 12.2666 | D51: 1.9434 | E51: 56.4576 | F51: 0.2851 | G51: 0.1606 | H51: 0.0448 | I51: 0.4905 | J51: 2.87979798 | K51: 1.622222222 | L51: 0.4525252525 | M51: 4.954545455 | U51: 65.2362172 | V51: 0 | W51: 77.47933884 | X51: 77.47933884 | Y51: 0 | Z51: 84 | AA51: 67.0108 | AB51: 14.9504 | AC51: 2.65519321
A52: 86 | B52: 41.0753 | C52: 12.1549 | D52: 1.9527 | E52: 55.1829 | F52: 0.2764 | G52: 0.1588 | H52: 0.0449 | I52: 0.4801 | J52: 2.791919192 | K52: 1.604040404 | L52: 0.4535353535 | M52: 4.849494949 | U52: 66.02111408 | V52: 0 | W52: 77.95684114 | X52: 77.95684114 | Y52: 0 | Z52: 86 | AA52: 67.5636 | AB52: 15.268 | AC52: 2.74499321
A53: 88 | B53: 39.9328 | C53: 12.0386 | D53: 1.9611 | E53: 53.9325 | F53: 0.2681 | G53: 0.1568 | H53: 0.0451 | I53: 0.47 | J53: 2.708080808 | K53: 1.583838384 | L53: 0.4555555556 | M53: 4.747474747 | U53: 66.79104822 | V53: 0 | W53: 78.42056933 | X53: 78.42056933 | Y53: 0 | Z53: 88 | AA53: 68.0998 | AB53: 15.5816 | AC53: 2.83519321
A54: 90 | B54: 38.8196 | C54: 11.9179 | D54: 1.9684 | E54: 52.7059 | F54: 0.2601 | G54: 0.1549 | H54: 0.0452 | I54: 0.4602 | J54: 2.627272727 | K54: 1.564646465 | L54: 0.4565656566 | M54: 4.648484848 | U54: 67.54632751 | V54: 0 | W54: 78.87052342 | X54: 78.87052342 | Y54: 0 | Z54: 90 | AA54: =AA53+F54*($A54-$A53) -> 68.62 | AB54: 15.8914 | AC54: 2.92559321
A55: 92 | B55: 37.7327 | C55: 11.7937 | D55: 1.9748 | E55: 51.5012 | F55: 0.2523 | G55: 0.1529 | H55: 0.0453 | I55: 0.4505 | J55: 2.548484848 | K55: 1.544444444 | L55: 0.4575757576 | M55: 4.550505051 | U55: 68.28812187 | V55: 0 | W55: 79.31588613 | X55: 79.31588613 | Y55: 0 | Z55: 92 | AA55: 69.1246 | AB55: 16.1972 | AC55: 3.01619321
A56: 94 | B56: 36.6726 | C56: 11.6657 | D56: 1.9802 | E56: 50.3185 | F56: 0.2447 | G56: 0.1509 | H56: 0.0453 | I56: 0.4409 | J56: 2.471717172 | K56: 1.524242424 | L56: 0.4575757576 | M56: 4.453535354 | U56: 69.01636972 | V56: 0 | W56: 79.75665748 | X56: 79.75665748 | Y56: 0 | Z56: 94 | AA56: 69.614 | AB56: 16.499 | AC56: 3.10679321
A57: 96 | B57: 35.6395 | C57: 11.534 | D57: 1.9847 | E57: 49.1582 | F57: 0.2373 | G57: 0.1489 | H57: 0.0454 | I57: 0.4316 | J57: 2.396969697 | K57: 1.504040404 | L57: 0.4585858586 | M57: 4.35959596 | U57: 69.73082477 | V57: 0 | W57: 80.18365473 | X57: 80.18365473 | Y57: 0 | Z57: 96 | AA57: 70.0886 | AB57: 16.7968 | AC57: 3.19759321
A58: 98 | B58: 34.6329 | C58: 11.3987 | D58: 1.9883 | E58: 48.0199 | F58: 0.2302 | G58: 0.1469 | H58: 0.0454 | I58: 0.4225 | J58: 2.325252525 | K58: 1.483838384 | L58: 0.4585858586 | M58: 4.267676768 | U58: 70.43173331 | V58: 0 | W58: 80.60146924 | X58: 80.60146924 | Y58: 0 | Z58: 98 | AA58: 70.549 | AB58: 17.0906 | AC58: 3.28839321
A59: 100 | B59: 33.6524 | C59: 11.2599 | D59: 1.9908 | E59: 46.9031 | F59: 0.2233 | G59: 0.1448 | H59: 0.0454 | I59: 0.4135 | J59: 2.255555556 | K59: 1.462626263 | L59: 0.4585858586 | M59: 4.176767677 | U59: 71.11940321 | V59: 0 | W59: 81.01469238 | X59: 81.01469238 | Y59: 0 | Z59: 100 | AA59: 70.9956 | AB59: 17.3802 | AC59: 3.37919321

Sheet sim17 (hidden)
B1: sim17 | O1: Remediation time (>90% mass removal or flux reduction)
B2: mass (g/m2) | F2: flux (g/y/m2) | J2: Conc output (mg/L) | O2: Mass | P2: =VLOOKUP(90,V:Z,5,FALSE) ->  | AA2: acc flux (g/m2)
A3: Time | B3: TCE | C3: DCE | D3: VC | E3: Total | F3: TCE | G3: DCE | H3: VC | I3: Total | J3: TCE | K3: DCE | L3: VC | M3: Total | O3: Flux | P3: =VLOOKUP(90,Y:Z,2,FALSE) ->  | U3: mass removal (%) | V3: to find 90% | W3: flux reduction (%) | Y3: to find 90% | Z3: Time | AA3: TCE | AB3: DCE | AC3: VC
A4: 0 | B4: 162.3977 | C4: 0 | D4: 0 | E4: =SUM(B4:D4) -> 162.3977 | F4: 2.178 | G4: 0 | H4: 0 | I4: =SUM(F4:H4) -> 2.178 | J4: 22 | K4: 0 | L4: 0 | M4: =SUM(J4:L4) -> 22 | U4: =(E$4-E4)/E$4*100 -> 0 | V4: =IF(U4>90,90,0) -> 0 | W4: =(I$4-I4)/I$4*100 -> 0 | X4: =IF(W4>0,W4,0) -> 0 | Y4: =IF(X4>90,90,0) -> 0 | Z4: =A4 -> 0 | AA4: =F4 -> 2.178 | AB4: =G4 -> 0 | AC4: 0
A5: 1 | B5: 153.2469 | C5: 3.916 | D5: 0.046 | E5: =SUM(B5:D5) -> 157.2089 | F5: 2.1014 | G5: 0.0867 | H5: 0.0012 | I5: =SUM(F5:H5) -> 2.1893 | J5: 21.22626263 | K5: 0.8757575758 | L5: 0.01212121212 | M5: =SUM(J5:L5) -> 22.11414141 | O5: Accumulated flux to the aquifer (g/m2) | U5: =(E$4-E5)/E$4*100 -> 3.195119143 | V5: =IF(U5>90,90,0) -> 0 | W5: =(I$4-I5)/I$4*100 -> -0.5188246097 | X5: =IF(W5>0,W5,0) -> 0 | Y5: =IF(X5>90,90,0) -> 0 | Z5: =A5 -> 1 | AA5: =AA4+F5*($A5-$A4) -> 4.2794 | AB5: =AB4+G5*($A5-$A4) -> 0.0867 | AC5: 0.0012
A6: 2 | B6: 146.5207 | C6: 6.7167 | D6: 0.1477 | E6: 153.3851 | F6: 2.0238 | G6: 0.1548 | H6: 0.004 | I6: 2.1826 | J6: 20.44242424 | K6: 1.563636364 | L6: 0.0404040404 | M6: 22.04646465 | O6: TCE | P6: =MAX(AA:AA) -> 51.7166 | U6: 5.54970914 | V6: 0 | W6: -0.2112029385 | X6: 0 | Y6: 0 | Z6: 2 | AA6: =AA5+F6*($A6-$A5) -> 6.3032 | AB6: 0.2415 | AC6: 0.0052
A7: 3 | B7: 140.7377 | C7: 8.914 | D7: 0.2794 | E7: 149.9311 | F7: 1.9354 | G7: 0.2085 | H7: 0.0079 | I7: 2.1518 | J7: 19.54949495 | K7: 2.106060606 | L7: 0.0797979798 | M7: 21.73535354 | O7: DCE | P7: =MAX(AB:AB) -> 24.7736 | U7: 7.676586553 | V7: 0 | W7: 1.202938476 | X7: 1.202938476 | Y7: 0 | Z7: 3 | AA7: 8.2386 | AB7: 0.45 | AC7: 0.0131
A8: 4 | B8: 135.5652 | C8: 10.7028 | D8: 0.4292 | E8: 146.6972 | F8: 1.8392 | G8: 0.2509 | H8: 0.0124 | I8: 2.1025 | J8: 18.57777778 | K8: 2.534343434 | L8: 0.1252525253 | M8: 21.23737374 | O8: VC | P8: =MAX(AC:AC) -> 8.8399 | U8: 9.667932489 | V8: 0 | W8: 3.466483012 | X8: 3.466483012 | Y8: 0 | Z8: 4 | AA8: 10.0778 | AB8: 0.7009 | AC8: 0.0255
A9: 5 | B9: 130.8364 | C9: 12.2009 | D9: 0.5893 | E9: 143.6266 | F9: 1.7413 | G9: 0.2845 | H9: 0.0172 | I9: 2.043 | J9: 17.58888889 | K9: 2.873737374 | L9: 0.1737373737 | M9: 20.63636364 | O9: Total | P9: =SUM(P6:P8) -> 85.3301 | U9: 11.55872281 | V9: 0 | W9: 6.198347107 | X9: 6.198347107 | Y9: 0 | Z9: 5 | AA9: 11.8191 | AB9: 0.9854 | AC9: 0.0427
A10: 6 | B10: 126.4553 | C10: 13.4812 | D10: 0.755 | E10: 140.6915 | F10: 1.6462 | G10: 0.3113 | H10: 0.0222 | I10: 1.9797 | J10: 16.62828283 | K10: 3.144444444 | L10: 0.2242424242 | M10: 19.9969697 | U10: 13.366076 | V10: 0 | W10: 9.104683196 | X10: 9.104683196 | Y10: 0 | Z10: 6 | AA10: 13.4653 | AB10: 1.2967 | AC10: 0.0649
A11: 7 | B11: 122.3815 | C11: 14.5774 | D11: 0.9241 | E11: 137.883 | F11: 1.5554 | G11: 0.3327 | H11: 0.0273 | I11: 1.9154 | J11: 15.71111111 | K11: 3.360606061 | L11: 0.2757575758 | M11: 19.34747475 | U11: 15.09547241 | V11: 0 | W11: 12.05693297 | X11: 12.05693297 | Y11: 0 | Z11: 7 | AA11: 15.0207 | AB11: 1.6294 | AC11: 0.0922
A12: 8 | B12: 118.5722 | C12: 15.5199 | D12: 1.0945 | E12: 135.1866 | F12: 1.4693 | G12: 0.3496 | H12: 0.0323 | I12: 1.8512 | J12: 14.84141414 | K12: 3.531313131 | L12: 0.3262626263 | M12: 18.6989899 | U12: 16.75584075 | V12: 0 | W12: 15.00459137 | X12: 15.00459137 | Y12: 0 | Z12: 8 | AA12: 16.49 | AB12: 1.979 | AC12: 0.1245
A13: 9 | B13: 115.0027 | C13: 16.3261 | D13: 1.2648 | E13: 132.5936 | F13: 1.388 | G13: 0.3625 | H13: 0.0373 | I13: 1.7878 | J13: 14.02020202 | K13: 3.661616162 | L13: 0.3767676768 | M13: 18.05858586 | U13: 18.35253824 | V13: 0 | W13: 17.91551882 | X13: 17.91551882 | Y13: 0 | Z13: 9 | AA13: 17.878 | AB13: 2.3415 | AC13: 0.1618
A14: 10 | B14: 111.6484 | C14: 17.0148 | D14: 1.4338 | E14: 130.097 | F14: 1.3122 | G14: 0.3721 | H14: 0.0421 | I14: 1.7264 | J14: 13.25454545 | K14: 3.758585859 | L14: 0.4252525253 | M14: 17.43838384 | U14: 19.88987529 | V14: 0 | W14: 20.73461892 | X14: 20.73461892 | Y14: 0 | Z14: 10 | AA14: 19.1902 | AB14: 2.7136 | AC14: 0.2039
A15: 12 | B15: 105.4721 | C15: 18.1212 | D15: 1.7629 | E15: 125.3562 | F15: 1.1766 | G15: 0.384 | H15: 0.0514 | I15: 1.612 | J15: 11.88484848 | K15: 3.878787879 | L15: 0.5191919192 | M15: 16.28282828 | U15: 22.80912845 | V15: 0 | W15: 25.98714417 | X15: 25.98714417 | Y15: 0 | Z15: 12 | AA15: 21.5434 | AB15: 3.4816 | AC15: 0.3067
A16: 14 | B16: 99.9201 | C16: 18.9254 | D16: 2.0764 | E16: 120.9219 | F16: 1.0603 | G16: 0.388 | H16: 0.0599 | I16: 1.5082 | J16: 10.71010101 | K16: 3.919191919 | L16: 0.6050505051 | M16: 15.23434343 | U16: 25.53964742 | V16: 0 | W16: 30.75298439 | X16: 30.75298439 | Y16: 0 | Z16: 14 | AA16: 23.664 | AB16: 4.2576 | AC16: 0.4265
A17: 16 | B17: 94.8898 | C17: 19.4969 | D17: 2.3702 | E17: 116.7569 | F17: 0.9608 | G17: 0.3866 | H17: 0.0676 | I17: 1.415 | J17: 9.705050505 | K17: 3.905050505 | L17: 0.6828282828 | M17: 14.29292929 | U17: 28.10433892 | V17: 0 | W17: 35.03213958 | X17: 35.03213958 | Y17: 0 | Z17: 16 | AA17: 25.5856 | AB17: 5.0308 | AC17: 0.5617
A18: 18 | B18: 90.2983 | C18: 19.8898 | D18: 2.6415 | E18: 112.8296 | F18: 0.8754 | G18: 0.3814 | H18: 0.0743 | I18: 1.3311 | J18: 8.842424242 | K18: 3.852525253 | L18: 0.7505050505 | M18: 13.44545455 | U18: 30.52266134 | V18: 0 | W18: 38.88429752 | X18: 38.88429752 | Y18: 0 | Z18: 18 | AA18: 27.3364 | AB18: 5.7936 | AC18: 0.7103
A19: 20 | B19: 86.065 | C19: 20.1558 | D19: 2.8883 | E19: 109.1091 | F19: 0.8017 | G19: 0.374 | H19: 0.08 | I19: 1.2557 | J19: 8.097979798 | K19: 3.777777778 | L19: 0.8080808081 | M19: 12.68383838 | U19: 32.81364207 | V19: 0 | W19: 42.34618916 | X19: 42.34618916 | Y19: 0 | Z19: 20 | AA19: 28.9398 | AB19: 6.5416 | AC19: 0.8703
A20: 22 | B20: 82.1311 | C20: 20.3278 | D20: 3.111 | E20: 105.5699 | F20: 0.7372 | G20: 0.3657 | H20: 0.0849 | I20: 1.1878 | J20: 7.446464646 | K20: 3.693939394 | L20: 0.8575757576 | M20: 11.9979798 | U20: 34.99298328 | V20: 0 | W20: 45.46372819 | X20: 45.46372819 | Y20: 0 | Z20: 22 | AA20: 30.4142 | AB20: 7.273 | AC20: 1.0401
A21: 24 | B21: 78.462 | C21: 20.4229 | D21: 3.3097 | E21: 102.1946 | F21: 0.6803 | G21: 0.3568 | H21: 0.0889 | I21: 1.126 | J21: 6.871717172 | K21: 3.604040404 | L21: 0.897979798 | M21: 11.37373737 | U21: 37.07139941 | V21: 0 | W21: 48.30119376 | X21: 48.30119376 | Y21: 0 | Z21: 24 | AA21: 31.7748 | AB21: 7.9866 | AC21: 1.2179
A22: 26 | B22: 75.026 | C22: 20.4567 | D22: 3.4858 | E22: 98.9685 | F22: 0.6298 | G22: 0.3477 | H22: 0.0922 | I22: 1.0697 | J22: 6.361616162 | K22: 3.512121212 | L22: 0.9313131313 | M22: 10.80505051 | U22: 39.05794232 | V22: 0 | W22: 50.88613407 | X22: 50.88613407 | Y22: 0 | Z22: 26 | AA22: =AA21+F22*($A22-$A21) -> 33.0344 | AB22: 8.682 | AC22: 1.4023
A23: 28 | B23: 71.7983 | C23: 20.4386 | D23: 3.6424 | E23: 95.8793 | F23: 0.5848 | G23: 0.3383 | H23: 0.0949 | I23: 1.018 | J23: 5.907070707 | K23: 3.417171717 | L23: 0.9585858586 | M23: 10.28282828 | U23: 40.96018601 | V23: 0 | W23: 53.25987144 | X23: 53.25987144 | Y23: 0 | Z23: 28 | AA23: 34.204 | AB23: 9.3586 | AC23: 1.5921
